Workbook

Sheet Examples (hidden)
B1: Teal | C1: Red | D1: Light grey | E1: Mid-grey | F1: Grey | G1: Light teal | H1: Mid-red | I1: Light red | L1: Teal solid | M1: Red solid | N1: Mid-grey | O1: Teal dashes | P1: Red dashes | Q1: Grey dashes | S1: X value | T1: 1st Y value | U1: 2nd Y value | X1: Teal | Y1: Red | Z1: Mid-red | AA1: Mid-grey
A2: 2003-04 | B2: 36.19 | C2: 36.88 | D2: 21.56 | E2: 5.36 | F2: 3.01 | G2: 10 | H2: 3.01 | I2: 10 | K2: 2003-04 | L2: 33.19 | M2: 36.88 | N2: 21.56 | O2: 5.36 | P2: 3.01 | Q2: 10 | S2: 1.8 | T2: 10 | U2: 17 | W2: 2003-04 | X2: 33.19 | Y2: 36.88 | Z2: 21.56 | AA2: 5.36
A3: 2004-05 | B3: 39.39 | C3: 32.02 | D3: 21.6 | E3: 7.01 | F3: 3.36 | G3: 12 | H3: 3.36 | I3: 12 | K3: 2004-05 | L3: 39.39 | M3: 32.02 | N3: 21.6 | O3: 7.01 | P3: 3.36 | Q3: 12 | S3: 2.3 | T3: 12 | U3: 9 | W3: 2004-05 | X3: 39.39 | Y3: 32.02 | Z3: 21.6 | AA3: 7.01
A4: 2005-06 | B4: 42.78 | C4: 29.91 | D4: 18.35 | E4: 6.33 | F4: 2.63 | G4: 14 | H4: 2.63 | I4: 14 | K4: 2005-06 | L4: 42.78 | M4: 29.91 | N4: 18.35 | O4: 6.33 | P4: 2.63 | Q4: 14 | S4: 3.7 | T4: 16 | U4: 14 | W4: 2005-06 | X4: 42.78 | Y4: 29.91 | Z4: 18.35 | AA4: 6.33
A5: 2006-07 | B5: 42.13 | C5: 26.53 | D5: 21.6 | E5: 7.01 | F5: 2.72 | G5: 16 | H5: 2.72 | I5: 16 | K5: 2006-07 | L5: 42.13 | M5: 26.53 | N5: 21.6 | O5: 7.01 | P5: 2.72 | Q5: 16 | S5: 4.1 | T5: 8 | U5: 23 | W5: 2006-07 | X5: 42.13 | Y5: 26.53 | Z5: 21.6 | AA5: 7.01
A6: 2007-08 | B6: 41.69 | C6: 24.76 | D6: 23.98 | E6: 7 | F6: 2.57 | G6: 18 | H6: 2.57 | I6: 18 | K6: 2007-08 | L6: 41.69 | M6: 24.76 | N6: 23.98 | O6: 7 | P6: 2.57 | Q6: 18 | S6: 5.5 | T6: 14 | U6: 27 | W6: 2007-08 | X6: 41.69 | Y6: 24.76 | Z6: 23.98 | AA6: 7
A7: 2008-09 | B7: 39.39 | C7: 32.02 | D7: 21.6 | E7: 7.01 | F7: 3.36 | G7: 12 | H7: 3.36 | I7: 12 | K7: 2008-09 | L7: 39.39 | M7: 32.02 | N7: 21.6 | O7: 7.01 | P7: 3.36 | Q7: 12 | W7: 2008-09 | X7: 39.39 | Y7: 32.02 | Z7: 21.6 | AA7: 7.01
A8: 2009-10 | B8: 42.13 | C8: 26.53 | D8: 21.6 | E8: 7.01 | F8: 2.72 | G8: 16 | H8: 2.72 | I8: 16 | K8: 2009-10 | L8: 42.13 | M8: 26.53 | N8: 21.6 | O8: 7.01 | P8: 2.72 | Q8: 16 | W8: 2009-10 | X8: 42.13 | Y8: 26.53 | Z8: 21.6 | AA8: 7.01
A9: 2010-11 | B9: 45 | C9: 22 | D9: 26 | E9: 8 | F9: 2 | G9: 20 | H9: 2 | I9: 20 | K9: 2010-11 | L9: 45 | M9: 22 | N9: 26 | O9: 8 | P9: 2 | Q9: 20 | W9: 2010-11 | X9: 45 | Y9: 22 | Z9: 26 | AA9: 8
A11: – en rule for when needed

Sheet Contents
A3: This workbook sets out demand forecasts for each of the Powercor and Citipower terminal stations
A5: The colour coding used is as follows
A6: Input worksheets and cells that can be changed within this summary sheet
A7: Summary worksheets
A8: Individual terminal station forecasts
A9: Scenario settings
A11: Notes:
A12: 1. The individual terminal station forecasts are copied from models from each terminal station. For clarity as to the settings in these models, these have been copied. These settings cannot be changed within this model
A13: 2. Within this model adjustments can be made for block loads, technology adjustments, industrial load adjustments and load accommodated through wind farms

Sheet Summary
A3: Max demand (including block loads and post-model adjustments)
B4: 50% PoE forecast, MW | X4: Forecast growth rate 2014 to 2024 (%)
B5: Powercor | C5: 2005 | D5: 2006 | E5: 2007 | F5: 2008 | G5: 2009 | H5: 2010 | I5: 2011 | J5: 2012 | K5: 2013 | L5: 2014 | M5: 2015 | N5: 2016 | O5: 2017 | P5: 2018 | Q5: 2019 | R5: 2020 | S5: 2021 | T5: 2022 | U5: 2023 | V5: 2024 | X5: Final | Y5: Pre-adjustments
B6: ATS | G6: =ATS!V$155 -> 167.6444406 | H6: =ATS!W$155 -> 163.2467403 | I6: =ATS!X$155 -> 176.7474201 | J6: =ATS!Y$155 -> 184.3534521 | K6: =ATS!Z$155 -> 186.9059061 | L6: =ATS!AA$155 -> 186.8586361 | M6: =ATS!AB$155 -> 195.7592445 | N6: =ATS!AC$155 -> 204.2186182 | O6: =ATS!AD$155 -> 216.1098144 | P6: =ATS!AE$155 -> 222.6032181 | Q6: =ATS!AF$155 -> 229.0988929 | R6: =ATS!AG$155 -> 235.6052465 | S6: =ATS!AH$155 -> 241.9830811 | T6: =ATS!AI$155 -> 248.3186409 | U6: =ATS!AJ$155 -> 254.6280146 | V6: =ATS!AK$155 -> 260.9502845 | X6: =(V6/L6)^(1/10)*100-100 -> 3.396171926 | Y6: =(Reconciliation!V4/Reconciliation!L4)^(1/10)*100-100 -> 4
B7: BATS | C7: =BATS!R$155 -> 168.0794271 | D7: =BATS!S$155 -> 178.9572802 | E7: =BATS!T$155 -> 178.7020077 | F7: =BATS!U$155 -> 175.7675336 | G7: =BATS!V$155 -> 175.3888047 | H7: =BATS!W$155 -> 170.1078459 | I7: =BATS!X$155 -> 169.5747119 | J7: =BATS!Y$155 -> 165.4522976 | K7: =BATS!Z$155 -> 169.471281 | L7: =BATS!AA$155 -> 170.0397321 | M7: =BATS!AB$155 -> 173.6464416 | N7: =BATS!AC$155 -> 179.0905789 | O7: =BATS!AD$155 -> 183.755765 | P7: =BATS!AE$155 -> 185.2198622 | Q7: =BATS!AF$155 -> 188.5844098 | R7: =BATS!AG$155 -> 191.9420593 | S7: =BATS!AH$155 -> 188.1254406 | T7: =BATS!AI$155 -> 193.1082235 | U7: =BATS!AJ$155 -> 198.1328746 | V7: =BATS!AK$155 -> 203.2382436 | X7: =(V7/L7)^(1/10)*100-100 -> 1.799466523 | Y7: =(Reconciliation!V5/Reconciliation!L5)^(1/10)*100-100 -> 2.973702774
B8: BETS22 | D8: =BETS22!S$155 -> 43.73973231 | E8: =BETS22!T$155 -> 46.82772825 | F8: =BETS22!U$155 -> 45.61302616 | G8: =BETS22!V$155 -> 50.00058097 | H8: =BETS22!W$155 -> 50.23166325 | I8: =BETS22!X$155 -> 49.50029861 | J8: =BETS22!Y$155 -> 52.43429069 | K8: =BETS22!Z$155 -> 58.83325627 | L8: =BETS22!AA$155 -> 61.43496178 | M8: =BETS22!AB$155 -> 71.40157513 | N8: =BETS22!AC$155 -> 73.63949281 | O8: =BETS22!AD$155 -> 76.27354547 | P8: =BETS22!AE$155 -> 78.9932231 | Q8: =BETS22!AF$155 -> 81.80152865 | R8: =BETS22!AG$155 -> 84.70286475 | S8: =BETS22!AH$155 -> 87.69240713 | T8: =BETS22!AI$155 -> 90.77985158 | U8: =BETS22!AJ$155 -> 93.96948115 | V8: =BETS22!AK$155 -> 97.26837557 | X8: 4.702151759 | Y8: =(Reconciliation!V6/Reconciliation!L6)^(1/10)*100-100 -> 3.688146597
B9: BETS66 | C9: =BETS66!R$155 -> 160.14907 | D9: =BETS66!S$155 -> 163.3958862 | E9: =BETS66!T$155 -> 161.1155213 | F9: =BETS66!U$155 -> 168.6781126 | G9: =BETS66!V$155 -> 170.7879721 | H9: =BETS66!W$155 -> 155.2870665 | I9: =BETS66!X$155 -> 164.6371237 | J9: =BETS66!Y$155 -> 164.3221816 | K9: =BETS66!Z$155 -> 171.5719752 | L9: =BETS66!AA$155 -> 168.0500164 | M9: =BETS66!AB$155 -> 164.7530789 | N9: =BETS66!AC$155 -> 170.6311205 | O9: =BETS66!AD$155 -> 176.4574359 | P9: =BETS66!AE$155 -> 175.7260781 | Q9: =BETS66!AF$155 -> 176.0385837 | R9: =BETS66!AG$155 -> 176.700963 | S9: =BETS66!AH$155 -> 181.8518683 | T9: =BETS66!AI$155 -> 184.8731972 | U9: =BETS66!AJ$155 -> 190.1360293 | V9: =BETS66!AK$155 -> 191.6339991 | X9: 1.321917547 | Y9: =(Reconciliation!V7/Reconciliation!L7)^(1/10)*100-100 -> 2.483762607
B10: BLTS22 | C10: =BLTS22!R$155 -> 56.33019339 | D10: =BLTS22!S$155 -> 57.05608488 | E10: =BLTS22!T$155 -> 58.73720092 | F10: =BLTS22!U$155 -> 58.67290591 | G10: =BLTS22!V$155 -> 58.01627786 | H10: =BLTS22!W$155 -> 59.26297573 | I10: =BLTS22!X$155 -> 58.130903 | K10: =BLTS22!Z$155 -> 55.90163175 | L10: =BLTS22!AA$155 -> 58.40850466 | M10: =BLTS22!AB$155 -> 59.30734776 | N10: =BLTS22!AC$155 -> 60.03718264 | O10: =BLTS22!AD$155 -> 60.75570173 | P10: =BLTS22!AE$155 -> 61.29629836 | Q10: =BLTS22!AF$155 -> 61.84228648 | R10: =BLTS22!AG$155 -> 62.25593499 | S10: =BLTS22!AH$155 -> 62.47137584 | T10: =BLTS22!AI$155 -> 63.06672083 | U10: =BLTS22!AJ$155 -> 63.91412004 | V10: =BLTS22!AK$155 -> 64.23109562 | X10: 0.9547887193 | Y10: =(Reconciliation!V8/Reconciliation!L8)^(1/10)*100-100 -> 1.737149545
B11: BLTS66 | E11: =BLTS66!T$155 -> 160.9585992 | F11: =BLTS66!U$155 -> 159.1140498 | G11: =BLTS66!V$155 -> 171.3993183 | H11: =BLTS66!W$155 -> 184.7354616 | I11: =BLTS66!X$155 -> 181.2717209 | J11: =BLTS66!Y$155 -> 182.658433 | K11: =BLTS66!Z$155 -> 187.7679634 | L11: =BLTS66!AA$155 -> 195.1685758 | M11: =BLTS66!AB$155 -> 196.5591933 | N11: =BLTS66!AC$155 -> 204.2560827 | O11: =BLTS66!AD$155 -> 210.9069503 | P11: =BLTS66!AE$155 -> 215.9169799 | Q11: =BLTS66!AF$155 -> 221.0903865 | R11: =BLTS66!AG$155 -> 226.4323351 | S11: =BLTS66!AH$155 -> 231.9348376 | T11: =BLTS66!AI$155 -> 237.6092145 | U11: =BLTS66!AJ$155 -> 243.4616147 | V11: =BLTS66!AK$155 -> 249.4995727 | X11: 2.486341761 | Y11: =(Reconciliation!V9/Reconciliation!L9)^(1/10)*100-100 -> 4
B12: GTS66 | C12: ='GTS66'!R$155 -> 353.7277138 | D12: ='GTS66'!S$155 -> 377.9447845 | E12: ='GTS66'!T$155 -> 391.4354155 | F12: ='GTS66'!U$155 -> 381.9399358 | G12: ='GTS66'!V$155 -> 396.2436456 | H12: ='GTS66'!W$155 -> 398.2803481 | I12: ='GTS66'!X$155 -> 416.1153956 | J12: ='GTS66'!Y$155 -> 414.8763357 | K12: ='GTS66'!Z$155 -> 427.5139205 | L12: ='GTS66'!AA$155 -> 455.7764675 | M12: ='GTS66'!AB$155 -> 472.225503 | N12: ='GTS66'!AC$155 -> 491.6758277 | O12: ='GTS66'!AD$155 -> 485.2280434 | P12: ='GTS66'!AE$155 -> 502.9115266 | Q12: ='GTS66'!AF$155 -> 521.2505553 | R12: ='GTS66'!AG$155 -> 540.2759031 | S12: ='GTS66'!AH$155 -> 560.0019642 | T12: ='GTS66'!AI$155 -> 580.465765 | U12: ='GTS66'!AJ$155 -> 601.6952909 | V12: ='GTS66'!AK$155 -> 623.7269833 | X12: 3.186828276 | Y12: =(Reconciliation!V10/Reconciliation!L10)^(1/10)*100-100 -> 4
B13: HOTS66 | C13: =HOTS66!R$155 -> 78.34504721 | D13: =HOTS66!S$155 -> 88.37558431 | E13: =HOTS66!T$155 -> 91.36811613 | F13: =HOTS66!U$155 -> 88.06147912 | G13: =HOTS66!V$155 -> 96.44930856 | H13: =HOTS66!W$155 -> 91.94991295 | I13: =HOTS66!X$155 -> 94.20175654 | J13: =HOTS66!Y$155 -> 87.50192845 | K13: =HOTS66!Z$155 -> 90.55584226 | L13: =HOTS66!AA$155 -> 93.43920357 | M13: =HOTS66!AB$155 -> 93.61388348 | N13: =HOTS66!AC$155 -> 96.08643557 | O13: =HOTS66!AD$155 -> 99.57854585 | P13: =HOTS66!AE$155 -> 102.9589 | Q13: =HOTS66!AF$155 -> 103.4636914 | R13: =HOTS66!AG$155 -> 106.4179584 | S13: =HOTS66!AH$155 -> 106.4076545 | T13: =HOTS66!AI$155 -> 110.0539311 | U13: =HOTS66!AJ$155 -> 113.7965838 | V13: =HOTS66!AK$155 -> 115.5258971 | X13: 2.144508295 | Y13: =(Reconciliation!V11/Reconciliation!L11)^(1/10)*100-100 -> 2.632430556
B14: KTSeast | E14: =KTSeast!T$155 -> 118.9996385 | F14: =KTSeast!U$155 -> 118.108317 | G14: =KTSeast!V$155 -> 125.8773076 | H14: =KTSeast!W$155 -> 128.5068474 | I14: =KTSeast!X$155 -> 130.0514356 | J14: =KTSeast!Y$155 -> 135.1089175 | K14: =KTSeast!Z$155 -> 142.9031736 | L14: =KTSeast!AA$155 -> 146.39094 | M14: =KTSeast!AB$155 -> 152.3688741 | N14: =KTSeast!AC$155 -> 158.1961282 | O14: =KTSeast!AD$155 -> 163.9832859 | P14: =KTSeast!AE$155 -> 169.205325 | Q14: =KTSeast!AF$155 -> 174.8390257 | R14: =KTSeast!AG$155 -> 179.8602939 | S14: =KTSeast!AH$155 -> 184.1814366 | T14: =KTSeast!AI$155 -> 190.8929834 | U14: =KTSeast!AJ$155 -> 197.7275146 | V14: =KTSeast!AK$155 -> 204.6928995 | X14: 3.409123688 | Y14: =(Reconciliation!V12/Reconciliation!L12)^(1/10)*100-100 -> 3.597471389
B15: KTSwest | E15: =KTSwest!T$155 -> 175.4210568 | F15: =KTSwest!U$155 -> 172.3180255 | G15: =KTSwest!V$155 -> 179.3593523 | H15: =KTSwest!W$155 -> 177.3069216 | I15: =KTSwest!X$155 -> 184.3455695 | J15: =KTSwest!Y$155 -> 178.0364796 | K15: =KTSwest!Z$155 -> 180.3578849 | L15: =KTSwest!AA$155 -> 192.5541629 | M15: =KTSwest!AB$155 -> 199.2018889 | N15: =KTSwest!AC$155 -> 206.0077986 | O15: =KTSwest!AD$155 -> 212.8868525 | P15: =KTSwest!AE$155 -> 219.8428532 | Q15: =KTSwest!AF$155 -> 226.8874309 | R15: =KTSwest!AG$155 -> 233.4729892 | S15: =KTSwest!AH$155 -> 235.4011472 | T15: =KTSwest!AI$155 -> 242.3285499 | U15: =KTSwest!AJ$155 -> 249.3633089 | V15: =KTSwest!AK$155 -> 256.570449 | X15: 2.911846874 | Y15: =(Reconciliation!V13/Reconciliation!L13)^(1/10)*100-100 -> 3.762659619
B16: KGTS22 | C16: =KGTS22!R$155 -> 11.46701518 | D16: =KGTS22!S$155 -> 12.41757727 | E16: =KGTS22!T$155 -> 13.32446966 | F16: =KGTS22!U$155 -> 12.46622405 | G16: =KGTS22!V$155 -> 11.48713367 | H16: =KGTS22!W$155 -> 13.33699456 | I16: =KGTS22!X$155 -> 12.88491134 | J16: =KGTS22!Y$155 -> 13.45050889 | K16: =KGTS22!Z$155 -> 13.75010368 | L16: =KGTS22!AA$155 -> 12.49476613 | M16: =KGTS22!AB$155 -> 13.03800311 | N16: =KGTS22!AC$155 -> 13.59916018 | O16: =KGTS22!AD$155 -> 14.17736741 | P16: =KGTS22!AE$155 -> 14.77324814 | Q16: =KGTS22!AF$155 -> 15.38714717 | R16: =KGTS22!AG$155 -> 16.01971747 | S16: =KGTS22!AH$155 -> 16.67199043 | T16: =KGTS22!AI$155 -> 17.34439945 | U16: =KGTS22!AJ$155 -> 18.03721201 | V16: =KGTS22!AK$155 -> 18.75160102 | X16: 4.143224975 | Y16: =(Reconciliation!V14/Reconciliation!L14)^(1/10)*100-100 -> 4
B17: KGTS66 | C17: =KGTS66!R$155 -> 56.87015356 | D17: =KGTS66!S$155 -> 55.57463224 | E17: =KGTS66!T$155 -> 55.21531106 | F17: =KGTS66!U$155 -> 54.73369336 | G17: =KGTS66!V$155 -> 57.97994388 | H17: =KGTS66!W$155 -> 48.31323274 | I17: =KGTS66!X$155 -> 53.98850627 | J17: =KGTS66!Y$155 -> 51.40300417 | K17: =KGTS66!Z$155 -> 54.21984429 | L17: =KGTS66!AA$155 -> 54.04541914 | M17: =KGTS66!AB$155 -> 55.97072883 | N17: =KGTS66!AC$155 -> 56.75514547 | O17: =KGTS66!AD$155 -> 56.93011569 | P17: =KGTS66!AE$155 -> 56.31197184 | Q17: =KGTS66!AF$155 -> 56.38747025 | R17: =KGTS66!AG$155 -> 56.56297919 | S17: =KGTS66!AH$155 -> 56.5008119 | T17: =KGTS66!AI$155 -> 56.57958593 | U17: =KGTS66!AJ$155 -> 57.83541475 | V17: =KGTS66!AK$155 -> 56.94429683 | X17: 0.523854877 | Y17: =(Reconciliation!V15/Reconciliation!L15)^(1/10)*100-100 -> 1.461817253
B18: RCTS22 | C18: =RCTS22!R$155 -> 38.38396349 | D18: =RCTS22!S$155 -> 34.36645426 | E18: =RCTS22!T$155 -> 33.36096027 | F18: =RCTS22!U$155 -> 34.16626302 | G18: =RCTS22!V$155 -> 38.40750313 | H18: =RCTS22!W$155 -> 30.384204 | I18: =RCTS22!X$155 -> 34.97987063 | J18: =RCTS22!Y$155 -> 40.63036105 | K18: =RCTS22!Z$155 -> 40.85078631 | L18: =RCTS22!AA$155 -> 39.03068467 | M18: =RCTS22!AB$155 -> 41.47387662 | N18: =RCTS22!AC$155 -> 42.52386845 | O18: =RCTS22!AD$155 -> 43.60561116 | P18: =RCTS22!AE$155 -> 44.71955407 | Q18: =RCTS22!AF$155 -> 45.86624649 | R18: =RCTS22!AG$155 -> 46.94341564 | S18: =RCTS22!AH$155 -> 47.85400297 | T18: =RCTS22!AI$155 -> 48.62449763 | U18: =RCTS22!AJ$155 -> 49.87110652 | V18: =RCTS22!AK$155 -> 50.53235091 | X18: 2.616295741 | Y18: =(Reconciliation!V16/Reconciliation!L16)^(1/10)*100-100 -> 3.57477216
B19: RCTS66 | L19: ='RCTS66 WETS'!AO$135 -> 170.3609855 | M19: ='RCTS66 WETS'!AP$135 -> 176.5145531 | N19: ='RCTS66 WETS'!AQ$135 -> 182.8765217 | O19: ='RCTS66 WETS'!AR$135 -> 189.4217625 | P19: ='RCTS66 WETS'!AS$135 -> 196.1488724 | Q19: ='RCTS66 WETS'!AT$135 -> 203.0580575 | R19: ='RCTS66 WETS'!AU$135 -> 210.1497542 | S19: ='RCTS66 WETS'!AV$135 -> 217.4139574 | T19: ='RCTS66 WETS'!AW$135 -> 224.8604849 | U19: ='RCTS66 WETS'!AX$135 -> 232.4851698 | V19: ='RCTS66 WETS'!AY$135 -> 236.8655769 | X19: 3.350642457 | Y19: =(Reconciliation!V17/Reconciliation!L17)^(1/10)*100-100 -> 5.849601697
B20: WETS | L20: ='RCTS66 WETS'!BL$135 -> 48.57665452 | M20: ='RCTS66 WETS'!BM$135 -> 50.41867286 | N20: ='RCTS66 WETS'!BN$135 -> 46.52015912 | O20: ='RCTS66 WETS'!BO$135 -> 46.59661877 | P20: ='RCTS66 WETS'!BP$135 -> 46.6447003 | Q20: ='RCTS66 WETS'!BQ$135 -> 46.66088969 | R20: ='RCTS66 WETS'!BR$135 -> 46.64213288 | S20: ='RCTS66 WETS'!BS$135 -> 46.58013623 | T20: ='RCTS66 WETS'!BT$135 -> 46.47492994 | U20: ='RCTS66 WETS'!BU$135 -> 46.32088925 | V20: ='RCTS66 WETS'!BV$135 -> 42.68881978 | X20: -1.283748757 | Y20: =Y19 -> 5.849601697
B21: SHTS | C21: =SHTS!R$155 -> 280.039249 | D21: =SHTS!S$155 -> 293.7456354 | E21: =SHTS!T$155 -> 282.0962132 | F21: =SHTS!U$155 -> 274.9267582 | G21: =SHTS!V$155 -> 290.6498387 | H21: =SHTS!W$155 -> 261.8949406 | I21: =SHTS!X$155 -> 272.5977137 | J21: =SHTS!Y$155 -> 283.4190408 | K21: =SHTS!Z$155 -> 283.1773813 | L21: =SHTS!AA$155 -> 274.3325706 | M21: =SHTS!AB$155 -> 279.5484638 | N21: =SHTS!AC$155 -> 284.4448347 | O21: =SHTS!AD$155 -> 289.612476 | P21: =SHTS!AE$155 -> 291.4640604 | Q21: =SHTS!AF$155 -> 318.3269295 | R21: =SHTS!AG$155 -> 314.8373969 | S21: =SHTS!AH$155 -> 313.6758278 | T21: =SHTS!AI$155 -> 318.7005544 | U21: =SHTS!AJ$155 -> 322.0502789 | V21: =SHTS!AK$155 -> 322.1697101 | X21: 1.620360987 | Y21: =(Reconciliation!V18/Reconciliation!L18)^(1/10)*100-100 -> 1.687245451
B22: TGTS | C22: =TGTS!R$155 -> 166.2076959 | D22: =TGTS!S$155 -> 179.2085358 | E22: =TGTS!T$155 -> 180.9790337 | F22: =TGTS!U$155 -> 183.8077148 | G22: =TGTS!V$155 -> 187.0582938 | H22: =TGTS!W$155 -> 192.080686 | I22: =TGTS!X$155 -> 195.6989603 | J22: =TGTS!Y$155 -> 195.7781888 | K22: =TGTS!Z$155 -> 196.3988477 | L22: =TGTS!AA$155 -> 196.8200421 | M22: =TGTS!AB$155 -> 196.6843832 | N22: =TGTS!AC$155 -> 207.7093575 | O22: =TGTS!AD$155 -> 212.4699568 | P22: =TGTS!AE$155 -> 227.3576717 | Q22: =TGTS!AF$155 -> 231.5484913 | R22: =TGTS!AG$155 -> 235.8246995 | S22: =TGTS!AH$155 -> 237.2169091 | T22: =TGTS!AI$155 -> 238.1949264 | U22: =TGTS!AJ$155 -> 238.7774925 | V22: =TGTS!AK$155 -> 239.0113139 | X22: 1.961194315 | Y22: =(Reconciliation!V19/Reconciliation!L19)^(1/10)*100-100 -> 3.834388608
B23: TPC | C23: =TPC!R$155 -> 1949.59021 | D23: =TPC!S$155 -> 2148.490086 | E23: =TPC!T$155 -> 2132.259932 | F23: =TPC!U$155 -> 2154.228194 | G23: =TPC!V$155 -> 2211.049608 | H23: =TPC!W$155 -> 2172.975103 | I23: =TPC!X$155 -> 2280.30319 | J23: =TPC!Y$155 -> 2281.004371 | K23: =TPC!Z$155 -> 2334.501697 | L23: =TPC!AA$155 -> 2522.439262 | M23: =TPC!AB$155 -> 2537.989973 | N23: =TPC!AC$155 -> 2630.102871 | O23: =TPC!AD$155 -> 2702.816822 | P23: =TPC!AE$155 -> 2773.071022 | Q23: =TPC!AF$155 -> 2878.760415 | R23: =TPC!AG$155 -> 2949.481582 | S23: =TPC!AH$155 -> 3006.276999 | T23: =TPC!AI$155 -> 3070.557679 | U23: =TPC!AJ$155 -> 3156.372781 | V23: =TPC!AK$155 -> 3244.405702 | X23: 2.549003332 | Y23: =(Reconciliation!V20/Reconciliation!L20)^(1/10)*100-100 -> 3.418169937
B25: Citipower | C25: 2005 | D25: 2006 | E25: 2007 | F25: 2008 | G25: 2009 | H25: 2010 | I25: 2011 | J25: 2012 | K25: 2013 | L25: 2014 | M25: 2015 | N25: 2016 | O25: 2017 | P25: 2018 | Q25: 2019 | R25: 2020 | S25: 2021 | T25: 2022 | U25: 2023 | V25: 2024
B26: WMTS22 | C26: =WMTS22!R$155 -> 86.83965017 | D26: =WMTS22!S$155 -> 85.10225851 | E26: =WMTS22!T$155 -> 86.945689 | F26: =WMTS22!U$155 -> 90.22974253 | G26: =WMTS22!V$155 -> 90.99437959 | H26: =WMTS22!W$155 -> 95.39389733 | I26: =WMTS22!X$155 -> 95.14126321 | J26: =WMTS22!Y$155 -> 95.62128662 | K26: =WMTS22!Z$155 -> 96.66029551 | L26: =WMTS22!AA$155 -> 99.19359081 | M26: =WMTS22!AB$155 -> 87.5938252 | N26: =WMTS22!AC$155 -> 91.12858688 | O26: =WMTS22!AD$155 -> 94.56757019 | P26: =WMTS22!AE$155 -> 97.84328892 | Q26: =WMTS22!AF$155 -> 100.862243 | R26: =WMTS22!AG$155 -> 103.507491 | S26: =WMTS22!AH$155 -> 105.9992235 | T26: =WMTS22!AI$155 -> 107.9939749 | U26: =WMTS22!AJ$155 -> 109.3366539 | V26: =WMTS22!AK$155 -> 109.824954 | X26: =(V26/L26)^(1/10)*100-100 -> 1.023344391 | Y26: =(Reconciliation!V23/Reconciliation!L23)^(1/10)*100-100 -> 4
B27: WMTS66 | E27: =WMTS66!T$155 -> 370.7842158 | F27: =WMTS66!U$155 -> 363.7822283 | G27: =WMTS66!V$155 -> 377.235413 | H27: =WMTS66!W$155 -> 359.0088151 | I27: =WMTS66!X$155 -> 370.7483293 | J27: =WMTS66!Y$155 -> 381.8293687 | K27: =WMTS66!Z$155 -> 376.8462093 | L27: =WMTS66!AA$155 -> 389.0463736 | M27: =WMTS66!AB$155 -> 403.3682128 | N27: =WMTS66!AC$155 -> 453.6871372 | O27: =WMTS66!AD$155 -> 469.382614 | P27: =WMTS66!AE$155 -> 483.9804637 | Q27: =WMTS66!AF$155 -> 494.7451702 | R27: =WMTS66!AG$155 -> 500.1757839 | S27: =WMTS66!AH$155 -> 506.4975574 | T27: =WMTS66!AI$155 -> 513.9895401 | U27: =WMTS66!AJ$155 -> 523.9723753 | V27: =WMTS66!AK$155 -> 532.7527611 | X27: 3.193521661 | Y27: =(Reconciliation!V24/Reconciliation!L24)^(1/10)*100-100 -> 2.992864089
B28: BTS22 | C28: ='BTS22'!R$155 -> 38.79681731 | D28: ='BTS22'!S$155 -> 40.84040174 | E28: ='BTS22'!T$155 -> 41.24067667 | F28: ='BTS22'!U$155 -> 40.95717017 | G28: ='BTS22'!V$155 -> 40.44914499 | H28: ='BTS22'!W$155 -> 43.30174927 | I28: ='BTS22'!X$155 -> 40.95063131 | J28: ='BTS22'!Y$155 -> 41.98310516 | K28: ='BTS22'!Z$155 -> 41.01696524 | L28: ='BTS22'!AA$155 -> 42.18258682 | M28: ='BTS22'!AB$155 -> 43.46488744 | N28: ='BTS22'!AC$155 -> 44.72014752 | O28: ='BTS22'!AD$155 -> 45.78501407 | P28: ='BTS22'!AE$155 -> 46.39631028 | Q28: ='BTS22'!AF$155 -> 47.41262825 | R28: ='BTS22'!AG$155 -> 47.92298163 | S28: ='BTS22'!AH$155 -> 48.66579147 | T28: ='BTS22'!AI$155 -> 49.50743401 | U28: ='BTS22'!AJ$155 -> 50.08975059 | V28: ='BTS22'!AK$155 -> 50.84520022 | X28: 1.885334419 | Y28: =(Reconciliation!V25/Reconciliation!L25)^(1/10)*100-100 -> 3.232464489
B29: FBTS66 | C29: =FBTS66!R$155 -> 214.4126798 | D29: =FBTS66!S$155 -> 222.4909536 | E29: =FBTS66!T$155 -> 222.1335392 | F29: =FBTS66!U$155 -> 231.0440246 | G29: =FBTS66!V$155 -> 230.5704142 | H29: =FBTS66!W$155 -> 234.5148479 | I29: =FBTS66!X$155 -> 243.3604919 | J29: =FBTS66!Y$155 -> 247.3807594 | K29: =FBTS66!Z$155 -> 249.5610065 | L29: =FBTS66!AA$155 -> 260.2334147 | M29: =FBTS66!AB$155 -> 286.3911018 | N29: =FBTS66!AC$155 -> 298.2994291 | O29: =FBTS66!AD$155 -> 317.0427446 | P29: =FBTS66!AE$155 -> 333.5801836 | Q29: =FBTS66!AF$155 -> 338.8563484 | R29: =FBTS66!AG$155 -> 341.9011309 | S29: =FBTS66!AH$155 -> 354.0194458 | T29: =FBTS66!AI$155 -> 356.9079345 | U29: =FBTS66!AJ$155 -> 362.9071381 | V29: =FBTS66!AK$155 -> 369.2708319 | X29: 3.561467152 | Y29: =(Reconciliation!V26/Reconciliation!L26)^(1/10)*100-100 -> 3.069463676
B30: RTS22 | C30: ='RTS22'!R$155 -> 77.52621326 | D30: ='RTS22'!S$155 -> 82.70415047 | E30: ='RTS22'!T$155 -> 80.25088474 | F30: ='RTS22'!U$155 -> 72.96155845 | G30: ='RTS22'!V$155 -> 77.2260786 | H30: ='RTS22'!W$155 -> 72.58469302 | I30: ='RTS22'!X$155 -> 75.55515979 | J30: ='RTS22'!Y$155 -> 70.56826868 | K30: ='RTS22'!Z$155 -> 68.03966206 | L30: ='RTS22'!AA$155 -> 74.60817628 | M30: ='RTS22'!AB$155 -> 64.93092328 | N30: ='RTS22'!AC$155 -> 54.04932028 | O30: ='RTS22'!AD$155 -> 56.6501837 | P30: ='RTS22'!AE$155 -> 57.8247646 | Q30: ='RTS22'!AF$155 -> 58.26386843 | R30: ='RTS22'!AG$155 -> 57.95540039 | S30: ='RTS22'!AH$155 -> 56.38391771 | T30: ='RTS22'!AI$155 -> 55.9421033 | U30: ='RTS22'!AJ$155 -> 55.55507823 | V30: ='RTS22'!AK$155 -> 54.51575544 | X30: -3.088891536 | Y30: =(Reconciliation!V27/Reconciliation!L27)^(1/10)*100-100 -> 2.253027339
B31: RTS66_1_4 | E31: =RTS66_1_4!T$155 -> 248.002932 | F31: =RTS66_1_4!U$155 -> 243.1948042 | G31: =RTS66_1_4!V$155 -> 245.8638661 | H31: =RTS66_1_4!W$155 -> 242.5732644 | I31: =RTS66_1_4!X$155 -> 249.488489 | J31: =RTS66_1_4!Y$155 -> 253.4989222 | K31: =RTS66_1_4!Z$155 -> 245.0126866 | L31: =RTS66_1_4!AA$155 -> 262.2606849 | M31: =RTS66_1_4!AB$155 -> 274.9641119 | N31: =RTS66_1_4!AC$155 -> 293.5041174 | O31: =RTS66_1_4!AD$155 -> 295.9555823 | P31: =RTS66_1_4!AE$155 -> 297.1467509 | Q31: =RTS66_1_4!AF$155 -> 299.1956488 | R31: =RTS66_1_4!AG$155 -> 298.0408296 | S31: =RTS66_1_4!AH$155 -> 296.3345707 | T31: =RTS66_1_4!AI$155 -> 295.4386301 | U31: =RTS66_1_4!AJ$155 -> 296.498167 | V31: =RTS66_1_4!AK$155 -> 294.4827233 | X31: 1.165553729 | Y31: =(Reconciliation!V28/Reconciliation!L28)^(1/10)*100-100 -> 1.063328072
B32: RTS66_2_3 | E32: =RTS66_2_3!T$155 -> 216.4217386 | F32: =RTS66_2_3!U$155 -> 209.3301772 | G32: =RTS66_2_3!V$155 -> 213.6289359 | H32: =RTS66_2_3!W$155 -> 212.4000762 | I32: =RTS66_2_3!X$155 -> 216.4086968 | J32: =RTS66_2_3!Y$155 -> 213.6103337 | K32: =RTS66_2_3!Z$155 -> 214.2580585 | L32: =RTS66_2_3!AA$155 -> 222.8943911 | M32: =RTS66_2_3!AB$155 -> 230.7542803 | N32: =RTS66_2_3!AC$155 -> 238.6951809 | O32: =RTS66_2_3!AD$155 -> 245.2739114 | P32: =RTS66_2_3!AE$155 -> 249.0519167 | Q32: =RTS66_2_3!AF$155 -> 252.0845846 | R32: =RTS66_2_3!AG$155 -> 254.01297 | S32: =RTS66_2_3!AH$155 -> 252.3345063 | T32: =RTS66_2_3!AI$155 -> 255.3197789 | U32: =RTS66_2_3!AJ$155 -> 258.3697298 | V32: =RTS66_2_3!AK$155 -> 258.745393 | X32: 1.502642464 | Y32: =(Reconciliation!V29/Reconciliation!L29)^(1/10)*100-100 -> 2.650586491
B33: SVTS | E33: =SVTS!T$155 -> 34.01450875 | F33: =SVTS!U$155 -> 35.01833488 | G33: =SVTS!V$155 -> 37.81514555 | H33: =SVTS!W$155 -> 36.27655872 | I33: =SVTS!X$155 -> 37.75189406 | J33: =SVTS!Y$155 -> 37.89225635 | K33: =SVTS!Z$155 -> 38.53896689 | L33: =SVTS!AA$155 -> 41.82614258 | M33: =SVTS!AB$155 -> 43.11017776 | N33: =SVTS!AC$155 -> 44.39858446 | O33: =SVTS!AD$155 -> 45.67829351 | P33: =SVTS!AE$155 -> 46.85067775 | Q33: =SVTS!AF$155 -> 47.65991708 | R33: =SVTS!AG$155 -> 48.62462351 | S33: =SVTS!AH$155 -> 49.74987628 | T33: =SVTS!AI$155 -> 50.81314269 | U33: =SVTS!AJ$155 -> 51.77368132 | V33: =SVTS!AK$155 -> 52.61256005 | X33: 2.320855379 | Y33: =(Reconciliation!V30/Reconciliation!L30)^(1/10)*100-100 -> 3.863944199
B34: TSTS | C34: =TSTS!R$155 -> 67.68332388 | D34: =TSTS!S$155 -> 72.2470871 | E34: =TSTS!T$155 -> 71.53867008 | F34: =TSTS!U$155 -> 69.73982253 | G34: =TSTS!V$155 -> 72.83843084 | H34: =TSTS!W$155 -> 71.49868288 | I34: =TSTS!X$155 -> 73.86102894 | J34: =TSTS!Y$155 -> 74.52573214 | K34: =TSTS!Z$155 -> 73.9974889 | L34: =TSTS!AA$155 -> 76.9520524 | M34: =TSTS!AB$155 -> 79.41577177 | N34: =TSTS!AC$155 -> 81.77725861 | O34: =TSTS!AD$155 -> 83.03278331 | P34: =TSTS!AE$155 -> 84.67508031 | Q34: =TSTS!AF$155 -> 85.07945683 | R34: =TSTS!AG$155 -> 85.64853847 | S34: =TSTS!AH$155 -> 85.80120508 | T34: =TSTS!AI$155 -> 85.92462272 | U34: =TSTS!AJ$155 -> 86.54762208 | V34: =TSTS!AK$155 -> 86.81187284 | X34: 1.212905399 | Y34: =(Reconciliation!V31/Reconciliation!L31)^(1/10)*100-100 -> 2.88142483
B35: TCP | C35: =TCP!R$155 -> 1287.258226 | D35: =TCP!S$155 -> 1375.542585 | E35: =TCP!T$155 -> 1371.354623 | F35: =TCP!U$155 -> 1353.30124 | G35: =TCP!V$155 -> 1387.683606 | H35: =TCP!W$155 -> 1363.376873 | I35: =TCP!X$155 -> 1397.758609 | J35: =TCP!Y$155 -> 1404.55785 | K35: =TCP!Z$155 -> 1401.060558 | L35: =TCP!AA$155 -> 1423.182414 | M35: =TCP!AB$155 -> 1475.604561 | N35: =TCP!AC$155 -> 1565.105436 | O35: =TCP!AD$155 -> 1626.882248 | P35: =TCP!AE$155 -> 1679.859103 | Q35: =TCP!AF$155 -> 1712.160668 | R35: =TCP!AG$155 -> 1712.725541 | S35: =TCP!AH$155 -> 1732.198836 | T35: =TCP!AI$155 -> 1741.266286 | U35: =TCP!AJ$155 -> 1748.739422 | V35: =TCP!AK$155 -> 1756.622133 | X35: 2.127283026 | Y35: =(Reconciliation!V32/Reconciliation!L32)^(1/10)*100-100 -> 2.746818855

Sheet Reconciliation
A1: Max demand reconciliation (excluding block load and post-model adjustments)
B2: 50% PoE forecast index (2014 = 1) | X2: Powercor - maximum demand
B3: Powercor | C3: 2005 | D3: 2006 | E3: 2007 | F3: 2008 | G3: 2009 | H3: 2010 | I3: 2011 | J3: 2012 | K3: 2013 | L3: 2014 | M3: 2015 | N3: 2016 | O3: 2017 | P3: 2018 | Q3: 2019 | R3: 2020 | S3: 2021 | T3: 2022 | U3: 2023 | V3: 2024
B4: ATS | G4: =ATS!V$89/ATS!$AA$89 -> 0.8938957343 | H4: =ATS!W$89/ATS!$AA$89 -> 0.8704467878 | I4: =ATS!X$89/ATS!$AA$89 -> 0.942433667 | J4: =ATS!Y$89/ATS!$AA$89 -> 0.9829897364 | K4: =ATS!Z$89/ATS!$AA$89 -> 0.9965996582 | L4: =ATS!AA$89/ATS!$AA$89 -> 1 | M4: =ATS!AB$89/ATS!$AA$89 -> 1.04 | N4: =ATS!AC$89/ATS!$AA$89 -> 1.0816 | O4: =ATS!AD$89/ATS!$AA$89 -> 1.124864 | P4: =ATS!AE$89/ATS!$AA$89 -> 1.16985856 | Q4: =ATS!AF$89/ATS!$AA$89 -> 1.216652902 | R4: =ATS!AG$89/ATS!$AA$89 -> 1.265319018 | S4: =ATS!AH$89/ATS!$AA$89 -> 1.315931779 | T4: =ATS!AI$89/ATS!$AA$89 -> 1.36856905 | U4: =ATS!AJ$89/ATS!$AA$89 -> 1.423311812 | V4: =ATS!AK$89/ATS!$AA$89 -> 1.480244285
B5: BATS | C5: =BATS!R$89/BATS!$AA$89 -> 0.9817859654 | D5: =BATS!S$89/BATS!$AA$89 -> 1.045325708 | E5: =BATS!T$89/BATS!$AA$89 -> 1.043834609 | F5: =BATS!U$89/BATS!$AA$89 -> 1.026693752 | G5: =BATS!V$89/BATS!$AA$89 -> 1.02448152 | H5: =BATS!W$89/BATS!$AA$89 -> 0.9936343701 | I5: =BATS!X$89/BATS!$AA$89 -> 0.9905202263 | J5: =BATS!Y$89/BATS!$AA$89 -> 0.9664403698 | K5: =BATS!Z$89/BATS!$AA$89 -> 0.989916066 | L5: =BATS!AA$89/BATS!$AA$89 -> 1 | M5: =BATS!AB$89/BATS!$AA$89 -> 1.029757074 | N5: =BATS!AC$89/BATS!$AA$89 -> 1.070947357 | O5: =BATS!AD$89/BATS!$AA$89 -> 1.108893716 | P5: =BATS!AE$89/BATS!$AA$89 -> 1.129485958 | Q5: =BATS!AF$89/BATS!$AA$89 -> 1.162579321 | R5: =BATS!AG$89/BATS!$AA$89 -> 1.19705559 | S5: =BATS!AH$89/BATS!$AA$89 -> 1.191689953 | T5: =BATS!AI$89/BATS!$AA$89 -> 1.239357551 | U5: =BATS!AJ$89/BATS!$AA$89 -> 1.288931853 | V5: =BATS!AK$89/BATS!$AA$89 -> 1.340489127
B6: BETS22 | D6: =BETS22!S$89/BETS22!$AA$89 -> 0.7132394775 | E6: =BETS22!T$89/BETS22!$AA$89 -> 0.7635937091 | F6: =BETS22!U$89/BETS22!$AA$89 -> 0.743786238 | G6: =BETS22!V$89/BETS22!$AA$89 -> 0.8153316529 | H6: =BETS22!W$89/BETS22!$AA$89 -> 0.8190997831 | I6: =BETS22!X$89/BETS22!$AA$89 -> 0.8071738268 | J6: =BETS22!Y$89/BETS22!$AA$89 -> 0.8550168033 | K6: =BETS22!Z$89/BETS22!$AA$89 -> 0.9593611745 | L6: =BETS22!AA$89/BETS22!$AA$89 -> 1 | M6: =BETS22!AB$89/BETS22!$AA$89 -> 1.014368065 | N6: =BETS22!AC$89/BETS22!$AA$89 -> 1.049601401 | O6: =BETS22!AD$89/BETS22!$AA$89 -> 1.091585457 | P6: =BETS22!AE$89/BETS22!$AA$89 -> 1.135248876 | Q6: =BETS22!AF$89/BETS22!$AA$89 -> 1.180658831 | R6: =BETS22!AG$89/BETS22!$AA$89 -> 1.227885184 | S6: =BETS22!AH$89/BETS22!$AA$89 -> 1.277000591 | T6: =BETS22!AI$89/BETS22!$AA$89 -> 1.328080615 | U6: =BETS22!AJ$89/BETS22!$AA$89 -> 1.38120384 | V6: =BETS22!AK$89/BETS22!$AA$89 -> 1.436451993
B7: BETS66 | C7: =BETS66!R$89/BETS66!$AA$89 -> 0.9486946523 | D7: =BETS66!S$89/BETS66!$AA$89 -> 0.9679282148 | E7: =BETS66!T$89/BETS66!$AA$89 -> 0.954419738 | F7: =BETS66!U$89/BETS66!$AA$89 -> 0.9992191858 | G7: =BETS66!V$89/BETS66!$AA$89 -> 1.011717619 | H7: =BETS66!W$89/BETS66!$AA$89 -> 0.9198930069 | I7: =BETS66!X$89/BETS66!$AA$89 -> 0.9752810853 | J7: =BETS66!Y$89/BETS66!$AA$89 -> 0.9734154242 | K7: =BETS66!Z$89/BETS66!$AA$89 -> 1.016361914 | L7: =BETS66!AA$89/BETS66!$AA$89 -> 1 | M7: =BETS66!AB$89/BETS66!$AA$89 -> 1.04 | N7: =BETS66!AC$89/BETS66!$AA$89 -> 1.081636425 | O7: =BETS66!AD$89/BETS66!$AA$89 -> 1.092166348 | P7: =BETS66!AE$89/BETS66!$AA$89 -> 1.097059637 | Q7: =BETS66!AF$89/BETS66!$AA$89 -> 1.109428638 | R7: =BETS66!AG$89/BETS66!$AA$89 -> 1.125199683 | S7: =BETS66!AH$89/BETS66!$AA$89 -> 1.169423621 | T7: =BETS66!AI$89/BETS66!$AA$89 -> 1.202637353 | U7: =BETS66!AJ$89/BETS66!$AA$89 -> 1.250742848 | V7: =BETS66!AK$89/BETS66!$AA$89 -> 1.278058161
B8: BLTS22 | C8: =BLTS22!R$89/BLTS22!$AA$89 -> 0.9634762319 | D8: =BLTS22!S$89/BLTS22!$AA$89 -> 0.9758919394 | E8: =BLTS22!T$89/BLTS22!$AA$89 -> 1.004645886 | F8: =BLTS22!U$89/BLTS22!$AA$89 -> 1.003546178 | G8: =BLTS22!V$89/BLTS22!$AA$89 -> 0.9923151586 | H8: =BLTS22!W$89/BLTS22!$AA$89 -> 1.013638781 | I8: =BLTS22!X$89/BLTS22!$AA$89 -> 0.9942757162 | K8: =BLTS22!Z$89/BLTS22!$AA$89 -> 0.9561460787 | L8: =BLTS22!AA$89/BLTS22!$AA$89 -> 1 | M8: =BLTS22!AB$89/BLTS22!$AA$89 -> 1.024317066 | N8: =BLTS22!AC$89/BLTS22!$AA$89 -> 1.04570021 | O8: =BLTS22!AD$89/BLTS22!$AA$89 -> 1.067093514 | P8: =BLTS22!AE$89/BLTS22!$AA$89 -> 1.084121576 | Q8: =BLTS22!AF$89/BLTS22!$AA$89 -> 1.101669606 | R8: =BLTS22!AG$89/BLTS22!$AA$89 -> 1.116134232 | S8: =BLTS22!AH$89/BLTS22!$AA$89 -> 1.125867351 | T8: =BLTS22!AI$89/BLTS22!$AA$89 -> 1.146192102 | U8: =BLTS22!AJ$89/BLTS22!$AA$89 -> 1.173765418 | V8: =BLTS22!AK$89/BLTS22!$AA$89 -> 1.187943142
B9: BLTS66 | E9: =BLTS66!T$89/BLTS66!$AA$89 -> 0.8242507457 | F9: =BLTS66!U$89/BLTS66!$AA$89 -> 0.8148050172 | G9: =BLTS66!V$89/BLTS66!$AA$89 -> 0.8777164849 | H9: =BLTS66!W$89/BLTS66!$AA$89 -> 0.9460093634 | I9: =BLTS66!X$89/BLTS66!$AA$89 -> 0.9282719397 | J9: =BLTS66!Y$89/BLTS66!$AA$89 -> 0.9353731357 | K9: =BLTS66!Z$89/BLTS66!$AA$89 -> 0.9615384615 | L9: =BLTS66!AA$89/BLTS66!$AA$89 -> 1 | M9: =BLTS66!AB$89/BLTS66!$AA$89 -> 1.04 | N9: =BLTS66!AC$89/BLTS66!$AA$89 -> 1.0816 | O9: =BLTS66!AD$89/BLTS66!$AA$89 -> 1.124864 | P9: =BLTS66!AE$89/BLTS66!$AA$89 -> 1.16985856 | Q9: =BLTS66!AF$89/BLTS66!$AA$89 -> 1.216652902 | R9: =BLTS66!AG$89/BLTS66!$AA$89 -> 1.265319018 | S9: =BLTS66!AH$89/BLTS66!$AA$89 -> 1.315931779 | T9: =BLTS66!AI$89/BLTS66!$AA$89 -> 1.36856905 | U9: =BLTS66!AJ$89/BLTS66!$AA$89 -> 1.423311812 | V9: =BLTS66!AK$89/BLTS66!$AA$89 -> 1.480244285
B10: GTS66 | C10: ='GTS66'!R$89/'GTS66'!$AA$89 -> 0.7780604695 | D10: ='GTS66'!S$89/'GTS66'!$AA$89 -> 0.8313284061 | E10: ='GTS66'!T$89/'GTS66'!$AA$89 -> 0.8610024357 | F10: ='GTS66'!U$89/'GTS66'!$AA$89 -> 0.840116152 | G10: ='GTS66'!V$89/'GTS66'!$AA$89 -> 0.8715786321 | H10: ='GTS66'!W$89/'GTS66'!$AA$89 -> 0.8760585688 | I10: ='GTS66'!X$89/'GTS66'!$AA$89 -> 0.915288589 | J10: ='GTS66'!Y$89/'GTS66'!$AA$89 -> 0.9125631494 | K10: ='GTS66'!Z$89/'GTS66'!$AA$89 -> 0.9403608163 | L10: ='GTS66'!AA$89/'GTS66'!$AA$89 -> 1 | M10: ='GTS66'!AB$89/'GTS66'!$AA$89 -> 1.04 | N10: ='GTS66'!AC$89/'GTS66'!$AA$89 -> 1.0816 | O10: ='GTS66'!AD$89/'GTS66'!$AA$89 -> 1.124864 | P10: ='GTS66'!AE$89/'GTS66'!$AA$89 -> 1.16985856 | Q10: ='GTS66'!AF$89/'GTS66'!$AA$89 -> 1.216652902 | R10: ='GTS66'!AG$89/'GTS66'!$AA$89 -> 1.265319018 | S10: ='GTS66'!AH$89/'GTS66'!$AA$89 -> 1.315931779 | T10: ='GTS66'!AI$89/'GTS66'!$AA$89 -> 1.36856905 | U10: ='GTS66'!AJ$89/'GTS66'!$AA$89 -> 1.423311812 | V10: ='GTS66'!AK$89/'GTS66'!$AA$89 -> 1.480244285
B11: HOTS66 | C11: =HOTS66!R$89/HOTS66!$AA$89 -> 0.8366639723 | D11: =HOTS66!S$89/HOTS66!$AA$89 -> 0.9437822817 | E11: =HOTS66!T$89/HOTS66!$AA$89 -> 0.9757401865 | F11: =HOTS66!U$89/HOTS66!$AA$89 -> 0.9404278834 | G11: =HOTS66!V$89/HOTS66!$AA$89 -> 1.030003357 | H11: =HOTS66!W$89/HOTS66!$AA$89 -> 0.9819533225 | I11: =HOTS66!X$89/HOTS66!$AA$89 -> 1.006001255 | J11: =HOTS66!Y$89/HOTS66!$AA$89 -> 0.9344523188 | K11: =HOTS66!Z$89/HOTS66!$AA$89 -> 0.9670657354 | L11: =HOTS66!AA$89/HOTS66!$AA$89 -> 1 | M11: =HOTS66!AB$89/HOTS66!$AA$89 -> 1.005077222 | N11: =HOTS66!AC$89/HOTS66!$AA$89 -> 1.034950483 | O11: =HOTS66!AD$89/HOTS66!$AA$89 -> 1.076348502 | P11: =HOTS66!AE$89/HOTS66!$AA$89 -> 1.117218332 | Q11: =HOTS66!AF$89/HOTS66!$AA$89 -> 1.128086646 | R11: =HOTS66!AG$89/HOTS66!$AA$89 -> 1.165836964 | S11: =HOTS66!AH$89/HOTS66!$AA$89 -> 1.172964287 | T11: =HOTS66!AI$89/HOTS66!$AA$89 -> 1.219882858 | U11: =HOTS66!AJ$89/HOTS66!$AA$89 -> 1.268678172 | V11: =HOTS66!AK$89/HOTS66!$AA$89 -> 1.296719795
B12: KTSeast | E12: =KTSeast!T$89/KTSeast!$AA$89 -> 0.8144901707 | F12: =KTSeast!U$89/KTSeast!$AA$89 -> 0.8083895416 | G12: =KTSeast!V$89/KTSeast!$AA$89 -> 0.8615642115 | H12: =KTSeast!W$89/KTSeast!$AA$89 -> 0.8795620336 | I12: =KTSeast!X$89/KTSeast!$AA$89 -> 0.8901339309 | J12: =KTSeast!Y$89/KTSeast!$AA$89 -> 0.924749744 | K12: =KTSeast!Z$89/KTSeast!$AA$89 -> 0.9780973429 | L12: =KTSeast!AA$89/KTSeast!$AA$89 -> 1 | M12: =KTSeast!AB$89/KTSeast!$AA$89 -> 1.04 | N12: =KTSeast!AC$89/KTSeast!$AA$89 -> 1.07940535 | O12: =KTSeast!AD$89/KTSeast!$AA$89 -> 1.119115715 | P12: =KTSeast!AE$89/KTSeast!$AA$89 -> 1.155677733 | Q12: =KTSeast!AF$89/KTSeast!$AA$89 -> 1.195840901 | R12: =KTSeast!AG$89/KTSeast!$AA$89 -> 1.232635347 | S12: =KTSeast!AH$89/KTSeast!$AA$89 -> 1.265877075 | T12: =KTSeast!AI$89/KTSeast!$AA$89 -> 1.316512158 | U12: =KTSeast!AJ$89/KTSeast!$AA$89 -> 1.369172644 | V12: =KTSeast!AK$89/KTSeast!$AA$89 -> 1.42393955
B13: KTSwest | E13: =KTSwest!T$89/KTSwest!$AA$89 -> 0.907804783 | F13: =KTSwest!U$89/KTSwest!$AA$89 -> 0.8917465815 | G13: =KTSwest!V$89/KTSwest!$AA$89 -> 0.9281854802 | H13: =KTSwest!W$89/KTSwest!$AA$89 -> 0.9175641419 | I13: =KTSwest!X$89/KTSwest!$AA$89 -> 0.9539891778 | J13: =KTSwest!Y$89/KTSwest!$AA$89 -> 0.9213396081 | K13: =KTSwest!Z$89/KTSwest!$AA$89 -> 0.9333528913 | L13: =KTSwest!AA$89/KTSwest!$AA$89 -> 1 | M13: =KTSwest!AB$89/KTSwest!$AA$89 -> 1.04 | N13: =KTSwest!AC$89/KTSwest!$AA$89 -> 1.0816 | O13: =KTSwest!AD$89/KTSwest!$AA$89 -> 1.124864 | P13: =KTSwest!AE$89/KTSwest!$AA$89 -> 1.16985856 | Q13: =KTSwest!AF$89/KTSwest!$AA$89 -> 1.216652902 | R13: =KTSwest!AG$89/KTSwest!$AA$89 -> 1.262361453 | S13: =KTSwest!AH$89/KTSwest!$AA$89 -> 1.286207186 | T13: =KTSwest!AI$89/KTSwest!$AA$89 -> 1.337655473 | U13: =KTSwest!AJ$89/KTSwest!$AA$89 -> 1.391161692 | V13: =KTSwest!AK$89/KTSwest!$AA$89 -> 1.44680816
B14: KGTS22 | C14: =KGTS22!R$89/KGTS22!$AA$89 -> 0.9214139627 | D14: =KGTS22!S$89/KGTS22!$AA$89 -> 0.9977948837 | E14: =KGTS22!T$89/KGTS22!$AA$89 -> 1.070666795 | F14: =KGTS22!U$89/KGTS22!$AA$89 -> 1.001703819 | G14: =KGTS22!V$89/KGTS22!$AA$89 -> 0.9230305518 | H14: =KGTS22!W$89/KGTS22!$AA$89 -> 1.071673213 | I14: =KGTS22!X$89/KGTS22!$AA$89 -> 1.035346777 | J14: =KGTS22!Y$89/KGTS22!$AA$89 -> 1.080794478 | K14: =KGTS22!Z$89/KGTS22!$AA$89 -> 1.104867946 | L14: =KGTS22!AA$89/KGTS22!$AA$89 -> 1 | M14: =KGTS22!AB$89/KGTS22!$AA$89 -> 1.04 | N14: =KGTS22!AC$89/KGTS22!$AA$89 -> 1.0816 | O14: =KGTS22!AD$89/KGTS22!$AA$89 -> 1.124864 | P14: =KGTS22!AE$89/KGTS22!$AA$89 -> 1.16985856 | Q14: =KGTS22!AF$89/KGTS22!$AA$89 -> 1.216652902 | R14: =KGTS22!AG$89/KGTS22!$AA$89 -> 1.265319018 | S14: =KGTS22!AH$89/KGTS22!$AA$89 -> 1.315931779 | T14: =KGTS22!AI$89/KGTS22!$AA$89 -> 1.36856905 | U14: =KGTS22!AJ$89/KGTS22!$AA$89 -> 1.423311812 | V14: =KGTS22!AK$89/KGTS22!$AA$89 -> 1.480244285
B15: KGTS66 | C15: =KGTS66!R$89/KGTS66!$AA$89 -> 1.048842594 | D15: =KGTS66!S$89/KGTS66!$AA$89 -> 1.024949605 | E15: =KGTS66!T$89/KGTS66!$AA$89 -> 1.018322731 | F15: =KGTS66!U$89/KGTS66!$AA$89 -> 1.009440371 | G15: =KGTS66!V$89/KGTS66!$AA$89 -> 1.06931019 | H15: =KGTS66!W$89/KGTS66!$AA$89 -> 0.8910293566 | I15: =KGTS66!X$89/KGTS66!$AA$89 -> 0.9956970642 | J15: =KGTS66!Y$89/KGTS66!$AA$89 -> 0.9480132696 | K15: =KGTS66!Z$89/KGTS66!$AA$89 -> 0.9999635757 | L15: =KGTS66!AA$89/KGTS66!$AA$89 -> 1 | M15: =KGTS66!AB$89/KGTS66!$AA$89 -> 1.04 | N15: =KGTS66!AC$89/KGTS66!$AA$89 -> 1.059664325 | O15: =KGTS66!AD$89/KGTS66!$AA$89 -> 1.069183422 | P15: =KGTS66!AE$89/KGTS66!$AA$89 -> 1.065296902 | Q15: =KGTS66!AF$89/KGTS66!$AA$89 -> 1.075584543 | R15: =KGTS66!AG$89/KGTS66!$AA$89 -> 1.089262643 | S15: =KGTS66!AH$89/KGTS66!$AA$89 -> 1.100127485 | T15: =KGTS66!AI$89/KGTS66!$AA$89 -> 1.115419244 | U15: =KGTS66!AJ$89/KGTS66!$AA$89 -> 1.154484487 | V15: =KGTS66!AK$89/KGTS66!$AA$89 -> 1.156182431
B16: RCTS22 | C16: =RCTS22!R$89/RCTS22!$AA$89 -> 0.9827411886 | D16: =RCTS22!S$89/RCTS22!$AA$89 -> 0.8798812587 | E16: =RCTS22!T$89/RCTS22!$AA$89 -> 0.8541376857 | F16: =RCTS22!U$89/RCTS22!$AA$89 -> 0.8747557801 | G16: =RCTS22!V$89/RCTS22!$AA$89 -> 0.9833438719 | H16: =RCTS22!W$89/RCTS22!$AA$89 -> 0.777924061 | I16: =RCTS22!X$89/RCTS22!$AA$89 -> 0.8955865033 | J16: =RCTS22!Y$89/RCTS22!$AA$89 -> 1.040255505 | K16: =RCTS22!Z$89/RCTS22!$AA$89 -> 1.045899033 | L16: =RCTS22!AA$89/RCTS22!$AA$89 -> 1 | M16: =RCTS22!AB$89/RCTS22!$AA$89 -> 1.04 | N16: =RCTS22!AC$89/RCTS22!$AA$89 -> 1.0816 | O16: =RCTS22!AD$89/RCTS22!$AA$89 -> 1.124864 | P16: =RCTS22!AE$89/RCTS22!$AA$89 -> 1.16985856 | Q16: =RCTS22!AF$89/RCTS22!$AA$89 -> 1.216652902 | R16: =RCTS22!AG$89/RCTS22!$AA$89 -> 1.261427081 | S16: =RCTS22!AH$89/RCTS22!$AA$89 -> 1.300641026 | T16: =RCTS22!AI$89/RCTS22!$AA$89 -> 1.335285819 | U16: =RCTS22!AJ$89/RCTS22!$AA$89 -> 1.388697252 | V16: =RCTS22!AK$89/RCTS22!$AA$89 -> 1.420822632
B17: RCTS66/WETS | C17: ='RCTS66 WETS'!R$89/'RCTS66 WETS'!$AA$89 -> 0.6902954903 | D17: ='RCTS66 WETS'!S$89/'RCTS66 WETS'!$AA$89 -> 0.6952013516 | E17: ='RCTS66 WETS'!T$89/'RCTS66 WETS'!$AA$89 -> 0.6888350626 | F17: ='RCTS66 WETS'!U$89/'RCTS66 WETS'!$AA$89 -> 0.7510411389 | G17: ='RCTS66 WETS'!V$89/'RCTS66 WETS'!$AA$89 -> 0.8114745438 | H17: ='RCTS66 WETS'!W$89/'RCTS66 WETS'!$AA$89 -> 0.709485174 | I17: ='RCTS66 WETS'!X$89/'RCTS66 WETS'!$AA$89 -> 0.7777281823 | J17: ='RCTS66 WETS'!Y$89/'RCTS66 WETS'!$AA$89 -> 0.8117095004 | K17: ='RCTS66 WETS'!Z$89/'RCTS66 WETS'!$AA$89 -> 0.8054413549 | L17: ='RCTS66 WETS'!AA$89/'RCTS66 WETS'!$AA$89 -> 1 | M17: ='RCTS66 WETS'!AB$89/'RCTS66 WETS'!$AA$89 -> 1.078801995 | N17: ='RCTS66 WETS'!AC$89/'RCTS66 WETS'!$AA$89 -> 1.207921125 | O17: ='RCTS66 WETS'!AD$89/'RCTS66 WETS'!$AA$89 -> 1.279358395 | P17: ='RCTS66 WETS'!AE$89/'RCTS66 WETS'!$AA$89 -> 1.308199383 | Q17: ='RCTS66 WETS'!AF$89/'RCTS66 WETS'!$AA$89 -> 1.3673956 | R17: ='RCTS66 WETS'!AG$89/'RCTS66 WETS'!$AA$89 -> 1.414591802 | S17: ='RCTS66 WETS'!AH$89/'RCTS66 WETS'!$AA$89 -> 1.487264683 | T17: ='RCTS66 WETS'!AI$89/'RCTS66 WETS'!$AA$89 -> 1.559481323 | U17: ='RCTS66 WETS'!AJ$89/'RCTS66 WETS'!$AA$89 -> 1.684984686 | V17: ='RCTS66 WETS'!AK$89/'RCTS66 WETS'!$AA$89 -> 1.765599843
B18: SHTS | C18: =SHTS!R$89/SHTS!$AA$89 -> 1.018250202 | D18: =SHTS!S$89/SHTS!$AA$89 -> 1.068087969 | E18: =SHTS!T$89/SHTS!$AA$89 -> 1.025729526 | F18: =SHTS!U$89/SHTS!$AA$89 -> 0.999660684 | G18: =SHTS!V$89/SHTS!$AA$89 -> 1.056831348 | H18: =SHTS!W$89/SHTS!$AA$89 -> 0.9522757158 | I18: =SHTS!X$89/SHTS!$AA$89 -> 0.9911920494 | J18: =SHTS!Y$89/SHTS!$AA$89 -> 1.030539457 | K18: =SHTS!Z$89/SHTS!$AA$89 -> 1.02966076 | L18: =SHTS!AA$89/SHTS!$AA$89 -> 1 | M18: =SHTS!AB$89/SHTS!$AA$89 -> 1.022558929 | N18: =SHTS!AC$89/SHTS!$AA$89 -> 1.04451007 | O18: =SHTS!AD$89/SHTS!$AA$89 -> 1.068374243 | P18: =SHTS!AE$89/SHTS!$AA$89 -> 1.081163187 | Q18: =SHTS!AF$89/SHTS!$AA$89 -> 1.113252387 | R18: =SHTS!AG$89/SHTS!$AA$89 -> 1.108864754 | S18: =SHTS!AH$89/SHTS!$AA$89 -> 1.114220728 | T18: =SHTS!AI$89/SHTS!$AA$89 -> 1.14337951 | U18: =SHTS!AJ$89/SHTS!$AA$89 -> 1.167893412 | V18: =SHTS!AK$89/SHTS!$AA$89 -> 1.18212889
B19: TGTS | C19: =TGTS!R$89/TGTS!$AA$89 -> 0.8273381031 | D19: =TGTS!S$89/TGTS!$AA$89 -> 0.8920528575 | E19: =TGTS!T$89/TGTS!$AA$89 -> 0.9008659294 | F19: =TGTS!U$89/TGTS!$AA$89 -> 0.914946358 | G19: =TGTS!V$89/TGTS!$AA$89 -> 0.9311268839 | H19: =TGTS!W$89/TGTS!$AA$89 -> 0.9561270284 | I19: =TGTS!X$89/TGTS!$AA$89 -> 0.9741378438 | J19: =TGTS!Y$89/TGTS!$AA$89 -> 0.9745322226 | K19: =TGTS!Z$89/TGTS!$AA$89 -> 0.9776216991 | L19: =TGTS!AA$89/TGTS!$AA$89 -> 1 | M19: =TGTS!AB$89/TGTS!$AA$89 -> 1.023557033 | N19: =TGTS!AC$89/TGTS!$AA$89 -> 1.064499315 | O19: =TGTS!AD$89/TGTS!$AA$89 -> 1.107079287 | P19: =TGTS!AE$89/TGTS!$AA$89 -> 1.151362459 | Q19: =TGTS!AF$89/TGTS!$AA$89 -> 1.197416957 | R19: =TGTS!AG$89/TGTS!$AA$89 -> 1.245313635 | S19: =TGTS!AH$89/TGTS!$AA$89 -> 1.295126181 | T19: =TGTS!AI$89/TGTS!$AA$89 -> 1.346931228 | U19: =TGTS!AJ$89/TGTS!$AA$89 -> 1.400808477 | V19: =TGTS!AK$89/TGTS!$AA$89 -> 1.456840816 | X19: Citipower - maximum demand
B20: TPC | C20: =TPC!R$89/TPC!$AA$89 -> 0.7703561933 | D20: =TPC!S$89/TPC!$AA$89 -> 0.8489489922 | E20: =TPC!T$89/TPC!$AA$89 -> 0.8425358499 | F20: =TPC!U$89/TPC!$AA$89 -> 0.851216334 | G20: =TPC!V$89/TPC!$AA$89 -> 0.873668605 | H20: =TPC!W$89/TPC!$AA$89 -> 0.8586239407 | I20: =TPC!X$89/TPC!$AA$89 -> 0.901033292 | J20: =TPC!Y$89/TPC!$AA$89 -> 0.901310355 | K20: =TPC!Z$89/TPC!$AA$89 -> 0.9224491544 | L20: =TPC!AA$89/TPC!$AA$89 -> 1 | M20: =TPC!AB$89/TPC!$AA$89 -> 1.013114909 | N20: =TPC!AC$89/TPC!$AA$89 -> 1.053639505 | O20: =TPC!AD$89/TPC!$AA$89 -> 1.095785085 | P20: =TPC!AE$89/TPC!$AA$89 -> 1.129599454 | Q20: =TPC!AF$89/TPC!$AA$89 -> 1.174783432 | R20: =TPC!AG$89/TPC!$AA$89 -> 1.215051826 | S20: =TPC!AH$89/TPC!$AA$89 -> 1.252259345 | T20: =TPC!AI$89/TPC!$AA$89 -> 1.293903253 | U20: =TPC!AJ$89/TPC!$AA$89 -> 1.345659383 | V20: =TPC!AK$89/TPC!$AA$89 -> 1.399485758
B22: Citipower | C22: 2005 | D22: 2006 | E22: 2007 | F22: 2008 | G22: 2009 | H22: 2010 | I22: 2011 | J22: 2012 | K22: 2013 | L22: 2014 | M22: 2015 | N22: 2016 | O22: 2017 | P22: 2018 | Q22: 2019 | R22: 2020 | S22: 2021 | T22: 2022 | U22: 2023 | V22: 2024
B23: WMTS22 | C23: =WMTS22!R$89/WMTS22!$AA$89 -> 0.8728320208 | D23: =WMTS22!S$89/WMTS22!$AA$89 -> 0.8553693632 | E23: =WMTS22!T$89/WMTS22!$AA$89 -> 0.8738978253 | F23: =WMTS22!U$89/WMTS22!$AA$89 -> 0.9069061006 | G23: =WMTS22!V$89/WMTS22!$AA$89 -> 0.9145915266 | H23: =WMTS22!W$89/WMTS22!$AA$89 -> 0.9588114187 | I23: =WMTS22!X$89/WMTS22!$AA$89 -> 0.9562721737 | J23: =WMTS22!Y$89/WMTS22!$AA$89 -> 0.9610969259 | K23: =WMTS22!Z$89/WMTS22!$AA$89 -> 0.9715400844 | L23: =WMTS22!AA$89/WMTS22!$AA$89 -> 1 | M23: =WMTS22!AB$89/WMTS22!$AA$89 -> 1.04 | N23: =WMTS22!AC$89/WMTS22!$AA$89 -> 1.0816 | O23: =WMTS22!AD$89/WMTS22!$AA$89 -> 1.124864 | P23: =WMTS22!AE$89/WMTS22!$AA$89 -> 1.16985856 | Q23: =WMTS22!AF$89/WMTS22!$AA$89 -> 1.216652902 | R23: =WMTS22!AG$89/WMTS22!$AA$89 -> 1.265319018 | S23: =WMTS22!AH$89/WMTS22!$AA$89 -> 1.315931779 | T23: =WMTS22!AI$89/WMTS22!$AA$89 -> 1.36856905 | U23: =WMTS22!AJ$89/WMTS22!$AA$89 -> 1.423311812 | V23: =WMTS22!AK$89/WMTS22!$AA$89 -> 1.480244285
B24: WMTS66 | E24: =WMTS66!T$89/WMTS66!$AA$89 -> 0.9517770332 | F24: =WMTS66!U$89/WMTS66!$AA$89 -> 0.9338034233 | G24: =WMTS66!V$89/WMTS66!$AA$89 -> 0.9683368032 | H24: =WMTS66!W$89/WMTS66!$AA$89 -> 0.921550407 | I24: =WMTS66!X$89/WMTS66!$AA$89 -> 0.951684915 | J24: =WMTS66!Y$89/WMTS66!$AA$89 -> 0.9801291647 | K24: =WMTS66!Z$89/WMTS66!$AA$89 -> 0.9673377447 | L24: =WMTS66!AA$89/WMTS66!$AA$89 -> 1 | M24: =WMTS66!AB$89/WMTS66!$AA$89 -> 1.04 | N24: =WMTS66!AC$89/WMTS66!$AA$89 -> 1.0816 | O24: =WMTS66!AD$89/WMTS66!$AA$89 -> 1.124864 | P24: =WMTS66!AE$89/WMTS66!$AA$89 -> 1.166180993 | Q24: =WMTS66!AF$89/WMTS66!$AA$89 -> 1.198753633 | R24: =WMTS66!AG$89/WMTS66!$AA$89 -> 1.219003959 | S24: =WMTS66!AH$89/WMTS66!$AA$89 -> 1.242430329 | T24: =WMTS66!AI$89/WMTS66!$AA$89 -> 1.270538439 | U24: =WMTS66!AJ$89/WMTS66!$AA$89 -> 1.307068375 | V24: =WMTS66!AK$89/WMTS66!$AA$89 -> 1.342985595
B25: BTS22 | C25: ='BTS22'!R$89/'BTS22'!$AA$89 -> 0.9149379261 | D25: ='BTS22'!S$89/'BTS22'!$AA$89 -> 0.9631313871 | E25: ='BTS22'!T$89/'BTS22'!$AA$89 -> 0.9725709942 | F25: ='BTS22'!U$89/'BTS22'!$AA$89 -> 0.9658851146 | G25: ='BTS22'!V$89/'BTS22'!$AA$89 -> 0.953904454 | H25: ='BTS22'!W$89/'BTS22'!$AA$89 -> 1.021176875 | I25: ='BTS22'!X$89/'BTS22'!$AA$89 -> 0.96573091 | J25: ='BTS22'!Y$89/'BTS22'!$AA$89 -> 0.9900795435 | K25: ='BTS22'!Z$89/'BTS22'!$AA$89 -> 0.9672952504 | L25: ='BTS22'!AA$89/'BTS22'!$AA$89 -> 1 | M25: ='BTS22'!AB$89/'BTS22'!$AA$89 -> 1.036758753 | N25: ='BTS22'!AC$89/'BTS22'!$AA$89 -> 1.074306824 | O25: ='BTS22'!AD$89/'BTS22'!$AA$89 -> 1.109123755 | P25: ='BTS22'!AE$89/'BTS22'!$AA$89 -> 1.135367511 | Q25: ='BTS22'!AF$89/'BTS22'!$AA$89 -> 1.173714079 | R25: ='BTS22'!AG$89/'BTS22'!$AA$89 -> 1.203194352 | S25: ='BTS22'!AH$89/'BTS22'!$AA$89 -> 1.240245947 | T25: ='BTS22'!AI$89/'BTS22'!$AA$89 -> 1.283238063 | U25: ='BTS22'!AJ$89/'BTS22'!$AA$89 -> 1.324359253 | V25: ='BTS22'!AK$89/'BTS22'!$AA$89 -> 1.374557635
B26: FBTS66 | C26: =FBTS66!R$89/FBTS66!$AA$89 -> 0.8216002186 | D26: =FBTS66!S$89/FBTS66!$AA$89 -> 0.8525550645 | E26: =FBTS66!T$89/FBTS66!$AA$89 -> 0.8511855013 | F26: =FBTS66!U$89/FBTS66!$AA$89 -> 0.885329269 | G26: =FBTS66!V$89/FBTS66!$AA$89 -> 0.8835144584 | H26: =FBTS66!W$89/FBTS66!$AA$89 -> 0.8986289917 | I26: =FBTS66!X$89/FBTS66!$AA$89 -> 0.9325242962 | J26: =FBTS66!Y$89/FBTS66!$AA$89 -> 0.9479294143 | K26: =FBTS66!Z$89/FBTS66!$AA$89 -> 0.9562838245 | L26: =FBTS66!AA$89/FBTS66!$AA$89 -> 1 | M26: =FBTS66!AB$89/FBTS66!$AA$89 -> 1.04 | N26: =FBTS66!AC$89/FBTS66!$AA$89 -> 1.0816 | O26: =FBTS66!AD$89/FBTS66!$AA$89 -> 1.124510606 | P26: =FBTS66!AE$89/FBTS66!$AA$89 -> 1.158107691 | Q26: =FBTS66!AF$89/FBTS66!$AA$89 -> 1.187126507 | R26: =FBTS66!AG$89/FBTS66!$AA$89 -> 1.209801219 | S26: =FBTS66!AH$89/FBTS66!$AA$89 -> 1.23977766 | T26: =FBTS66!AI$89/FBTS66!$AA$89 -> 1.265741067 | U26: =FBTS66!AJ$89/FBTS66!$AA$89 -> 1.306763299 | V26: =FBTS66!AK$89/FBTS66!$AA$89 -> 1.353007369
B27: RTS22 | C27: ='RTS22'!R$89/'RTS22'!$AA$89 -> 1.034829799 | D27: ='RTS22'!S$89/'RTS22'!$AA$89 -> 1.103945566 | E27: ='RTS22'!T$89/'RTS22'!$AA$89 -> 1.071199062 | F27: ='RTS22'!U$89/'RTS22'!$AA$89 -> 0.9739002034 | G27: ='RTS22'!V$89/'RTS22'!$AA$89 -> 1.030823563 | H27: ='RTS22'!W$89/'RTS22'!$AA$89 -> 0.9688697555 | I27: ='RTS22'!X$89/'RTS22'!$AA$89 -> 1.008519925 | J27: ='RTS22'!Y$89/'RTS22'!$AA$89 -> 0.9419542659 | K27: ='RTS22'!Z$89/'RTS22'!$AA$89 -> 0.9082021015 | L27: ='RTS22'!AA$89/'RTS22'!$AA$89 -> 1 | M27: ='RTS22'!AB$89/'RTS22'!$AA$89 -> 1.04 | N27: ='RTS22'!AC$89/'RTS22'!$AA$89 -> 1.0816 | O27: ='RTS22'!AD$89/'RTS22'!$AA$89 -> 1.124864 | P27: ='RTS22'!AE$89/'RTS22'!$AA$89 -> 1.151464785 | Q27: ='RTS22'!AF$89/'RTS22'!$AA$89 -> 1.171238826 | R27: ='RTS22'!AG$89/'RTS22'!$AA$89 -> 1.184770001 | S27: ='RTS22'!AH$89/'RTS22'!$AA$89 -> 1.183720142 | T27: ='RTS22'!AI$89/'RTS22'!$AA$89 -> 1.202214756 | U27: ='RTS22'!AJ$89/'RTS22'!$AA$89 -> 1.226904248 | V27: ='RTS22'!AK$89/'RTS22'!$AA$89 -> 1.24957333
B28: RTS66_1_4 | E28: =RTS66_1_4!T$89/RTS66_1_4!$AA$89 -> 0.9441324095 | F28: =RTS66_1_4!U$89/RTS66_1_4!$AA$89 -> 0.925828153 | G28: =RTS66_1_4!V$89/RTS66_1_4!$AA$89 -> 0.9359891129 | H28: =RTS66_1_4!W$89/RTS66_1_4!$AA$89 -> 0.9234619879 | I28: =RTS66_1_4!X$89/RTS66_1_4!$AA$89 -> 0.9497878366 | J28: =RTS66_1_4!Y$89/RTS66_1_4!$AA$89 -> 0.9650553175 | K28: =RTS66_1_4!Z$89/RTS66_1_4!$AA$89 -> 0.9327487232 | L28: =RTS66_1_4!AA$89/RTS66_1_4!$AA$89 -> 1 | M28: =RTS66_1_4!AB$89/RTS66_1_4!$AA$89 -> 1.003621169 | N28: =RTS66_1_4!AC$89/RTS66_1_4!$AA$89 -> 1.025793698 | O28: =RTS66_1_4!AD$89/RTS66_1_4!$AA$89 -> 1.039157879 | P28: =RTS66_1_4!AE$89/RTS66_1_4!$AA$89 -> 1.04901205 | Q28: =RTS66_1_4!AF$89/RTS66_1_4!$AA$89 -> 1.063741608 | R28: =RTS66_1_4!AG$89/RTS66_1_4!$AA$89 -> 1.068251346 | S28: =RTS66_1_4!AH$89/RTS66_1_4!$AA$89 -> 1.071884334 | T28: =RTS66_1_4!AI$89/RTS66_1_4!$AA$89 -> 1.080967168 | U28: =RTS66_1_4!AJ$89/RTS66_1_4!$AA$89 -> 1.100378475 | V28: =RTS66_1_4!AK$89/RTS66_1_4!$AA$89 -> 1.111567798
B29: RTS66_2_3 | E29: =RTS66_2_3!T$89/RTS66_2_3!$AA$89 -> 0.9671330209 | F29: =RTS66_2_3!U$89/RTS66_2_3!$AA$89 -> 0.9354426591 | G29: =RTS66_2_3!V$89/RTS66_2_3!$AA$89 -> 0.954652705 | H29: =RTS66_2_3!W$89/RTS66_2_3!$AA$89 -> 0.9491612472 | I29: =RTS66_2_3!X$89/RTS66_2_3!$AA$89 -> 0.9670747407 | J29: =RTS66_2_3!Y$89/RTS66_2_3!$AA$89 -> 0.9545695763 | K29: =RTS66_2_3!Z$89/RTS66_2_3!$AA$89 -> 0.9574640917 | L29: =RTS66_2_3!AA$89/RTS66_2_3!$AA$89 -> 1 | M29: =RTS66_2_3!AB$89/RTS66_2_3!$AA$89 -> 1.04 | N29: =RTS66_2_3!AC$89/RTS66_2_3!$AA$89 -> 1.0816 | O29: =RTS66_2_3!AD$89/RTS66_2_3!$AA$89 -> 1.118595489 | P29: =RTS66_2_3!AE$89/RTS66_2_3!$AA$89 -> 1.144866472 | Q29: =RTS66_2_3!AF$89/RTS66_2_3!$AA$89 -> 1.169998513 | R29: =RTS66_2_3!AG$89/RTS66_2_3!$AA$89 -> 1.19283173 | S29: =RTS66_2_3!AH$89/RTS66_2_3!$AA$89 -> 1.201278885 | T29: =RTS66_2_3!AI$89/RTS66_2_3!$AA$89 -> 1.233686341 | U29: =RTS66_2_3!AJ$89/RTS66_2_3!$AA$89 -> 1.270108757 | V29: =RTS66_2_3!AK$89/RTS66_2_3!$AA$89 -> 1.299015552
B30: SVTS | E30: =SVTS!T$89/SVTS!$AA$89 -> 0.806764998 | F30: =SVTS!U$89/SVTS!$AA$89 -> 0.8305740082 | G30: =SVTS!V$89/SVTS!$AA$89 -> 0.8969094938 | H30: =SVTS!W$89/SVTS!$AA$89 -> 0.8604168899 | I30: =SVTS!X$89/SVTS!$AA$89 -> 0.8954092786 | J30: =SVTS!Y$89/SVTS!$AA$89 -> 0.8987384278 | K30: =SVTS!Z$89/SVTS!$AA$89 -> 0.9140772774 | L30: =SVTS!AA$89/SVTS!$AA$89 -> 1 | M30: =SVTS!AB$89/SVTS!$AA$89 -> 1.04 | N30: =SVTS!AC$89/SVTS!$AA$89 -> 1.0816 | O30: =SVTS!AD$89/SVTS!$AA$89 -> 1.124864 | P30: =SVTS!AE$89/SVTS!$AA$89 -> 1.167812337 | Q30: =SVTS!AF$89/SVTS!$AA$89 -> 1.204812644 | R30: =SVTS!AG$89/SVTS!$AA$89 -> 1.248650088 | S30: =SVTS!AH$89/SVTS!$AA$89 -> 1.298596091 | T30: =SVTS!AI$89/SVTS!$AA$89 -> 1.35077007 | U30: =SVTS!AJ$89/SVTS!$AA$89 -> 1.404800873 | V30: =SVTS!AK$89/SVTS!$AA$89 -> 1.460992907
B31: TSTS | C31: =TSTS!R$89/TSTS!$AA$89 -> 0.8738726009 | D31: =TSTS!S$89/TSTS!$AA$89 -> 0.9327962383 | E31: =TSTS!T$89/TSTS!$AA$89 -> 0.9236497279 | F31: =TSTS!U$89/TSTS!$AA$89 -> 0.9004244562 | G31: =TSTS!V$89/TSTS!$AA$89 -> 0.9404311927 | H31: =TSTS!W$89/TSTS!$AA$89 -> 0.9231334454 | I31: =TSTS!X$89/TSTS!$AA$89 -> 0.9536341563 | J31: =TSTS!Y$89/TSTS!$AA$89 -> 0.9622162691 | K31: =TSTS!Z$89/TSTS!$AA$89 -> 0.9553960175 | L31: =TSTS!AA$89/TSTS!$AA$89 -> 1 | M31: =TSTS!AB$89/TSTS!$AA$89 -> 1.04 | N31: =TSTS!AC$89/TSTS!$AA$89 -> 1.080277577 | O31: =TSTS!AD$89/TSTS!$AA$89 -> 1.108346133 | P31: =TSTS!AE$89/TSTS!$AA$89 -> 1.143839701 | Q31: =TSTS!AF$89/TSTS!$AA$89 -> 1.166254111 | R31: =TSTS!AG$89/TSTS!$AA$89 -> 1.19415306 | S31: =TSTS!AH$89/TSTS!$AA$89 -> 1.219258037 | T31: =TSTS!AI$89/TSTS!$AA$89 -> 1.248013155 | U31: =TSTS!AJ$89/TSTS!$AA$89 -> 1.287893099 | V31: =TSTS!AK$89/TSTS!$AA$89 -> 1.328524913
B32: TCP | C32: =TCP!R$89/TCP!$AA$89 -> 0.9016672056 | D32: =TCP!S$89/TCP!$AA$89 -> 0.9635064775 | E32: =TCP!T$89/TCP!$AA$89 -> 0.9605729965 | F32: =TCP!U$89/TCP!$AA$89 -> 0.9479274038 | G32: =TCP!V$89/TCP!$AA$89 -> 0.9720107236 | H32: =TCP!W$89/TCP!$AA$89 -> 0.9549849372 | I32: =TCP!X$89/TCP!$AA$89 -> 0.9790678155 | J32: =TCP!Y$89/TCP!$AA$89 -> 0.9838303818 | K32: =TCP!Z$89/TCP!$AA$89 -> 0.9813806845 | L32: =TCP!AA$89/TCP!$AA$89 -> 1 | M32: =TCP!AB$89/TCP!$AA$89 -> 1.04 | N32: =TCP!AC$89/TCP!$AA$89 -> 1.0816 | O32: =TCP!AD$89/TCP!$AA$89 -> 1.124864 | P32: =TCP!AE$89/TCP!$AA$89 -> 1.163182194 | Q32: =TCP!AF$89/TCP!$AA$89 -> 1.195782142 | R32: =TCP!AG$89/TCP!$AA$89 -> 1.208664455 | S32: =TCP!AH$89/TCP!$AA$89 -> 1.231137563 | T32: =TCP!AI$89/TCP!$AA$89 -> 1.25459381 | U32: =TCP!AJ$89/TCP!$AA$89 -> 1.280571871 | V32: =TCP!AK$89/TCP!$AA$89 -> 1.311245001
A36: Average demand reconciliation (excluding block load and post-model adjustments) | X36: Powercor - average demand
B37: Medium scenario forecast index (2014 = 1)
B38: Powercor | C38: 2005 | D38: 2006 | E38: 2007 | F38: 2008 | G38: 2009 | H38: 2010 | I38: 2011 | J38: 2012 | K38: 2013 | L38: 2014 | M38: 2015 | N38: 2016 | O38: 2017 | P38: 2018 | Q38: 2019 | R38: 2020 | S38: 2021 | T38: 2022 | U38: 2023 | V38: 2024
B39: ATS | G39: =ATS!V$70/ATS!$AA$70 -> 0.9102281975 | H39: =ATS!W$70/ATS!$AA$70 -> 0.9260199987 | I39: =ATS!X$70/ATS!$AA$70 -> 0.9303787227 | J39: =ATS!Y$70/ATS!$AA$70 -> 0.9468624019 | K39: =ATS!Z$70/ATS!$AA$70 -> 0.9581581483 | L39: =ATS!AA$70/ATS!$AA$70 -> 1 | M39: =ATS!AB$70/ATS!$AA$70 -> 1.057922574 | N39: =ATS!AC$70/ATS!$AA$70 -> 1.11118099 | O39: =ATS!AD$70/ATS!$AA$70 -> 1.157534693 | P39: =ATS!AE$70/ATS!$AA$70 -> 1.198093002 | Q39: =ATS!AF$70/ATS!$AA$70 -> 1.233867101 | R39: =ATS!AG$70/ATS!$AA$70 -> 1.268101807 | S39: =ATS!AH$70/ATS!$AA$70 -> 1.293058758 | T39: =ATS!AI$70/ATS!$AA$70 -> 1.317625212 | U39: =ATS!AJ$70/ATS!$AA$70 -> 1.348488902 | V39: =ATS!AK$70/ATS!$AA$70 -> 1.380905516
B40: BATS | C40: =BATS!R$70/BATS!$AA$70 -> 1.059858633 | D40: =BATS!S$70/BATS!$AA$70 -> 1.126292138 | E40: =BATS!T$70/BATS!$AA$70 -> 1.109727203 | F40: =BATS!U$70/BATS!$AA$70 -> 1.101932223 | G40: =BATS!V$70/BATS!$AA$70 -> 1.08470176 | H40: =BATS!W$70/BATS!$AA$70 -> 1.029620073 | I40: =BATS!X$70/BATS!$AA$70 -> 1.020581414 | J40: =BATS!Y$70/BATS!$AA$70 -> 0.9896803516 | K40: =BATS!Z$70/BATS!$AA$70 -> 0.9857092744 | L40: =BATS!AA$70/BATS!$AA$70 -> 1 | M40: =BATS!AB$70/BATS!$AA$70 -> 1.029851937 | N40: =BATS!AC$70/BATS!$AA$70 -> 1.050086362 | O40: =BATS!AD$70/BATS!$AA$70 -> 1.065661272 | P40: =BATS!AE$70/BATS!$AA$70 -> 1.077253255 | Q40: =BATS!AF$70/BATS!$AA$70 -> 1.086222359 | R40: =BATS!AG$70/BATS!$AA$70 -> 1.095683836 | S40: =BATS!AH$70/BATS!$AA$70 -> 1.093301882 | T40: =BATS!AI$70/BATS!$AA$70 -> 1.100281461 | U40: =BATS!AJ$70/BATS!$AA$70 -> 1.115751493 | V40: =BATS!AK$70/BATS!$AA$70 -> 1.131304082
B41: BETS22 | C41: =BETS22!R$70/BETS22!$AA$70 -> 0.7595189661 | E41: =BETS22!T$70/BETS22!$AA$70 -> 0.8498268976 | F41: =BETS22!U$70/BETS22!$AA$70 -> 0.8521425843 | G41: =BETS22!V$70/BETS22!$AA$70 -> 0.9010296065 | H41: =BETS22!W$70/BETS22!$AA$70 -> 0.915948015 | I41: =BETS22!X$70/BETS22!$AA$70 -> 0.9087354234 | J41: =BETS22!Y$70/BETS22!$AA$70 -> 0.9158560799 | K41: =BETS22!Z$70/BETS22!$AA$70 -> 0.8737976836 | L41: =BETS22!AA$70/BETS22!$AA$70 -> 1 | M41: =BETS22!AB$70/BETS22!$AA$70 -> 1.008978611 | N41: =BETS22!AC$70/BETS22!$AA$70 -> 1.028147899 | O41: =BETS22!AD$70/BETS22!$AA$70 -> 1.051396668 | P41: =BETS22!AE$70/BETS22!$AA$70 -> 1.074271025 | Q41: =BETS22!AF$70/BETS22!$AA$70 -> 1.095818438 | R41: =BETS22!AG$70/BETS22!$AA$70 -> 1.117827479 | S41: =BETS22!AH$70/BETS22!$AA$70 -> 1.137408538 | T41: =BETS22!AI$70/BETS22!$AA$70 -> 1.164335467 | U41: =BETS22!AJ$70/BETS22!$AA$70 -> 1.19131617 | V41: =BETS22!AK$70/BETS22!$AA$70 -> 1.216126232
B42: BETS66 | C42: =BETS66!R$70/BETS66!$AA$70 -> 0.9893698665 | D42: =BETS66!S$70/BETS66!$AA$70 -> 1.006525064 | E42: =BETS66!T$70/BETS66!$AA$70 -> 0.9867149764 | F42: =BETS66!U$70/BETS66!$AA$70 -> 1.019937875 | G42: =BETS66!V$70/BETS66!$AA$70 -> 1.029684094 | H42: =BETS66!W$70/BETS66!$AA$70 -> 0.9921040049 | I42: =BETS66!X$70/BETS66!$AA$70 -> 0.973938845 | J42: =BETS66!Y$70/BETS66!$AA$70 -> 0.9833982648 | K42: =BETS66!Z$70/BETS66!$AA$70 -> 0.9617912837 | L42: =BETS66!AA$70/BETS66!$AA$70 -> 1 | M42: =BETS66!AB$70/BETS66!$AA$70 -> 0.9853715806 | N42: =BETS66!AC$70/BETS66!$AA$70 -> 1.015003993 | O42: =BETS66!AD$70/BETS66!$AA$70 -> 1.013897312 | P42: =BETS66!AE$70/BETS66!$AA$70 -> 1.00491943 | Q42: =BETS66!AF$70/BETS66!$AA$70 -> 1.007617799 | R42: =BETS66!AG$70/BETS66!$AA$70 -> 1.026381125 | S42: =BETS66!AH$70/BETS66!$AA$70 -> 1.043969893 | T42: =BETS66!AI$70/BETS66!$AA$70 -> 1.061243141 | U42: =BETS66!AJ$70/BETS66!$AA$70 -> 1.077089366 | V42: =BETS66!AK$70/BETS66!$AA$70 -> 1.094645463
B43: BLTS22 | C43: =BLTS22!R$70/BLTS22!$AA$70 -> 0.9958132106 | D43: =BLTS22!S$70/BLTS22!$AA$70 -> 1.03389872 | E43: =BLTS22!T$70/BLTS22!$AA$70 -> 1.040941219 | F43: =BLTS22!U$70/BLTS22!$AA$70 -> 1.032248513 | G43: =BLTS22!V$70/BLTS22!$AA$70 -> 1.025918542 | H43: =BLTS22!W$70/BLTS22!$AA$70 -> 1.030170092 | I43: =BLTS22!X$70/BLTS22!$AA$70 -> 1.027763721 | K43: =BLTS22!Z$70/BLTS22!$AA$70 -> 0.9606245603 | L43: =BLTS22!AA$70/BLTS22!$AA$70 -> 1 | M43: =BLTS22!AB$70/BLTS22!$AA$70 -> 1.023803258 | N43: =BLTS22!AC$70/BLTS22!$AA$70 -> 1.040859831 | O43: =BLTS22!AD$70/BLTS22!$AA$70 -> 1.05517653 | P43: =BLTS22!AE$70/BLTS22!$AA$70 -> 1.066969195 | Q43: =BLTS22!AF$70/BLTS22!$AA$70 -> 1.076421292 | R43: =BLTS22!AG$70/BLTS22!$AA$70 -> 1.086124845 | S43: =BLTS22!AH$70/BLTS22!$AA$70 -> 1.08868907 | T43: =BLTS22!AI$70/BLTS22!$AA$70 -> 1.096071715 | U43: =BLTS22!AJ$70/BLTS22!$AA$70 -> 1.108051451 | V43: =BLTS22!AK$70/BLTS22!$AA$70 -> 1.119482258
B44: BLTS66 | E44: =BLTS66!T$70/BLTS66!$AA$70 -> 0.7351743722 | F44: =BLTS66!U$70/BLTS66!$AA$70 -> 0.7493157956 | G44: =BLTS66!V$70/BLTS66!$AA$70 -> 0.7902021744 | H44: =BLTS66!W$70/BLTS66!$AA$70 -> 0.8291159444 | I44: =BLTS66!X$70/BLTS66!$AA$70 -> 0.8214049165 | J44: =BLTS66!Y$70/BLTS66!$AA$70 -> 0.8136167373 | K44: =BLTS66!Z$70/BLTS66!$AA$70 -> 0.7378577872 | L44: =BLTS66!AA$70/BLTS66!$AA$70 -> 1 | M44: =BLTS66!AB$70/BLTS66!$AA$70 -> 0.9050192246 | N44: =BLTS66!AC$70/BLTS66!$AA$70 -> 1.061869029 | O44: =BLTS66!AD$70/BLTS66!$AA$70 -> 1.025939163 | P44: =BLTS66!AE$70/BLTS66!$AA$70 -> 1.04085754 | Q44: =BLTS66!AF$70/BLTS66!$AA$70 -> 1.044410152 | R44: =BLTS66!AG$70/BLTS66!$AA$70 -> 1.09036152 | S44: =BLTS66!AH$70/BLTS66!$AA$70 -> 1.11514015 | T44: =BLTS66!AI$70/BLTS66!$AA$70 -> 1.151685549 | U44: =BLTS66!AJ$70/BLTS66!$AA$70 -> 1.181767046 | V44: =BLTS66!AK$70/BLTS66!$AA$70 -> 1.217376017
B45: GTS66 | C45: ='GTS66'!R$70/'GTS66'!$AA$70 -> 1.012670197 | D45: ='GTS66'!S$70/'GTS66'!$AA$70 -> 1.059421441 | E45: ='GTS66'!T$70/'GTS66'!$AA$70 -> 1.061979827 | F45: ='GTS66'!U$70/'GTS66'!$AA$70 -> 1.047026069 | G45: ='GTS66'!V$70/'GTS66'!$AA$70 -> 1.021838984 | H45: ='GTS66'!W$70/'GTS66'!$AA$70 -> 1.044839168 | I45: ='GTS66'!X$70/'GTS66'!$AA$70 -> 1.021355386 | J45: ='GTS66'!Y$70/'GTS66'!$AA$70 -> 1.013775741 | K45: ='GTS66'!Z$70/'GTS66'!$AA$70 -> 0.9833795268 | L45: ='GTS66'!AA$70/'GTS66'!$AA$70 -> 1 | M45: ='GTS66'!AB$70/'GTS66'!$AA$70 -> 1.045737845 | N45: ='GTS66'!AC$70/'GTS66'!$AA$70 -> 1.038968917 | O45: ='GTS66'!AD$70/'GTS66'!$AA$70 -> 1.054557669 | P45: ='GTS66'!AE$70/'GTS66'!$AA$70 -> 1.076719989 | Q45: ='GTS66'!AF$70/'GTS66'!$AA$70 -> 1.093552464 | R45: ='GTS66'!AG$70/'GTS66'!$AA$70 -> 1.100647038 | S45: ='GTS66'!AH$70/'GTS66'!$AA$70 -> 1.101125516 | T45: ='GTS66'!AI$70/'GTS66'!$AA$70 -> 1.104671709 | U45: ='GTS66'!AJ$70/'GTS66'!$AA$70 -> 1.118776192 | V45: ='GTS66'!AK$70/'GTS66'!$AA$70 -> 1.132411155
B46: HOTS66 | C46: =HOTS66!R$70/HOTS66!$AA$70 -> 0.9347945581 | D46: =HOTS66!S$70/HOTS66!$AA$70 -> 1.054908692 | E46: =HOTS66!T$70/HOTS66!$AA$70 -> 1.086629552 | F46: =HOTS66!U$70/HOTS66!$AA$70 -> 1.056558463 | G46: =HOTS66!V$70/HOTS66!$AA$70 -> 1.120064294 | H46: =HOTS66!W$70/HOTS66!$AA$70 -> 1.072351598 | I46: =HOTS66!X$70/HOTS66!$AA$70 -> 1.062607563 | J46: =HOTS66!Y$70/HOTS66!$AA$70 -> 1.033219884 | K46: =HOTS66!Z$70/HOTS66!$AA$70 -> 0.9015732426 | L46: =HOTS66!AA$70/HOTS66!$AA$70 -> 1 | M46: =HOTS66!AB$70/HOTS66!$AA$70 -> 1.03959763 | N46: =HOTS66!AC$70/HOTS66!$AA$70 -> 1.054359968 | O46: =HOTS66!AD$70/HOTS66!$AA$70 -> 1.061545021 | P46: =HOTS66!AE$70/HOTS66!$AA$70 -> 1.064970776 | Q46: =HOTS66!AF$70/HOTS66!$AA$70 -> 1.066753424 | R46: =HOTS66!AG$70/HOTS66!$AA$70 -> 1.069949217 | S46: =HOTS66!AH$70/HOTS66!$AA$70 -> 1.058133549 | T46: =HOTS66!AI$70/HOTS66!$AA$70 -> 1.065089012 | U46: =HOTS66!AJ$70/HOTS66!$AA$70 -> 1.078547352 | V46: =HOTS66!AK$70/HOTS66!$AA$70 -> 1.08720806
B47: KTSeast | E47: =KTSeast!T$70/KTSeast!$AA$70 -> 0.8537949568 | F47: =KTSeast!U$70/KTSeast!$AA$70 -> 0.8636522901 | G47: =KTSeast!V$70/KTSeast!$AA$70 -> 0.899445714 | H47: =KTSeast!W$70/KTSeast!$AA$70 -> 0.9360708168 | I47: =KTSeast!X$70/KTSeast!$AA$70 -> 0.9406567091 | J47: =KTSeast!Y$70/KTSeast!$AA$70 -> 0.9602805332 | K47: =KTSeast!Z$70/KTSeast!$AA$70 -> 1.00820968 | L47: =KTSeast!AA$70/KTSeast!$AA$70 -> 1 | M47: =KTSeast!AB$70/KTSeast!$AA$70 -> 1.039977032 | N47: =KTSeast!AC$70/KTSeast!$AA$70 -> 1.066056774 | O47: =KTSeast!AD$70/KTSeast!$AA$70 -> 1.092252534 | P47: =KTSeast!AE$70/KTSeast!$AA$70 -> 1.115973225 | Q47: =KTSeast!AF$70/KTSeast!$AA$70 -> 1.138763593 | R47: =KTSeast!AG$70/KTSeast!$AA$70 -> 1.161536047 | S47: =KTSeast!AH$70/KTSeast!$AA$70 -> 1.184081439 | T47: =KTSeast!AI$70/KTSeast!$AA$70 -> 1.211043879 | U47: =KTSeast!AJ$70/KTSeast!$AA$70 -> 1.243578255 | V47: =KTSeast!AK$70/KTSeast!$AA$70 -> 1.276867318
B48: KTSwest | E48: =KTSwest!T$70/KTSwest!$AA$70 -> 1.028719211 | F48: =KTSwest!U$70/KTSwest!$AA$70 -> 0.995435192 | G48: =KTSwest!V$70/KTSwest!$AA$70 -> 1.030583566 | H48: =KTSwest!W$70/KTSwest!$AA$70 -> 1.027380127 | I48: =KTSwest!X$70/KTSwest!$AA$70 -> 1.014861002 | J48: =KTSwest!Y$70/KTSwest!$AA$70 -> 0.9950291022 | K48: =KTSwest!Z$70/KTSwest!$AA$70 -> 0.966222737 | L48: =KTSwest!AA$70/KTSwest!$AA$70 -> 1 | M48: =KTSwest!AB$70/KTSwest!$AA$70 -> 1.059651818 | N48: =KTSwest!AC$70/KTSwest!$AA$70 -> 1.082655511 | O48: =KTSwest!AD$70/KTSwest!$AA$70 -> 1.102075492 | P48: =KTSwest!AE$70/KTSwest!$AA$70 -> 1.11785374 | Q48: =KTSwest!AF$70/KTSwest!$AA$70 -> 1.132139557 | R48: =KTSwest!AG$70/KTSwest!$AA$70 -> 1.147725611 | S48: =KTSwest!AH$70/KTSwest!$AA$70 -> 1.149916749 | T48: =KTSwest!AI$70/KTSwest!$AA$70 -> 1.166775941 | U48: =KTSwest!AJ$70/KTSwest!$AA$70 -> 1.197730025 | V48: =KTSwest!AK$70/KTSwest!$AA$70 -> 1.228097417
B49: KGTS22 | C49: =KGTS22!R$70/KGTS22!$AA$70 -> 0.9599503193 | D49: =KGTS22!S$70/KGTS22!$AA$70 -> 1.015177262 | E49: =KGTS22!T$70/KGTS22!$AA$70 -> 1.023225417 | F49: =KGTS22!U$70/KGTS22!$AA$70 -> 1.003403382 | G49: =KGTS22!V$70/KGTS22!$AA$70 -> 0.9482449638 | H49: =KGTS22!W$70/KGTS22!$AA$70 -> 1.063830737 | I49: =KGTS22!X$70/KGTS22!$AA$70 -> 1.054370046 | J49: =KGTS22!Y$70/KGTS22!$AA$70 -> 1.07946412 | K49: =KGTS22!Z$70/KGTS22!$AA$70 -> 1.023098592 | L49: =KGTS22!AA$70/KGTS22!$AA$70 -> 1 | M49: =KGTS22!AB$70/KGTS22!$AA$70 -> 1.188857918 | N49: =KGTS22!AC$70/KGTS22!$AA$70 -> 1.130414596 | O49: =KGTS22!AD$70/KGTS22!$AA$70 -> 1.224501848 | P49: =KGTS22!AE$70/KGTS22!$AA$70 -> 1.34624873 | Q49: =KGTS22!AF$70/KGTS22!$AA$70 -> 1.407798577 | R49: =KGTS22!AG$70/KGTS22!$AA$70 -> 1.396852536 | S49: =KGTS22!AH$70/KGTS22!$AA$70 -> 1.38838198 | T49: =KGTS22!AI$70/KGTS22!$AA$70 -> 1.40095894 | U49: =KGTS22!AJ$70/KGTS22!$AA$70 -> 1.447868923 | V49: =KGTS22!AK$70/KGTS22!$AA$70 -> 1.489348249
B50: KGTS66 | C50: =KGTS66!R$70/KGTS66!$AA$70 -> 1.097881429 | D50: =KGTS66!S$70/KGTS66!$AA$70 -> 1.108301391 | E50: =KGTS66!T$70/KGTS66!$AA$70 -> 1.111992437 | F50: =KGTS66!U$70/KGTS66!$AA$70 -> 1.075575421 | G50: =KGTS66!V$70/KGTS66!$AA$70 -> 1.091277614 | H50: =KGTS66!W$70/KGTS66!$AA$70 -> 1.021947256 | I50: =KGTS66!X$70/KGTS66!$AA$70 -> 1.05466077 | J50: =KGTS66!Y$70/KGTS66!$AA$70 -> 0.9751226943 | K50: =KGTS66!Z$70/KGTS66!$AA$70 -> 0.9948143473 | L50: =KGTS66!AA$70/KGTS66!$AA$70 -> 1 | M50: =KGTS66!AB$70/KGTS66!$AA$70 -> 1.020347026 | N50: =KGTS66!AC$70/KGTS66!$AA$70 -> 1.024635951 | O50: =KGTS66!AD$70/KGTS66!$AA$70 -> 1.029564638 | P50: =KGTS66!AE$70/KGTS66!$AA$70 -> 1.029862273 | Q50: =KGTS66!AF$70/KGTS66!$AA$70 -> 1.029728104 | R50: =KGTS66!AG$70/KGTS66!$AA$70 -> 1.031306624 | S50: =KGTS66!AH$70/KGTS66!$AA$70 -> 1.026767848 | T50: =KGTS66!AI$70/KGTS66!$AA$70 -> 1.029881224 | U50: =KGTS66!AJ$70/KGTS66!$AA$70 -> 1.037303691 | V50: =KGTS66!AK$70/KGTS66!$AA$70 -> 1.043793198
B51: RCTS22 | C51: =RCTS22!R$70/RCTS22!$AA$70 -> 0.987397852 | D51: =RCTS22!S$70/RCTS22!$AA$70 -> 0.9685686379 | E51: =RCTS22!T$70/RCTS22!$AA$70 -> 0.9804980896 | F51: =RCTS22!U$70/RCTS22!$AA$70 -> 0.9656730399 | G51: =RCTS22!V$70/RCTS22!$AA$70 -> 1.019449125 | H51: =RCTS22!W$70/RCTS22!$AA$70 -> 0.9051166881 | I51: =RCTS22!X$70/RCTS22!$AA$70 -> 0.9337870269 | J51: =RCTS22!Y$70/RCTS22!$AA$70 -> 1.006510873 | K51: =RCTS22!Z$70/RCTS22!$AA$70 -> 1.094260644 | L51: =RCTS22!AA$70/RCTS22!$AA$70 -> 1 | M51: =RCTS22!AB$70/RCTS22!$AA$70 -> 1.022983319 | N51: =RCTS22!AC$70/RCTS22!$AA$70 -> 1.041434952 | O51: =RCTS22!AD$70/RCTS22!$AA$70 -> 1.058853268 | P51: =RCTS22!AE$70/RCTS22!$AA$70 -> 1.073504251 | Q51: =RCTS22!AF$70/RCTS22!$AA$70 -> 1.085430654 | R51: =RCTS22!AG$70/RCTS22!$AA$70 -> 1.096881048 | S51: =RCTS22!AH$70/RCTS22!$AA$70 -> 1.107666443 | T51: =RCTS22!AI$70/RCTS22!$AA$70 -> 1.119117407 | U51: =RCTS22!AJ$70/RCTS22!$AA$70 -> 1.1329673 | V51: =RCTS22!AK$70/RCTS22!$AA$70 -> 1.147709681
B52: RCTS66/WETS | C52: ='RCTS66 WETS'!R$70/'RCTS66 WETS'!$AA$70 -> 0.7326233292 | D52: ='RCTS66 WETS'!S$70/'RCTS66 WETS'!$AA$70 -> 0.8088414885 | E52: ='RCTS66 WETS'!T$70/'RCTS66 WETS'!$AA$70 -> 0.779005016 | F52: ='RCTS66 WETS'!U$70/'RCTS66 WETS'!$AA$70 -> 0.8207910882 | G52: ='RCTS66 WETS'!V$70/'RCTS66 WETS'!$AA$70 -> 0.8499857437 | H52: ='RCTS66 WETS'!W$70/'RCTS66 WETS'!$AA$70 -> 0.8529670306 | I52: ='RCTS66 WETS'!X$70/'RCTS66 WETS'!$AA$70 -> 0.8513568469 | J52: ='RCTS66 WETS'!Y$70/'RCTS66 WETS'!$AA$70 -> 0.8649899364 | K52: ='RCTS66 WETS'!Z$70/'RCTS66 WETS'!$AA$70 -> 0.7556431284 | L52: ='RCTS66 WETS'!AA$70/'RCTS66 WETS'!$AA$70 -> 1 | M52: ='RCTS66 WETS'!AB$70/'RCTS66 WETS'!$AA$70 -> 1.022399408 | N52: ='RCTS66 WETS'!AC$70/'RCTS66 WETS'!$AA$70 -> 1.158190543 | O52: ='RCTS66 WETS'!AD$70/'RCTS66 WETS'!$AA$70 -> 1.208195343 | P52: ='RCTS66 WETS'!AE$70/'RCTS66 WETS'!$AA$70 -> 1.237039832 | Q52: ='RCTS66 WETS'!AF$70/'RCTS66 WETS'!$AA$70 -> 1.248207592 | R52: ='RCTS66 WETS'!AG$70/'RCTS66 WETS'!$AA$70 -> 1.283975994 | S52: ='RCTS66 WETS'!AH$70/'RCTS66 WETS'!$AA$70 -> 1.321564254 | T52: ='RCTS66 WETS'!AI$70/'RCTS66 WETS'!$AA$70 -> 1.363279879 | U52: ='RCTS66 WETS'!AJ$70/'RCTS66 WETS'!$AA$70 -> 1.42286621 | V52: ='RCTS66 WETS'!AK$70/'RCTS66 WETS'!$AA$70 -> 1.482397936
B53: SHTS | C53: =SHTS!R$70/SHTS!$AA$70 -> 1.041752088 | D53: =SHTS!S$70/SHTS!$AA$70 -> 1.083738504 | E53: =SHTS!T$70/SHTS!$AA$70 -> 1.071476382 | F53: =SHTS!U$70/SHTS!$AA$70 -> 1.051817788 | G53: =SHTS!V$70/SHTS!$AA$70 -> 1.076831901 | H53: =SHTS!W$70/SHTS!$AA$70 -> 1.035104415 | I53: =SHTS!X$70/SHTS!$AA$70 -> 1.018539044 | J53: =SHTS!Y$70/SHTS!$AA$70 -> 1.030473094 | K53: =SHTS!Z$70/SHTS!$AA$70 -> 1.001611553 | L53: =SHTS!AA$70/SHTS!$AA$70 -> 1 | M53: =SHTS!AB$70/SHTS!$AA$70 -> 1.018119332 | N53: =SHTS!AC$70/SHTS!$AA$70 -> 1.033894193 | O53: =SHTS!AD$70/SHTS!$AA$70 -> 1.046231528 | P53: =SHTS!AE$70/SHTS!$AA$70 -> 1.055084693 | Q53: =SHTS!AF$70/SHTS!$AA$70 -> 1.061379402 | R53: =SHTS!AG$70/SHTS!$AA$70 -> 1.067594557 | S53: =SHTS!AH$70/SHTS!$AA$70 -> 1.070996882 | T53: =SHTS!AI$70/SHTS!$AA$70 -> 1.075545873 | U53: =SHTS!AJ$70/SHTS!$AA$70 -> 1.083936053 | V53: =SHTS!AK$70/SHTS!$AA$70 -> 1.093803481
B54: TGTS | C54: =TGTS!R$70/TGTS!$AA$70 -> 0.8872145814 | D54: =TGTS!S$70/TGTS!$AA$70 -> 0.9453971005 | E54: =TGTS!T$70/TGTS!$AA$70 -> 0.9400535509 | F54: =TGTS!U$70/TGTS!$AA$70 -> 0.9694333818 | G54: =TGTS!V$70/TGTS!$AA$70 -> 0.9816079302 | H54: =TGTS!W$70/TGTS!$AA$70 -> 0.9922853977 | I54: =TGTS!X$70/TGTS!$AA$70 -> 0.9964588737 | J54: =TGTS!Y$70/TGTS!$AA$70 -> 0.991382929 | K54: =TGTS!Z$70/TGTS!$AA$70 -> 0.9635920411 | L54: =TGTS!AA$70/TGTS!$AA$70 -> 1 | M54: =TGTS!AB$70/TGTS!$AA$70 -> 1.047574493 | N54: =TGTS!AC$70/TGTS!$AA$70 -> 1.088411842 | O54: =TGTS!AD$70/TGTS!$AA$70 -> 1.12643667 | P54: =TGTS!AE$70/TGTS!$AA$70 -> 1.156614822 | Q54: =TGTS!AF$70/TGTS!$AA$70 -> 1.177391687 | R54: =TGTS!AG$70/TGTS!$AA$70 -> 1.194363761 | S54: =TGTS!AH$70/TGTS!$AA$70 -> 1.20721266 | T54: =TGTS!AI$70/TGTS!$AA$70 -> 1.224997873 | U54: =TGTS!AJ$70/TGTS!$AA$70 -> 1.250628786 | V54: =TGTS!AK$70/TGTS!$AA$70 -> 1.278541655
B55: TPC | C55: =TPC!R$70/TPC!$AA$70 -> 0.9278579096 | D55: =TPC!S$70/TPC!$AA$70 -> 0.9765173909 | E55: =TPC!T$70/TPC!$AA$70 -> 0.9787618267 | F55: =TPC!U$70/TPC!$AA$70 -> 0.9830721195 | G55: =TPC!V$70/TPC!$AA$70 -> 0.9866794517 | H55: =TPC!W$70/TPC!$AA$70 -> 0.993591555 | I55: =TPC!X$70/TPC!$AA$70 -> 0.9816358319 | J55: =TPC!Y$70/TPC!$AA$70 -> 0.9920262571 | K55: =TPC!Z$70/TPC!$AA$70 -> 0.966587064 | L55: =TPC!AA$70/TPC!$AA$70 -> 1 | M55: =TPC!AB$70/TPC!$AA$70 -> 1.024355041 | N55: =TPC!AC$70/TPC!$AA$70 -> 1.039440358 | O55: =TPC!AD$70/TPC!$AA$70 -> 1.05180193 | P55: =TPC!AE$70/TPC!$AA$70 -> 1.068424134 | Q55: =TPC!AF$70/TPC!$AA$70 -> 1.085278402 | R55: =TPC!AG$70/TPC!$AA$70 -> 1.100941143 | S55: =TPC!AH$70/TPC!$AA$70 -> 1.109825935 | T55: =TPC!AI$70/TPC!$AA$70 -> 1.122073715 | U55: =TPC!AJ$70/TPC!$AA$70 -> 1.140781531 | V55: =TPC!AK$70/TPC!$AA$70 -> 1.159247096 | X55: Citipower - average demand
B57: Citipower | C57: 2005 | D57: 2006 | E57: 2007 | F57: 2008 | G57: 2009 | H57: 2010 | I57: 2011 | J57: 2012 | K57: 2013 | L57: 2014 | M57: 2015 | N57: 2016 | O57: 2017 | P57: 2018 | Q57: 2019 | R57: 2020 | S57: 2021 | T57: 2022 | U57: 2023 | V57: 2024
B58: WMTS22 | C58: =WMTS22!R$70/WMTS22!$AA$70 -> 0.8445724829 | D58: =WMTS22!S$70/WMTS22!$AA$70 -> 0.8503278026 | E58: =WMTS22!T$70/WMTS22!$AA$70 -> 0.8807765116 | F58: =WMTS22!U$70/WMTS22!$AA$70 -> 0.8870083677 | G58: =WMTS22!V$70/WMTS22!$AA$70 -> 0.9149298563 | H58: =WMTS22!W$70/WMTS22!$AA$70 -> 0.9452907455 | I58: =WMTS22!X$70/WMTS22!$AA$70 -> 0.9523843548 | J58: =WMTS22!Y$70/WMTS22!$AA$70 -> 0.9737682903 | K58: =WMTS22!Z$70/WMTS22!$AA$70 -> 0.8864426307 | L58: =WMTS22!AA$70/WMTS22!$AA$70 -> 1 | M58: =WMTS22!AB$70/WMTS22!$AA$70 -> 1.083229609 | N58: =WMTS22!AC$70/WMTS22!$AA$70 -> 1.154029127 | O58: =WMTS22!AD$70/WMTS22!$AA$70 -> 1.213522314 | P58: =WMTS22!AE$70/WMTS22!$AA$70 -> 1.261879358 | Q58: =WMTS22!AF$70/WMTS22!$AA$70 -> 1.304464491 | R58: =WMTS22!AG$70/WMTS22!$AA$70 -> 1.342426098 | S58: =WMTS22!AH$70/WMTS22!$AA$70 -> 1.373587501 | T58: =WMTS22!AI$70/WMTS22!$AA$70 -> 1.400846221 | U58: =WMTS22!AJ$70/WMTS22!$AA$70 -> 1.430710621 | V58: =WMTS22!AK$70/WMTS22!$AA$70 -> 1.46204607
B59: WMTS66 | E59: =WMTS66!T$70/WMTS66!$AA$70 -> 0.970479094 | F59: =WMTS66!U$70/WMTS66!$AA$70 -> 0.9773165367 | G59: =WMTS66!V$70/WMTS66!$AA$70 -> 0.9811354307 | H59: =WMTS66!W$70/WMTS66!$AA$70 -> 0.9827007174 | I59: =WMTS66!X$70/WMTS66!$AA$70 -> 0.9774581854 | J59: =WMTS66!Y$70/WMTS66!$AA$70 -> 0.9782286748 | K59: =WMTS66!Z$70/WMTS66!$AA$70 -> 0.9903894449 | L59: =WMTS66!AA$70/WMTS66!$AA$70 -> 1 | M59: =WMTS66!AB$70/WMTS66!$AA$70 -> 1.038685891 | N59: =WMTS66!AC$70/WMTS66!$AA$70 -> 1.076900939 | O59: =WMTS66!AD$70/WMTS66!$AA$70 -> 1.107903636 | P59: =WMTS66!AE$70/WMTS66!$AA$70 -> 1.131855348 | Q59: =WMTS66!AF$70/WMTS66!$AA$70 -> 1.151206897 | R59: =WMTS66!AG$70/WMTS66!$AA$70 -> 1.16858509 | S59: =WMTS66!AH$70/WMTS66!$AA$70 -> 1.183557137 | T59: =WMTS66!AI$70/WMTS66!$AA$70 -> 1.195319364 | U59: =WMTS66!AJ$70/WMTS66!$AA$70 -> 1.210242614 | V59: =WMTS66!AK$70/WMTS66!$AA$70 -> 1.228145809
B60: BTS22 | C60: ='BTS22'!R$70/'BTS22'!$AA$70 -> 0.9374385517 | D60: ='BTS22'!S$70/'BTS22'!$AA$70 -> 0.9821283235 | E60: ='BTS22'!T$70/'BTS22'!$AA$70 -> 0.9609752514 | F60: ='BTS22'!U$70/'BTS22'!$AA$70 -> 0.9687592789 | G60: ='BTS22'!V$70/'BTS22'!$AA$70 -> 0.9750372649 | H60: ='BTS22'!W$70/'BTS22'!$AA$70 -> 1.006101425 | I60: ='BTS22'!X$70/'BTS22'!$AA$70 -> 0.974284337 | J60: ='BTS22'!Y$70/'BTS22'!$AA$70 -> 0.9909251739 | K60: ='BTS22'!Z$70/'BTS22'!$AA$70 -> 0.9760321173 | L60: ='BTS22'!AA$70/'BTS22'!$AA$70 -> 1 | M60: ='BTS22'!AB$70/'BTS22'!$AA$70 -> 1.028150573 | N60: ='BTS22'!AC$70/'BTS22'!$AA$70 -> 1.059429715 | O60: ='BTS22'!AD$70/'BTS22'!$AA$70 -> 1.086779128 | P60: ='BTS22'!AE$70/'BTS22'!$AA$70 -> 1.108222587 | Q60: ='BTS22'!AF$70/'BTS22'!$AA$70 -> 1.125380677 | R60: ='BTS22'!AG$70/'BTS22'!$AA$70 -> 1.14071735 | S60: ='BTS22'!AH$70/'BTS22'!$AA$70 -> 1.154275992 | T60: ='BTS22'!AI$70/'BTS22'!$AA$70 -> 1.166323446 | U60: ='BTS22'!AJ$70/'BTS22'!$AA$70 -> 1.178488548 | V60: ='BTS22'!AK$70/'BTS22'!$AA$70 -> 1.192223986
B61: FBTS66 | C61: =FBTS66!R$70/FBTS66!$AA$70 -> 0.8903881082 | D61: =FBTS66!S$70/FBTS66!$AA$70 -> 0.9323592911 | E61: =FBTS66!T$70/FBTS66!$AA$70 -> 0.9340472693 | F61: =FBTS66!U$70/FBTS66!$AA$70 -> 0.9523971164 | G61: =FBTS66!V$70/FBTS66!$AA$70 -> 0.9469336993 | H61: =FBTS66!W$70/FBTS66!$AA$70 -> 0.9498283605 | I61: =FBTS66!X$70/FBTS66!$AA$70 -> 0.9506152647 | J61: =FBTS66!Y$70/FBTS66!$AA$70 -> 0.9733072293 | K61: =FBTS66!Z$70/FBTS66!$AA$70 -> 0.9756030915 | L61: =FBTS66!AA$70/FBTS66!$AA$70 -> 1 | M61: =FBTS66!AB$70/FBTS66!$AA$70 -> 1.04101585 | N61: =FBTS66!AC$70/FBTS66!$AA$70 -> 1.079480923 | O61: =FBTS66!AD$70/FBTS66!$AA$70 -> 1.110118351 | P61: =FBTS66!AE$70/FBTS66!$AA$70 -> 1.133277568 | Q61: =FBTS66!AF$70/FBTS66!$AA$70 -> 1.152678335 | R61: =FBTS66!AG$70/FBTS66!$AA$70 -> 1.171480613 | S61: =FBTS66!AH$70/FBTS66!$AA$70 -> 1.188099965 | T61: =FBTS66!AI$70/FBTS66!$AA$70 -> 1.203767834 | U61: =FBTS66!AJ$70/FBTS66!$AA$70 -> 1.225456495 | V61: =FBTS66!AK$70/FBTS66!$AA$70 -> 1.251018184
B62: RTS22 | C62: ='RTS22'!R$70/'RTS22'!$AA$70 -> 1.050280729 | D62: ='RTS22'!S$70/'RTS22'!$AA$70 -> 1.118288267 | E62: ='RTS22'!T$70/'RTS22'!$AA$70 -> 1.120294585 | F62: ='RTS22'!U$70/'RTS22'!$AA$70 -> 1.026749903 | G62: ='RTS22'!V$70/'RTS22'!$AA$70 -> 1.063190781 | H62: ='RTS22'!W$70/'RTS22'!$AA$70 -> 1.041446116 | I62: ='RTS22'!X$70/'RTS22'!$AA$70 -> 1.009889335 | J62: ='RTS22'!Y$70/'RTS22'!$AA$70 -> 0.9926348532 | K62: ='RTS22'!Z$70/'RTS22'!$AA$70 -> 0.9735534411 | L62: ='RTS22'!AA$70/'RTS22'!$AA$70 -> 1 | M62: ='RTS22'!AB$70/'RTS22'!$AA$70 -> 1.067630748 | N62: ='RTS22'!AC$70/'RTS22'!$AA$70 -> 1.10088595 | O62: ='RTS22'!AD$70/'RTS22'!$AA$70 -> 1.127452024 | P62: ='RTS22'!AE$70/'RTS22'!$AA$70 -> 1.143466314 | Q62: ='RTS22'!AF$70/'RTS22'!$AA$70 -> 1.154374306 | R62: ='RTS22'!AG$70/'RTS22'!$AA$70 -> 1.163914501 | S62: ='RTS22'!AH$70/'RTS22'!$AA$70 -> 1.15524087 | T62: ='RTS22'!AI$70/'RTS22'!$AA$70 -> 1.159214731 | U62: ='RTS22'!AJ$70/'RTS22'!$AA$70 -> 1.174793562 | V62: ='RTS22'!AK$70/'RTS22'!$AA$70 -> 1.189036412
B63: RTS66_1_4 | E63: =RTS66_1_4!T$70/RTS66_1_4!$AA$70 -> 0.9561382985 | F63: =RTS66_1_4!U$70/RTS66_1_4!$AA$70 -> 0.9603109318 | G63: =RTS66_1_4!V$70/RTS66_1_4!$AA$70 -> 0.9539932412 | H63: =RTS66_1_4!W$70/RTS66_1_4!$AA$70 -> 0.9812958817 | I63: =RTS66_1_4!X$70/RTS66_1_4!$AA$70 -> 0.9642544918 | J63: =RTS66_1_4!Y$70/RTS66_1_4!$AA$70 -> 0.9804585836 | K63: =RTS66_1_4!Z$70/RTS66_1_4!$AA$70 -> 0.9419453394 | L63: =RTS66_1_4!AA$70/RTS66_1_4!$AA$70 -> 1 | M63: =RTS66_1_4!AB$70/RTS66_1_4!$AA$70 -> 1.027330711 | N63: =RTS66_1_4!AC$70/RTS66_1_4!$AA$70 -> 1.055666473 | O63: =RTS66_1_4!AD$70/RTS66_1_4!$AA$70 -> 1.074110706 | P63: =RTS66_1_4!AE$70/RTS66_1_4!$AA$70 -> 1.089369868 | Q63: =RTS66_1_4!AF$70/RTS66_1_4!$AA$70 -> 1.098687876 | R63: =RTS66_1_4!AG$70/RTS66_1_4!$AA$70 -> 1.108780266 | S63: =RTS66_1_4!AH$70/RTS66_1_4!$AA$70 -> 1.115794467 | T63: =RTS66_1_4!AI$70/RTS66_1_4!$AA$70 -> 1.123987051 | U63: =RTS66_1_4!AJ$70/RTS66_1_4!$AA$70 -> 1.138318948 | V63: =RTS66_1_4!AK$70/RTS66_1_4!$AA$70 -> 1.152895455
B64: RTS66_2_3 | E64: =RTS66_2_3!T$70/RTS66_2_3!$AA$70 -> 0.990365457 | F64: =RTS66_2_3!U$70/RTS66_2_3!$AA$70 -> 0.9670993038 | G64: =RTS66_2_3!V$70/RTS66_2_3!$AA$70 -> 0.984814756 | H64: =RTS66_2_3!W$70/RTS66_2_3!$AA$70 -> 0.9873798222 | I64: =RTS66_2_3!X$70/RTS66_2_3!$AA$70 -> 0.9786956861 | J64: =RTS66_2_3!Y$70/RTS66_2_3!$AA$70 -> 0.9808168378 | K64: =RTS66_2_3!Z$70/RTS66_2_3!$AA$70 -> 0.9522418777 | L64: =RTS66_2_3!AA$70/RTS66_2_3!$AA$70 -> 1 | M64: =RTS66_2_3!AB$70/RTS66_2_3!$AA$70 -> 1.044735648 | N64: =RTS66_2_3!AC$70/RTS66_2_3!$AA$70 -> 1.079891336 | O64: =RTS66_2_3!AD$70/RTS66_2_3!$AA$70 -> 1.106694364 | P64: =RTS66_2_3!AE$70/RTS66_2_3!$AA$70 -> 1.12570715 | Q64: =RTS66_2_3!AF$70/RTS66_2_3!$AA$70 -> 1.140356381 | R64: =RTS66_2_3!AG$70/RTS66_2_3!$AA$70 -> 1.154411776 | S64: =RTS66_2_3!AH$70/RTS66_2_3!$AA$70 -> 1.162783395 | T64: =RTS66_2_3!AI$70/RTS66_2_3!$AA$70 -> 1.174077358 | U64: =RTS66_2_3!AJ$70/RTS66_2_3!$AA$70 -> 1.192029201 | V64: =RTS66_2_3!AK$70/RTS66_2_3!$AA$70 -> 1.211875717
B65: SVTS | E65: =SVTS!T$70/SVTS!$AA$70 -> 0.9575349096 | F65: =SVTS!U$70/SVTS!$AA$70 -> 0.9651623455 | G65: =SVTS!V$70/SVTS!$AA$70 -> 1.008802227 | H65: =SVTS!W$70/SVTS!$AA$70 -> 1.014677512 | I65: =SVTS!X$70/SVTS!$AA$70 -> 0.9723036035 | J65: =SVTS!Y$70/SVTS!$AA$70 -> 0.9614443953 | K65: =SVTS!Z$70/SVTS!$AA$70 -> 0.9022732973 | L65: =SVTS!AA$70/SVTS!$AA$70 -> 1 | M65: =SVTS!AB$70/SVTS!$AA$70 -> 1.00980334 | N65: =SVTS!AC$70/SVTS!$AA$70 -> 1.055199903 | O65: =SVTS!AD$70/SVTS!$AA$70 -> 1.06424862 | P65: =SVTS!AE$70/SVTS!$AA$70 -> 1.059352009 | Q65: =SVTS!AF$70/SVTS!$AA$70 -> 1.056057483 | R65: =SVTS!AG$70/SVTS!$AA$70 -> 1.064622692 | S65: =SVTS!AH$70/SVTS!$AA$70 -> 1.067111819 | T65: =SVTS!AI$70/SVTS!$AA$70 -> 1.073802744 | U65: =SVTS!AJ$70/SVTS!$AA$70 -> 1.083411055 | V65: =SVTS!AK$70/SVTS!$AA$70 -> 1.093113707
B66: TSTS | C66: =TSTS!R$70/TSTS!$AA$70 -> 0.9796836663 | D66: =TSTS!S$70/TSTS!$AA$70 -> 1.022722402 | E66: =TSTS!T$70/TSTS!$AA$70 -> 1.005796436 | F66: =TSTS!U$70/TSTS!$AA$70 -> 1.00590363 | G66: =TSTS!V$70/TSTS!$AA$70 -> 1.011815325 | H66: =TSTS!W$70/TSTS!$AA$70 -> 1.022449884 | I66: =TSTS!X$70/TSTS!$AA$70 -> 0.9911790487 | J66: =TSTS!Y$70/TSTS!$AA$70 -> 1.009343363 | K66: =TSTS!Z$70/TSTS!$AA$70 -> 0.9727636418 | L66: =TSTS!AA$70/TSTS!$AA$70 -> 1 | M66: =TSTS!AB$70/TSTS!$AA$70 -> 1.028886899 | N66: =TSTS!AC$70/TSTS!$AA$70 -> 1.051082485 | O66: =TSTS!AD$70/TSTS!$AA$70 -> 1.06725201 | P66: =TSTS!AE$70/TSTS!$AA$70 -> 1.077570042 | Q66: =TSTS!AF$70/TSTS!$AA$70 -> 1.083326796 | R66: =TSTS!AG$70/TSTS!$AA$70 -> 1.088385905 | S66: =TSTS!AH$70/TSTS!$AA$70 -> 1.089113884 | T66: =TSTS!AI$70/TSTS!$AA$70 -> 1.092590117 | U66: =TSTS!AJ$70/TSTS!$AA$70 -> 1.100446574 | V66: =TSTS!AK$70/TSTS!$AA$70 -> 1.10882765
B67: TCP | C67: =TCP!R$70/TCP!$AA$70 -> 0.9276263277 | D67: =TCP!S$70/TCP!$AA$70 -> 0.9727098415 | E67: =TCP!T$70/TCP!$AA$70 -> 0.9839911973 | F67: =TCP!U$70/TCP!$AA$70 -> 0.9811613217 | G67: =TCP!V$70/TCP!$AA$70 -> 0.9932844263 | H67: =TCP!W$70/TCP!$AA$70 -> 0.9925029052 | I67: =TCP!X$70/TCP!$AA$70 -> 0.9828894769 | J67: =TCP!Y$70/TCP!$AA$70 -> 0.990217453 | K67: =TCP!Z$70/TCP!$AA$70 -> 0.9675054931 | L67: =TCP!AA$70/TCP!$AA$70 -> 1 | M67: =TCP!AB$70/TCP!$AA$70 -> 1.036899192 | N67: =TCP!AC$70/TCP!$AA$70 -> 1.071521668 | O67: =TCP!AD$70/TCP!$AA$70 -> 1.099966215 | P67: =TCP!AE$70/TCP!$AA$70 -> 1.12147167 | Q67: =TCP!AF$70/TCP!$AA$70 -> 1.138460358 | R67: =TCP!AG$70/TCP!$AA$70 -> 1.153778977 | S67: =TCP!AH$70/TCP!$AA$70 -> 1.164881405 | T67: =TCP!AI$70/TCP!$AA$70 -> 1.175793968 | U67: =TCP!AJ$70/TCP!$AA$70 -> 1.189645868 | V67: =TCP!AK$70/TCP!$AA$70 -> 1.205187488
A71: Max demand summation (excluding block loads and post-model adjustments)
B72: 50% PoE forecast index (MW)
B73: Powercor | C73: 2005 | D73: 2006 | E73: 2007 | F73: 2008 | G73: 2009 | H73: 2010 | I73: 2011 | J73: 2012 | K73: 2013 | L73: 2014 | M73: 2015 | N73: 2016 | O73: 2017 | P73: 2018 | Q73: 2019 | R73: 2020 | S73: 2021 | T73: 2022 | U73: 2023 | V73: 2024 | X73: Comparison of Powercor maximum demand and the summation of individual terminal station max demand forecasts
B74: ATS | G74: =ATS!V$89 -> 167.6444406 | H74: =ATS!W$89 -> 163.2467403 | I74: =ATS!X$89 -> 176.7474201 | J74: =ATS!Y$89 -> 184.3534521 | K74: =ATS!Z$89 -> 186.9059061 | L74: =ATS!AA$89 -> 187.5436185 | M74: =ATS!AB$89 -> 195.0453633 | N74: =ATS!AC$89 -> 202.8471778 | O74: =ATS!AD$89 -> 210.9610649 | P74: =ATS!AE$89 -> 219.3995075 | Q74: =ATS!AF$89 -> 228.1754878 | R74: =ATS!AG$89 -> 237.3025073 | S74: =ATS!AH$89 -> 246.7946076 | T74: =ATS!AI$89 -> 256.6663919 | U74: =ATS!AJ$89 -> 266.9330476 | V74: =ATS!AK$89 -> 277.6103695
B75: BATS | C75: =BATS!R$89 -> 168.0794271 | D75: =BATS!S$89 -> 178.9572802 | E75: =BATS!T$89 -> 178.7020077 | F75: =BATS!U$89 -> 175.7675336 | G75: =BATS!V$89 -> 175.3888047 | H75: =BATS!W$89 -> 170.1078459 | I75: =BATS!X$89 -> 169.5747119 | J75: =BATS!Y$89 -> 165.4522976 | K75: =BATS!Z$89 -> 169.471281 | L75: =BATS!AA$89 -> 171.1976266 | M75: =BATS!AB$89 -> 176.2919671 | N75: =BATS!AC$89 -> 183.3436458 | O75: =BATS!AD$89 -> 189.8399724 | P75: =BATS!AE$89 -> 193.3653153 | Q75: =BATS!AF$89 -> 199.0308206 | R75: =BATS!AG$89 -> 204.9330759 | S75: =BATS!AH$89 -> 204.0144916 | T75: =BATS!AI$89 -> 212.1750713 | U75: =BATS!AJ$89 -> 220.6620741 | V75: =BATS!AK$89 -> 229.4885571
B76: BETS22 | D76: =BETS22!S$89 -> 43.73973231 | E76: =BETS22!T$89 -> 46.82772825 | F76: =BETS22!U$89 -> 45.61302616 | G76: =BETS22!V$89 -> 50.00058097 | H76: =BETS22!W$89 -> 50.23166325 | I76: =BETS22!X$89 -> 49.50029861 | J76: =BETS22!Y$89 -> 52.43429069 | K76: =BETS22!Z$89 -> 58.83325627 | L76: =BETS22!AA$89 -> 61.32545055 | M76: =BETS22!AB$89 -> 62.20657864 | N76: =BETS22!AC$89 -> 64.36727884 | O76: =BETS22!AD$89 -> 66.94196999 | P76: =BETS22!AE$89 -> 69.61964879 | Q76: =BETS22!AF$89 -> 72.40443474 | R76: =BETS22!AG$89 -> 75.30061213 | S76: =BETS22!AH$89 -> 78.31263662 | T76: =BETS22!AI$89 -> 81.44514208 | U76: =BETS22!AJ$89 -> 84.70294777 | V76: =BETS22!AK$89 -> 88.09106568
B77: BETS66 | C77: =BETS66!R$89 -> 160.14907 | D77: =BETS66!S$89 -> 163.3958862 | E77: =BETS66!T$89 -> 161.1155213 | F77: =BETS66!U$89 -> 168.6781126 | G77: =BETS66!V$89 -> 170.7879721 | H77: =BETS66!W$89 -> 155.2870665 | I77: =BETS66!X$89 -> 164.6371237 | J77: =BETS66!Y$89 -> 164.3221816 | K77: =BETS66!Z$89 -> 171.5719752 | L77: =BETS66!AA$89 -> 168.8099218 | M77: =BETS66!AB$89 -> 175.5623186 | N77: =BETS66!AC$89 -> 182.5909602 | O77: =BETS66!AD$89 -> 184.3685158 | P77: =BETS66!AE$89 -> 185.1945514 | Q77: =BETS66!AF$89 -> 187.2825616 | R77: =BETS66!AG$89 -> 189.9448704 | S77: =BETS66!AH$89 -> 197.41031 | T77: =BETS66!AI$89 -> 203.0171175 | U77: =BETS66!AJ$89 -> 211.1378022 | V77: =BETS66!AK$89 -> 215.7488982
B78: BLTS22 | C78: =BLTS22!R$89 -> 56.33019339 | D78: =BLTS22!S$89 -> 57.05608488 | E78: =BLTS22!T$89 -> 58.73720092 | F78: =BLTS22!U$89 -> 58.67290591 | G78: =BLTS22!V$89 -> 58.01627786 | H78: =BLTS22!W$89 -> 59.26297573 | I78: =BLTS22!X$89 -> 58.130903 | K78: =BLTS22!Z$89 -> 55.90163175 | L78: =BLTS22!AA$89 -> 58.46557655 | M78: =BLTS22!AB$89 -> 59.88728781 | N78: =BLTS22!AC$89 -> 61.13746566 | O78: =BLTS22!AD$89 -> 62.38823752 | P78: =BLTS22!AE$89 -> 63.38379299 | Q78: =BLTS22!AF$89 -> 64.40974867 | R78: =BLTS22!AG$89 -> 65.25543137 | S78: =BLTS22!AH$89 -> 65.82448378 | T78: =BLTS22!AI$89 -> 67.0127821 | U78: =BLTS22!AJ$89 -> 68.62487187 | V78: =BLTS22!AK$89 -> 69.45378071
B79: BLTS66 | E79: =BLTS66!T$89 -> 160.9585992 | F79: =BLTS66!U$89 -> 159.1140498 | G79: =BLTS66!V$89 -> 171.3993183 | H79: =BLTS66!W$89 -> 184.7354616 | I79: =BLTS66!X$89 -> 181.2717209 | J79: =BLTS66!Y$89 -> 182.658433 | K79: =BLTS66!Z$89 -> 187.7679634 | L79: =BLTS66!AA$89 -> 195.2786819 | M79: =BLTS66!AB$89 -> 203.0898292 | N79: =BLTS66!AC$89 -> 211.2134224 | O79: =BLTS66!AD$89 -> 219.6619593 | P79: =BLTS66!AE$89 -> 228.4484376 | Q79: =BLTS66!AF$89 -> 237.5863751 | R79: =BLTS66!AG$89 -> 247.0898301 | S79: =BLTS66!AH$89 -> 256.9734234 | T79: =BLTS66!AI$89 -> 267.2523603 | U79: =BLTS66!AJ$89 -> 277.9424547 | V79: =BLTS66!AK$89 -> 289.0601529
B80: GTS66 | C80: ='GTS66'!R$89 -> 353.7277138 | D80: ='GTS66'!S$89 -> 377.9447845 | E80: ='GTS66'!T$89 -> 391.4354155 | F80: ='GTS66'!U$89 -> 381.9399358 | G80: ='GTS66'!V$89 -> 396.2436456 | H80: ='GTS66'!W$89 -> 398.2803481 | I80: ='GTS66'!X$89 -> 416.1153956 | J80: ='GTS66'!Y$89 -> 414.8763357 | K80: ='GTS66'!Z$89 -> 427.5139205 | L80: ='GTS66'!AA$89 -> 454.6275356 | M80: ='GTS66'!AB$89 -> 472.812637 | N80: ='GTS66'!AC$89 -> 491.7251425 | O80: ='GTS66'!AD$89 -> 511.3941482 | P80: ='GTS66'!AE$89 -> 531.8499141 | Q80: ='GTS66'!AF$89 -> 553.1239107 | R80: ='GTS66'!AG$89 -> 575.2488671 | S80: ='GTS66'!AH$89 -> 598.2588218 | T80: ='GTS66'!AI$89 -> 622.1891747 | U80: ='GTS66'!AJ$89 -> 647.0767416 | V80: ='GTS66'!AK$89 -> 672.9598113
B81: HOTS66 | C81: =HOTS66!R$89 -> 78.34504721 | D81: =HOTS66!S$89 -> 88.37558431 | E81: =HOTS66!T$89 -> 91.36811613 | F81: =HOTS66!U$89 -> 88.06147912 | G81: =HOTS66!V$89 -> 96.44930856 | H81: =HOTS66!W$89 -> 91.94991295 | I81: =HOTS66!X$89 -> 94.20175654 | J81: =HOTS66!Y$89 -> 87.50192845 | K81: =HOTS66!Z$89 -> 90.55584226 | L81: =HOTS66!AA$89 -> 93.63980022 | M81: =HOTS66!AB$89 -> 94.11523031 | N81: =HOTS66!AC$89 -> 96.91255646 | O81: =HOTS66!AD$89 -> 100.7890587 | P81: =HOTS66!AE$89 -> 104.6161014 | Q81: =HOTS66!AF$89 -> 105.6338082 | R81: =HOTS66!AG$89 -> 109.1687404 | S81: =HOTS66!AH$89 -> 109.8361415 | T81: =HOTS66!AI$89 -> 114.2295871 | U81: =HOTS66!AJ$89 -> 118.7987706 | V81: =HOTS66!AK$89 -> 121.4245825
B82: KTSeast | E82: =KTSeast!T$89 -> 118.9996385 | F82: =KTSeast!U$89 -> 118.108317 | G82: =KTSeast!V$89 -> 125.8773076 | H82: =KTSeast!W$89 -> 128.5068474 | I82: =KTSeast!X$89 -> 130.0514356 | J82: =KTSeast!Y$89 -> 135.1089175 | K82: =KTSeast!Z$89 -> 142.9031736 | L82: =KTSeast!AA$89 -> 146.1032224 | M82: =KTSeast!AB$89 -> 151.9473513 | N82: =KTSeast!AC$89 -> 157.7045998 | O82: =KTSeast!AD$89 -> 163.5064121 | P82: =KTSeast!AE$89 -> 168.8482409 | Q82: =KTSeast!AF$89 -> 174.7162091 | R82: =KTSeast!AG$89 -> 180.0919962 | S82: =KTSeast!AH$89 -> 184.9487197 | T82: =KTSeast!AI$89 -> 192.3466685 | U82: =KTSeast!AJ$89 -> 200.0405352 | V82: =KTSeast!AK$89 -> 208.0421567
B83: KTSwest | E83: =KTSwest!T$89 -> 175.4210568 | F83: =KTSwest!U$89 -> 172.3180255 | G83: =KTSwest!V$89 -> 179.3593523 | H83: =KTSwest!W$89 -> 177.3069216 | I83: =KTSwest!X$89 -> 184.3455695 | J83: =KTSwest!Y$89 -> 178.0364796 | K83: =KTSwest!Z$89 -> 180.3578849 | L83: =KTSwest!AA$89 -> 193.2365417 | M83: =KTSwest!AB$89 -> 200.9660034 | N83: =KTSwest!AC$89 -> 209.0046435 | O83: =KTSwest!AD$89 -> 217.3648293 | P83: =KTSwest!AE$89 -> 226.0594224 | Q83: =KTSwest!AF$89 -> 235.1017993 | R83: =KTSwest!AG$89 -> 243.9343616 | S83: =KTSwest!AH$89 -> 248.5422285 | T83: =KTSwest!AI$89 -> 258.4839177 | U83: =KTSwest!AJ$89 -> 268.8232744 | V83: =KTSwest!AK$89 -> 279.5762053
B84: KGTS22 | C84: =KGTS22!R$89 -> 11.46701518 | D84: =KGTS22!S$89 -> 12.41757727 | E84: =KGTS22!T$89 -> 13.32446966 | F84: =KGTS22!U$89 -> 12.46622405 | G84: =KGTS22!V$89 -> 11.48713367 | H84: =KGTS22!W$89 -> 13.33699456 | I84: =KGTS22!X$89 -> 12.88491134 | J84: =KGTS22!Y$89 -> 13.45050889 | K84: =KGTS22!Z$89 -> 13.75010368 | L84: =KGTS22!AA$89 -> 12.44501999 | M84: =KGTS22!AB$89 -> 12.94282079 | N84: =KGTS22!AC$89 -> 13.46053362 | O84: =KGTS22!AD$89 -> 13.99895496 | P84: =KGTS22!AE$89 -> 14.55891316 | Q84: =KGTS22!AF$89 -> 15.14126969 | R84: =KGTS22!AG$89 -> 15.74692048 | S84: =KGTS22!AH$89 -> 16.3767973 | T84: =KGTS22!AI$89 -> 17.03186919 | U84: =KGTS22!AJ$89 -> 17.71314396 | V84: =KGTS22!AK$89 -> 18.42166971
B85: KGTS66 | C85: =KGTS66!R$89 -> 56.87015356 | D85: =KGTS66!S$89 -> 55.57463224 | E85: =KGTS66!T$89 -> 55.21531106 | F85: =KGTS66!U$89 -> 54.73369336 | G85: =KGTS66!V$89 -> 57.97994388 | H85: =KGTS66!W$89 -> 48.31323274 | I85: =KGTS66!X$89 -> 53.98850627 | J85: =KGTS66!Y$89 -> 51.40300417 | K85: =KGTS66!Z$89 -> 54.21984429 | L85: =KGTS66!AA$89 -> 54.22181928 | M85: =KGTS66!AB$89 -> 56.39069205 | N85: =KGTS66!AC$89 -> 57.4569275 | O85: =KGTS66!AD$89 -> 57.97307029 | P85: =KGTS66!AE$89 -> 57.76233612 | Q85: =KGTS66!AF$89 -> 58.32015073 | R85: =KGTS66!AG$89 -> 59.06180218 | S85: =KGTS66!AH$89 -> 59.65091365 | T85: =KGTS66!AI$89 -> 60.48006064 | U85: =KGTS66!AJ$89 -> 62.59824921 | V85: =KGTS66!AK$89 -> 62.69031483
B86: RCTS22 | C86: =RCTS22!R$89 -> 38.38396349 | D86: =RCTS22!S$89 -> 34.36645426 | E86: =RCTS22!T$89 -> 33.36096027 | F86: =RCTS22!U$89 -> 34.16626302 | G86: =RCTS22!V$89 -> 38.40750313 | H86: =RCTS22!W$89 -> 30.384204 | I86: =RCTS22!X$89 -> 34.97987063 | J86: =RCTS22!Y$89 -> 40.63036105 | K86: =RCTS22!Z$89 -> 40.85078631 | L86: =RCTS22!AA$89 -> 39.05805917 | M86: =RCTS22!AB$89 -> 40.62038153 | N86: =RCTS22!AC$89 -> 42.2451968 | O86: =RCTS22!AD$89 -> 43.93500467 | P86: =RCTS22!AE$89 -> 45.69240485 | Q86: =RCTS22!AF$89 -> 47.52010105 | R86: =RCTS22!AG$89 -> 49.26889356 | S86: =RCTS22!AH$89 -> 50.80051414 | T86: =RCTS22!AI$89 -> 52.15367252 | U86: =RCTS22!AJ$89 -> 54.23981942 | V86: =RCTS22!AK$89 -> 55.49457443
B87: RCTS66/WETS | C87: ='RCTS66 WETS'!R$89 -> 139.8775762 | D87: ='RCTS66 WETS'!S$89 -> 140.8716722 | E87: ='RCTS66 WETS'!T$89 -> 139.5816434 | F87: ='RCTS66 WETS'!U$89 -> 152.1867311 | G87: ='RCTS66 WETS'!V$89 -> 164.4326147 | H87: ='RCTS66 WETS'!W$89 -> 143.7660653 | I87: ='RCTS66 WETS'!X$89 -> 157.5944427 | J87: ='RCTS66 WETS'!Y$89 -> 164.4802249 | K87: ='RCTS66 WETS'!Z$89 -> 163.2100834 | L87: ='RCTS66 WETS'!AA$89 -> 202.6343475 | M87: ='RCTS66 WETS'!AB$89 -> 218.6023383 | N87: ='RCTS66 WETS'!AC$89 -> 244.766309 | O87: ='RCTS66 WETS'!AD$89 -> 259.2419535 | P87: ='RCTS66 WETS'!AE$89 -> 265.0861284 | Q87: ='RCTS66 WETS'!AF$89 -> 277.0813152 | R87: ='RCTS66 WETS'!AG$89 -> 286.6448867 | S87: ='RCTS66 WETS'!AH$89 -> 301.3709086 | T87: ='RCTS66 WETS'!AI$89 -> 316.0044803 | U87: ='RCTS66 WETS'!AJ$89 -> 341.4357723 | V87: ='RCTS66 WETS'!AK$89 -> 357.771172
B88: SHTS | C88: =SHTS!R$89 -> 280.039249 | D88: =SHTS!S$89 -> 293.7456354 | E88: =SHTS!T$89 -> 282.0962132 | F88: =SHTS!U$89 -> 274.9267582 | G88: =SHTS!V$89 -> 290.6498387 | H88: =SHTS!W$89 -> 261.8949406 | I88: =SHTS!X$89 -> 272.5977137 | J88: =SHTS!Y$89 -> 283.4190408 | K88: =SHTS!Z$89 -> 283.1773813 | L88: =SHTS!AA$89 -> 275.0200769 | M88: =SHTS!AB$89 -> 281.2242353 | N88: =SHTS!AC$89 -> 287.2612397 | O88: =SHTS!AD$89 -> 293.8243664 | P88: =SHTS!AE$89 -> 297.3415829 | Q88: =SHTS!AF$89 -> 306.1667571 | R88: =SHTS!AG$89 -> 304.9600699 | S88: =SHTS!AH$89 -> 306.4330703 | T88: =SHTS!AI$89 -> 314.4523207 | U88: =SHTS!AJ$89 -> 321.194136 | V88: =SHTS!AK$89 -> 325.1091784
B89: TGTS | C89: =TGTS!R$89 -> 166.2076959 | D89: =TGTS!S$89 -> 179.2085358 | E89: =TGTS!T$89 -> 180.9790337 | F89: =TGTS!U$89 -> 183.8077148 | G89: =TGTS!V$89 -> 187.0582938 | H89: =TGTS!W$89 -> 192.080686 | I89: =TGTS!X$89 -> 195.6989603 | J89: =TGTS!Y$89 -> 195.7781888 | K89: =TGTS!Z$89 -> 196.3988477 | L89: =TGTS!AA$89 -> 200.8945259 | M89: =TGTS!AB$89 -> 205.6270049 | N89: =TGTS!AC$89 -> 213.8520851 | O89: =TGTS!AD$89 -> 222.4061685 | P89: =TGTS!AE$89 -> 231.3024152 | Q89: =TGTS!AF$89 -> 240.5545119 | R89: =TGTS!AG$89 -> 250.1766923 | S89: =TGTS!AH$89 -> 260.18376 | T89: =TGTS!AI$89 -> 270.5911104 | U89: =TGTS!AJ$89 -> 281.4147548 | V89: =TGTS!AK$89 -> 292.671345
B90: TPC | C90: =TPC!R$89 -> 1949.59021 | D90: =TPC!S$89 -> 2148.490086 | E90: =TPC!T$89 -> 2132.259932 | F90: =TPC!U$89 -> 2154.228194 | G90: =TPC!V$89 -> 2211.049608 | H90: =TPC!W$89 -> 2172.975103 | I90: =TPC!X$89 -> 2280.30319 | J90: =TPC!Y$89 -> 2281.004371 | K90: =TPC!Z$89 -> 2334.501697 | L90: =TPC!AA$89 -> 2530.764634 | M90: =TPC!AB$89 -> 2563.955381 | N90: =TPC!AC$89 -> 2666.513596 | O90: =TPC!AD$89 -> 2773.17414 | P90: =TPC!AE$89 -> 2858.750348 | Q90: =TPC!AF$89 -> 2973.100362 | R90: =TPC!AG$89 -> 3075.010191 | S90: =TPC!AH$89 -> 3169.173664 | T90: =TPC!AI$89 -> 3274.564593 | U90: =TPC!AJ$89 -> 3405.547177 | V90: =TPC!AK$89 -> 3541.769064
B91: Summation | G91: =SUM(G74:G89) -> 2341.182336 | H91: =SUM(H74:H89) -> 2268.691907 | I91: =SUM(I74:I89) -> 2352.32074 | K91: =SUM(K74:K89) -> 2423.389882 | L91: 2514.501825 | M91: 2607.33204 | N91: 2719.889185 | O91: 2818.595686 | P91: 2902.528713 | Q91: 3002.249261 | R91: 3094.129558 | S91: 3185.731828 | T91: 3305.531727 | U91: 3443.338396 | V91: 3563.613834 | X91: Comparison of Citipower maximum demand and the summation of individual terminal station max demand forecasts
B93: Citipower | C93: 2005 | D93: 2006 | E93: 2007 | F93: 2008 | G93: 2009 | H93: 2010 | I93: 2011 | J93: 2012 | K93: 2013 | L93: 2014 | M93: 2015 | N93: 2016 | O93: 2017 | P93: 2018 | Q93: 2019 | R93: 2020 | S93: 2021 | T93: 2022 | U93: 2023 | V93: 2024
B94: WMTS22 | C94: =WMTS22!R$89 -> 86.83965017 | D94: =WMTS22!S$89 -> 85.10225851 | E94: =WMTS22!T$89 -> 86.945689 | F94: =WMTS22!U$89 -> 90.22974253 | G94: =WMTS22!V$89 -> 90.99437959 | H94: =WMTS22!W$89 -> 95.39389733 | I94: =WMTS22!X$89 -> 95.14126321 | J94: =WMTS22!Y$89 -> 95.62128662 | K94: =WMTS22!Z$89 -> 96.66029551 | L94: =WMTS22!AA$89 -> 99.49182443 | M94: =WMTS22!AB$89 -> 103.4714974 | N94: =WMTS22!AC$89 -> 107.6103573 | O94: =WMTS22!AD$89 -> 111.9147716 | P94: =WMTS22!AE$89 -> 116.3913625 | Q94: =WMTS22!AF$89 -> 121.047017 | R94: =WMTS22!AG$89 -> 125.8888976 | S94: =WMTS22!AH$89 -> 130.9244535 | T94: =WMTS22!AI$89 -> 136.1614317 | U94: =WMTS22!AJ$89 -> 141.607889 | V94: =WMTS22!AK$89 -> 147.2722045
B95: WMTS66 | E95: =WMTS66!T$89 -> 370.7842158 | F95: =WMTS66!U$89 -> 363.7822283 | G95: =WMTS66!V$89 -> 377.235413 | H95: =WMTS66!W$89 -> 359.0088151 | I95: =WMTS66!X$89 -> 370.7483293 | J95: =WMTS66!Y$89 -> 381.8293687 | K95: =WMTS66!Z$89 -> 376.8462093 | L95: =WMTS66!AA$89 -> 389.5704591 | M95: =WMTS66!AB$89 -> 405.1532775 | N95: =WMTS66!AC$89 -> 421.3594086 | O95: =WMTS66!AD$89 -> 438.2137849 | P95: =WMTS66!AE$89 -> 454.3096649 | Q95: =WMTS66!AF$89 -> 466.9990032 | R95: =WMTS66!AG$89 -> 474.8879321 | S95: =WMTS66!AH$89 -> 484.0141538 | T95: =WMTS66!AI$89 -> 494.9642428 | U95: =WMTS66!AJ$89 -> 509.195227 | V95: =WMTS66!AK$89 -> 523.1875148
B96: BTS22 | C96: ='BTS22'!R$89 -> 38.79681731 | D96: ='BTS22'!S$89 -> 40.84040174 | E96: ='BTS22'!T$89 -> 41.24067667 | F96: ='BTS22'!U$89 -> 40.95717017 | G96: ='BTS22'!V$89 -> 40.44914499 | H96: ='BTS22'!W$89 -> 43.30174927 | I96: ='BTS22'!X$89 -> 40.95063131 | J96: ='BTS22'!Y$89 -> 41.98310516 | K96: ='BTS22'!Z$89 -> 41.01696524 | L96: ='BTS22'!AA$89 -> 42.40376992 | M96: ='BTS22'!AB$89 -> 43.96247961 | N96: ='BTS22'!AC$89 -> 45.55465938 | O96: ='BTS22'!AD$89 -> 47.03102854 | P96: ='BTS22'!AE$89 -> 48.14386272 | Q96: ='BTS22'!AF$89 -> 49.76990176 | R96: ='BTS22'!AG$89 -> 51.01997645 | S96: ='BTS22'!AH$89 -> 52.59110377 | T96: ='BTS22'!AI$89 -> 54.41413157 | U96: ='BTS22'!AJ$89 -> 56.15782504 | V96: ='BTS22'!AK$89 -> 58.28642571
B97: FBTS66 | C97: =FBTS66!R$89 -> 214.4126798 | D97: =FBTS66!S$89 -> 222.4909536 | E97: =FBTS66!T$89 -> 222.1335392 | F97: =FBTS66!U$89 -> 231.0440246 | G97: =FBTS66!V$89 -> 230.5704142 | H97: =FBTS66!W$89 -> 234.5148479 | I97: =FBTS66!X$89 -> 243.3604919 | J97: =FBTS66!Y$89 -> 247.3807594 | K97: =FBTS66!Z$89 -> 249.5610065 | L97: =FBTS66!AA$89 -> 260.9695993 | M97: =FBTS66!AB$89 -> 271.4083832 | N97: =FBTS66!AC$89 -> 282.2647186 | O97: =FBTS66!AD$89 -> 293.4630823 | P97: =FBTS66!AE$89 -> 302.2309 | Q97: =FBTS66!AF$89 -> 309.8039288 | R97: =FBTS66!AG$89 -> 315.7213392 | S97: =FBTS66!AH$89 -> 323.5442792 | T97: =FBTS66!AI$89 -> 330.3199389 | U97: =FBTS66!AJ$89 -> 341.0254945 | V97: =FBTS66!AK$89 -> 353.0937909
B98: RTS22 | C98: ='RTS22'!R$89 -> 77.52621326 | D98: ='RTS22'!S$89 -> 82.70415047 | E98: ='RTS22'!T$89 -> 80.25088474 | F98: ='RTS22'!U$89 -> 72.96155845 | G98: ='RTS22'!V$89 -> 77.2260786 | H98: ='RTS22'!W$89 -> 72.58469302 | I98: ='RTS22'!X$89 -> 75.55515979 | J98: ='RTS22'!Y$89 -> 70.56826868 | K98: ='RTS22'!Z$89 -> 68.03966206 | L98: ='RTS22'!AA$89 -> 74.91687361 | M98: ='RTS22'!AB$89 -> 77.91354856 | N98: ='RTS22'!AC$89 -> 81.0300905 | O98: ='RTS22'!AD$89 -> 84.27129412 | P98: ='RTS22'!AE$89 -> 86.26414177 | Q98: ='RTS22'!AF$89 -> 87.74555111 | R98: ='RTS22'!AG$89 -> 88.7592644 | S98: ='RTS22'!AH$89 -> 88.68061228 | T98: ='RTS22'!AI$89 -> 90.0661709 | U98: ='RTS22'!AJ$89 -> 91.91583047 | V98: ='RTS22'!AK$89 -> 93.61412725
B99: RTS66_1_4 | E99: =RTS66_1_4!T$89 -> 248.002932 | F99: =RTS66_1_4!U$89 -> 243.1948042 | G99: =RTS66_1_4!V$89 -> 245.8638661 | H99: =RTS66_1_4!W$89 -> 242.5732644 | I99: =RTS66_1_4!X$89 -> 249.488489 | J99: =RTS66_1_4!Y$89 -> 253.4989222 | K99: =RTS66_1_4!Z$89 -> 245.0126866 | L99: =RTS66_1_4!AA$89 -> 262.6781259 | M99: =RTS66_1_4!AB$89 -> 263.6293279 | N99: =RTS66_1_4!AC$89 -> 269.4535661 | O99: =RTS66_1_4!AD$89 -> 272.9640442 | P99: =RTS66_1_4!AE$89 -> 275.5525193 | Q99: =RTS66_1_4!AF$89 -> 279.4216522 | R99: =RTS66_1_4!AG$89 -> 280.6062616 | S99: =RTS66_1_4!AH$89 -> 281.5605682 | T99: =RTS66_1_4!AI$89 -> 283.9464298 | U99: =RTS66_1_4!AJ$89 -> 289.0453556 | V99: =RTS66_1_4!AK$89 -> 291.9845462
B100: RTS66_2_3 | E100: =RTS66_2_3!T$89 -> 216.4217386 | F100: =RTS66_2_3!U$89 -> 209.3301772 | G100: =RTS66_2_3!V$89 -> 213.6289359 | H100: =RTS66_2_3!W$89 -> 212.4000762 | I100: =RTS66_2_3!X$89 -> 216.4086968 | J100: =RTS66_2_3!Y$89 -> 213.6103337 | K100: =RTS66_2_3!Z$89 -> 214.2580585 | L100: =RTS66_2_3!AA$89 -> 223.7765994 | M100: =RTS66_2_3!AB$89 -> 232.7276633 | N100: =RTS66_2_3!AC$89 -> 242.0367699 | O100: =RTS66_2_3!AD$89 -> 250.3154946 | P100: =RTS66_2_3!AE$89 -> 256.1943258 | Q100: =RTS66_2_3!AF$89 -> 261.8182884 | R100: =RTS66_2_3!AG$89 -> 266.9278282 | S100: =RTS66_2_3!AH$89 -> 268.8181037 | T100: =RTS66_2_3!AI$89 -> 276.0701341 | U100: =RTS66_2_3!AJ$89 -> 284.2206186 | V100: =RTS66_2_3!AK$89 -> 290.6892827
B101: SVTS | E101: =SVTS!T$89 -> 34.01450875 | F101: =SVTS!U$89 -> 35.01833488 | G101: =SVTS!V$89 -> 37.81514555 | H101: =SVTS!W$89 -> 36.27655872 | I101: =SVTS!X$89 -> 37.75189406 | J101: =SVTS!Y$89 -> 37.89225635 | K101: =SVTS!Z$89 -> 38.53896689 | L101: =SVTS!AA$89 -> 42.16160695 | M101: =SVTS!AB$89 -> 43.84807123 | N101: =SVTS!AC$89 -> 45.60199408 | O101: =SVTS!AD$89 -> 47.42607384 | P101: =SVTS!AE$89 -> 49.23684474 | Q101: =SVTS!AF$89 -> 50.79683714 | R101: =SVTS!AG$89 -> 52.64509422 | S101: =SVTS!AH$89 -> 54.75089799 | T101: =SVTS!AI$89 -> 56.95063676 | U101: =SVTS!AJ$89 -> 59.22866223 | V101: =SVTS!AK$89 -> 61.59780872
B102: TSTS | C102: =TSTS!R$89 -> 67.68332388 | D102: =TSTS!S$89 -> 72.2470871 | E102: =TSTS!T$89 -> 71.53867008 | F102: =TSTS!U$89 -> 69.73982253 | G102: =TSTS!V$89 -> 72.83843084 | H102: =TSTS!W$89 -> 71.49868288 | I102: =TSTS!X$89 -> 73.86102894 | J102: =TSTS!Y$89 -> 74.52573214 | K102: =TSTS!Z$89 -> 73.9974889 | L102: =TSTS!AA$89 -> 77.45216386 | M102: =TSTS!AB$89 -> 80.55025042 | N102: =TSTS!AC$89 -> 83.66983591 | O102: =TSTS!AD$89 -> 85.84380635 | P102: =TSTS!AE$89 -> 88.59285993 | Q102: =TSTS!AF$89 -> 90.32890455 | R102: =TSTS!AG$89 -> 92.48973847 | S102: =TSTS!AH$89 -> 94.43417324 | T102: =TSTS!AI$89 -> 96.6613194 | U102: =TSTS!AJ$89 -> 99.75010737 | V102: =TSTS!AK$89 -> 102.8971292
B103: TCP | C103: =TCP!R$89 -> 1287.258226 | D103: =TCP!S$89 -> 1375.542585 | E103: =TCP!T$89 -> 1371.354623 | F103: =TCP!U$89 -> 1353.30124 | G103: =TCP!V$89 -> 1387.683606 | H103: =TCP!W$89 -> 1363.376873 | I103: =TCP!X$89 -> 1397.758609 | J103: =TCP!Y$89 -> 1404.55785 | K103: =TCP!Z$89 -> 1401.060558 | L103: =TCP!AA$89 -> 1427.64228 | M103: =TCP!AB$89 -> 1484.747972 | N103: =TCP!AC$89 -> 1544.13789 | O103: =TCP!AD$89 -> 1605.903406 | P103: =TCP!AE$89 -> 1660.60808 | Q103: =TCP!AF$89 -> 1707.149144 | R103: =TCP!AG$89 -> 1725.540479 | S103: =TCP!AH$89 -> 1757.624038 | T103: =TCP!AI$89 -> 1791.111168 | U103: =TCP!AJ$89 -> 1828.198547 | V103: =TCP!AK$89 -> 1871.988804
B104: Summation | E104: =SUM(E94:E102) -> 1371.332855 | F104: 1356.257863 | G104: 1386.621809 | H104: 1367.552585 | I104: 1403.265984 | J104: 1416.910033 | K104: 1403.931339 | L104: 1473.421022 | M104: 1522.664499 | N104: 1578.5814 | O104: 1631.44338 | P104: 1676.916482 | Q104: 1717.731084 | R104: 1748.946332 | S104: 1779.318346 | T104: 1819.554436 | U104: 1872.14701 | V104: 1922.62283
A106: Average demand summation (excluding block load and post-model adjustments)
B107: Medium scenario forecast (MW)
B108: Powercor | C108: 2005 | D108: 2006 | E108: 2007 | F108: 2008 | G108: 2009 | H108: 2010 | I108: 2011 | J108: 2012 | K108: 2013 | L108: 2014 | M108: 2015 | N108: 2016 | O108: 2017 | P108: 2018 | Q108: 2019 | R108: 2020 | S108: 2021 | T108: 2022 | U108: 2023 | V108: 2024 | X108: Comparison of Powercor average demand and the summation of individual terminal station average demand forecasts
B109: ATS | G109: =ATS!V$70 -> 77.19449552 | H109: =ATS!W$70 -> 78.5337642 | I109: =ATS!X$70 -> 78.90341822 | J109: =ATS!Y$70 -> 80.30136359 | K109: =ATS!Z$70 -> 81.25933154 | L109: =ATS!AA$70 -> 84.80784899 | M109: =ATS!AB$70 -> 89.72013785 | N109: =ATS!AC$70 -> 94.23686957 | O109: =ATS!AD$70 -> 98.16802741 | P109: =ATS!AE$70 -> 101.6076904 | Q109: =ATS!AF$70 -> 104.6416148 | R109: =ATS!AG$70 -> 107.5449866 | S109: =ATS!AH$70 -> 109.6615319 | T109: =ATS!AI$70 -> 111.74496 | U109: =ATS!AJ$70 -> 114.3624432 | V109: =ATS!AK$70 -> 117.1116265
B110: BATS | C110: =BATS!R$70 -> 104.3505024 | D110: =BATS!S$70 -> 110.891346 | E110: =BATS!T$70 -> 109.2604122 | F110: =BATS!U$70 -> 108.4929418 | G110: =BATS!V$70 -> 106.7964821 | H110: =BATS!W$70 -> 101.3733044 | I110: =BATS!X$70 -> 100.4833852 | J110: =BATS!Y$70 -> 97.44095925 | K110: =BATS!Z$70 -> 97.04997889 | L110: =BATS!AA$70 -> 98.45700087 | M110: =BATS!AB$70 -> 101.396133 | N110: =BATS!AC$70 -> 103.3883539 | O110: =BATS!AD$70 -> 104.9218128 | P110: =BATS!AE$70 -> 106.0631247 | Q110: =BATS!AF$70 -> 106.9461957 | R110: =BATS!AG$70 -> 107.8777444 | S110: =BATS!AH$70 -> 107.6432243 | T110: =BATS!AI$70 -> 108.3304128 | U110: =BATS!AJ$70 -> 109.8535457 | V110: =BATS!AK$70 -> 111.384807
B111: BETS22 | C111: =BETS22!R$70 -> 19.42069259 | E111: =BETS22!T$70 -> 21.72984174 | F111: =BETS22!U$70 -> 21.78905321 | G111: =BETS22!V$70 -> 23.03908103 | H111: =BETS22!W$70 -> 23.42054066 | I111: =BETS22!X$70 -> 23.23611666 | J111: =BETS22!Y$70 -> 23.4181899 | K111: =BETS22!Z$70 -> 22.34276819 | L111: =BETS22!AA$70 -> 25.56972696 | M111: =BETS22!AB$70 -> 25.79930761 | N111: =BETS22!AC$70 -> 26.28946105 | O111: =BETS22!AD$70 -> 26.88392574 | P111: =BETS22!AE$70 -> 27.46881679 | Q111: =BETS22!AF$70 -> 28.01977825 | R111: =BETS22!AG$70 -> 28.58254342 | S111: =BETS22!AH$70 -> 29.08322577 | T111: =BETS22!AI$70 -> 29.77174 | U111: =BETS22!AJ$70 -> 30.4616292 | V111: =BETS22!AK$70 -> 31.09601571
B112: BETS66 | C112: =BETS66!R$70 -> 81.6446268 | D112: =BETS66!S$70 -> 83.0603053 | E112: =BETS66!T$70 -> 81.42554037 | F112: =BETS66!U$70 -> 84.16715529 | G112: =BETS66!V$70 -> 84.97143125 | H112: =BETS66!W$70 -> 81.87025294 | I112: =BETS66!X$70 -> 80.37123043 | J112: =BETS66!Y$70 -> 81.15183921 | K112: =BETS66!Z$70 -> 79.36879126 | L112: =BETS66!AA$70 -> 82.52184502 | M112: =BETS66!AB$70 -> 81.31468087 | N112: =BETS66!AC$70 -> 83.76000219 | O112: =BETS66!AD$70 -> 83.66867683 | P112: =BETS66!AE$70 -> 82.92780548 | Q112: =BETS66!AF$70 -> 83.15047982 | R112: =BETS66!AG$70 -> 84.69886415 | S112: =BETS66!AH$70 -> 86.15032173 | T112: =BETS66!AI$70 -> 87.57574204 | U112: =BETS66!AJ$70 -> 88.88340178 | V112: =BETS66!AK$70 -> 90.33216322
B113: BLTS22 | C113: =BLTS22!R$70 -> 40.56854601 | D113: =BLTS22!S$70 -> 42.12011585 | E113: =BLTS22!T$70 -> 42.407021 | F113: =BLTS22!U$70 -> 42.05288789 | G113: =BLTS22!V$70 -> 41.79501049 | H113: =BLTS22!W$70 -> 41.96821485 | I113: =BLTS22!X$70 -> 41.87018145 | K113: =BLTS22!Z$70 -> 39.13499165 | L113: =BLTS22!AA$70 -> 40.7391121 | M113: =BLTS22!AB$70 -> 41.70883569 | N113: =BLTS22!AC$70 -> 42.40370533 | O113: =BLTS22!AD$70 -> 42.98695493 | P113: =BLTS22!AE$70 -> 43.46737765 | Q113: =BLTS22!AF$70 -> 43.85244769 | R113: =BLTS22!AG$70 -> 44.24776182 | S113: =BLTS22!AH$70 -> 44.35222605 | T113: =BLTS22!AI$70 -> 44.65298845 | U113: =BLTS22!AJ$70 -> 45.14103225 | V113: =BLTS22!AK$70 -> 45.60671322
B114: BLTS66 | E114: =BLTS66!T$70 -> 108.6928557 | F114: =BLTS66!U$70 -> 110.7836136 | G114: =BLTS66!V$70 -> 116.828516 | H114: =BLTS66!W$70 -> 122.5817753 | I114: =BLTS66!X$70 -> 121.4417278 | J114: =BLTS66!Y$70 -> 120.2902739 | K114: =BLTS66!Z$70 -> 109.0895888 | L114: =BLTS66!AA$70 -> 147.846361 | M114: =BLTS66!AB$70 -> 133.803799 | N114: =BLTS66!AC$70 -> 156.9934718 | O114: =BLTS66!AD$70 -> 151.6813719 | P114: =BLTS66!AE$70 -> 153.8869997 | Q114: =BLTS66!AF$70 -> 154.4122403 | R114: =BLTS66!AG$70 -> 161.2059829 | S114: =BLTS66!AH$70 -> 164.8694133 | T114: =BLTS66!AI$70 -> 170.2725175 | U114: =BLTS66!AJ$70 -> 174.7199574 | V114: =BLTS66!AK$70 -> 179.9846142
B115: GTS66 | C115: ='GTS66'!R$70 -> 221.4503815 | D115: ='GTS66'!S$70 -> 231.673928 | E115: ='GTS66'!T$70 -> 232.2333951 | F115: ='GTS66'!U$70 -> 228.9633121 | G115: ='GTS66'!V$70 -> 223.4554088 | H115: ='GTS66'!W$70 -> 228.4850814 | I115: ='GTS66'!X$70 -> 223.3496558 | J115: ='GTS66'!Y$70 -> 221.6921416 | K115: ='GTS66'!Z$70 -> 215.0451075 | L115: ='GTS66'!AA$70 -> 218.6796671 | M115: ='GTS66'!AB$70 -> 228.6816038 | N115: ='GTS66'!AC$70 -> 227.2013768 | O115: ='GTS66'!AD$70 -> 230.61032 | P115: ='GTS66'!AE$70 -> 235.4567688 | Q115: ='GTS66'!AF$70 -> 239.1376887 | R115: ='GTS66'!AG$70 -> 240.6891278 | S115: ='GTS66'!AH$70 -> 240.7937613 | T115: ='GTS66'!AI$70 -> 241.5692415 | U115: ='GTS66'!AJ$70 -> 244.6536053 | V115: ='GTS66'!AK$70 -> 247.6352945
B116: HOTS66 | C116: =HOTS66!R$70 -> 40.24243488 | D116: =HOTS66!S$70 -> 45.41328783 | E116: =HOTS66!T$70 -> 46.7788549 | F116: =HOTS66!U$70 -> 45.48430967 | G116: =HOTS66!V$70 -> 48.21820369 | H116: =HOTS66!W$70 -> 46.16419617 | I116: =HOTS66!X$70 -> 45.74472037 | J116: =HOTS66!Y$70 -> 44.4795956 | K116: =HOTS66!Z$70 -> 38.81227398 | L116: =HOTS66!AA$70 -> 43.04949631 | M116: =HOTS66!AB$70 -> 44.75415435 | N116: =HOTS66!AC$70 -> 45.38966556 | O116: =HOTS66!AD$70 -> 45.69897848 | P116: =HOTS66!AE$70 -> 45.8464555 | Q116: =HOTS66!AF$70 -> 45.92319758 | R116: =HOTS66!AG$70 -> 46.06077488 | S116: =HOTS66!AH$70 -> 45.5521163 | T116: =HOTS66!AI$70 -> 45.8515455 | U116: =HOTS66!AJ$70 -> 46.43092023 | V116: =HOTS66!AK$70 -> 46.80375936
B117: KTSeast | E117: =KTSeast!T$70 -> 62.05280629 | F117: =KTSeast!U$70 -> 62.7692256 | G117: =KTSeast!V$70 -> 65.37064925 | H117: =KTSeast!W$70 -> 68.03251835 | I117: =KTSeast!X$70 -> 68.36581557 | J117: =KTSeast!Y$70 -> 69.79205187 | K117: =KTSeast!Z$70 -> 73.27548552 | L117: =KTSeast!AA$70 -> 72.67881568 | M117: =KTSeast!AB$70 -> 75.58429905 | N117: =KTSeast!AC$70 -> 77.4797438 | O117: =KTSeast!AD$70 -> 79.38362057 | P117: =KTSeast!AE$70 -> 81.10761233 | Q117: =KTSeast!AF$70 -> 82.7639893 | R117: =KTSeast!AG$70 -> 84.41906426 | S117: =KTSeast!AH$70 -> 86.05763663 | T117: =KTSeast!AI$70 -> 88.01723486 | U117: =KTSeast!AJ$70 -> 90.3817948 | V117: =KTSeast!AK$70 -> 92.80120442
B118: KTSwest | E118: =KTSwest!T$70 -> 87.2967167 | F118: =KTSwest!U$70 -> 84.47224765 | G118: =KTSwest!V$70 -> 87.45492517 | H118: =KTSwest!W$70 -> 87.18308257 | I118: =KTSwest!X$70 -> 86.1207144 | J118: =KTSwest!Y$70 -> 84.43778702 | K118: =KTSwest!Z$70 -> 81.99328995 | L118: =KTSwest!AA$70 -> 84.8596155 | M118: =KTSwest!AB$70 -> 89.92164584 | N118: =KTSwest!AC$70 -> 91.87373035 | O118: =KTSwest!AD$70 -> 93.52170246 | P118: =KTSwest!AE$70 -> 94.86063855 | Q118: =KTSwest!AF$70 -> 96.07292752 | R118: =KTSwest!AG$70 -> 97.39555404 | S118: =KTSwest!AH$70 -> 97.58149318 | T118: =KTSwest!AI$70 -> 99.01215768 | U118: =KTSwest!AJ$70 -> 101.6389094 | V118: =KTSwest!AK$70 -> 104.2158746
B119: KGTS22 | C119: =KGTS22!R$70 -> 5.720546824 | D119: =KGTS22!S$70 -> 6.049655847 | E119: =KGTS22!T$70 -> 6.0976165 | F119: =KGTS22!U$70 -> 5.979492806 | G119: =KGTS22!V$70 -> 5.650792136 | H119: =KGTS22!W$70 -> 6.339592184 | I119: =KGTS22!X$70 -> 6.283213929 | J119: =KGTS22!Y$70 -> 6.432754821 | K119: =KGTS22!Z$70 -> 6.096860727 | L119: =KGTS22!AA$70 -> 5.959211335 | M119: =KGTS22!AB$70 -> 7.084655581 | N119: =KGTS22!AC$70 -> 6.736379473 | O119: =KGTS22!AD$70 -> 7.297065294 | P119: =KGTS22!AE$70 -> 8.022580692 | Q119: =KGTS22!AF$70 -> 8.389369238 | R119: =KGTS22!AG$70 -> 8.324139466 | S119: =KGTS22!AH$70 -> 8.273661631 | T119: =KGTS22!AI$70 -> 8.348610395 | U119: =KGTS22!AJ$70 -> 8.628156897 | V119: =KGTS22!AK$70 -> 8.875340964
B120: KGTS66 | C120: =KGTS66!R$70 -> 27.14096589 | D120: =KGTS66!S$70 -> 27.39856002 | E120: =KGTS66!T$70 -> 27.48980718 | F120: =KGTS66!U$70 -> 26.5895342 | G120: =KGTS66!V$70 -> 26.97771152 | H120: =KGTS66!W$70 -> 25.26378066 | I120: =KGTS66!X$70 -> 26.07249856 | J120: =KGTS66!Y$70 -> 24.10622047 | K120: =KGTS66!Z$70 -> 24.59302211 | L120: =KGTS66!AA$70 -> 24.72121776 | M120: =KGTS66!AB$70 -> 25.22422102 | N120: =KGTS66!AC$70 -> 25.33024848 | O120: =KGTS66!AD$70 -> 25.4520916 | P120: =KGTS66!AE$70 -> 25.4594495 | Q120: =KGTS66!AF$70 -> 25.45613268 | R120: =KGTS66!AG$70 -> 25.49515562 | S120: =KGTS66!AH$70 -> 25.38295157 | T120: =KGTS66!AI$70 -> 25.459918 | U120: =KGTS66!AJ$70 -> 25.64341043 | V120: =KGTS66!AK$70 -> 25.80383893
B121: RCTS22 | C121: =RCTS22!R$70 -> 15.90595613 | D121: =RCTS22!S$70 -> 15.60263701 | E121: =RCTS22!T$70 -> 15.79480811 | F121: =RCTS22!U$70 -> 15.55599193 | G121: =RCTS22!V$70 -> 16.42226892 | H121: =RCTS22!W$70 -> 14.58049186 | I121: =RCTS22!X$70 -> 15.0423413 | J121: =RCTS22!Y$70 -> 16.21384709 | K121: =RCTS22!Z$70 -> 17.62740497 | L121: =RCTS22!AA$70 -> 16.10896368 | M121: =RCTS22!AB$70 -> 16.47920113 | N121: =RCTS22!AC$70 -> 16.77643782 | O121: =RCTS22!AD$70 -> 17.05702883 | P121: =RCTS22!AE$70 -> 17.29304098 | Q121: =RCTS22!AF$70 -> 17.48516298 | R121: =RCTS22!AG$70 -> 17.66961696 | S121: =RCTS22!AH$70 -> 17.8433585 | T121: =RCTS22!AI$70 -> 18.02782166 | U121: =RCTS22!AJ$70 -> 18.25092909 | V121: =RCTS22!AK$70 -> 18.48841356
B122: RCTS66/WETS | C122: ='RCTS66 WETS'!R$70 -> 62.91343964 | D122: ='RCTS66 WETS'!S$70 -> 69.45861282 | E122: ='RCTS66 WETS'!T$70 -> 66.89642972 | F122: ='RCTS66 WETS'!U$70 -> 70.48477508 | G122: ='RCTS66 WETS'!V$70 -> 72.99184266 | H122: ='RCTS66 WETS'!W$70 -> 73.24785828 | I122: ='RCTS66 WETS'!X$70 -> 73.10958505 | J122: ='RCTS66 WETS'!Y$70 -> 74.28031566 | K122: ='RCTS66 WETS'!Z$70 -> 64.89024639 | L122: ='RCTS66 WETS'!AA$70 -> 85.87419637 | M122: ='RCTS66 WETS'!AB$70 -> 87.79772756 | N122: ='RCTS66 WETS'!AC$70 -> 99.45868216 | O122: ='RCTS66 WETS'!AD$70 -> 103.7528041 | P122: ='RCTS66 WETS'!AE$70 -> 106.2298015 | Q122: ='RCTS66 WETS'!AF$70 -> 107.1888238 | R122: ='RCTS66 WETS'!AG$70 -> 110.2604066 | S122: ='RCTS66 WETS'!AH$70 -> 113.4882683 | T122: ='RCTS66 WETS'!AI$70 -> 117.0705641 | U122: ='RCTS66 WETS'!AJ$70 -> 122.1874923 | V122: ='RCTS66 WETS'!AK$70 -> 127.2997315
B123: SHTS | C123: =SHTS!R$70 -> 142.174688 | D123: =SHTS!S$70 -> 147.9048475 | E123: =SHTS!T$70 -> 146.2313559 | F123: =SHTS!U$70 -> 143.5484196 | G123: =SHTS!V$70 -> 146.9622584 | H123: =SHTS!W$70 -> 141.2674368 | I123: =SHTS!X$70 -> 139.0066528 | J123: =SHTS!Y$70 -> 140.6353703 | K123: =SHTS!Z$70 -> 136.696448 | L123: =SHTS!AA$70 -> 136.4765088 | M123: =SHTS!AB$70 -> 138.9493719 | N123: =SHTS!AC$70 -> 141.1022699 | O123: =SHTS!AD$70 -> 142.7860263 | P123: =SHTS!AE$70 -> 143.9942754 | Q123: =SHTS!AF$70 -> 144.8533553 | R123: =SHTS!AG$70 -> 145.7015779 | S123: =SHTS!AH$70 -> 146.1659154 | T123: =SHTS!AI$70 -> 146.7867458 | U123: =SHTS!AJ$70 -> 147.9318084 | V123: =SHTS!AK$70 -> 149.2784804
B124: TGTS | C124: =TGTS!R$70 -> 104.0442923 | D124: =TGTS!S$70 -> 110.8673982 | E124: =TGTS!T$70 -> 110.2407563 | F124: =TGTS!U$70 -> 113.6861502 | G124: =TGTS!V$70 -> 115.1138683 | H124: =TGTS!W$70 -> 116.3660226 | I124: =TGTS!X$70 -> 116.8554491 | J124: =TGTS!Y$70 -> 116.2601894 | K124: =TGTS!Z$70 -> 113.001132 | L124: =TGTS!AA$70 -> 117.2707195 | M124: =TGTS!AB$70 -> 122.8498145 | N124: =TGTS!AC$70 -> 127.6388399 | O124: =TGTS!AD$70 -> 132.0980388 | P124: =TGTS!AE$70 -> 135.6370525 | Q124: =TGTS!AF$70 -> 138.0735703 | R124: =TGTS!AG$70 -> 140.0638977 | S124: =TGTS!AH$70 -> 141.5706973 | T124: =TGTS!AI$70 -> 143.656382 | U124: =TGTS!AJ$70 -> 146.6621376 | V124: =TGTS!AK$70 -> 149.9354999
B125: TPC | C125: =TPC!R$70 -> 1205.277496 | D125: =TPC!S$70 -> 1268.485641 | E125: =TPC!T$70 -> 1271.401139 | F125: =TPC!U$70 -> 1277.000163 | G125: =TPC!V$70 -> 1281.686049 | H125: =TPC!W$70 -> 1290.664798 | I125: =TPC!X$70 -> 1275.134441 | J125: =TPC!Y$70 -> 1288.631492 | K125: =TPC!Z$70 -> 1255.586253 | L125: =TPC!AA$70 -> 1298.989299 | M125: =TPC!AB$70 -> 1330.626237 | N125: =TPC!AC$70 -> 1350.221903 | O125: =TPC!AD$70 -> 1366.279452 | P125: =TPC!AE$70 -> 1387.871518 | Q125: =TPC!AF$70 -> 1409.765031 | R125: =TPC!AG$70 -> 1430.110764 | S125: =TPC!AH$70 -> 1441.652013 | T125: =TPC!AI$70 -> 1457.561749 | U125: =TPC!AJ$70 -> 1481.863001 | V125: =TPC!AK$70 -> 1505.849573 | X125: Comparison of Citipower average demand and the summation of individual terminal station average demand forecasts
B126: Summation | G126: =SUM(G109:G124) -> 1259.242945 | H126: =SUM(H109:H124) -> 1256.677913 | I126: =SUM(I109:I124) -> 1246.256707 | K126: =SUM(K109:K124) -> 1200.276722 | L126: 1285.620307 | M126: 1311.069589 | N126: 1366.059238 | O126: 1385.968446 | P126: 1409.32949 | Q126: 1426.366974 | R126: 1450.237199 | S126: 1464.469803 | T126: 1486.148582 | U126: 1515.831174 | V126: 1546.653378
B128: Citipower | C128: 2005 | D128: 2006 | E128: 2007 | F128: 2008 | G128: 2009 | H128: 2010 | I128: 2011 | J128: 2012 | K128: 2013 | L128: 2014 | M128: 2015 | N128: 2016 | O128: 2017 | P128: 2018 | Q128: 2019 | R128: 2020 | S128: 2021 | T128: 2022 | U128: 2023 | V128: 2024
B129: WMTS22 | C129: =WMTS22!R$70 -> 51.07021187 | D129: =WMTS22!S$70 -> 51.41822865 | E129: =WMTS22!T$70 -> 53.25942292 | F129: =WMTS22!U$70 -> 53.63625524 | G129: =WMTS22!V$70 -> 55.32463175 | H129: =WMTS22!W$70 -> 57.16051567 | I129: =WMTS22!X$70 -> 57.58945711 | J129: =WMTS22!Y$70 -> 58.88251618 | K129: =WMTS22!Z$70 -> 53.60204585 | L129: =WMTS22!AA$70 -> 60.46871393 | M129: =WMTS22!AB$70 -> 65.50150137 | N129: =WMTS22!AC$70 -> 69.78265717 | O129: =WMTS22!AD$70 -> 73.38013367 | P129: =WMTS22!AE$70 -> 76.30422191 | Q129: =WMTS22!AF$70 -> 78.87929016 | R129: =WMTS22!AG$70 -> 81.17477969 | S129: =WMTS22!AH$70 -> 83.05906966 | T129: =WMTS22!AI$70 -> 84.7073694 | U129: =WMTS22!AJ$70 -> 86.51323124 | V129: =WMTS22!AK$70 -> 88.40804558
B130: WMTS66 | E130: =WMTS66!T$70 -> 178.8002497 | F130: =WMTS66!U$70 -> 180.0599744 | G130: =WMTS66!V$70 -> 180.7635642 | H130: =WMTS66!W$70 -> 181.0519513 | I130: =WMTS66!X$70 -> 180.0860716 | J130: =WMTS66!Y$70 -> 180.2280259 | K130: =WMTS66!Z$70 -> 182.4685159 | L130: =WMTS66!AA$70 -> 184.2391565 | M130: =WMTS66!AB$70 -> 191.3666124 | N130: =WMTS66!AC$70 -> 198.4073206 | O130: =WMTS66!AD$70 -> 204.1192313 | P130: =WMTS66!AE$70 -> 208.5320746 | Q130: =WMTS66!AF$70 -> 212.0973878 | R130: =WMTS66!AG$70 -> 215.2991312 | S130: =WMTS66!AH$70 -> 218.0575686 | T130: =WMTS66!AI$70 -> 220.2246314 | U130: =WMTS66!AJ$70 -> 222.9740784 | V130: =WMTS66!AK$70 -> 226.2725479
B131: BTS22 | C131: ='BTS22'!R$70 -> 20.62848542 | D131: ='BTS22'!S$70 -> 21.61189101 | E131: ='BTS22'!T$70 -> 21.14641427 | F131: ='BTS22'!U$70 -> 21.31770304 | G131: ='BTS22'!V$70 -> 21.45585113 | H131: ='BTS22'!W$70 -> 22.13942295 | I131: ='BTS22'!X$70 -> 21.43928283 | J131: ='BTS22'!Y$70 -> 21.80546711 | K131: ='BTS22'!Z$70 -> 21.47774301 | L131: ='BTS22'!AA$70 -> 22.00516011 | M131: ='BTS22'!AB$70 -> 22.62461798 | N131: ='BTS22'!AC$70 -> 23.31292051 | O131: ='BTS22'!AD$70 -> 23.91474871 | P131: ='BTS22'!AE$70 -> 24.38661547 | Q131: ='BTS22'!AF$70 -> 24.76418197 | R131: ='BTS22'!AG$70 -> 25.10166792 | S131: ='BTS22'!AH$70 -> 25.40002802 | T131: ='BTS22'!AI$70 -> 25.66513416 | U131: ='BTS22'!AJ$70 -> 25.9328292 | V131: ='BTS22'!AK$70 -> 26.2350797
B132: FBTS66 | C132: =FBTS66!R$70 -> 114.5601319 | D132: =FBTS66!S$70 -> 119.9602762 | E132: =FBTS66!T$70 -> 120.1774568 | F132: =FBTS66!U$70 -> 122.5384058 | G132: =FBTS66!V$70 -> 121.8354653 | H132: =FBTS66!W$70 -> 122.2079015 | I132: =FBTS66!X$70 -> 122.3091471 | J132: =FBTS66!Y$70 -> 125.2287666 | K132: =FBTS66!Z$70 -> 125.5241594 | L132: =FBTS66!AA$70 -> 128.6631423 | M132: =FBTS66!AB$70 -> 133.9403705 | N132: =FBTS66!AC$70 -> 138.8894076 | O132: =FBTS66!AD$70 -> 142.8313154 | P132: =FBTS66!AE$70 -> 145.811053 | Q132: =FBTS66!AF$70 -> 148.3072167 | R132: =FBTS66!AG$70 -> 150.7263769 | S132: =FBTS66!AH$70 -> 152.8646749 | T132: =FBTS66!AI$70 -> 154.8805522 | U132: =FBTS66!AJ$70 -> 157.6710835 | V132: =FBTS66!AK$70 -> 160.9599307
B133: RTS22 | C133: ='RTS22'!R$70 -> 36.98951155 | D133: ='RTS22'!S$70 -> 39.38464796 | E133: ='RTS22'!T$70 -> 39.45530787 | F133: ='RTS22'!U$70 -> 36.16078671 | G133: ='RTS22'!V$70 -> 37.44418666 | H133: ='RTS22'!W$70 -> 36.67836807 | I133: ='RTS22'!X$70 -> 35.56697958 | J133: ='RTS22'!Y$70 -> 34.95929932 | K133: ='RTS22'!Z$70 -> 34.28727698 | L133: ='RTS22'!AA$70 -> 35.21869014 | M133: ='RTS22'!AB$70 -> 37.60055651 | N133: ='RTS22'!AC$70 -> 38.77176117 | O133: ='RTS22'!AD$70 -> 39.70738349 | P133: ='RTS22'!AE$70 -> 40.27138579 | Q133: ='RTS22'!AF$70 -> 40.65555098 | R133: ='RTS22'!AG$70 -> 40.99154417 | S133: ='RTS22'!AH$70 -> 40.68607023 | T133: ='RTS22'!AI$70 -> 40.82602441 | U133: ='RTS22'!AJ$70 -> 41.37469043 | V133: ='RTS22'!AK$70 -> 41.87630498
B134: RTS66_1_4 | E134: =RTS66_1_4!T$70 -> 122.109626 | F134: =RTS66_1_4!U$70 -> 122.6425183 | G134: =RTS66_1_4!V$70 -> 121.8356781 | H134: =RTS66_1_4!W$70 -> 125.3225327 | I134: =RTS66_1_4!X$70 -> 123.1461553 | J134: =RTS66_1_4!Y$70 -> 125.2156003 | K134: =RTS66_1_4!Z$70 -> 120.2970254 | L134: =RTS66_1_4!AA$70 -> 127.7112592 | M134: =RTS66_1_4!AB$70 -> 131.2016987 | N134: =RTS66_1_4!AC$70 -> 134.8204946 | O134: =RTS66_1_4!AD$70 -> 137.1760307 | P134: =RTS66_1_4!AE$70 -> 139.1247975 | Q134: =RTS66_1_4!AF$70 -> 140.3148121 | R134: =RTS66_1_4!AG$70 -> 141.6037239 | S134: =RTS66_1_4!AH$70 -> 142.4995164 | T134: =RTS66_1_4!AI$70 -> 143.5458016 | U134: =RTS66_1_4!AJ$70 -> 145.3761462 | V134: =RTS66_1_4!AK$70 -> 147.2377303
B135: RTS66_2_3 | E135: =RTS66_2_3!T$70 -> 108.2199077 | F135: =RTS66_2_3!U$70 -> 105.6775523 | G135: =RTS66_2_3!V$70 -> 107.6133676 | H135: =RTS66_2_3!W$70 -> 107.8936593 | I135: =RTS66_2_3!X$70 -> 106.9447203 | J135: =RTS66_2_3!Y$70 -> 107.1765043 | K135: =RTS66_2_3!Z$70 -> 104.0540412 | L135: =RTS66_2_3!AA$70 -> 109.2727002 | M135: =RTS66_2_3!AB$70 -> 114.1610853 | N135: =RTS66_2_3!AC$70 -> 118.0026423 | O135: =RTS66_2_3!AD$70 -> 120.9314814 | P135: =RTS66_2_3!AE$70 -> 123.0090599 | Q135: =RTS66_2_3!AF$70 -> 124.6098209 | R135: =RTS66_2_3!AG$70 -> 126.1456919 | S135: =RTS66_2_3!AH$70 -> 127.0604813 | T135: =RTS66_2_3!AI$70 -> 128.2946031 | U135: =RTS66_2_3!AJ$70 -> 130.2562495 | V135: =RTS66_2_3!AK$70 -> 132.4249319
B136: SVTS | E136: =SVTS!T$70 -> 14.06908828 | F136: =SVTS!U$70 -> 14.18115842 | G136: =SVTS!V$70 -> 14.82236047 | H136: =SVTS!W$70 -> 14.9086862 | I136: =SVTS!X$70 -> 14.28608513 | J136: =SVTS!Y$70 -> 14.12653047 | K136: =SVTS!Z$70 -> 13.2571278 | L136: =SVTS!AA$70 -> 14.69302909 | M136: =SVTS!AB$70 -> 14.83706985 | N136: =SVTS!AC$70 -> 15.50408286 | O136: =SVTS!AD$70 -> 15.63703592 | P136: =SVTS!AE$70 -> 15.56508988 | Q136: =SVTS!AF$70 -> 15.51668331 | R136: =SVTS!AG$70 -> 15.64253218 | S136: =SVTS!AH$70 -> 15.679105 | T136: =SVTS!AI$70 -> 15.77741495 | U136: =SVTS!AJ$70 -> 15.91859014 | V136: =SVTS!AK$70 -> 16.06115149
B137: TSTS | C137: =TSTS!R$70 -> 31.27274092 | D137: =TSTS!S$70 -> 32.64659178 | E137: =TSTS!T$70 -> 32.10629353 | F137: =TSTS!U$70 -> 32.10971531 | G137: =TSTS!V$70 -> 32.29842408 | H137: =TSTS!W$70 -> 32.63789265 | I137: =TSTS!X$70 -> 31.63968806 | J137: =TSTS!Y$70 -> 32.21951594 | K137: =TSTS!Z$70 -> 31.05184499 | L137: =TSTS!AA$70 -> 31.92126398 | M137: =TSTS!AB$70 -> 32.8433703 | N137: =TSTS!AC$70 -> 33.55188145 | O137: =TSTS!AD$70 -> 34.06803314 | P137: =TSTS!AE$70 -> 34.39739776 | Q137: =TSTS!AF$70 -> 34.58116062 | R137: =TSTS!AG$70 -> 34.74265379 | S137: =TSTS!AH$70 -> 34.76589178 | T137: =TSTS!AI$70 -> 34.87685755 | U137: =TSTS!AJ$70 -> 35.12764557 | V137: =TSTS!AK$70 -> 35.39518011
B138: TCP | C138: =TCP!R$70 -> 667.2729139 | D138: =TCP!S$70 -> 699.7030063 | E138: =TCP!T$70 -> 707.8180661 | F138: =TCP!U$70 -> 705.7824411 | G138: =TCP!V$70 -> 714.5029993 | H138: =TCP!W$70 -> 713.9408249 | I138: =TCP!X$70 -> 707.0255615 | J138: =TCP!Y$70 -> 712.296822 | K138: =TCP!Z$70 -> 695.959343 | L138: =TCP!AA$70 -> 719.3337381 | M138: =TCP!AB$70 -> 745.8765717 | N138: =TCP!AC$70 -> 770.7816868 | O138: =TCP!AD$70 -> 791.2428091 | P138: =TCP!AE$70 -> 806.7124086 | Q138: =TCP!AF$70 -> 818.9329449 | R138: =TCP!AG$70 -> 829.9521447 | S138: =TCP!AH$70 -> 837.9384957 | T138: =TCP!AI$70 -> 845.7882701 | U138: =TCP!AJ$70 -> 855.7524092 | V138: =TCP!AK$70 -> 866.9320208
B139: Summation | E139: =SUM(E129:E137) -> 689.343767 | F139: 688.3240694 | G139: 693.3935293 | H139: 700.0009303 | I139: 693.007587 | J139: 699.8422261 | K139: 686.0197806 | L139: 714.1931155 | M139: 744.076883 | N139: 771.0431682 | O139: 791.7653938 | P139: 807.4016958 | Q139: 819.7261046 | R139: 831.4281016 | S139: 840.0724059 | T139: 848.7983888 | U139: 861.1445442 | V139: 874.8709027
A142: Peak-to-average index | X142: Peak to average ratio - Powercor
B143: Powercor | C143: 2005 | D143: 2006 | E143: 2007 | F143: 2008 | G143: 2009 | H143: 2010 | I143: 2011 | J143: 2012 | K143: 2013 | L143: 2014 | M143: 2015 | N143: 2016 | O143: 2017 | P143: 2018 | Q143: 2019 | R143: 2020 | S143: 2021 | T143: 2022 | U143: 2023 | V143: 2024
B144: ATS | G144: =(G74/G109) -> 2.171714958 | H144: 2.078682233 | I144: 2.240047695 | J144: 2.295769884 | K144: 2.300116215 | L144: 2.211394591 | M144: 2.173930713 | N144: 2.152524577 | O144: 2.148979362 | P144: 2.15928053 | Q144: 2.180542495 | R144: 2.206541791 | S144: 2.25051213 | T144: 2.29689457 | U144: 2.334097106 | V144: 2.370476594
B145: BATS | C145: =(C75/C110) -> 1.610719865 | D145: =(D75/D110) -> 1.613807449 | E145: =(E75/E110) -> 1.635560439 | F145: =(F75/F110) -> 1.620082659 | G145: =(G75/G110) -> 1.642271367 | H145: 1.678033944 | I145: 1.687589561 | J145: 1.697974844 | K145: 1.746226872 | L145: 1.738806028 | M145: 1.738645862 | N145: 1.773349115 | O145: 1.809347049 | P145: 1.823115393 | Q145: 1.861036938 | R145: 1.899678909 | S145: 1.8952841 | T145: 1.958591921 | U145: 2.008693235 | V145: 2.060321899
B146: BETS22 | E146: =(E76/E111) -> 2.154996286 | F146: 2.093391838 | G146: =(G76/G111) -> 2.170250667 | H146: 2.144769584 | I146: 2.130317184 | J146: 2.239041143 | K146: 2.63321249 | L146: 2.398361572 | M146: 2.411172408 | N146: 2.448406178 | O146: 2.490037007 | P146: 2.534497547 | Q146: 2.584047386 | R146: 2.634496553 | S146: 2.692708066 | T146: 2.735652739 | U146: 2.780644043 | V146: 2.832873076
B147: BETS66 | C147: =(C77/C112) -> 1.961538393 | D147: =(D77/D112) -> 1.96719583 | E147: 1.978685319 | F147: 2.004084752 | G147: =(G77/G112) -> 2.009945808 | H147: 1.896745899 | I147: 2.04845842 | J147: 2.024873166 | K147: 2.161705784 | L147: 2.045639209 | M147: 2.15904824 | N147: 2.179930223 | O147: 2.203554816 | P147: 2.233202125 | Q147: 2.252332903 | R147: 2.242590527 | S147: 2.291463411 | T147: 2.31818895 | U147: 2.375446912 | V147: 2.388395124
B148: BLTS22 | C148: =(C78/C113) -> 1.388518912 | D148: =(D78/D113) -> 1.354604178 | E148: 1.385081987 | F148: 1.395217043 | G148: =(G78/G113) -> 1.388114925 | H148: 1.412091888 | I148: 1.388360427 | K148: =(K78/K113) -> 1.428430911 | L148: 1.435121522 | M148: 1.435841755 | N148: 1.441795362 | O148: 1.45132954 | P148: 1.458192245 | Q148: 1.468783433 | R148: 1.474773608 | S148: 1.484130328 | T148: 1.500745738 | U148: 1.520232667 | V148: 1.522885027
B149: BLTS66 | E149: 1.480857212 | F149: 1.436259791 | G149: 1.467101733 | H149: 1.507038556 | I149: 1.492664211 | J149: =(J79/J114) -> 1.518480482 | K149: =(K79/K114) -> 1.721227163 | L149: 1.3208217 | M149: 1.517818109 | N149: 1.345364364 | O149: 1.448180199 | P149: 1.484520708 | Q149: 1.538649881 | R149: 1.532758435 | S149: 1.558648255 | T149: 1.569556639 | U149: 1.590788247 | V149: 1.606027016
B150: GTS66 | C150: =(C80/C115) -> 1.597322666 | D150: =(D80/D115) -> 1.631365203 | E150: 1.685525957 | F150: 1.668127231 | G150: 1.773256005 | H150: 1.743135025 | I150: 1.8630671 | J150: 1.871407496 | K150: =(K80/K115) -> 1.988019748 | L150: 2.078965739 | M150: 2.067558689 | N150: 2.164270083 | O150: 2.217568356 | P150: 2.2588007 | Q150: 2.312993463 | R150: 2.390007694 | S150: 2.484527915 | T150: 2.575614224 | U150: 2.644869022 | V150: 2.717544011
B151: HOTS66 | C151: =(C81/C116) -> 1.946826713 | D151: =(D81/D116) -> 1.946029203 | E151: 1.953192662 | F151: 1.936084768 | G151: 2.000267558 | H151: 1.991801452 | I151: 2.059292434 | J151: 1.9672375 | K151: =(K81/K116) -> 2.333175384 | L151: 2.175165989 | M151: 2.102938413 | N151: 2.135123828 | O151: 2.205499161 | P151: 2.281879815 | Q151: 2.300227636 | R151: 2.370102125 | S151: 2.411219289 | T151: 2.49129197 | U151: 2.558613312 | V151: 2.594333964
B152: KTSeast | E152: 1.917715662 | F152: 1.881627753 | G152: 1.925593657 | H152: 1.888903285 | I152: 1.902287489 | J152: 1.935878282 | K152: =(K82/K117) -> 1.950218038 | L152: 2.010258712 | M152: 2.010303108 | N152: 2.035430063 | O152: 2.059699607 | P152: 2.08178044 | Q152: 2.11101725 | R152: 2.133309552 | S152: 2.149126178 | T152: 2.185329598 | U152: 2.213283501 | V152: 2.241804489
B153: KTSwest | E153: 2.009480579 | F153: 2.039936551 | G153: 2.05087766 | H153: 2.033730815 | I153: 2.140548541 | J153: 2.108492961 | K153: =(K83/K118) -> 2.1996664 | L153: 2.27713195 | M153: 2.234901302 | N153: 2.274911911 | O153: 2.324218054 | P153: 2.38306874 | Q153: 2.447118094 | R153: 2.504573889 | S153: 2.547022191 | T153: 2.610628065 | U153: 2.644885467 | V153: 2.682664292
B154: KGTS22 | C154: =(C84/C119) -> 2.004531304 | D154: 2.052608873 | E154: 2.185193126 | F154: 2.084829676 | G154: 2.032835997 | H154: 2.103762225 | I154: 2.050687989 | J154: 2.090940703 | K154: =(K84/K119) -> 2.255276001 | L154: 2.088366948 | M154: 1.826880734 | N154: 1.998185178 | O154: 1.918436303 | P154: 1.814741879 | Q154: 1.804816222 | R154: 1.891717521 | S154: 1.979389299 | T154: 2.040084323 | U154: 2.052946437 | V154: 2.075601353
B155: KGTS66 | C155: 2.095362184 | D155: 2.028377849 | E155: 2.008573967 | F155: 2.058467552 | G155: 2.149179475 | H155: 1.912351655 | I155: 2.070707038 | J155: 2.132354354 | K155: =(K85/K120) -> 2.204684079 | L155: 2.193331243 | M155: 2.235577146 | N155: 2.268312826 | O155: 2.277733052 | P155: 2.268797529 | Q155: 2.291005922 | R155: 2.316589201 | S155: 2.350038509 | T155: 2.375500999 | U155: 2.44110468 | V155: 2.429495665
B156: RCTS22 | C156: 2.413181777 | D156: 2.202605511 | E156: 2.112147234 | F156: 2.19634101 | G156: 2.338745232 | H156: 2.083894309 | I156: 2.325427268 | J156: 2.505905034 | K156: =(K86/K121) -> 2.317458888 | L156: 2.424616502 | M156: 2.464948465 | N156: 2.518126747 | O156: 2.575771262 | P156: 2.642242327 | Q156: 2.717738525 | R156: 2.788339649 | S156: 2.84702648 | T156: 2.892954763 | U156: 2.971893604 | V156: 3.001586601
B157: RCTS66/WETS | C157: 2.223333791 | D157: 2.02813829 | E157: 2.086533527 | F157: 2.159143317 | G157: 2.252753303 | H157: 1.962734046 | I157: 2.155592083 | J157: 2.214317797 | K157: =(K87/K122) -> 2.515171269 | L157: 2.359665138 | M157: 2.489840505 | N157: 2.46098484 | O157: 2.498650091 | P157: 2.495402653 | Q157: 2.584983259 | R157: 2.599708232 | S157: 2.65552478 | T157: 2.699265036 | U157: 2.794359437 | V157: 2.810462896
B158: SHTS | C158: 1.969684287 | D158: 1.986044678 | E158: 1.929108921 | F158: 1.915219679 | G158: 1.977717557 | H158: 1.853894617 | I158: 1.961040771 | J158: 2.015275675 | K158: =(K88/K123) -> 2.071578197 | L158: 2.015145898 | M158: 2.023933116 | N158: 2.035837127 | O158: 2.057794967 | P158: 2.064954193 | Q158: 2.113632483 | R158: 2.09304576 | S158: 2.096474198 | T158: 2.142239199 | U158: 2.171231053 | V158: 2.177870364
B159: TGTS | C159: 1.597470579 | D159: 1.616422309 | E159: 1.641670828 | F159: 1.616799535 | G159: 1.624984866 | H159: 1.650659546 | I159: 1.674709752 | J159: 1.683965851 | K159: =(K89/K124) -> 1.738025489 | L159: 1.713083425 | M159: 1.673808021 | N159: 1.675446794 | O159: 1.683644742 | P159: 1.705304053 | Q159: 1.742219827 | R159: 1.786161149 | S159: 1.837836254 | T159: 1.883599646 | U159: 1.918796218 | V159: 1.951981654
B160: TPC | C160: 1.617544687 | D160: 1.693744112 | E160: 1.677094558 | F160: 1.686944337 | G160: 1.725110146 | H160: 1.683609181 | I160: 1.788284526 | J160: 1.770098267 | K160: =(K90/K125) -> 1.859292177 | L160: 1.948256722 | M160: 1.926878721 | N160: 1.974870642 | O160: 2.029726888 | P160: 2.059809076 | Q160: 2.108933259 | R160: 2.150190229 | S160: 2.198293094 | T160: 2.246604369 | U160: 2.29815251 | V160: 2.352007218 | X160: Peak to average ratio - Citipower
B163: Citipower | C163: 2005 | D163: 2006 | E163: 2007 | F163: 2008 | G163: 2009 | H163: 2010 | I163: 2011 | J163: 2012 | K163: 2013 | L163: 2014 | M163: 2015 | N163: 2016 | O163: 2017 | P163: 2018 | Q163: 2019 | R163: 2020 | S163: 2021 | T163: 2022 | U163: 2023 | V163: 2024
B164: WMTS22 | E164: =(E94/E129) -> 1.632494012 | F164: 1.682252837 | G164: 1.644735387 | H164: 1.66887748 | I164: 1.652060429 | J164: 1.623933433 | K164: 1.803294892 | L164: 1.645343814 | M164: 1.579681309 | N164: 1.542078815 | O164: 1.5251372 | P164: 1.525359404 | Q164: 1.534585526 | R164: 1.550837565 | S164: 1.576281243 | T164: 1.607433127 | U164: 1.636835047 | V164: 1.665823552
B165: WMTS66 | E165: =(E95/E130) -> 2.073734329 | F165: 2.020339221 | G165: 2.086899618 | H165: 1.982904976 | I165: 2.058728507 | J165: 2.118590417 | K165: 2.065267026 | L165: 2.114482429 | M165: 2.117157598 | N165: 2.123708981 | O165: 2.146852024 | P165: 2.178608091 | Q165: 2.201814026 | R165: 2.205712255 | S165: 2.219662252 | T165: 2.24754261 | U165: 2.28365212 | V165: 2.312200573
B166: BTS22 | C166: =(C96/C131) -> 1.880739982 | D166: =(D96/D131) -> 1.889719032 | E166: =(E96/E131) -> 1.950244431 | F166: 1.921275012 | G166: 1.885226773 | H166: 1.955866211 | I166: 1.910074681 | J166: 1.925347664 | K166: 1.909742808 | L166: 1.92699211 | M166: 1.943125831 | N166: 1.954052019 | O166: 1.966611864 | P166: 1.974192064 | Q166: 2.009753515 | R166: 2.03253332 | S166: 2.070513612 | T166: 2.120157691 | U166: 2.165510929 | V166: 2.221698062
B167: FBTS66 | C167: =(C97/C132) -> 1.871616908 | D167: =(D97/D132) -> 1.854705246 | E167: =(E97/E132) -> 1.848379431 | F167: 1.88548254 | G167: 1.892473702 | H167: 1.918982692 | I167: 1.989716204 | J167: 1.975430775 | K167: 1.988151186 | L167: 2.028316692 | M167: 2.026337408 | N167: 2.032298383 | O167: 2.054613035 | P167: 2.072757132 | Q167: 2.088933605 | R167: 2.094665485 | S167: 2.116540525 | T167: 2.132739936 | U167: 2.162891806 | V167: 2.193675092
B168: RTS22 | E168: =(E98/E133) -> 2.033969296 | F168: 2.017698316 | G168: 2.062431728 | H168: 1.978950996 | I168: 2.124306328 | J168: 2.018583612 | K168: 1.984399697 | L168: 2.127190799 | M168: 2.072138175 | N168: 2.089925452 | O168: 2.122307911 | P168: 2.142070358 | Q168: 2.158267419 | R168: 2.16530668 | S168: 2.179630812 | T168: 2.206097023 | U168: 2.221547267 | V168: 2.235491582
B169: RTS66_1_4 | E169: =(E99/E134) -> 2.030985926 | F169: 1.982956707 | G169: 2.017995631 | H169: 1.935591782 | I169: 2.025954349 | J169: 2.024499517 | K169: 2.036731048 | L169: 2.056812592 | M169: 2.00934386 | N169: 1.998609833 | O169: 1.989881489 | P169: 1.980613983 | Q169: 1.991390988 | R169: 1.981630524 | S169: 1.975870342 | T169: 1.978089409 | U169: 1.988258481 | V169: 1.983082363
B170: RTS66_2_3 | E170: =(E100/E135) -> 1.999832963 | F170: 1.980838623 | G170: 1.985152409 | H170: 1.968605732 | I170: 2.023556621 | J170: 1.993070544 | K170: 2.059103673 | L170: 2.047872881 | M170: 2.038590145 | N170: 2.051113138 | O170: 2.069895213 | P170: 2.082727288 | Q170: 2.101104764 | R170: 2.116028096 | S170: 2.115670434 | T170: 2.151845263 | U170: 2.182011379 | V170: 2.19512503
B171: SVTS | E171: =(E101/E136) -> 2.41767683 | F171: 2.469356441 | G171: 2.551222906 | H171: 2.433249868 | I171: 2.642563987 | J171: 2.682346981 | K171: 2.907037442 | L171: 2.869497277 | M171: 2.955305305 | N171: 2.941289368 | O171: 3.032932461 | P171: 3.16328689 | Q171: 3.273691684 | R171: 3.365509727 | S171: 3.491965771 | T171: 3.609630408 | U171: 3.720722859 | V171: 3.835205015
B172: TSTS | C172: =(C102/C137) -> 2.164291389 | D172: =(D102/D137) -> 2.213005498 | E172: =(E102/E137) -> 2.228182148 | F172: 2.171922792 | G172: 2.255169808 | H172: 2.190664809 | I172: 2.334442388 | J172: 2.313061819 | K172: 2.383030345 | L172: 2.426350157 | M172: 2.452557387 | N172: 2.493744979 | O172: 2.519775826 | P172: 2.575568668 | Q172: 2.612084237 | R172: 2.662137988 | S172: 2.71628796 | T172: 2.771503116 | U172: 2.839646829 | V172: 2.907094382
B173: TCP | E173: =(E103/E138) -> 1.937439419 | F173: 1.917448156 | G173: 1.942166243 | H173: 1.909649688 | I173: 1.976956259 | J173: 1.971871566 | K173: 2.013135642 | L173: 1.984673045 | M173: 1.990608135 | N173: 2.003340138 | O173: 2.029596209 | P173: 2.058488332 | Q173: 2.084601864 | R173: 2.079084306 | S173: 2.097557335 | T173: 2.117682676 | U173: 2.136363891 | V173: 2.159325944

Sheet Settings
A2: Technology adjustments
B3: Adjust for solar? | C3: High | D3: 1
C4: Medium
C5: Exclude
B7: Adjust for efficiency? | C7: Include BAU | D7: 2
C8: Exclude
B11: Adjust for battery storage? | C11: Include BAU | D11: 2
C12: Exclude
B15: Adjust for EV? | C15: Include BAU | D15: 2
C16: Exclude
B19: Adjust for microgeneration? | C19: Include BAU | D19: 2
C20: Exclude

Sheet Industrial adjustments
B1: Summer industrial max demand contribution (MW)
B3: Terminal Station | C3: 2014 | E3: Notes:
B4: RCTS 22kV | C4: 14 | E4: For terminal stations that have a substantial industrial load, the per capita approach will be less reliable.
B5: RCTS 66kV | C5: 0 | E5: For these TSs, the industrial load has been excluded and given a zero growth rate
B6: WETS 66kV | C6: 45 | E6: The remaining peak load has been allocated the growth rate from the statistical model
B7: KGTS 22kV | C7: 0
B8: KGTS 66kV | C8: 0
B9: HOTS 66kV | C9: 0
B10: BETS 22kV | C10: 0
B11: BETS 66kV | C11: 0
B12: SHTS/GNTS | C12: 0
B13: HYTS/TGTS/APD | C13: 0
B14: BATS/ELTS | C14: 0
B15: MLTS/GTS/PTH | C15: 84.2
B16: ATS West | C16: 0
B17: ATS-BLTS | C17: 70.9
B18: BLTS 22kV | C18: 20.7
B19: KTS East | C19: 0
B20: KTS West | C20: 0
B21: WMTS 66kV | C21: 0
B22: WMTS 22kV | C22: 0
B23: BTS 22kV | C23: 0
B24: FBTS 66kV | C24: 0
B25: RTS 66kV Bus 1&4 | C25: 0
B26: RTS 66kV Bus 2&3 | C26: 0
B27: RTS 22kV | C27: 0
B28: SVTS 66kV | C28: 0
B29: TSTS 66kV | C29: 0
B30: Powercor
B31: Citipower
B33: Winter industrial max demand contribution (MW)
B35: Terminal Station | C35: 2013
B36: RCTS 22kV | C36: 0
B37: RCTS 66kV | C37: 0
B38: WETS 66kV | C38: 12
B39: KGTS 22kV | C39: 0
B40: KGTS 66kV | C40: 0
B41: HOTS 66kV | C41: 0
B42: BETS 22kV | C42: 0
B43: BETS 66kV | C43: 0
B44: SHTS/GNTS | C44: 0
B45: HYTS/TGTS/APD | C45: 0
B46: BATS/ELTS | C46: 0
B47: MLTS/GTS/PTH | C47: 84.2
B48: ATS West | C48: 0
B49: ATS-BLTS | C49: 64.2
B50: BLTS 22kV | C50: 19
B51: KTS East | C51: 0
B52: KTS West | C52: 0
B53: WMTS 66kV | C53: 0
B54: WMTS 22kV | C54: 0
B55: BTS 22kV | C55: 0
B56: FBTS 66kV | C56: 0
B57: RTS 66kV Bus 1&4 | C57: 0
B58: RTS 66kV Bus 2&3 | C58: 0
B59: RTS 22kV | C59: 0
B60: SVTS 66kV | C60: 0
B61: TSTS 66kV | C61: 0
B62: Powercor
B63: Citipower

Sheet Technology Adjustments
B1: Technology impacts on maximum demand are projected by Oakley Greenwood and may be included or excluded from the demand forecasts using the options on the 'Scenarios' sheet.
G3: MEDIUM SOLAR ONLY
C4: Cumulative Demand Impacts (KW) | S4: Cumulative Demand Impacts (all technologies) (MW)
B5: Terminal Station | C5: 2014 | D5: 2015 | E5: 2016 | F5: 2017 | G5: 2018 | H5: 2019 | I5: 2020 | J5: 2021 | K5: 2022 | L5: 2023 | M5: 2024 | N5: 2025 | R5: Terminal Station | S5: 2014 | T5: 2015 | U5: 2016 | V5: 2017 | W5: 2018 | X5: 2019 | Y5: 2020 | Z5: 2021 | AA5: 2022 | AB5: 2023 | AC5: 2024 | AD5: 2025
B6: RCTS 22kV | C6: 66.621372 | D6: 142.4825147 | E6: 220.2792265 | F6: 302.3935116 | G6: 389.1360925 | H6: 480.5156668 | I6: 576.5107393 | J6: 677.8948949 | K6: 783.6731045 | L6: 893.861421 | M6: 1007.88115 | N6: 1125.049112 | R6: RCTS 22kV | S6: =(CHOOSE(Settings!$D$3, 'Technology Adjustments'!C38,'Technology Adjustments'!C6,0)+CHOOSE(Settings!$D$7,'Technology Adjustments'!C70,0)+CHOOSE(Settings!$D$11,'Technology Adjustments'!C102,0)+CHOOSE(Settings!$D$15,'Technology Adjustments'!C134,0)+CHOOSE(Settings!$D$19,'Technology Adjustments'!C166,0))/1000 -> 0.08882773272 | T6: =(CHOOSE(Settings!$D$3, 'Technology Adjustments'!D38,'Technology Adjustments'!D6,0)+CHOOSE(Settings!$D$7,'Technology Adjustments'!D70,0)+CHOOSE(Settings!$D$11,'Technology Adjustments'!D102,0)+CHOOSE(Settings!$D$15,'Technology Adjustments'!D134,0)+CHOOSE(Settings!$D$19,'Technology Adjustments'!D166,0))/1000 -> 0.1943938483 | U6: =(CHOOSE(Settings!$D$3, 'Technology Adjustments'!E38,'Technology Adjustments'!E6,0)+CHOOSE(Settings!$D$7,'Technology Adjustments'!E70,0)+CHOOSE(Settings!$D$11,'Technology Adjustments'!E102,0)+CHOOSE(Settings!$D$15,'Technology Adjustments'!E134,0)+CHOOSE(Settings!$D$19,'Technology Adjustments'!E166,0))/1000 -> 0.3078702962 | V6: =(CHOOSE(Settings!$D$3, 'Technology Adjustments'!F38,'Technology Adjustments'!F6,0)+CHOOSE(Settings!$D$7,'Technology Adjustments'!F70,0)+CHOOSE(Settings!$D$11,'Technology Adjustments'!F102,0)+CHOOSE(Settings!$D$15,'Technology Adjustments'!F134,0)+CHOOSE(Settings!$D$19,'Technology Adjustments'!F166,0))/1000 -> 0.4334392727 | W6: =(CHOOSE(Settings!$D$3, 'Technology Adjustments'!G38,'Technology Adjustments'!G6,0)+CHOOSE(Settings!$D$7,'Technology Adjustments'!G70,0)+CHOOSE(Settings!$D$11,'Technology Adjustments'!G102,0)+CHOOSE(Settings!$D$15,'Technology Adjustments'!G134,0)+CHOOSE(Settings!$D$19,'Technology Adjustments'!G166,0))/1000 -> 0.5726691204 | X6: =(CHOOSE(Settings!$D$3, 'Technology Adjustments'!H38,'Technology Adjustments'!H6,0)+CHOOSE(Settings!$D$7,'Technology Adjustments'!H70,0)+CHOOSE(Settings!$D$11,'Technology Adjustments'!H102,0)+CHOOSE(Settings!$D$15,'Technology Adjustments'!H134,0)+CHOOSE(Settings!$D$19,'Technology Adjustments'!H166,0))/1000 -> 0.7268206085 | Y6: =(CHOOSE(Settings!$D$3, 'Technology Adjustments'!I38,'Technology Adjustments'!I6,0)+CHOOSE(Settings!$D$7,'Technology Adjustments'!I70,0)+CHOOSE(Settings!$D$11,'Technology Adjustments'!I102,0)+CHOOSE(Settings!$D$15,'Technology Adjustments'!I134,0)+CHOOSE(Settings!$D$19,'Technology Adjustments'!I166,0))/1000 -> 0.8972337779 | Z6: =(CHOOSE(Settings!$D$3, 'Technology Adjustments'!J38,'Technology Adjustments'!J6,0)+CHOOSE(Settings!$D$7,'Technology Adjustments'!J70,0)+CHOOSE(Settings!$D$11,'Technology Adjustments'!J102,0)+CHOOSE(Settings!$D$15,'Technology Adjustments'!J134,0)+CHOOSE(Settings!$D$19,'Technology Adjustments'!J166,0))/1000 -> 1.086649371 | AA6: =(CHOOSE(Settings!$D$3, 'Technology Adjustments'!K38,'Technology Adjustments'!K6,0)+CHOOSE(Settings!$D$7,'Technology Adjustments'!K70,0)+CHOOSE(Settings!$D$11,'Technology Adjustments'!K102,0)+CHOOSE(Settings!$D$15,'Technology Adjustments'!K134,0)+CHOOSE(Settings!$D$19,'Technology Adjustments'!K166,0))/1000 -> 1.295201196 | AB6: =(CHOOSE(Settings!$D$3, 'Technology Adjustments'!L38,'Technology Adjustments'!L6,0)+CHOOSE(Settings!$D$7,'Technology Adjustments'!L70,0)+CHOOSE(Settings!$D$11,'Technology Adjustments'!L102,0)+CHOOSE(Settings!$D$15,'Technology Adjustments'!L134,0)+CHOOSE(Settings!$D$19,'Technology Adjustments'!L166,0))/1000 -> 1.524695401 | AC6: =(CHOOSE(Settings!$D$3, 'Technology Adjustments'!M38,'Technology Adjustments'!M6,0)+CHOOSE(Settings!$D$7,'Technology Adjustments'!M70,0)+CHOOSE(Settings!$D$11,'Technology Adjustments'!M102,0)+CHOOSE(Settings!$D$15,'Technology Adjustments'!M134,0)+CHOOSE(Settings!$D$19,'Technology Adjustments'!M166,0))/1000 -> 1.776061168 | AD6: =(CHOOSE(Settings!$D$3, 'Technology Adjustments'!N38,'Technology Adjustments'!N6,0)+CHOOSE(Settings!$D$7,'Technology Adjustments'!N70,0)+CHOOSE(Settings!$D$11,'Technology Adjustments'!N102,0)+CHOOSE(Settings!$D$15,'Technology Adjustments'!N134,0)+CHOOSE(Settings!$D$19,'Technology Adjustments'!N166,0))/1000 -> 2.050152397
B7: RCTS 66kV | C7: 236.2030462 | D7: 505.1652794 | E7: 780.9899847 | F7: 1072.12245 | G7: 1379.664328 | H7: 1703.646455 | I7: 2043.992621 | J7: 2403.445536 | K7: 2778.47737 | L7: 3169.145038 | M7: 3573.396804 | N7: 3988.810489 | R7: RCTS 66kV | S7: =($U$39*CHOOSE(Settings!$D$3, 'Technology Adjustments'!C39+'Technology Adjustments'!C40,'Technology Adjustments'!C7+'Technology Adjustments'!C8,0)+CHOOSE(Settings!$D$7,'Technology Adjustments'!C71,0)+CHOOSE(Settings!$D$11,'Technology Adjustments'!C103,0)+CHOOSE(Settings!$D$15,'Technology Adjustments'!C135,0)+CHOOSE(Settings!$D$19,'Technology Adjustments'!C167,0))/1000 -> 0.7352818584 | T7: =($U$39*CHOOSE(Settings!$D$3, 'Technology Adjustments'!D39+'Technology Adjustments'!D40,'Technology Adjustments'!D7+'Technology Adjustments'!D8,0)+CHOOSE(Settings!$D$7,'Technology Adjustments'!D71,0)+CHOOSE(Settings!$D$11,'Technology Adjustments'!D103,0)+CHOOSE(Settings!$D$15,'Technology Adjustments'!D135,0)+CHOOSE(Settings!$D$19,'Technology Adjustments'!D167,0))/1000 -> 1.605866009 | U7: =($U$39*CHOOSE(Settings!$D$3, 'Technology Adjustments'!E39+'Technology Adjustments'!E40,'Technology Adjustments'!E7+'Technology Adjustments'!E8,0)+CHOOSE(Settings!$D$7,'Technology Adjustments'!E71,0)+CHOOSE(Settings!$D$11,'Technology Adjustments'!E103,0)+CHOOSE(Settings!$D$15,'Technology Adjustments'!E135,0)+CHOOSE(Settings!$D$19,'Technology Adjustments'!E167,0))/1000 -> 2.542118562 | V7: =($U$39*CHOOSE(Settings!$D$3, 'Technology Adjustments'!F39+'Technology Adjustments'!F40,'Technology Adjustments'!F7+'Technology Adjustments'!F8,0)+CHOOSE(Settings!$D$7,'Technology Adjustments'!F71,0)+CHOOSE(Settings!$D$11,'Technology Adjustments'!F103,0)+CHOOSE(Settings!$D$15,'Technology Adjustments'!F135,0)+CHOOSE(Settings!$D$19,'Technology Adjustments'!F167,0))/1000 -> 3.578784424 | W7: =($U$39*CHOOSE(Settings!$D$3, 'Technology Adjustments'!G39+'Technology Adjustments'!G40,'Technology Adjustments'!G7+'Technology Adjustments'!G8,0)+CHOOSE(Settings!$D$7,'Technology Adjustments'!G71,0)+CHOOSE(Settings!$D$11,'Technology Adjustments'!G103,0)+CHOOSE(Settings!$D$15,'Technology Adjustments'!G135,0)+CHOOSE(Settings!$D$19,'Technology Adjustments'!G167,0))/1000 -> 4.729422613 | X7: =($U$39*CHOOSE(Settings!$D$3, 'Technology Adjustments'!H39+'Technology Adjustments'!H40,'Technology Adjustments'!H7+'Technology Adjustments'!H8,0)+CHOOSE(Settings!$D$7,'Technology Adjustments'!H71,0)+CHOOSE(Settings!$D$11,'Technology Adjustments'!H103,0)+CHOOSE(Settings!$D$15,'Technology Adjustments'!H135,0)+CHOOSE(Settings!$D$19,'Technology Adjustments'!H167,0))/1000 -> 6.005602544 | Y7: =($U$39*CHOOSE(Settings!$D$3, 'Technology Adjustments'!I39+'Technology Adjustments'!I40,'Technology Adjustments'!I7+'Technology Adjustments'!I8,0)+CHOOSE(Settings!$D$7,'Technology Adjustments'!I71,0)+CHOOSE(Settings!$D$11,'Technology Adjustments'!I103,0)+CHOOSE(Settings!$D$15,'Technology Adjustments'!I135,0)+CHOOSE(Settings!$D$19,'Technology Adjustments'!I167,0))/1000 -> 7.419921798 | Z7: =($U$39*CHOOSE(Settings!$D$3, 'Technology Adjustments'!J39+'Technology Adjustments'!J40,'Technology Adjustments'!J7+'Technology Adjustments'!J8,0)+CHOOSE(Settings!$D$7,'Technology Adjustments'!J71,0)+CHOOSE(Settings!$D$11,'Technology Adjustments'!J103,0)+CHOOSE(Settings!$D$15,'Technology Adjustments'!J135,0)+CHOOSE(Settings!$D$19,'Technology Adjustments'!J167,0))/1000 -> 8.993467099 | AA7: =($U$39*CHOOSE(Settings!$D$3, 'Technology Adjustments'!K39+'Technology Adjustments'!K40,'Technology Adjustments'!K7+'Technology Adjustments'!K8,0)+CHOOSE(Settings!$D$7,'Technology Adjustments'!K71,0)+CHOOSE(Settings!$D$11,'Technology Adjustments'!K103,0)+CHOOSE(Settings!$D$15,'Technology Adjustments'!K135,0)+CHOOSE(Settings!$D$19,'Technology Adjustments'!K167,0))/1000 -> 10.73087675 | AB7: =($U$39*CHOOSE(Settings!$D$3, 'Technology Adjustments'!L39+'Technology Adjustments'!L40,'Technology Adjustments'!L7+'Technology Adjustments'!L8,0)+CHOOSE(Settings!$D$7,'Technology Adjustments'!L71,0)+CHOOSE(Settings!$D$11,'Technology Adjustments'!L103,0)+CHOOSE(Settings!$D$15,'Technology Adjustments'!L135,0)+CHOOSE(Settings!$D$19,'Technology Adjustments'!L167,0))/1000 -> 12.65001157 | AC7: =($U$39*CHOOSE(Settings!$D$3, 'Technology Adjustments'!M39+'Technology Adjustments'!M40,'Technology Adjustments'!M7+'Technology Adjustments'!M8,0)+CHOOSE(Settings!$D$7,'Technology Adjustments'!M71,0)+CHOOSE(Settings!$D$11,'Technology Adjustments'!M103,0)+CHOOSE(Settings!$D$15,'Technology Adjustments'!M135,0)+CHOOSE(Settings!$D$19,'Technology Adjustments'!M167,0))/1000 -> 14.76160921 | AD7: =($U$39*CHOOSE(Settings!$D$3, 'Technology Adjustments'!N39+'Technology Adjustments'!N40,'Technology Adjustments'!N7+'Technology Adjustments'!N8,0)+CHOOSE(Settings!$D$7,'Technology Adjustments'!N71,0)+CHOOSE(Settings!$D$11,'Technology Adjustments'!N103,0)+CHOOSE(Settings!$D$15,'Technology Adjustments'!N135,0)+CHOOSE(Settings!$D$19,'Technology Adjustments'!N167,0))/1000 -> 17.07707062
B8: WETS 66kV | C8: 497.817608 | D8: 1061.504375 | E8: 1639.990913 | F8: 2251.163502 | G8: 2897.841232 | H8: 3581.008877 | I8: 4301.632836 | J8: 5063.884114 | K8: 5863.067364 | L8: 6701.100629 | M8: 7575.420423 | N8: 8483.256395 | R8: WETS 66kV | S8: =($U$38*CHOOSE(Settings!$D$3, 'Technology Adjustments'!C40+C39,'Technology Adjustments'!C8+C7,0)+CHOOSE(Settings!$D$7,'Technology Adjustments'!C72,0)+CHOOSE(Settings!$D$11,'Technology Adjustments'!C104,0)+CHOOSE(Settings!$D$15,'Technology Adjustments'!C136,0)+CHOOSE(Settings!$D$19,'Technology Adjustments'!C168,0))/1000 -> 0.2434011452 | T8: =($U$38*CHOOSE(Settings!$D$3, 'Technology Adjustments'!D40+D39,'Technology Adjustments'!D8+D7,0)+CHOOSE(Settings!$D$7,'Technology Adjustments'!D72,0)+CHOOSE(Settings!$D$11,'Technology Adjustments'!D104,0)+CHOOSE(Settings!$D$15,'Technology Adjustments'!D136,0)+CHOOSE(Settings!$D$19,'Technology Adjustments'!D168,0))/1000 -> 0.5315915538 | U8: =($U$38*CHOOSE(Settings!$D$3, 'Technology Adjustments'!E40+E39,'Technology Adjustments'!E8+E7,0)+CHOOSE(Settings!$D$7,'Technology Adjustments'!E72,0)+CHOOSE(Settings!$D$11,'Technology Adjustments'!E104,0)+CHOOSE(Settings!$D$15,'Technology Adjustments'!E136,0)+CHOOSE(Settings!$D$19,'Technology Adjustments'!E168,0))/1000 -> 0.8415202445 | V8: =($U$38*CHOOSE(Settings!$D$3, 'Technology Adjustments'!F40+F39,'Technology Adjustments'!F8+F7,0)+CHOOSE(Settings!$D$7,'Technology Adjustments'!F72,0)+CHOOSE(Settings!$D$11,'Technology Adjustments'!F104,0)+CHOOSE(Settings!$D$15,'Technology Adjustments'!F136,0)+CHOOSE(Settings!$D$19,'Technology Adjustments'!F168,0))/1000 -> 1.184688861 | W8: =($U$38*CHOOSE(Settings!$D$3, 'Technology Adjustments'!G40+G39,'Technology Adjustments'!G8+G7,0)+CHOOSE(Settings!$D$7,'Technology Adjustments'!G72,0)+CHOOSE(Settings!$D$11,'Technology Adjustments'!G104,0)+CHOOSE(Settings!$D$15,'Technology Adjustments'!G136,0)+CHOOSE(Settings!$D$19,'Technology Adjustments'!G168,0))/1000 -> 1.565585859 | X8: =($U$38*CHOOSE(Settings!$D$3, 'Technology Adjustments'!H40+H39,'Technology Adjustments'!H8+H7,0)+CHOOSE(Settings!$D$7,'Technology Adjustments'!H72,0)+CHOOSE(Settings!$D$11,'Technology Adjustments'!H104,0)+CHOOSE(Settings!$D$15,'Technology Adjustments'!H136,0)+CHOOSE(Settings!$D$19,'Technology Adjustments'!H168,0))/1000 -> 1.988041076 | Y8: =($U$38*CHOOSE(Settings!$D$3, 'Technology Adjustments'!I40+I39,'Technology Adjustments'!I8+I7,0)+CHOOSE(Settings!$D$7,'Technology Adjustments'!I72,0)+CHOOSE(Settings!$D$11,'Technology Adjustments'!I104,0)+CHOOSE(Settings!$D$15,'Technology Adjustments'!I136,0)+CHOOSE(Settings!$D$19,'Technology Adjustments'!I168,0))/1000 -> 2.456224701 | Z8: =($U$38*CHOOSE(Settings!$D$3, 'Technology Adjustments'!J40+J39,'Technology Adjustments'!J8+J7,0)+CHOOSE(Settings!$D$7,'Technology Adjustments'!J72,0)+CHOOSE(Settings!$D$11,'Technology Adjustments'!J104,0)+CHOOSE(Settings!$D$15,'Technology Adjustments'!J136,0)+CHOOSE(Settings!$D$19,'Technology Adjustments'!J168,0))/1000 -> 2.977117097 | AA8: =($U$38*CHOOSE(Settings!$D$3, 'Technology Adjustments'!K40+K39,'Technology Adjustments'!K8+K7,0)+CHOOSE(Settings!$D$7,'Technology Adjustments'!K72,0)+CHOOSE(Settings!$D$11,'Technology Adjustments'!K104,0)+CHOOSE(Settings!$D$15,'Technology Adjustments'!K136,0)+CHOOSE(Settings!$D$19,'Technology Adjustments'!K168,0))/1000 -> 3.552253685 | AB8: =($U$38*CHOOSE(Settings!$D$3, 'Technology Adjustments'!L40+L39,'Technology Adjustments'!L8+L7,0)+CHOOSE(Settings!$D$7,'Technology Adjustments'!L72,0)+CHOOSE(Settings!$D$11,'Technology Adjustments'!L104,0)+CHOOSE(Settings!$D$15,'Technology Adjustments'!L136,0)+CHOOSE(Settings!$D$19,'Technology Adjustments'!L168,0))/1000 -> 4.187546948 | AC8: =($U$38*CHOOSE(Settings!$D$3, 'Technology Adjustments'!M40+M39,'Technology Adjustments'!M8+M7,0)+CHOOSE(Settings!$D$7,'Technology Adjustments'!M72,0)+CHOOSE(Settings!$D$11,'Technology Adjustments'!M104,0)+CHOOSE(Settings!$D$15,'Technology Adjustments'!M136,0)+CHOOSE(Settings!$D$19,'Technology Adjustments'!M168,0))/1000 -> 4.886551391 | AD8: =($U$38*CHOOSE(Settings!$D$3, 'Technology Adjustments'!N40+N39,'Technology Adjustments'!N8+N7,0)+CHOOSE(Settings!$D$7,'Technology Adjustments'!N72,0)+CHOOSE(Settings!$D$11,'Technology Adjustments'!N104,0)+CHOOSE(Settings!$D$15,'Technology Adjustments'!N136,0)+CHOOSE(Settings!$D$19,'Technology Adjustments'!N168,0))/1000 -> 5.653041074
B9: KGTS 22kV | C9: 19.58091512 | D9: 41.43100287 | E9: 63.80898321 | F9: 87.35149755 | G9: 112.2087404 | H9: 138.4567172 | I9: 166.1793713 | J9: 194.6011108 | K9: 224.1115215 | L9: 254.7936305 | M9: 286.4788385 | N9: 319.0147773 | R9: KGTS 22kV | S9: =(CHOOSE(Settings!$D$3, 'Technology Adjustments'!C41,'Technology Adjustments'!C9,0)+CHOOSE(Settings!$D$7,'Technology Adjustments'!C73,0)+CHOOSE(Settings!$D$11,'Technology Adjustments'!C105,0)+CHOOSE(Settings!$D$15,'Technology Adjustments'!C137,0)+CHOOSE(Settings!$D$19,'Technology Adjustments'!C169,0))/1000 -> 0.02610723567 | T9: =(CHOOSE(Settings!$D$3, 'Technology Adjustments'!D41,'Technology Adjustments'!D9,0)+CHOOSE(Settings!$D$7,'Technology Adjustments'!D73,0)+CHOOSE(Settings!$D$11,'Technology Adjustments'!D105,0)+CHOOSE(Settings!$D$15,'Technology Adjustments'!D137,0)+CHOOSE(Settings!$D$19,'Technology Adjustments'!D169,0))/1000 -> 0.05652523653 | U9: =(CHOOSE(Settings!$D$3, 'Technology Adjustments'!E41,'Technology Adjustments'!E9,0)+CHOOSE(Settings!$D$7,'Technology Adjustments'!E73,0)+CHOOSE(Settings!$D$11,'Technology Adjustments'!E105,0)+CHOOSE(Settings!$D$15,'Technology Adjustments'!E137,0)+CHOOSE(Settings!$D$19,'Technology Adjustments'!E169,0))/1000 -> 0.08918036884 | V9: =(CHOOSE(Settings!$D$3, 'Technology Adjustments'!F41,'Technology Adjustments'!F9,0)+CHOOSE(Settings!$D$7,'Technology Adjustments'!F73,0)+CHOOSE(Settings!$D$11,'Technology Adjustments'!F105,0)+CHOOSE(Settings!$D$15,'Technology Adjustments'!F137,0)+CHOOSE(Settings!$D$19,'Technology Adjustments'!F169,0))/1000 -> 0.1252070358 | W9: =(CHOOSE(Settings!$D$3, 'Technology Adjustments'!G41,'Technology Adjustments'!G9,0)+CHOOSE(Settings!$D$7,'Technology Adjustments'!G73,0)+CHOOSE(Settings!$D$11,'Technology Adjustments'!G105,0)+CHOOSE(Settings!$D$15,'Technology Adjustments'!G137,0)+CHOOSE(Settings!$D$19,'Technology Adjustments'!G169,0))/1000 -> 0.1651397155 | X9: =(CHOOSE(Settings!$D$3, 'Technology Adjustments'!H41,'Technology Adjustments'!H9,0)+CHOOSE(Settings!$D$7,'Technology Adjustments'!H73,0)+CHOOSE(Settings!$D$11,'Technology Adjustments'!H105,0)+CHOOSE(Settings!$D$15,'Technology Adjustments'!H137,0)+CHOOSE(Settings!$D$19,'Technology Adjustments'!H169,0))/1000 -> 0.2094530016 | Y9: =(CHOOSE(Settings!$D$3, 'Technology Adjustments'!I41,'Technology Adjustments'!I9,0)+CHOOSE(Settings!$D$7,'Technology Adjustments'!I73,0)+CHOOSE(Settings!$D$11,'Technology Adjustments'!I105,0)+CHOOSE(Settings!$D$15,'Technology Adjustments'!I137,0)+CHOOSE(Settings!$D$19,'Technology Adjustments'!I169,0))/1000 -> 0.2586832304 | Z9: =(CHOOSE(Settings!$D$3, 'Technology Adjustments'!J41,'Technology Adjustments'!J9,0)+CHOOSE(Settings!$D$7,'Technology Adjustments'!J73,0)+CHOOSE(Settings!$D$11,'Technology Adjustments'!J105,0)+CHOOSE(Settings!$D$15,'Technology Adjustments'!J137,0)+CHOOSE(Settings!$D$19,'Technology Adjustments'!J169,0))/1000 -> 0.3120458194 | AA9: =(CHOOSE(Settings!$D$3, 'Technology Adjustments'!K41,'Technology Adjustments'!K9,0)+CHOOSE(Settings!$D$7,'Technology Adjustments'!K73,0)+CHOOSE(Settings!$D$11,'Technology Adjustments'!K105,0)+CHOOSE(Settings!$D$15,'Technology Adjustments'!K137,0)+CHOOSE(Settings!$D$19,'Technology Adjustments'!K169,0))/1000 -> 0.3705657396 | AB9: =(CHOOSE(Settings!$D$3, 'Technology Adjustments'!L41,'Technology Adjustments'!L9,0)+CHOOSE(Settings!$D$7,'Technology Adjustments'!L73,0)+CHOOSE(Settings!$D$11,'Technology Adjustments'!L105,0)+CHOOSE(Settings!$D$15,'Technology Adjustments'!L137,0)+CHOOSE(Settings!$D$19,'Technology Adjustments'!L169,0))/1000 -> 0.4348853494 | AC9: =(CHOOSE(Settings!$D$3, 'Technology Adjustments'!M41,'Technology Adjustments'!M9,0)+CHOOSE(Settings!$D$7,'Technology Adjustments'!M73,0)+CHOOSE(Settings!$D$11,'Technology Adjustments'!M105,0)+CHOOSE(Settings!$D$15,'Technology Adjustments'!M137,0)+CHOOSE(Settings!$D$19,'Technology Adjustments'!M169,0))/1000 -> 0.5052222058 | AD9: =(CHOOSE(Settings!$D$3, 'Technology Adjustments'!N41,'Technology Adjustments'!N9,0)+CHOOSE(Settings!$D$7,'Technology Adjustments'!N73,0)+CHOOSE(Settings!$D$11,'Technology Adjustments'!N105,0)+CHOOSE(Settings!$D$15,'Technology Adjustments'!N137,0)+CHOOSE(Settings!$D$19,'Technology Adjustments'!N169,0))/1000 -> 0.581891715
B10: KGTS 66kV | C10: 291.3909338 | D10: 618.765784 | E10: 957.9284332 | F10: 1319.956387 | G10: 1706.567444 | H10: 2119.413234 | I10: 2560.321801 | J10: 3024.035726 | K10: 3515.163353 | L10: 4035.569143 | M10: 4584.931628 | N10: 5163.232416 | R10: KGTS 66kV | S10: =(CHOOSE(Settings!$D$3, 'Technology Adjustments'!C42,'Technology Adjustments'!C10,0)+CHOOSE(Settings!$D$7,'Technology Adjustments'!C74,0)+CHOOSE(Settings!$D$11,'Technology Adjustments'!C106,0)+CHOOSE(Settings!$D$15,'Technology Adjustments'!C138,0)+CHOOSE(Settings!$D$19,'Technology Adjustments'!C170,0))/1000 -> 0.388514122 | T10: =(CHOOSE(Settings!$D$3, 'Technology Adjustments'!D42,'Technology Adjustments'!D10,0)+CHOOSE(Settings!$D$7,'Technology Adjustments'!D74,0)+CHOOSE(Settings!$D$11,'Technology Adjustments'!D106,0)+CHOOSE(Settings!$D$15,'Technology Adjustments'!D138,0)+CHOOSE(Settings!$D$19,'Technology Adjustments'!D170,0))/1000 -> 0.844197512 | U10: =(CHOOSE(Settings!$D$3, 'Technology Adjustments'!E42,'Technology Adjustments'!E10,0)+CHOOSE(Settings!$D$7,'Technology Adjustments'!E74,0)+CHOOSE(Settings!$D$11,'Technology Adjustments'!E106,0)+CHOOSE(Settings!$D$15,'Technology Adjustments'!E138,0)+CHOOSE(Settings!$D$19,'Technology Adjustments'!E170,0))/1000 -> 1.33881755 | V10: =(CHOOSE(Settings!$D$3, 'Technology Adjustments'!F42,'Technology Adjustments'!F10,0)+CHOOSE(Settings!$D$7,'Technology Adjustments'!F74,0)+CHOOSE(Settings!$D$11,'Technology Adjustments'!F106,0)+CHOOSE(Settings!$D$15,'Technology Adjustments'!F138,0)+CHOOSE(Settings!$D$19,'Technology Adjustments'!F170,0))/1000 -> 1.891981624 | W10: =(CHOOSE(Settings!$D$3, 'Technology Adjustments'!G42,'Technology Adjustments'!G10,0)+CHOOSE(Settings!$D$7,'Technology Adjustments'!G74,0)+CHOOSE(Settings!$D$11,'Technology Adjustments'!G106,0)+CHOOSE(Settings!$D$15,'Technology Adjustments'!G138,0)+CHOOSE(Settings!$D$19,'Technology Adjustments'!G170,0))/1000 -> 2.511515373 | X10: =(CHOOSE(Settings!$D$3, 'Technology Adjustments'!H42,'Technology Adjustments'!H10,0)+CHOOSE(Settings!$D$7,'Technology Adjustments'!H74,0)+CHOOSE(Settings!$D$11,'Technology Adjustments'!H106,0)+CHOOSE(Settings!$D$15,'Technology Adjustments'!H138,0)+CHOOSE(Settings!$D$19,'Technology Adjustments'!H170,0))/1000 -> 3.205964501 | Y10: =(CHOOSE(Settings!$D$3, 'Technology Adjustments'!I42,'Technology Adjustments'!I10,0)+CHOOSE(Settings!$D$7,'Technology Adjustments'!I74,0)+CHOOSE(Settings!$D$11,'Technology Adjustments'!I106,0)+CHOOSE(Settings!$D$15,'Technology Adjustments'!I138,0)+CHOOSE(Settings!$D$19,'Technology Adjustments'!I170,0))/1000 -> 3.985045462 | Z10: =(CHOOSE(Settings!$D$3, 'Technology Adjustments'!J42,'Technology Adjustments'!J10,0)+CHOOSE(Settings!$D$7,'Technology Adjustments'!J74,0)+CHOOSE(Settings!$D$11,'Technology Adjustments'!J106,0)+CHOOSE(Settings!$D$15,'Technology Adjustments'!J138,0)+CHOOSE(Settings!$D$19,'Technology Adjustments'!J170,0))/1000 -> 4.84815581 | AA10: =(CHOOSE(Settings!$D$3, 'Technology Adjustments'!K42,'Technology Adjustments'!K10,0)+CHOOSE(Settings!$D$7,'Technology Adjustments'!K74,0)+CHOOSE(Settings!$D$11,'Technology Adjustments'!K106,0)+CHOOSE(Settings!$D$15,'Technology Adjustments'!K138,0)+CHOOSE(Settings!$D$19,'Technology Adjustments'!K170,0))/1000 -> 5.810662889 | AB10: =(CHOOSE(Settings!$D$3, 'Technology Adjustments'!L42,'Technology Adjustments'!L10,0)+CHOOSE(Settings!$D$7,'Technology Adjustments'!L74,0)+CHOOSE(Settings!$D$11,'Technology Adjustments'!L106,0)+CHOOSE(Settings!$D$15,'Technology Adjustments'!L138,0)+CHOOSE(Settings!$D$19,'Technology Adjustments'!L170,0))/1000 -> 6.885168212 | AC10: =(CHOOSE(Settings!$D$3, 'Technology Adjustments'!M42,'Technology Adjustments'!M10,0)+CHOOSE(Settings!$D$7,'Technology Adjustments'!M74,0)+CHOOSE(Settings!$D$11,'Technology Adjustments'!M106,0)+CHOOSE(Settings!$D$15,'Technology Adjustments'!M138,0)+CHOOSE(Settings!$D$19,'Technology Adjustments'!M170,0))/1000 -> 8.081427432 | AD10: =(CHOOSE(Settings!$D$3, 'Technology Adjustments'!N42,'Technology Adjustments'!N10,0)+CHOOSE(Settings!$D$7,'Technology Adjustments'!N74,0)+CHOOSE(Settings!$D$11,'Technology Adjustments'!N106,0)+CHOOSE(Settings!$D$15,'Technology Adjustments'!N138,0)+CHOOSE(Settings!$D$19,'Technology Adjustments'!N170,0))/1000 -> 9.411250713
B11: HOTS 66kV | C11: 454.164265 | D11: 961.0885943 | E11: 1461.26125 | F11: 1975.334887 | G11: 2502.582495 | H11: 3041.464841 | I11: 3589.989685 | J11: 4160.057812 | K11: 4731.564033 | L11: 5305.736856 | M11: 5874.827269 | N11: 6430.839006 | R11: HOTS 66kV | S11: =(CHOOSE(Settings!$D$3, 'Technology Adjustments'!C43,'Technology Adjustments'!C11,0)+CHOOSE(Settings!$D$7,'Technology Adjustments'!C75,0)+CHOOSE(Settings!$D$11,'Technology Adjustments'!C107,0)+CHOOSE(Settings!$D$15,'Technology Adjustments'!C139,0)+CHOOSE(Settings!$D$19,'Technology Adjustments'!C171,0))/1000 -> 0.6055392119 | T11: =(CHOOSE(Settings!$D$3, 'Technology Adjustments'!D43,'Technology Adjustments'!D11,0)+CHOOSE(Settings!$D$7,'Technology Adjustments'!D75,0)+CHOOSE(Settings!$D$11,'Technology Adjustments'!D107,0)+CHOOSE(Settings!$D$15,'Technology Adjustments'!D139,0)+CHOOSE(Settings!$D$19,'Technology Adjustments'!D171,0))/1000 -> 1.311230278 | U11: =(CHOOSE(Settings!$D$3, 'Technology Adjustments'!E43,'Technology Adjustments'!E11,0)+CHOOSE(Settings!$D$7,'Technology Adjustments'!E75,0)+CHOOSE(Settings!$D$11,'Technology Adjustments'!E107,0)+CHOOSE(Settings!$D$15,'Technology Adjustments'!E139,0)+CHOOSE(Settings!$D$19,'Technology Adjustments'!E171,0))/1000 -> 2.042260752 | V11: =(CHOOSE(Settings!$D$3, 'Technology Adjustments'!F43,'Technology Adjustments'!F11,0)+CHOOSE(Settings!$D$7,'Technology Adjustments'!F75,0)+CHOOSE(Settings!$D$11,'Technology Adjustments'!F107,0)+CHOOSE(Settings!$D$15,'Technology Adjustments'!F139,0)+CHOOSE(Settings!$D$19,'Technology Adjustments'!F171,0))/1000 -> 2.831360823 | W11: =(CHOOSE(Settings!$D$3, 'Technology Adjustments'!G43,'Technology Adjustments'!G11,0)+CHOOSE(Settings!$D$7,'Technology Adjustments'!G75,0)+CHOOSE(Settings!$D$11,'Technology Adjustments'!G107,0)+CHOOSE(Settings!$D$15,'Technology Adjustments'!G139,0)+CHOOSE(Settings!$D$19,'Technology Adjustments'!G171,0))/1000 -> 3.683023588 | X11: =(CHOOSE(Settings!$D$3, 'Technology Adjustments'!H43,'Technology Adjustments'!H11,0)+CHOOSE(Settings!$D$7,'Technology Adjustments'!H75,0)+CHOOSE(Settings!$D$11,'Technology Adjustments'!H107,0)+CHOOSE(Settings!$D$15,'Technology Adjustments'!H139,0)+CHOOSE(Settings!$D$19,'Technology Adjustments'!H171,0))/1000 -> 4.600876598 | Y11: =(CHOOSE(Settings!$D$3, 'Technology Adjustments'!I43,'Technology Adjustments'!I11,0)+CHOOSE(Settings!$D$7,'Technology Adjustments'!I75,0)+CHOOSE(Settings!$D$11,'Technology Adjustments'!I107,0)+CHOOSE(Settings!$D$15,'Technology Adjustments'!I139,0)+CHOOSE(Settings!$D$19,'Technology Adjustments'!I171,0))/1000 -> 5.588071806 | Z11: =(CHOOSE(Settings!$D$3, 'Technology Adjustments'!J43,'Technology Adjustments'!J11,0)+CHOOSE(Settings!$D$7,'Technology Adjustments'!J75,0)+CHOOSE(Settings!$D$11,'Technology Adjustments'!J107,0)+CHOOSE(Settings!$D$15,'Technology Adjustments'!J139,0)+CHOOSE(Settings!$D$19,'Technology Adjustments'!J171,0))/1000 -> 6.670182839 | AA11: =(CHOOSE(Settings!$D$3, 'Technology Adjustments'!K43,'Technology Adjustments'!K11,0)+CHOOSE(Settings!$D$7,'Technology Adjustments'!K75,0)+CHOOSE(Settings!$D$11,'Technology Adjustments'!K107,0)+CHOOSE(Settings!$D$15,'Technology Adjustments'!K139,0)+CHOOSE(Settings!$D$19,'Technology Adjustments'!K171,0))/1000 -> 7.822357884 | AB11: =(CHOOSE(Settings!$D$3, 'Technology Adjustments'!L43,'Technology Adjustments'!L11,0)+CHOOSE(Settings!$D$7,'Technology Adjustments'!L75,0)+CHOOSE(Settings!$D$11,'Technology Adjustments'!L107,0)+CHOOSE(Settings!$D$15,'Technology Adjustments'!L139,0)+CHOOSE(Settings!$D$19,'Technology Adjustments'!L171,0))/1000 -> 9.053822936 | AC11: =(CHOOSE(Settings!$D$3, 'Technology Adjustments'!M43,'Technology Adjustments'!M11,0)+CHOOSE(Settings!$D$7,'Technology Adjustments'!M75,0)+CHOOSE(Settings!$D$11,'Technology Adjustments'!M107,0)+CHOOSE(Settings!$D$15,'Technology Adjustments'!M139,0)+CHOOSE(Settings!$D$19,'Technology Adjustments'!M171,0))/1000 -> 10.3571252 | AD11: =(CHOOSE(Settings!$D$3, 'Technology Adjustments'!N43,'Technology Adjustments'!N11,0)+CHOOSE(Settings!$D$7,'Technology Adjustments'!N75,0)+CHOOSE(Settings!$D$11,'Technology Adjustments'!N107,0)+CHOOSE(Settings!$D$15,'Technology Adjustments'!N139,0)+CHOOSE(Settings!$D$19,'Technology Adjustments'!N171,0))/1000 -> 11.72422548
B12: BETS 22kV | C12: 94.21328563 | D12: 201.762771 | E12: 310.488266 | F12: 425.2653921 | G12: 545.4654985 | H12: 670.6519447 | I12: 800.2146893 | J12: 937.4948533 | K12: 1078.983058 | L12: 1223.540907 | M12: 1369.388363 | N12: 1514.387128 | R12: BETS 22kV | S12: =(CHOOSE(Settings!$D$3, 'Technology Adjustments'!C44,'Technology Adjustments'!C12,0)+CHOOSE(Settings!$D$7,'Technology Adjustments'!C76,0)+CHOOSE(Settings!$D$11,'Technology Adjustments'!C108,0)+CHOOSE(Settings!$D$15,'Technology Adjustments'!C140,0)+CHOOSE(Settings!$D$19,'Technology Adjustments'!C172,0))/1000 -> 0.1256170821 | T12: =(CHOOSE(Settings!$D$3, 'Technology Adjustments'!D44,'Technology Adjustments'!D12,0)+CHOOSE(Settings!$D$7,'Technology Adjustments'!D76,0)+CHOOSE(Settings!$D$11,'Technology Adjustments'!D108,0)+CHOOSE(Settings!$D$15,'Technology Adjustments'!D140,0)+CHOOSE(Settings!$D$19,'Technology Adjustments'!D172,0))/1000 -> 0.2752718939 | U12: =(CHOOSE(Settings!$D$3, 'Technology Adjustments'!E44,'Technology Adjustments'!E12,0)+CHOOSE(Settings!$D$7,'Technology Adjustments'!E76,0)+CHOOSE(Settings!$D$11,'Technology Adjustments'!E108,0)+CHOOSE(Settings!$D$15,'Technology Adjustments'!E140,0)+CHOOSE(Settings!$D$19,'Technology Adjustments'!E172,0))/1000 -> 0.4339487103 | V12: =(CHOOSE(Settings!$D$3, 'Technology Adjustments'!F44,'Technology Adjustments'!F12,0)+CHOOSE(Settings!$D$7,'Technology Adjustments'!F76,0)+CHOOSE(Settings!$D$11,'Technology Adjustments'!F108,0)+CHOOSE(Settings!$D$15,'Technology Adjustments'!F140,0)+CHOOSE(Settings!$D$19,'Technology Adjustments'!F172,0))/1000 -> 0.6095608611 | W12: =(CHOOSE(Settings!$D$3, 'Technology Adjustments'!G44,'Technology Adjustments'!G12,0)+CHOOSE(Settings!$D$7,'Technology Adjustments'!G76,0)+CHOOSE(Settings!$D$11,'Technology Adjustments'!G108,0)+CHOOSE(Settings!$D$15,'Technology Adjustments'!G140,0)+CHOOSE(Settings!$D$19,'Technology Adjustments'!G172,0))/1000 -> 0.8027114125 | X12: =(CHOOSE(Settings!$D$3, 'Technology Adjustments'!H44,'Technology Adjustments'!H12,0)+CHOOSE(Settings!$D$7,'Technology Adjustments'!H76,0)+CHOOSE(Settings!$D$11,'Technology Adjustments'!H108,0)+CHOOSE(Settings!$D$15,'Technology Adjustments'!H140,0)+CHOOSE(Settings!$D$19,'Technology Adjustments'!H172,0))/1000 -> 1.01435544 | Y12: =(CHOOSE(Settings!$D$3, 'Technology Adjustments'!I44,'Technology Adjustments'!I12,0)+CHOOSE(Settings!$D$7,'Technology Adjustments'!I76,0)+CHOOSE(Settings!$D$11,'Technology Adjustments'!I108,0)+CHOOSE(Settings!$D$15,'Technology Adjustments'!I140,0)+CHOOSE(Settings!$D$19,'Technology Adjustments'!I172,0))/1000 -> 1.245245545 | Z12: =(CHOOSE(Settings!$D$3, 'Technology Adjustments'!J44,'Technology Adjustments'!J12,0)+CHOOSE(Settings!$D$7,'Technology Adjustments'!J76,0)+CHOOSE(Settings!$D$11,'Technology Adjustments'!J108,0)+CHOOSE(Settings!$D$15,'Technology Adjustments'!J140,0)+CHOOSE(Settings!$D$19,'Technology Adjustments'!J172,0))/1000 -> 1.502502158 | AA12: =(CHOOSE(Settings!$D$3, 'Technology Adjustments'!K44,'Technology Adjustments'!K12,0)+CHOOSE(Settings!$D$7,'Technology Adjustments'!K76,0)+CHOOSE(Settings!$D$11,'Technology Adjustments'!K108,0)+CHOOSE(Settings!$D$15,'Technology Adjustments'!K140,0)+CHOOSE(Settings!$D$19,'Technology Adjustments'!K172,0))/1000 -> 1.782733641 | AB12: =(CHOOSE(Settings!$D$3, 'Technology Adjustments'!L44,'Technology Adjustments'!L12,0)+CHOOSE(Settings!$D$7,'Technology Adjustments'!L76,0)+CHOOSE(Settings!$D$11,'Technology Adjustments'!L108,0)+CHOOSE(Settings!$D$15,'Technology Adjustments'!L140,0)+CHOOSE(Settings!$D$19,'Technology Adjustments'!L172,0))/1000 -> 2.086096929 | AC12: =(CHOOSE(Settings!$D$3, 'Technology Adjustments'!M44,'Technology Adjustments'!M12,0)+CHOOSE(Settings!$D$7,'Technology Adjustments'!M76,0)+CHOOSE(Settings!$D$11,'Technology Adjustments'!M108,0)+CHOOSE(Settings!$D$15,'Technology Adjustments'!M140,0)+CHOOSE(Settings!$D$19,'Technology Adjustments'!M172,0))/1000 -> 2.411523745 | AD12: =(CHOOSE(Settings!$D$3, 'Technology Adjustments'!N44,'Technology Adjustments'!N12,0)+CHOOSE(Settings!$D$7,'Technology Adjustments'!N76,0)+CHOOSE(Settings!$D$11,'Technology Adjustments'!N108,0)+CHOOSE(Settings!$D$15,'Technology Adjustments'!N140,0)+CHOOSE(Settings!$D$19,'Technology Adjustments'!N172,0))/1000 -> 2.757132114
B13: BETS 66kV | C13: 1163.973559 | D13: 2487.193771 | E13: 3819.751589 | F13: 5219.473892 | G13: 6680.274779 | H13: 8197.138179 | I13: 9763.095445 | J13: 11416.80671 | K13: 13117.94811 | L13: 14852.17 | M13: 16598.0088 | N13: 18329.93797 | R13: BETS 66kV | S13: =(CHOOSE(Settings!$D$3, 'Technology Adjustments'!C45,'Technology Adjustments'!C13,0)+CHOOSE(Settings!$D$7,'Technology Adjustments'!C77,0)+CHOOSE(Settings!$D$11,'Technology Adjustments'!C109,0)+CHOOSE(Settings!$D$15,'Technology Adjustments'!C141,0)+CHOOSE(Settings!$D$19,'Technology Adjustments'!C173,0))/1000 -> 1.551951445 | T13: =(CHOOSE(Settings!$D$3, 'Technology Adjustments'!D45,'Technology Adjustments'!D13,0)+CHOOSE(Settings!$D$7,'Technology Adjustments'!D77,0)+CHOOSE(Settings!$D$11,'Technology Adjustments'!D109,0)+CHOOSE(Settings!$D$15,'Technology Adjustments'!D141,0)+CHOOSE(Settings!$D$19,'Technology Adjustments'!D173,0))/1000 -> 3.393357883 | U13: =(CHOOSE(Settings!$D$3, 'Technology Adjustments'!E45,'Technology Adjustments'!E13,0)+CHOOSE(Settings!$D$7,'Technology Adjustments'!E77,0)+CHOOSE(Settings!$D$11,'Technology Adjustments'!E109,0)+CHOOSE(Settings!$D$15,'Technology Adjustments'!E141,0)+CHOOSE(Settings!$D$19,'Technology Adjustments'!E173,0))/1000 -> 5.338595774 | V13: =(CHOOSE(Settings!$D$3, 'Technology Adjustments'!F45,'Technology Adjustments'!F13,0)+CHOOSE(Settings!$D$7,'Technology Adjustments'!F77,0)+CHOOSE(Settings!$D$11,'Technology Adjustments'!F109,0)+CHOOSE(Settings!$D$15,'Technology Adjustments'!F141,0)+CHOOSE(Settings!$D$19,'Technology Adjustments'!F173,0))/1000 -> 7.481416327 | W13: =(CHOOSE(Settings!$D$3, 'Technology Adjustments'!G45,'Technology Adjustments'!G13,0)+CHOOSE(Settings!$D$7,'Technology Adjustments'!G77,0)+CHOOSE(Settings!$D$11,'Technology Adjustments'!G109,0)+CHOOSE(Settings!$D$15,'Technology Adjustments'!G141,0)+CHOOSE(Settings!$D$19,'Technology Adjustments'!G173,0))/1000 -> 9.830873822 | X13: =(CHOOSE(Settings!$D$3, 'Technology Adjustments'!H45,'Technology Adjustments'!H13,0)+CHOOSE(Settings!$D$7,'Technology Adjustments'!H77,0)+CHOOSE(Settings!$D$11,'Technology Adjustments'!H109,0)+CHOOSE(Settings!$D$15,'Technology Adjustments'!H141,0)+CHOOSE(Settings!$D$19,'Technology Adjustments'!H173,0))/1000 -> 12.39850226 | Y13: =(CHOOSE(Settings!$D$3, 'Technology Adjustments'!I45,'Technology Adjustments'!I13,0)+CHOOSE(Settings!$D$7,'Technology Adjustments'!I77,0)+CHOOSE(Settings!$D$11,'Technology Adjustments'!I109,0)+CHOOSE(Settings!$D$15,'Technology Adjustments'!I141,0)+CHOOSE(Settings!$D$19,'Technology Adjustments'!I173,0))/1000 -> 15.19361454 | Z13: =(CHOOSE(Settings!$D$3, 'Technology Adjustments'!J45,'Technology Adjustments'!J13,0)+CHOOSE(Settings!$D$7,'Technology Adjustments'!J77,0)+CHOOSE(Settings!$D$11,'Technology Adjustments'!J109,0)+CHOOSE(Settings!$D$15,'Technology Adjustments'!J141,0)+CHOOSE(Settings!$D$19,'Technology Adjustments'!J173,0))/1000 -> 18.29911455 | AA13: =(CHOOSE(Settings!$D$3, 'Technology Adjustments'!K45,'Technology Adjustments'!K13,0)+CHOOSE(Settings!$D$7,'Technology Adjustments'!K77,0)+CHOOSE(Settings!$D$11,'Technology Adjustments'!K109,0)+CHOOSE(Settings!$D$15,'Technology Adjustments'!K141,0)+CHOOSE(Settings!$D$19,'Technology Adjustments'!K173,0))/1000 -> 21.67667513 | AB13: =(CHOOSE(Settings!$D$3, 'Technology Adjustments'!L45,'Technology Adjustments'!L13,0)+CHOOSE(Settings!$D$7,'Technology Adjustments'!L77,0)+CHOOSE(Settings!$D$11,'Technology Adjustments'!L109,0)+CHOOSE(Settings!$D$15,'Technology Adjustments'!L141,0)+CHOOSE(Settings!$D$19,'Technology Adjustments'!L173,0))/1000 -> 25.32670366 | AC13: =(CHOOSE(Settings!$D$3, 'Technology Adjustments'!M45,'Technology Adjustments'!M13,0)+CHOOSE(Settings!$D$7,'Technology Adjustments'!M77,0)+CHOOSE(Settings!$D$11,'Technology Adjustments'!M109,0)+CHOOSE(Settings!$D$15,'Technology Adjustments'!M141,0)+CHOOSE(Settings!$D$19,'Technology Adjustments'!M173,0))/1000 -> 29.23555758 | AD13: =(CHOOSE(Settings!$D$3, 'Technology Adjustments'!N45,'Technology Adjustments'!N13,0)+CHOOSE(Settings!$D$7,'Technology Adjustments'!N77,0)+CHOOSE(Settings!$D$11,'Technology Adjustments'!N109,0)+CHOOSE(Settings!$D$15,'Technology Adjustments'!N141,0)+CHOOSE(Settings!$D$19,'Technology Adjustments'!N173,0))/1000 -> 33.38029118
B14: SHTS/GNTS | C14: 1211.650627 | D14: 2588.688128 | E14: 4009.312654 | F14: 5530.017799 | G14: 7148.675392 | H14: 8866.319276 | I14: 10683.09842 | J14: 12594.59237 | K14: 14590.30935 | L14: 16671.63799 | M14: 18824.06556 | N14: 21031.67775 | R14: SHTS/GNTS | S14: =(CHOOSE(Settings!$D$3, 'Technology Adjustments'!C46,'Technology Adjustments'!C14,0)+CHOOSE(Settings!$D$7,'Technology Adjustments'!C78,0)+CHOOSE(Settings!$D$11,'Technology Adjustments'!C110,0)+CHOOSE(Settings!$D$15,'Technology Adjustments'!C142,0)+CHOOSE(Settings!$D$19,'Technology Adjustments'!C174,0))/1000 -> 1.61552076 | T14: =(CHOOSE(Settings!$D$3, 'Technology Adjustments'!D46,'Technology Adjustments'!D14,0)+CHOOSE(Settings!$D$7,'Technology Adjustments'!D78,0)+CHOOSE(Settings!$D$11,'Technology Adjustments'!D110,0)+CHOOSE(Settings!$D$15,'Technology Adjustments'!D142,0)+CHOOSE(Settings!$D$19,'Technology Adjustments'!D174,0))/1000 -> 3.531828186 | U14: =(CHOOSE(Settings!$D$3, 'Technology Adjustments'!E46,'Technology Adjustments'!E14,0)+CHOOSE(Settings!$D$7,'Technology Adjustments'!E78,0)+CHOOSE(Settings!$D$11,'Technology Adjustments'!E110,0)+CHOOSE(Settings!$D$15,'Technology Adjustments'!E142,0)+CHOOSE(Settings!$D$19,'Technology Adjustments'!E174,0))/1000 -> 5.603525615 | V14: =(CHOOSE(Settings!$D$3, 'Technology Adjustments'!F46,'Technology Adjustments'!F14,0)+CHOOSE(Settings!$D$7,'Technology Adjustments'!F78,0)+CHOOSE(Settings!$D$11,'Technology Adjustments'!F110,0)+CHOOSE(Settings!$D$15,'Technology Adjustments'!F142,0)+CHOOSE(Settings!$D$19,'Technology Adjustments'!F174,0))/1000 -> 7.926532371 | W14: =(CHOOSE(Settings!$D$3, 'Technology Adjustments'!G46,'Technology Adjustments'!G14,0)+CHOOSE(Settings!$D$7,'Technology Adjustments'!G78,0)+CHOOSE(Settings!$D$11,'Technology Adjustments'!G110,0)+CHOOSE(Settings!$D$15,'Technology Adjustments'!G142,0)+CHOOSE(Settings!$D$19,'Technology Adjustments'!G174,0))/1000 -> 10.5201372 | X14: =(CHOOSE(Settings!$D$3, 'Technology Adjustments'!H46,'Technology Adjustments'!H14,0)+CHOOSE(Settings!$D$7,'Technology Adjustments'!H78,0)+CHOOSE(Settings!$D$11,'Technology Adjustments'!H110,0)+CHOOSE(Settings!$D$15,'Technology Adjustments'!H142,0)+CHOOSE(Settings!$D$19,'Technology Adjustments'!H174,0))/1000 -> 13.41054013 | Y14: =(CHOOSE(Settings!$D$3, 'Technology Adjustments'!I46,'Technology Adjustments'!I14,0)+CHOOSE(Settings!$D$7,'Technology Adjustments'!I78,0)+CHOOSE(Settings!$D$11,'Technology Adjustments'!I110,0)+CHOOSE(Settings!$D$15,'Technology Adjustments'!I142,0)+CHOOSE(Settings!$D$19,'Technology Adjustments'!I174,0))/1000 -> 16.62510686 | Z14: =(CHOOSE(Settings!$D$3, 'Technology Adjustments'!J46,'Technology Adjustments'!J14,0)+CHOOSE(Settings!$D$7,'Technology Adjustments'!J78,0)+CHOOSE(Settings!$D$11,'Technology Adjustments'!J110,0)+CHOOSE(Settings!$D$15,'Technology Adjustments'!J142,0)+CHOOSE(Settings!$D$19,'Technology Adjustments'!J174,0))/1000 -> 20.1865264 | AA14: =(CHOOSE(Settings!$D$3, 'Technology Adjustments'!K46,'Technology Adjustments'!K14,0)+CHOOSE(Settings!$D$7,'Technology Adjustments'!K78,0)+CHOOSE(Settings!$D$11,'Technology Adjustments'!K110,0)+CHOOSE(Settings!$D$15,'Technology Adjustments'!K142,0)+CHOOSE(Settings!$D$19,'Technology Adjustments'!K174,0))/1000 -> 24.10898146 | AB14: =(CHOOSE(Settings!$D$3, 'Technology Adjustments'!L46,'Technology Adjustments'!L14,0)+CHOOSE(Settings!$D$7,'Technology Adjustments'!L78,0)+CHOOSE(Settings!$D$11,'Technology Adjustments'!L110,0)+CHOOSE(Settings!$D$15,'Technology Adjustments'!L142,0)+CHOOSE(Settings!$D$19,'Technology Adjustments'!L174,0))/1000 -> 28.42922546 | AC14: =(CHOOSE(Settings!$D$3, 'Technology Adjustments'!M46,'Technology Adjustments'!M14,0)+CHOOSE(Settings!$D$7,'Technology Adjustments'!M78,0)+CHOOSE(Settings!$D$11,'Technology Adjustments'!M110,0)+CHOOSE(Settings!$D$15,'Technology Adjustments'!M142,0)+CHOOSE(Settings!$D$19,'Technology Adjustments'!M174,0))/1000 -> 33.15721527 | AD14: =(CHOOSE(Settings!$D$3, 'Technology Adjustments'!N46,'Technology Adjustments'!N14,0)+CHOOSE(Settings!$D$7,'Technology Adjustments'!N78,0)+CHOOSE(Settings!$D$11,'Technology Adjustments'!N110,0)+CHOOSE(Settings!$D$15,'Technology Adjustments'!N142,0)+CHOOSE(Settings!$D$19,'Technology Adjustments'!N174,0))/1000 -> 38.30295131
B15: HYTS/TGTS/APD | C15: 3056.294654 | D15: 6555.382635 | E15: 10120.23315 | F15: 13910.22013 | G15: 17904.04313 | H15: 22089.40452 | I15: 26448.40643 | J15: 31056.8612 | K15: 35833.66542 | L15: 40733.92665 | M15: 45698.82395 | N15: 50656.63991 | R15: HYTS/TGTS/APD | S15: =(CHOOSE(Settings!$D$3, 'Technology Adjustments'!C47,'Technology Adjustments'!C15,0)+CHOOSE(Settings!$D$7,'Technology Adjustments'!C79,0)+CHOOSE(Settings!$D$11,'Technology Adjustments'!C111,0)+CHOOSE(Settings!$D$15,'Technology Adjustments'!C143,0)+CHOOSE(Settings!$D$19,'Technology Adjustments'!C175,0))/1000 -> 4.075047792 | T15: =(CHOOSE(Settings!$D$3, 'Technology Adjustments'!D47,'Technology Adjustments'!D15,0)+CHOOSE(Settings!$D$7,'Technology Adjustments'!D79,0)+CHOOSE(Settings!$D$11,'Technology Adjustments'!D111,0)+CHOOSE(Settings!$D$15,'Technology Adjustments'!D143,0)+CHOOSE(Settings!$D$19,'Technology Adjustments'!D175,0))/1000 -> 8.94374959 | U15: =(CHOOSE(Settings!$D$3, 'Technology Adjustments'!E47,'Technology Adjustments'!E15,0)+CHOOSE(Settings!$D$7,'Technology Adjustments'!E79,0)+CHOOSE(Settings!$D$11,'Technology Adjustments'!E111,0)+CHOOSE(Settings!$D$15,'Technology Adjustments'!E143,0)+CHOOSE(Settings!$D$19,'Technology Adjustments'!E175,0))/1000 -> 14.14442127 | V15: =(CHOOSE(Settings!$D$3, 'Technology Adjustments'!F47,'Technology Adjustments'!F15,0)+CHOOSE(Settings!$D$7,'Technology Adjustments'!F79,0)+CHOOSE(Settings!$D$11,'Technology Adjustments'!F111,0)+CHOOSE(Settings!$D$15,'Technology Adjustments'!F143,0)+CHOOSE(Settings!$D$19,'Technology Adjustments'!F175,0))/1000 -> 19.93846946 | W15: =(CHOOSE(Settings!$D$3, 'Technology Adjustments'!G47,'Technology Adjustments'!G15,0)+CHOOSE(Settings!$D$7,'Technology Adjustments'!G79,0)+CHOOSE(Settings!$D$11,'Technology Adjustments'!G111,0)+CHOOSE(Settings!$D$15,'Technology Adjustments'!G143,0)+CHOOSE(Settings!$D$19,'Technology Adjustments'!G175,0))/1000 -> 26.34756503 | X15: =(CHOOSE(Settings!$D$3, 'Technology Adjustments'!H47,'Technology Adjustments'!H15,0)+CHOOSE(Settings!$D$7,'Technology Adjustments'!H79,0)+CHOOSE(Settings!$D$11,'Technology Adjustments'!H111,0)+CHOOSE(Settings!$D$15,'Technology Adjustments'!H143,0)+CHOOSE(Settings!$D$19,'Technology Adjustments'!H175,0))/1000 -> 33.40940581 | Y15: =(CHOOSE(Settings!$D$3, 'Technology Adjustments'!I47,'Technology Adjustments'!I15,0)+CHOOSE(Settings!$D$7,'Technology Adjustments'!I79,0)+CHOOSE(Settings!$D$11,'Technology Adjustments'!I111,0)+CHOOSE(Settings!$D$15,'Technology Adjustments'!I143,0)+CHOOSE(Settings!$D$19,'Technology Adjustments'!I175,0))/1000 -> 41.15594428 | Z15: =(CHOOSE(Settings!$D$3, 'Technology Adjustments'!J47,'Technology Adjustments'!J15,0)+CHOOSE(Settings!$D$7,'Technology Adjustments'!J79,0)+CHOOSE(Settings!$D$11,'Technology Adjustments'!J111,0)+CHOOSE(Settings!$D$15,'Technology Adjustments'!J143,0)+CHOOSE(Settings!$D$19,'Technology Adjustments'!J175,0))/1000 -> 49.77136646 | AA15: =(CHOOSE(Settings!$D$3, 'Technology Adjustments'!K47,'Technology Adjustments'!K15,0)+CHOOSE(Settings!$D$7,'Technology Adjustments'!K79,0)+CHOOSE(Settings!$D$11,'Technology Adjustments'!K111,0)+CHOOSE(Settings!$D$15,'Technology Adjustments'!K143,0)+CHOOSE(Settings!$D$19,'Technology Adjustments'!K175,0))/1000 -> 59.20126309 | AB15: =(CHOOSE(Settings!$D$3, 'Technology Adjustments'!L47,'Technology Adjustments'!L15,0)+CHOOSE(Settings!$D$7,'Technology Adjustments'!L79,0)+CHOOSE(Settings!$D$11,'Technology Adjustments'!L111,0)+CHOOSE(Settings!$D$15,'Technology Adjustments'!L143,0)+CHOOSE(Settings!$D$19,'Technology Adjustments'!L175,0))/1000 -> 69.44290495 | AC15: =(CHOOSE(Settings!$D$3, 'Technology Adjustments'!M47,'Technology Adjustments'!M15,0)+CHOOSE(Settings!$D$7,'Technology Adjustments'!M79,0)+CHOOSE(Settings!$D$11,'Technology Adjustments'!M111,0)+CHOOSE(Settings!$D$15,'Technology Adjustments'!M143,0)+CHOOSE(Settings!$D$19,'Technology Adjustments'!M175,0))/1000 -> 80.46624033 | AD15: =(CHOOSE(Settings!$D$3, 'Technology Adjustments'!N47,'Technology Adjustments'!N15,0)+CHOOSE(Settings!$D$7,'Technology Adjustments'!N79,0)+CHOOSE(Settings!$D$11,'Technology Adjustments'!N111,0)+CHOOSE(Settings!$D$15,'Technology Adjustments'!N143,0)+CHOOSE(Settings!$D$19,'Technology Adjustments'!N175,0))/1000 -> 92.21278911
B16: BATS/ELTS | C16: 1253.431302 | D16: 2691.594726 | E16: 4146.155919 | F16: 5678.2998 | G16: 7280.332696 | H16: 8944.476427 | I16: 10660.30915 | J16: 12479.37948 | K16: 14339.97792 | L16: 16229.33523 | M16: 18120.0078 | N16: 19979.65317 | R16: BATS/ELTS | S16: =(CHOOSE(Settings!$D$3, 'Technology Adjustments'!C48,'Technology Adjustments'!C16,0)+CHOOSE(Settings!$D$7,'Technology Adjustments'!C80,0)+CHOOSE(Settings!$D$11,'Technology Adjustments'!C112,0)+CHOOSE(Settings!$D$15,'Technology Adjustments'!C144,0)+CHOOSE(Settings!$D$19,'Technology Adjustments'!C176,0))/1000 -> 1.671241654 | T16: =(CHOOSE(Settings!$D$3, 'Technology Adjustments'!D48,'Technology Adjustments'!D16,0)+CHOOSE(Settings!$D$7,'Technology Adjustments'!D80,0)+CHOOSE(Settings!$D$11,'Technology Adjustments'!D112,0)+CHOOSE(Settings!$D$15,'Technology Adjustments'!D144,0)+CHOOSE(Settings!$D$19,'Technology Adjustments'!D176,0))/1000 -> 3.672241582 | U16: =(CHOOSE(Settings!$D$3, 'Technology Adjustments'!E48,'Technology Adjustments'!E16,0)+CHOOSE(Settings!$D$7,'Technology Adjustments'!E80,0)+CHOOSE(Settings!$D$11,'Technology Adjustments'!E112,0)+CHOOSE(Settings!$D$15,'Technology Adjustments'!E144,0)+CHOOSE(Settings!$D$19,'Technology Adjustments'!E176,0))/1000 -> 5.794815657 | V16: =(CHOOSE(Settings!$D$3, 'Technology Adjustments'!F48,'Technology Adjustments'!F16,0)+CHOOSE(Settings!$D$7,'Technology Adjustments'!F80,0)+CHOOSE(Settings!$D$11,'Technology Adjustments'!F112,0)+CHOOSE(Settings!$D$15,'Technology Adjustments'!F144,0)+CHOOSE(Settings!$D$19,'Technology Adjustments'!F176,0))/1000 -> 8.139015151 | W16: =(CHOOSE(Settings!$D$3, 'Technology Adjustments'!G48,'Technology Adjustments'!G16,0)+CHOOSE(Settings!$D$7,'Technology Adjustments'!G80,0)+CHOOSE(Settings!$D$11,'Technology Adjustments'!G112,0)+CHOOSE(Settings!$D$15,'Technology Adjustments'!G144,0)+CHOOSE(Settings!$D$19,'Technology Adjustments'!G176,0))/1000 -> 10.71359547 | X16: =(CHOOSE(Settings!$D$3, 'Technology Adjustments'!H48,'Technology Adjustments'!H16,0)+CHOOSE(Settings!$D$7,'Technology Adjustments'!H80,0)+CHOOSE(Settings!$D$11,'Technology Adjustments'!H112,0)+CHOOSE(Settings!$D$15,'Technology Adjustments'!H144,0)+CHOOSE(Settings!$D$19,'Technology Adjustments'!H176,0))/1000 -> 13.5279654 | Y16: =(CHOOSE(Settings!$D$3, 'Technology Adjustments'!I48,'Technology Adjustments'!I16,0)+CHOOSE(Settings!$D$7,'Technology Adjustments'!I80,0)+CHOOSE(Settings!$D$11,'Technology Adjustments'!I112,0)+CHOOSE(Settings!$D$15,'Technology Adjustments'!I144,0)+CHOOSE(Settings!$D$19,'Technology Adjustments'!I176,0))/1000 -> 16.58796141 | Z16: =(CHOOSE(Settings!$D$3, 'Technology Adjustments'!J48,'Technology Adjustments'!J16,0)+CHOOSE(Settings!$D$7,'Technology Adjustments'!J80,0)+CHOOSE(Settings!$D$11,'Technology Adjustments'!J112,0)+CHOOSE(Settings!$D$15,'Technology Adjustments'!J144,0)+CHOOSE(Settings!$D$19,'Technology Adjustments'!J176,0))/1000 -> 19.99866654 | AA16: =(CHOOSE(Settings!$D$3, 'Technology Adjustments'!K48,'Technology Adjustments'!K16,0)+CHOOSE(Settings!$D$7,'Technology Adjustments'!K80,0)+CHOOSE(Settings!$D$11,'Technology Adjustments'!K112,0)+CHOOSE(Settings!$D$15,'Technology Adjustments'!K144,0)+CHOOSE(Settings!$D$19,'Technology Adjustments'!K176,0))/1000 -> 23.68978525 | AB16: =(CHOOSE(Settings!$D$3, 'Technology Adjustments'!L48,'Technology Adjustments'!L16,0)+CHOOSE(Settings!$D$7,'Technology Adjustments'!L80,0)+CHOOSE(Settings!$D$11,'Technology Adjustments'!L112,0)+CHOOSE(Settings!$D$15,'Technology Adjustments'!L144,0)+CHOOSE(Settings!$D$19,'Technology Adjustments'!L176,0))/1000 -> 27.66559268 | AC16: =(CHOOSE(Settings!$D$3, 'Technology Adjustments'!M48,'Technology Adjustments'!M16,0)+CHOOSE(Settings!$D$7,'Technology Adjustments'!M80,0)+CHOOSE(Settings!$D$11,'Technology Adjustments'!M112,0)+CHOOSE(Settings!$D$15,'Technology Adjustments'!M144,0)+CHOOSE(Settings!$D$19,'Technology Adjustments'!M176,0))/1000 -> 31.90245439 | AD16: =(CHOOSE(Settings!$D$3, 'Technology Adjustments'!N48,'Technology Adjustments'!N16,0)+CHOOSE(Settings!$D$7,'Technology Adjustments'!N80,0)+CHOOSE(Settings!$D$11,'Technology Adjustments'!N112,0)+CHOOSE(Settings!$D$15,'Technology Adjustments'!N144,0)+CHOOSE(Settings!$D$19,'Technology Adjustments'!N176,0))/1000 -> 36.36497472
B17: MLTS/GTS/PTH | C17: 38.21488036 | D17: 81.22216861 | E17: 124.3970061 | F17: 169.2510892 | G17: 215.8824283 | H17: 264.2412707 | I17: 314.2559292 | J17: 366.4127377 | K17: 420.3238853 | L17: 475.6134787 | M17: 531.8959422 | N17: 588.696592 | R17: MLTS/GTS/PTH | S17: =(CHOOSE(Settings!$D$3, 'Technology Adjustments'!C49,'Technology Adjustments'!C17,0)+CHOOSE(Settings!$D$7,'Technology Adjustments'!C81,0)+CHOOSE(Settings!$D$11,'Technology Adjustments'!C113,0)+CHOOSE(Settings!$D$15,'Technology Adjustments'!C145,0)+CHOOSE(Settings!$D$19,'Technology Adjustments'!C177,0))/1000 -> 0.05095222906 | T17: =(CHOOSE(Settings!$D$3, 'Technology Adjustments'!D49,'Technology Adjustments'!D17,0)+CHOOSE(Settings!$D$7,'Technology Adjustments'!D81,0)+CHOOSE(Settings!$D$11,'Technology Adjustments'!D113,0)+CHOOSE(Settings!$D$15,'Technology Adjustments'!D145,0)+CHOOSE(Settings!$D$19,'Technology Adjustments'!D177,0))/1000 -> 0.1108136474 | U17: =(CHOOSE(Settings!$D$3, 'Technology Adjustments'!E49,'Technology Adjustments'!E17,0)+CHOOSE(Settings!$D$7,'Technology Adjustments'!E81,0)+CHOOSE(Settings!$D$11,'Technology Adjustments'!E113,0)+CHOOSE(Settings!$D$15,'Technology Adjustments'!E145,0)+CHOOSE(Settings!$D$19,'Technology Adjustments'!E177,0))/1000 -> 0.1738602933 | V17: =(CHOOSE(Settings!$D$3, 'Technology Adjustments'!F49,'Technology Adjustments'!F17,0)+CHOOSE(Settings!$D$7,'Technology Adjustments'!F81,0)+CHOOSE(Settings!$D$11,'Technology Adjustments'!F113,0)+CHOOSE(Settings!$D$15,'Technology Adjustments'!F145,0)+CHOOSE(Settings!$D$19,'Technology Adjustments'!F177,0))/1000 -> 0.242599555 | W17: =(CHOOSE(Settings!$D$3, 'Technology Adjustments'!G49,'Technology Adjustments'!G17,0)+CHOOSE(Settings!$D$7,'Technology Adjustments'!G81,0)+CHOOSE(Settings!$D$11,'Technology Adjustments'!G113,0)+CHOOSE(Settings!$D$15,'Technology Adjustments'!G145,0)+CHOOSE(Settings!$D$19,'Technology Adjustments'!G177,0))/1000 -> 0.3177127865 | X17: =(CHOOSE(Settings!$D$3, 'Technology Adjustments'!H49,'Technology Adjustments'!H17,0)+CHOOSE(Settings!$D$7,'Technology Adjustments'!H81,0)+CHOOSE(Settings!$D$11,'Technology Adjustments'!H113,0)+CHOOSE(Settings!$D$15,'Technology Adjustments'!H145,0)+CHOOSE(Settings!$D$19,'Technology Adjustments'!H177,0))/1000 -> 0.3997191291 | Y17: =(CHOOSE(Settings!$D$3, 'Technology Adjustments'!I49,'Technology Adjustments'!I17,0)+CHOOSE(Settings!$D$7,'Technology Adjustments'!I81,0)+CHOOSE(Settings!$D$11,'Technology Adjustments'!I113,0)+CHOOSE(Settings!$D$15,'Technology Adjustments'!I145,0)+CHOOSE(Settings!$D$19,'Technology Adjustments'!I177,0))/1000 -> 0.4891509125 | Z17: =(CHOOSE(Settings!$D$3, 'Technology Adjustments'!J49,'Technology Adjustments'!J17,0)+CHOOSE(Settings!$D$7,'Technology Adjustments'!J81,0)+CHOOSE(Settings!$D$11,'Technology Adjustments'!J113,0)+CHOOSE(Settings!$D$15,'Technology Adjustments'!J145,0)+CHOOSE(Settings!$D$19,'Technology Adjustments'!J177,0))/1000 -> 0.5874807634 | AA17: =(CHOOSE(Settings!$D$3, 'Technology Adjustments'!K49,'Technology Adjustments'!K17,0)+CHOOSE(Settings!$D$7,'Technology Adjustments'!K81,0)+CHOOSE(Settings!$D$11,'Technology Adjustments'!K113,0)+CHOOSE(Settings!$D$15,'Technology Adjustments'!K145,0)+CHOOSE(Settings!$D$19,'Technology Adjustments'!K177,0))/1000 -> 0.6949152078 | AB17: =(CHOOSE(Settings!$D$3, 'Technology Adjustments'!L49,'Technology Adjustments'!L17,0)+CHOOSE(Settings!$D$7,'Technology Adjustments'!L81,0)+CHOOSE(Settings!$D$11,'Technology Adjustments'!L113,0)+CHOOSE(Settings!$D$15,'Technology Adjustments'!L145,0)+CHOOSE(Settings!$D$19,'Technology Adjustments'!L177,0))/1000 -> 0.8116287295 | AC17: =(CHOOSE(Settings!$D$3, 'Technology Adjustments'!M49,'Technology Adjustments'!M17,0)+CHOOSE(Settings!$D$7,'Technology Adjustments'!M81,0)+CHOOSE(Settings!$D$11,'Technology Adjustments'!M113,0)+CHOOSE(Settings!$D$15,'Technology Adjustments'!M145,0)+CHOOSE(Settings!$D$19,'Technology Adjustments'!M177,0))/1000 -> 0.9378315823 | AD17: =(CHOOSE(Settings!$D$3, 'Technology Adjustments'!N49,'Technology Adjustments'!N17,0)+CHOOSE(Settings!$D$7,'Technology Adjustments'!N81,0)+CHOOSE(Settings!$D$11,'Technology Adjustments'!N113,0)+CHOOSE(Settings!$D$15,'Technology Adjustments'!N145,0)+CHOOSE(Settings!$D$19,'Technology Adjustments'!N177,0))/1000 -> 1.07356213
B18: ATS West | C18: 1148.984301 | D18: 2550.809975 | E18: 4058.428705 | F18: 5680.352938 | G18: 7430.859046 | H18: 9299.435304 | I18: 11272.1043 | J18: 13420.41857 | K18: 15677.20484 | L18: 18019.18923 | M18: 20413.41536 | N18: 22816.91882 | R18: ATS West | S18: =(CHOOSE(Settings!$D$3, 'Technology Adjustments'!C50,'Technology Adjustments'!C18,0)+CHOOSE(Settings!$D$7,'Technology Adjustments'!C82,0)+CHOOSE(Settings!$D$11,'Technology Adjustments'!C114,0)+CHOOSE(Settings!$D$15,'Technology Adjustments'!C146,0)+CHOOSE(Settings!$D$19,'Technology Adjustments'!C178,0))/1000 -> 1.532052273 | T18: =(CHOOSE(Settings!$D$3, 'Technology Adjustments'!D50,'Technology Adjustments'!D18,0)+CHOOSE(Settings!$D$7,'Technology Adjustments'!D82,0)+CHOOSE(Settings!$D$11,'Technology Adjustments'!D114,0)+CHOOSE(Settings!$D$15,'Technology Adjustments'!D146,0)+CHOOSE(Settings!$D$19,'Technology Adjustments'!D178,0))/1000 -> 3.480288166 | U18: =(CHOOSE(Settings!$D$3, 'Technology Adjustments'!E50,'Technology Adjustments'!E18,0)+CHOOSE(Settings!$D$7,'Technology Adjustments'!E82,0)+CHOOSE(Settings!$D$11,'Technology Adjustments'!E114,0)+CHOOSE(Settings!$D$15,'Technology Adjustments'!E146,0)+CHOOSE(Settings!$D$19,'Technology Adjustments'!E178,0))/1000 -> 5.67257 | V18: =(CHOOSE(Settings!$D$3, 'Technology Adjustments'!F50,'Technology Adjustments'!F18,0)+CHOOSE(Settings!$D$7,'Technology Adjustments'!F82,0)+CHOOSE(Settings!$D$11,'Technology Adjustments'!F114,0)+CHOOSE(Settings!$D$15,'Technology Adjustments'!F146,0)+CHOOSE(Settings!$D$19,'Technology Adjustments'!F178,0))/1000 -> 8.14179895 | W18: =(CHOOSE(Settings!$D$3, 'Technology Adjustments'!G50,'Technology Adjustments'!G18,0)+CHOOSE(Settings!$D$7,'Technology Adjustments'!G82,0)+CHOOSE(Settings!$D$11,'Technology Adjustments'!G114,0)+CHOOSE(Settings!$D$15,'Technology Adjustments'!G146,0)+CHOOSE(Settings!$D$19,'Technology Adjustments'!G178,0))/1000 -> 10.93395931 | X18: =(CHOOSE(Settings!$D$3, 'Technology Adjustments'!H50,'Technology Adjustments'!H18,0)+CHOOSE(Settings!$D$7,'Technology Adjustments'!H82,0)+CHOOSE(Settings!$D$11,'Technology Adjustments'!H114,0)+CHOOSE(Settings!$D$15,'Technology Adjustments'!H146,0)+CHOOSE(Settings!$D$19,'Technology Adjustments'!H178,0))/1000 -> 14.06142403 | Y18: =(CHOOSE(Settings!$D$3, 'Technology Adjustments'!I50,'Technology Adjustments'!I18,0)+CHOOSE(Settings!$D$7,'Technology Adjustments'!I82,0)+CHOOSE(Settings!$D$11,'Technology Adjustments'!I114,0)+CHOOSE(Settings!$D$15,'Technology Adjustments'!I146,0)+CHOOSE(Settings!$D$19,'Technology Adjustments'!I178,0))/1000 -> 17.53251135 | Z18: =(CHOOSE(Settings!$D$3, 'Technology Adjustments'!J50,'Technology Adjustments'!J18,0)+CHOOSE(Settings!$D$7,'Technology Adjustments'!J82,0)+CHOOSE(Settings!$D$11,'Technology Adjustments'!J114,0)+CHOOSE(Settings!$D$15,'Technology Adjustments'!J146,0)+CHOOSE(Settings!$D$19,'Technology Adjustments'!J178,0))/1000 -> 21.49262338 | AA18: =(CHOOSE(Settings!$D$3, 'Technology Adjustments'!K50,'Technology Adjustments'!K18,0)+CHOOSE(Settings!$D$7,'Technology Adjustments'!K82,0)+CHOOSE(Settings!$D$11,'Technology Adjustments'!K114,0)+CHOOSE(Settings!$D$15,'Technology Adjustments'!K146,0)+CHOOSE(Settings!$D$19,'Technology Adjustments'!K178,0))/1000 -> 25.87602092 | AB18: =(CHOOSE(Settings!$D$3, 'Technology Adjustments'!L50,'Technology Adjustments'!L18,0)+CHOOSE(Settings!$D$7,'Technology Adjustments'!L82,0)+CHOOSE(Settings!$D$11,'Technology Adjustments'!L114,0)+CHOOSE(Settings!$D$15,'Technology Adjustments'!L146,0)+CHOOSE(Settings!$D$19,'Technology Adjustments'!L178,0))/1000 -> 30.68052169 | AC18: =(CHOOSE(Settings!$D$3, 'Technology Adjustments'!M50,'Technology Adjustments'!M18,0)+CHOOSE(Settings!$D$7,'Technology Adjustments'!M82,0)+CHOOSE(Settings!$D$11,'Technology Adjustments'!M114,0)+CHOOSE(Settings!$D$15,'Technology Adjustments'!M146,0)+CHOOSE(Settings!$D$19,'Technology Adjustments'!M178,0))/1000 -> 35.88657562 | AD18: =(CHOOSE(Settings!$D$3, 'Technology Adjustments'!N50,'Technology Adjustments'!N18,0)+CHOOSE(Settings!$D$7,'Technology Adjustments'!N82,0)+CHOOSE(Settings!$D$11,'Technology Adjustments'!N114,0)+CHOOSE(Settings!$D$15,'Technology Adjustments'!N146,0)+CHOOSE(Settings!$D$19,'Technology Adjustments'!N178,0))/1000 -> 41.45258973
B19: ATS-BLTS | C19: 220.8589871 | D19: 472.0126686 | E19: 727.9794831 | F19: 998.7770593 | G19: 1284.269286 | H19: 1584.310747 | I19: 1898.585562 | J19: 2233.508284 | K19: 2584.77616 | L19: 2950.717117 | M19: 3329.358179 | N19: 3718.158215 | R19: ATS-BLTS | S19: =(CHOOSE(Settings!$D$3, 'Technology Adjustments'!C51,'Technology Adjustments'!C19,0)+CHOOSE(Settings!$D$7,'Technology Adjustments'!C83,0)+CHOOSE(Settings!$D$11,'Technology Adjustments'!C115,0)+CHOOSE(Settings!$D$15,'Technology Adjustments'!C147,0)+CHOOSE(Settings!$D$19,'Technology Adjustments'!C179,0))/1000 -> 0.2944758347 | T19: =(CHOOSE(Settings!$D$3, 'Technology Adjustments'!D51,'Technology Adjustments'!D19,0)+CHOOSE(Settings!$D$7,'Technology Adjustments'!D83,0)+CHOOSE(Settings!$D$11,'Technology Adjustments'!D115,0)+CHOOSE(Settings!$D$15,'Technology Adjustments'!D147,0)+CHOOSE(Settings!$D$19,'Technology Adjustments'!D179,0))/1000 -> 0.6439828082 | U19: =(CHOOSE(Settings!$D$3, 'Technology Adjustments'!E51,'Technology Adjustments'!E19,0)+CHOOSE(Settings!$D$7,'Technology Adjustments'!E83,0)+CHOOSE(Settings!$D$11,'Technology Adjustments'!E115,0)+CHOOSE(Settings!$D$15,'Technology Adjustments'!E147,0)+CHOOSE(Settings!$D$19,'Technology Adjustments'!E179,0))/1000 -> 1.017449113 | V19: =(CHOOSE(Settings!$D$3, 'Technology Adjustments'!F51,'Technology Adjustments'!F19,0)+CHOOSE(Settings!$D$7,'Technology Adjustments'!F83,0)+CHOOSE(Settings!$D$11,'Technology Adjustments'!F115,0)+CHOOSE(Settings!$D$15,'Technology Adjustments'!F147,0)+CHOOSE(Settings!$D$19,'Technology Adjustments'!F179,0))/1000 -> 1.431618299 | W19: =(CHOOSE(Settings!$D$3, 'Technology Adjustments'!G51,'Technology Adjustments'!G19,0)+CHOOSE(Settings!$D$7,'Technology Adjustments'!G83,0)+CHOOSE(Settings!$D$11,'Technology Adjustments'!G115,0)+CHOOSE(Settings!$D$15,'Technology Adjustments'!G147,0)+CHOOSE(Settings!$D$19,'Technology Adjustments'!G179,0))/1000 -> 1.889985597 | X19: =(CHOOSE(Settings!$D$3, 'Technology Adjustments'!H51,'Technology Adjustments'!H19,0)+CHOOSE(Settings!$D$7,'Technology Adjustments'!H83,0)+CHOOSE(Settings!$D$11,'Technology Adjustments'!H115,0)+CHOOSE(Settings!$D$15,'Technology Adjustments'!H147,0)+CHOOSE(Settings!$D$19,'Technology Adjustments'!H179,0))/1000 -> 2.396384217 | Y19: =(CHOOSE(Settings!$D$3, 'Technology Adjustments'!I51,'Technology Adjustments'!I19,0)+CHOOSE(Settings!$D$7,'Technology Adjustments'!I83,0)+CHOOSE(Settings!$D$11,'Technology Adjustments'!I115,0)+CHOOSE(Settings!$D$15,'Technology Adjustments'!I147,0)+CHOOSE(Settings!$D$19,'Technology Adjustments'!I179,0))/1000 -> 2.954741773 | Z19: =(CHOOSE(Settings!$D$3, 'Technology Adjustments'!J51,'Technology Adjustments'!J19,0)+CHOOSE(Settings!$D$7,'Technology Adjustments'!J83,0)+CHOOSE(Settings!$D$11,'Technology Adjustments'!J115,0)+CHOOSE(Settings!$D$15,'Technology Adjustments'!J147,0)+CHOOSE(Settings!$D$19,'Technology Adjustments'!J179,0))/1000 -> 3.580127038 | AA19: =(CHOOSE(Settings!$D$3, 'Technology Adjustments'!K51,'Technology Adjustments'!K19,0)+CHOOSE(Settings!$D$7,'Technology Adjustments'!K83,0)+CHOOSE(Settings!$D$11,'Technology Adjustments'!K115,0)+CHOOSE(Settings!$D$15,'Technology Adjustments'!K147,0)+CHOOSE(Settings!$D$19,'Technology Adjustments'!K179,0))/1000 -> 4.271687296 | AB19: =(CHOOSE(Settings!$D$3, 'Technology Adjustments'!L51,'Technology Adjustments'!L19,0)+CHOOSE(Settings!$D$7,'Technology Adjustments'!L83,0)+CHOOSE(Settings!$D$11,'Technology Adjustments'!L115,0)+CHOOSE(Settings!$D$15,'Technology Adjustments'!L147,0)+CHOOSE(Settings!$D$19,'Technology Adjustments'!L179,0))/1000 -> 5.032564389 | AC19: =(CHOOSE(Settings!$D$3, 'Technology Adjustments'!M51,'Technology Adjustments'!M19,0)+CHOOSE(Settings!$D$7,'Technology Adjustments'!M83,0)+CHOOSE(Settings!$D$11,'Technology Adjustments'!M115,0)+CHOOSE(Settings!$D$15,'Technology Adjustments'!M147,0)+CHOOSE(Settings!$D$19,'Technology Adjustments'!M179,0))/1000 -> 5.86581558 | AD19: =(CHOOSE(Settings!$D$3, 'Technology Adjustments'!N51,'Technology Adjustments'!N19,0)+CHOOSE(Settings!$D$7,'Technology Adjustments'!N83,0)+CHOOSE(Settings!$D$11,'Technology Adjustments'!N115,0)+CHOOSE(Settings!$D$15,'Technology Adjustments'!N147,0)+CHOOSE(Settings!$D$19,'Technology Adjustments'!N179,0))/1000 -> 6.773645039
B20: BLTS 22kV | C20: 62.14664592 | D20: 132.3321065 | E20: 204.0771211 | F20: 280.109923 | G20: 360.5684675 | H20: 445.6103435 | I20: 535.3929708 | J20: 631.0636191 | K20: 732.455211 | L20: 839.2917436 | M20: 951.443417 | N20: 1068.686895 | R20: BLTS 22kV | S20: =(CHOOSE(Settings!$D$3, 'Technology Adjustments'!C52,'Technology Adjustments'!C20,0)+CHOOSE(Settings!$D$7,'Technology Adjustments'!C84,0)+CHOOSE(Settings!$D$11,'Technology Adjustments'!C116,0)+CHOOSE(Settings!$D$15,'Technology Adjustments'!C148,0)+CHOOSE(Settings!$D$19,'Technology Adjustments'!C180,0))/1000 -> 0.08286087705 | T20: =(CHOOSE(Settings!$D$3, 'Technology Adjustments'!D52,'Technology Adjustments'!D20,0)+CHOOSE(Settings!$D$7,'Technology Adjustments'!D84,0)+CHOOSE(Settings!$D$11,'Technology Adjustments'!D116,0)+CHOOSE(Settings!$D$15,'Technology Adjustments'!D148,0)+CHOOSE(Settings!$D$19,'Technology Adjustments'!D180,0))/1000 -> 0.1805446803 | U20: =(CHOOSE(Settings!$D$3, 'Technology Adjustments'!E52,'Technology Adjustments'!E20,0)+CHOOSE(Settings!$D$7,'Technology Adjustments'!E84,0)+CHOOSE(Settings!$D$11,'Technology Adjustments'!E116,0)+CHOOSE(Settings!$D$15,'Technology Adjustments'!E148,0)+CHOOSE(Settings!$D$19,'Technology Adjustments'!E180,0))/1000 -> 0.285224204 | V20: =(CHOOSE(Settings!$D$3, 'Technology Adjustments'!F52,'Technology Adjustments'!F20,0)+CHOOSE(Settings!$D$7,'Technology Adjustments'!F84,0)+CHOOSE(Settings!$D$11,'Technology Adjustments'!F116,0)+CHOOSE(Settings!$D$15,'Technology Adjustments'!F148,0)+CHOOSE(Settings!$D$19,'Technology Adjustments'!F180,0))/1000 -> 0.4015036666 | W20: =(CHOOSE(Settings!$D$3, 'Technology Adjustments'!G52,'Technology Adjustments'!G20,0)+CHOOSE(Settings!$D$7,'Technology Adjustments'!G84,0)+CHOOSE(Settings!$D$11,'Technology Adjustments'!G116,0)+CHOOSE(Settings!$D$15,'Technology Adjustments'!G148,0)+CHOOSE(Settings!$D$19,'Technology Adjustments'!G180,0))/1000 -> 0.5306411016 | X20: =(CHOOSE(Settings!$D$3, 'Technology Adjustments'!H52,'Technology Adjustments'!H20,0)+CHOOSE(Settings!$D$7,'Technology Adjustments'!H84,0)+CHOOSE(Settings!$D$11,'Technology Adjustments'!H116,0)+CHOOSE(Settings!$D$15,'Technology Adjustments'!H148,0)+CHOOSE(Settings!$D$19,'Technology Adjustments'!H180,0))/1000 -> 0.6740543402 | Y20: =(CHOOSE(Settings!$D$3, 'Technology Adjustments'!I52,'Technology Adjustments'!I20,0)+CHOOSE(Settings!$D$7,'Technology Adjustments'!I84,0)+CHOOSE(Settings!$D$11,'Technology Adjustments'!I116,0)+CHOOSE(Settings!$D$15,'Technology Adjustments'!I148,0)+CHOOSE(Settings!$D$19,'Technology Adjustments'!I180,0))/1000 -> 0.8333029232 | Z20: =(CHOOSE(Settings!$D$3, 'Technology Adjustments'!J52,'Technology Adjustments'!J20,0)+CHOOSE(Settings!$D$7,'Technology Adjustments'!J84,0)+CHOOSE(Settings!$D$11,'Technology Adjustments'!J116,0)+CHOOSE(Settings!$D$15,'Technology Adjustments'!J148,0)+CHOOSE(Settings!$D$19,'Technology Adjustments'!J180,0))/1000 -> 1.01169042 | AA20: =(CHOOSE(Settings!$D$3, 'Technology Adjustments'!K52,'Technology Adjustments'!K20,0)+CHOOSE(Settings!$D$7,'Technology Adjustments'!K84,0)+CHOOSE(Settings!$D$11,'Technology Adjustments'!K116,0)+CHOOSE(Settings!$D$15,'Technology Adjustments'!K148,0)+CHOOSE(Settings!$D$19,'Technology Adjustments'!K180,0))/1000 -> 1.210749076 | AB20: =(CHOOSE(Settings!$D$3, 'Technology Adjustments'!L52,'Technology Adjustments'!L20,0)+CHOOSE(Settings!$D$7,'Technology Adjustments'!L84,0)+CHOOSE(Settings!$D$11,'Technology Adjustments'!L116,0)+CHOOSE(Settings!$D$15,'Technology Adjustments'!L148,0)+CHOOSE(Settings!$D$19,'Technology Adjustments'!L180,0))/1000 -> 1.431876921 | AC20: =(CHOOSE(Settings!$D$3, 'Technology Adjustments'!M52,'Technology Adjustments'!M20,0)+CHOOSE(Settings!$D$7,'Technology Adjustments'!M84,0)+CHOOSE(Settings!$D$11,'Technology Adjustments'!M116,0)+CHOOSE(Settings!$D$15,'Technology Adjustments'!M148,0)+CHOOSE(Settings!$D$19,'Technology Adjustments'!M180,0))/1000 -> 1.676967113 | AD20: =(CHOOSE(Settings!$D$3, 'Technology Adjustments'!N52,'Technology Adjustments'!N20,0)+CHOOSE(Settings!$D$7,'Technology Adjustments'!N84,0)+CHOOSE(Settings!$D$11,'Technology Adjustments'!N116,0)+CHOOSE(Settings!$D$15,'Technology Adjustments'!N148,0)+CHOOSE(Settings!$D$19,'Technology Adjustments'!N180,0))/1000 -> 1.947907526
B21: KTS East | C21: 591.2961043 | D21: 1268.561377 | E21: 1960.721049 | F21: 2672.434808 | G21: 3415.49492 | H21: 4189.320263 | I21: 4993.33846 | J21: 5852.047343 | K21: 6741.767942 | L21: 7666.221366 | M21: 8621.290634 | N21: 9602.305212 | R21: KTS East | S21: =(CHOOSE(Settings!$D$3, 'Technology Adjustments'!C53,'Technology Adjustments'!C21,0)+CHOOSE(Settings!$D$7,'Technology Adjustments'!C85,0)+CHOOSE(Settings!$D$11,'Technology Adjustments'!C117,0)+CHOOSE(Settings!$D$15,'Technology Adjustments'!C149,0)+CHOOSE(Settings!$D$19,'Technology Adjustments'!C181,0))/1000 -> 0.7883911265 | T21: =(CHOOSE(Settings!$D$3, 'Technology Adjustments'!D53,'Technology Adjustments'!D21,0)+CHOOSE(Settings!$D$7,'Technology Adjustments'!D85,0)+CHOOSE(Settings!$D$11,'Technology Adjustments'!D117,0)+CHOOSE(Settings!$D$15,'Technology Adjustments'!D149,0)+CHOOSE(Settings!$D$19,'Technology Adjustments'!D181,0))/1000 -> 1.730748571 | U21: =(CHOOSE(Settings!$D$3, 'Technology Adjustments'!E53,'Technology Adjustments'!E21,0)+CHOOSE(Settings!$D$7,'Technology Adjustments'!E85,0)+CHOOSE(Settings!$D$11,'Technology Adjustments'!E117,0)+CHOOSE(Settings!$D$15,'Technology Adjustments'!E149,0)+CHOOSE(Settings!$D$19,'Technology Adjustments'!E181,0))/1000 -> 2.740394924 | V21: =(CHOOSE(Settings!$D$3, 'Technology Adjustments'!F53,'Technology Adjustments'!F21,0)+CHOOSE(Settings!$D$7,'Technology Adjustments'!F85,0)+CHOOSE(Settings!$D$11,'Technology Adjustments'!F117,0)+CHOOSE(Settings!$D$15,'Technology Adjustments'!F149,0)+CHOOSE(Settings!$D$19,'Technology Adjustments'!F181,0))/1000 -> 3.830485522 | W21: =(CHOOSE(Settings!$D$3, 'Technology Adjustments'!G53,'Technology Adjustments'!G21,0)+CHOOSE(Settings!$D$7,'Technology Adjustments'!G85,0)+CHOOSE(Settings!$D$11,'Technology Adjustments'!G117,0)+CHOOSE(Settings!$D$15,'Technology Adjustments'!G149,0)+CHOOSE(Settings!$D$19,'Technology Adjustments'!G181,0))/1000 -> 5.026408065 | X21: =(CHOOSE(Settings!$D$3, 'Technology Adjustments'!H53,'Technology Adjustments'!H21,0)+CHOOSE(Settings!$D$7,'Technology Adjustments'!H85,0)+CHOOSE(Settings!$D$11,'Technology Adjustments'!H117,0)+CHOOSE(Settings!$D$15,'Technology Adjustments'!H149,0)+CHOOSE(Settings!$D$19,'Technology Adjustments'!H181,0))/1000 -> 6.336945936 | Y21: =(CHOOSE(Settings!$D$3, 'Technology Adjustments'!I53,'Technology Adjustments'!I21,0)+CHOOSE(Settings!$D$7,'Technology Adjustments'!I85,0)+CHOOSE(Settings!$D$11,'Technology Adjustments'!I117,0)+CHOOSE(Settings!$D$15,'Technology Adjustments'!I149,0)+CHOOSE(Settings!$D$19,'Technology Adjustments'!I181,0))/1000 -> 7.771873797 | Z21: =(CHOOSE(Settings!$D$3, 'Technology Adjustments'!J53,'Technology Adjustments'!J21,0)+CHOOSE(Settings!$D$7,'Technology Adjustments'!J85,0)+CHOOSE(Settings!$D$11,'Technology Adjustments'!J117,0)+CHOOSE(Settings!$D$15,'Technology Adjustments'!J149,0)+CHOOSE(Settings!$D$19,'Technology Adjustments'!J181,0))/1000 -> 9.382001704 | AA21: =(CHOOSE(Settings!$D$3, 'Technology Adjustments'!K53,'Technology Adjustments'!K21,0)+CHOOSE(Settings!$D$7,'Technology Adjustments'!K85,0)+CHOOSE(Settings!$D$11,'Technology Adjustments'!K117,0)+CHOOSE(Settings!$D$15,'Technology Adjustments'!K149,0)+CHOOSE(Settings!$D$19,'Technology Adjustments'!K181,0))/1000 -> 11.14456067 | AB21: =(CHOOSE(Settings!$D$3, 'Technology Adjustments'!L53,'Technology Adjustments'!L21,0)+CHOOSE(Settings!$D$7,'Technology Adjustments'!L85,0)+CHOOSE(Settings!$D$11,'Technology Adjustments'!L117,0)+CHOOSE(Settings!$D$15,'Technology Adjustments'!L149,0)+CHOOSE(Settings!$D$19,'Technology Adjustments'!L181,0))/1000 -> 13.08027426 | AC21: =(CHOOSE(Settings!$D$3, 'Technology Adjustments'!M53,'Technology Adjustments'!M21,0)+CHOOSE(Settings!$D$7,'Technology Adjustments'!M85,0)+CHOOSE(Settings!$D$11,'Technology Adjustments'!M117,0)+CHOOSE(Settings!$D$15,'Technology Adjustments'!M149,0)+CHOOSE(Settings!$D$19,'Technology Adjustments'!M181,0))/1000 -> 15.19767688 | AD21: =(CHOOSE(Settings!$D$3, 'Technology Adjustments'!N53,'Technology Adjustments'!N21,0)+CHOOSE(Settings!$D$7,'Technology Adjustments'!N85,0)+CHOOSE(Settings!$D$11,'Technology Adjustments'!N117,0)+CHOOSE(Settings!$D$15,'Technology Adjustments'!N149,0)+CHOOSE(Settings!$D$19,'Technology Adjustments'!N181,0))/1000 -> 17.50543802
B22: KTS West | C22: 1318.84174 | D22: 2870.49812 | E22: 4456.516426 | F22: 6129.2194 | G22: 7883.036809 | H22: 9703.315685 | I22: 11571.00304 | J22: 13580.10085 | K22: 15651.9286 | L22: 17743.03818 | M22: 19813.11262 | N22: 21810.55728 | R22: KTS West | S22: =(CHOOSE(Settings!$D$3, 'Technology Adjustments'!C54,'Technology Adjustments'!C22,0)+CHOOSE(Settings!$D$7,'Technology Adjustments'!C86,0)+CHOOSE(Settings!$D$11,'Technology Adjustments'!C118,0)+CHOOSE(Settings!$D$15,'Technology Adjustments'!C150,0)+CHOOSE(Settings!$D$19,'Technology Adjustments'!C182,0))/1000 -> 1.758487586 | T22: =(CHOOSE(Settings!$D$3, 'Technology Adjustments'!D54,'Technology Adjustments'!D22,0)+CHOOSE(Settings!$D$7,'Technology Adjustments'!D86,0)+CHOOSE(Settings!$D$11,'Technology Adjustments'!D118,0)+CHOOSE(Settings!$D$15,'Technology Adjustments'!D150,0)+CHOOSE(Settings!$D$19,'Technology Adjustments'!D182,0))/1000 -> 3.91638585 | U22: =(CHOOSE(Settings!$D$3, 'Technology Adjustments'!E54,'Technology Adjustments'!E22,0)+CHOOSE(Settings!$D$7,'Technology Adjustments'!E86,0)+CHOOSE(Settings!$D$11,'Technology Adjustments'!E118,0)+CHOOSE(Settings!$D$15,'Technology Adjustments'!E150,0)+CHOOSE(Settings!$D$19,'Technology Adjustments'!E182,0))/1000 -> 6.228768248 | V22: =(CHOOSE(Settings!$D$3, 'Technology Adjustments'!F54,'Technology Adjustments'!F22,0)+CHOOSE(Settings!$D$7,'Technology Adjustments'!F86,0)+CHOOSE(Settings!$D$11,'Technology Adjustments'!F118,0)+CHOOSE(Settings!$D$15,'Technology Adjustments'!F150,0)+CHOOSE(Settings!$D$19,'Technology Adjustments'!F182,0))/1000 -> 8.785336109 | W22: =(CHOOSE(Settings!$D$3, 'Technology Adjustments'!G54,'Technology Adjustments'!G22,0)+CHOOSE(Settings!$D$7,'Technology Adjustments'!G86,0)+CHOOSE(Settings!$D$11,'Technology Adjustments'!G118,0)+CHOOSE(Settings!$D$15,'Technology Adjustments'!G150,0)+CHOOSE(Settings!$D$19,'Technology Adjustments'!G182,0))/1000 -> 11.6000614 | X22: =(CHOOSE(Settings!$D$3, 'Technology Adjustments'!H54,'Technology Adjustments'!H22,0)+CHOOSE(Settings!$D$7,'Technology Adjustments'!H86,0)+CHOOSE(Settings!$D$11,'Technology Adjustments'!H118,0)+CHOOSE(Settings!$D$15,'Technology Adjustments'!H150,0)+CHOOSE(Settings!$D$19,'Technology Adjustments'!H182,0))/1000 -> 14.67413094 | Y22: =(CHOOSE(Settings!$D$3, 'Technology Adjustments'!I54,'Technology Adjustments'!I22,0)+CHOOSE(Settings!$D$7,'Technology Adjustments'!I86,0)+CHOOSE(Settings!$D$11,'Technology Adjustments'!I118,0)+CHOOSE(Settings!$D$15,'Technology Adjustments'!I150,0)+CHOOSE(Settings!$D$19,'Technology Adjustments'!I182,0))/1000 -> 18.00154397 | Z22: =(CHOOSE(Settings!$D$3, 'Technology Adjustments'!J54,'Technology Adjustments'!J22,0)+CHOOSE(Settings!$D$7,'Technology Adjustments'!J86,0)+CHOOSE(Settings!$D$11,'Technology Adjustments'!J118,0)+CHOOSE(Settings!$D$15,'Technology Adjustments'!J150,0)+CHOOSE(Settings!$D$19,'Technology Adjustments'!J182,0))/1000 -> 21.75579996 | AA22: =(CHOOSE(Settings!$D$3, 'Technology Adjustments'!K54,'Technology Adjustments'!K22,0)+CHOOSE(Settings!$D$7,'Technology Adjustments'!K86,0)+CHOOSE(Settings!$D$11,'Technology Adjustments'!K118,0)+CHOOSE(Settings!$D$15,'Technology Adjustments'!K150,0)+CHOOSE(Settings!$D$19,'Technology Adjustments'!K182,0))/1000 -> 25.84624325 | AB22: =(CHOOSE(Settings!$D$3, 'Technology Adjustments'!L54,'Technology Adjustments'!L22,0)+CHOOSE(Settings!$D$7,'Technology Adjustments'!L86,0)+CHOOSE(Settings!$D$11,'Technology Adjustments'!L118,0)+CHOOSE(Settings!$D$15,'Technology Adjustments'!L150,0)+CHOOSE(Settings!$D$19,'Technology Adjustments'!L182,0))/1000 -> 30.22721908 | AC22: =(CHOOSE(Settings!$D$3, 'Technology Adjustments'!M54,'Technology Adjustments'!M22,0)+CHOOSE(Settings!$D$7,'Technology Adjustments'!M86,0)+CHOOSE(Settings!$D$11,'Technology Adjustments'!M118,0)+CHOOSE(Settings!$D$15,'Technology Adjustments'!M150,0)+CHOOSE(Settings!$D$19,'Technology Adjustments'!M182,0))/1000 -> 34.85417605 | AD22: =(CHOOSE(Settings!$D$3, 'Technology Adjustments'!N54,'Technology Adjustments'!N22,0)+CHOOSE(Settings!$D$7,'Technology Adjustments'!N86,0)+CHOOSE(Settings!$D$11,'Technology Adjustments'!N118,0)+CHOOSE(Settings!$D$15,'Technology Adjustments'!N150,0)+CHOOSE(Settings!$D$19,'Technology Adjustments'!N182,0))/1000 -> 39.65395112
B23: WMTS 66kV | C23: 495.3386805 | D23: 1068.512303 | E23: 1775.726856 | F23: 2635.028269 | G23: 3677.162103 | H23: 4940.506237 | I23: 6469.989526 | J23: 8117.884495 | K23: 10052.58828 | L23: 12319.33332 | M23: 14976.43438 | N23: 18088.4704 | R23: WMTS 66kV | S23: =(CHOOSE(Settings!$D$3, 'Technology Adjustments'!C55,'Technology Adjustments'!C23,0)+CHOOSE(Settings!$D$7,'Technology Adjustments'!C87,0)+CHOOSE(Settings!$D$11,'Technology Adjustments'!C119,0)+CHOOSE(Settings!$D$15,'Technology Adjustments'!C151,0)+CHOOSE(Settings!$D$19,'Technology Adjustments'!C183,0))/1000 -> 0.6604529936 | T23: =(CHOOSE(Settings!$D$3, 'Technology Adjustments'!D55,'Technology Adjustments'!D23,0)+CHOOSE(Settings!$D$7,'Technology Adjustments'!D87,0)+CHOOSE(Settings!$D$11,'Technology Adjustments'!D119,0)+CHOOSE(Settings!$D$15,'Technology Adjustments'!D151,0)+CHOOSE(Settings!$D$19,'Technology Adjustments'!D183,0))/1000 -> 1.457820424 | U23: =(CHOOSE(Settings!$D$3, 'Technology Adjustments'!E55,'Technology Adjustments'!E23,0)+CHOOSE(Settings!$D$7,'Technology Adjustments'!E87,0)+CHOOSE(Settings!$D$11,'Technology Adjustments'!E119,0)+CHOOSE(Settings!$D$15,'Technology Adjustments'!E151,0)+CHOOSE(Settings!$D$19,'Technology Adjustments'!E183,0))/1000 -> 2.481860956 | V23: =(CHOOSE(Settings!$D$3, 'Technology Adjustments'!F55,'Technology Adjustments'!F23,0)+CHOOSE(Settings!$D$7,'Technology Adjustments'!F87,0)+CHOOSE(Settings!$D$11,'Technology Adjustments'!F119,0)+CHOOSE(Settings!$D$15,'Technology Adjustments'!F151,0)+CHOOSE(Settings!$D$19,'Technology Adjustments'!F183,0))/1000 -> 3.777015586 | W23: =(CHOOSE(Settings!$D$3, 'Technology Adjustments'!G55,'Technology Adjustments'!G23,0)+CHOOSE(Settings!$D$7,'Technology Adjustments'!G87,0)+CHOOSE(Settings!$D$11,'Technology Adjustments'!G119,0)+CHOOSE(Settings!$D$15,'Technology Adjustments'!G151,0)+CHOOSE(Settings!$D$19,'Technology Adjustments'!G183,0))/1000 -> 5.4114121 | X23: =(CHOOSE(Settings!$D$3, 'Technology Adjustments'!H55,'Technology Adjustments'!H23,0)+CHOOSE(Settings!$D$7,'Technology Adjustments'!H87,0)+CHOOSE(Settings!$D$11,'Technology Adjustments'!H119,0)+CHOOSE(Settings!$D$15,'Technology Adjustments'!H151,0)+CHOOSE(Settings!$D$19,'Technology Adjustments'!H183,0))/1000 -> 7.472473966 | Y23: =(CHOOSE(Settings!$D$3, 'Technology Adjustments'!I55,'Technology Adjustments'!I23,0)+CHOOSE(Settings!$D$7,'Technology Adjustments'!I87,0)+CHOOSE(Settings!$D$11,'Technology Adjustments'!I119,0)+CHOOSE(Settings!$D$15,'Technology Adjustments'!I151,0)+CHOOSE(Settings!$D$19,'Technology Adjustments'!I183,0))/1000 -> 10.06773281 | Z23: =(CHOOSE(Settings!$D$3, 'Technology Adjustments'!J55,'Technology Adjustments'!J23,0)+CHOOSE(Settings!$D$7,'Technology Adjustments'!J87,0)+CHOOSE(Settings!$D$11,'Technology Adjustments'!J119,0)+CHOOSE(Settings!$D$15,'Technology Adjustments'!J151,0)+CHOOSE(Settings!$D$19,'Technology Adjustments'!J183,0))/1000 -> 13.00828575 | AA23: =(CHOOSE(Settings!$D$3, 'Technology Adjustments'!K55,'Technology Adjustments'!K23,0)+CHOOSE(Settings!$D$7,'Technology Adjustments'!K87,0)+CHOOSE(Settings!$D$11,'Technology Adjustments'!K119,0)+CHOOSE(Settings!$D$15,'Technology Adjustments'!K151,0)+CHOOSE(Settings!$D$19,'Technology Adjustments'!K183,0))/1000 -> 16.60275703 | AB23: =(CHOOSE(Settings!$D$3, 'Technology Adjustments'!L55,'Technology Adjustments'!L23,0)+CHOOSE(Settings!$D$7,'Technology Adjustments'!L87,0)+CHOOSE(Settings!$D$11,'Technology Adjustments'!L119,0)+CHOOSE(Settings!$D$15,'Technology Adjustments'!L151,0)+CHOOSE(Settings!$D$19,'Technology Adjustments'!L183,0))/1000 -> 20.98737788 | AC23: =(CHOOSE(Settings!$D$3, 'Technology Adjustments'!M55,'Technology Adjustments'!M23,0)+CHOOSE(Settings!$D$7,'Technology Adjustments'!M87,0)+CHOOSE(Settings!$D$11,'Technology Adjustments'!M119,0)+CHOOSE(Settings!$D$15,'Technology Adjustments'!M151,0)+CHOOSE(Settings!$D$19,'Technology Adjustments'!M183,0))/1000 -> 26.33633327 | AD23: =(CHOOSE(Settings!$D$3, 'Technology Adjustments'!N55,'Technology Adjustments'!N23,0)+CHOOSE(Settings!$D$7,'Technology Adjustments'!N87,0)+CHOOSE(Settings!$D$11,'Technology Adjustments'!N119,0)+CHOOSE(Settings!$D$15,'Technology Adjustments'!N151,0)+CHOOSE(Settings!$D$19,'Technology Adjustments'!N183,0))/1000 -> 32.85190921
B24: WMTS 22kV | C24: 240.0292455 | D24: 528.6743938 | E24: 963.9401181 | F24: 1558.880383 | G24: 2349.306776 | H24: 3382.634904 | I24: 4714.250679 | J24: 6180.268614 | K24: 7975.611758 | L24: 10159.31129 | M24: 12807.88121 | N24: 16005.27879 | R24: WMTS 22kV | S24: =(CHOOSE(Settings!$D$3, 'Technology Adjustments'!C56,'Technology Adjustments'!C24,0)+CHOOSE(Settings!$D$7,'Technology Adjustments'!C88,0)+CHOOSE(Settings!$D$11,'Technology Adjustments'!C120,0)+CHOOSE(Settings!$D$15,'Technology Adjustments'!C152,0)+CHOOSE(Settings!$D$19,'Technology Adjustments'!C184,0))/1000 -> 0.3200490559 | T24: =(CHOOSE(Settings!$D$3, 'Technology Adjustments'!D56,'Technology Adjustments'!D24,0)+CHOOSE(Settings!$D$7,'Technology Adjustments'!D88,0)+CHOOSE(Settings!$D$11,'Technology Adjustments'!D120,0)+CHOOSE(Settings!$D$15,'Technology Adjustments'!D152,0)+CHOOSE(Settings!$D$19,'Technology Adjustments'!D184,0))/1000 -> 0.7213080518 | U24: =(CHOOSE(Settings!$D$3, 'Technology Adjustments'!E56,'Technology Adjustments'!E24,0)+CHOOSE(Settings!$D$7,'Technology Adjustments'!E88,0)+CHOOSE(Settings!$D$11,'Technology Adjustments'!E120,0)+CHOOSE(Settings!$D$15,'Technology Adjustments'!E152,0)+CHOOSE(Settings!$D$19,'Technology Adjustments'!E184,0))/1000 -> 1.347299492 | V24: =(CHOOSE(Settings!$D$3, 'Technology Adjustments'!F56,'Technology Adjustments'!F24,0)+CHOOSE(Settings!$D$7,'Technology Adjustments'!F88,0)+CHOOSE(Settings!$D$11,'Technology Adjustments'!F120,0)+CHOOSE(Settings!$D$15,'Technology Adjustments'!F152,0)+CHOOSE(Settings!$D$19,'Technology Adjustments'!F184,0))/1000 -> 2.234521688 | W24: =(CHOOSE(Settings!$D$3, 'Technology Adjustments'!G56,'Technology Adjustments'!G24,0)+CHOOSE(Settings!$D$7,'Technology Adjustments'!G88,0)+CHOOSE(Settings!$D$11,'Technology Adjustments'!G120,0)+CHOOSE(Settings!$D$15,'Technology Adjustments'!G152,0)+CHOOSE(Settings!$D$19,'Technology Adjustments'!G184,0))/1000 -> 3.457210466 | X24: =(CHOOSE(Settings!$D$3, 'Technology Adjustments'!H56,'Technology Adjustments'!H24,0)+CHOOSE(Settings!$D$7,'Technology Adjustments'!H88,0)+CHOOSE(Settings!$D$11,'Technology Adjustments'!H120,0)+CHOOSE(Settings!$D$15,'Technology Adjustments'!H152,0)+CHOOSE(Settings!$D$19,'Technology Adjustments'!H184,0))/1000 -> 5.115741221 | Y24: =(CHOOSE(Settings!$D$3, 'Technology Adjustments'!I56,'Technology Adjustments'!I24,0)+CHOOSE(Settings!$D$7,'Technology Adjustments'!I88,0)+CHOOSE(Settings!$D$11,'Technology Adjustments'!I120,0)+CHOOSE(Settings!$D$15,'Technology Adjustments'!I152,0)+CHOOSE(Settings!$D$19,'Technology Adjustments'!I184,0))/1000 -> 7.33428789 | Z24: =(CHOOSE(Settings!$D$3, 'Technology Adjustments'!J56,'Technology Adjustments'!J24,0)+CHOOSE(Settings!$D$7,'Technology Adjustments'!J88,0)+CHOOSE(Settings!$D$11,'Technology Adjustments'!J120,0)+CHOOSE(Settings!$D$15,'Technology Adjustments'!J152,0)+CHOOSE(Settings!$D$19,'Technology Adjustments'!J184,0))/1000 -> 9.899870648 | AA24: =(CHOOSE(Settings!$D$3, 'Technology Adjustments'!K56,'Technology Adjustments'!K24,0)+CHOOSE(Settings!$D$7,'Technology Adjustments'!K88,0)+CHOOSE(Settings!$D$11,'Technology Adjustments'!K120,0)+CHOOSE(Settings!$D$15,'Technology Adjustments'!K152,0)+CHOOSE(Settings!$D$19,'Technology Adjustments'!K184,0))/1000 -> 13.16391517 | AB24: =(CHOOSE(Settings!$D$3, 'Technology Adjustments'!L56,'Technology Adjustments'!L24,0)+CHOOSE(Settings!$D$7,'Technology Adjustments'!L88,0)+CHOOSE(Settings!$D$11,'Technology Adjustments'!L120,0)+CHOOSE(Settings!$D$15,'Technology Adjustments'!L152,0)+CHOOSE(Settings!$D$19,'Technology Adjustments'!L184,0))/1000 -> 17.28953381 | AC24: =(CHOOSE(Settings!$D$3, 'Technology Adjustments'!M56,'Technology Adjustments'!M24,0)+CHOOSE(Settings!$D$7,'Technology Adjustments'!M88,0)+CHOOSE(Settings!$D$11,'Technology Adjustments'!M120,0)+CHOOSE(Settings!$D$15,'Technology Adjustments'!M152,0)+CHOOSE(Settings!$D$19,'Technology Adjustments'!M184,0))/1000 -> 22.4874839 | AD24: =(CHOOSE(Settings!$D$3, 'Technology Adjustments'!N56,'Technology Adjustments'!N24,0)+CHOOSE(Settings!$D$7,'Technology Adjustments'!N88,0)+CHOOSE(Settings!$D$11,'Technology Adjustments'!N120,0)+CHOOSE(Settings!$D$15,'Technology Adjustments'!N152,0)+CHOOSE(Settings!$D$19,'Technology Adjustments'!N184,0))/1000 -> 29.00091326
B25: BTS 22kV | C25: 219.9881422 | D25: 470.4603132 | E25: 752.0993002 | F25: 1070.717883 | G25: 1432.681125 | H25: 1844.712671 | I25: 2314.752704 | J25: 2809.11152 | K25: 3362.202394 | L25: 3981.418086 | M25: 4675.285545 | N25: 5453.735851 | R25: BTS 22kV | S25: =(CHOOSE(Settings!$D$3, 'Technology Adjustments'!C57,'Technology Adjustments'!C25,0)+CHOOSE(Settings!$D$7,'Technology Adjustments'!C89,0)+CHOOSE(Settings!$D$11,'Technology Adjustments'!C121,0)+CHOOSE(Settings!$D$15,'Technology Adjustments'!C153,0)+CHOOSE(Settings!$D$19,'Technology Adjustments'!C185,0))/1000 -> 0.2933146419 | T25: =(CHOOSE(Settings!$D$3, 'Technology Adjustments'!D57,'Technology Adjustments'!D25,0)+CHOOSE(Settings!$D$7,'Technology Adjustments'!D89,0)+CHOOSE(Settings!$D$11,'Technology Adjustments'!D121,0)+CHOOSE(Settings!$D$15,'Technology Adjustments'!D153,0)+CHOOSE(Settings!$D$19,'Technology Adjustments'!D185,0))/1000 -> 0.6418656369 | U25: =(CHOOSE(Settings!$D$3, 'Technology Adjustments'!E57,'Technology Adjustments'!E25,0)+CHOOSE(Settings!$D$7,'Technology Adjustments'!E89,0)+CHOOSE(Settings!$D$11,'Technology Adjustments'!E121,0)+CHOOSE(Settings!$D$15,'Technology Adjustments'!E153,0)+CHOOSE(Settings!$D$19,'Technology Adjustments'!E185,0))/1000 -> 1.051163575 | V25: =(CHOOSE(Settings!$D$3, 'Technology Adjustments'!F57,'Technology Adjustments'!F25,0)+CHOOSE(Settings!$D$7,'Technology Adjustments'!F89,0)+CHOOSE(Settings!$D$11,'Technology Adjustments'!F121,0)+CHOOSE(Settings!$D$15,'Technology Adjustments'!F153,0)+CHOOSE(Settings!$D$19,'Technology Adjustments'!F185,0))/1000 -> 1.534735661 | W25: =(CHOOSE(Settings!$D$3, 'Technology Adjustments'!G57,'Technology Adjustments'!G25,0)+CHOOSE(Settings!$D$7,'Technology Adjustments'!G89,0)+CHOOSE(Settings!$D$11,'Technology Adjustments'!G121,0)+CHOOSE(Settings!$D$15,'Technology Adjustments'!G153,0)+CHOOSE(Settings!$D$19,'Technology Adjustments'!G185,0))/1000 -> 2.108407778 | X25: =(CHOOSE(Settings!$D$3, 'Technology Adjustments'!H57,'Technology Adjustments'!H25,0)+CHOOSE(Settings!$D$7,'Technology Adjustments'!H89,0)+CHOOSE(Settings!$D$11,'Technology Adjustments'!H121,0)+CHOOSE(Settings!$D$15,'Technology Adjustments'!H153,0)+CHOOSE(Settings!$D$19,'Technology Adjustments'!H185,0))/1000 -> 2.790291544 | Y25: =(CHOOSE(Settings!$D$3, 'Technology Adjustments'!I57,'Technology Adjustments'!I25,0)+CHOOSE(Settings!$D$7,'Technology Adjustments'!I89,0)+CHOOSE(Settings!$D$11,'Technology Adjustments'!I121,0)+CHOOSE(Settings!$D$15,'Technology Adjustments'!I153,0)+CHOOSE(Settings!$D$19,'Technology Adjustments'!I185,0))/1000 -> 3.60244961 | Z25: =(CHOOSE(Settings!$D$3, 'Technology Adjustments'!J57,'Technology Adjustments'!J25,0)+CHOOSE(Settings!$D$7,'Technology Adjustments'!J89,0)+CHOOSE(Settings!$D$11,'Technology Adjustments'!J121,0)+CHOOSE(Settings!$D$15,'Technology Adjustments'!J153,0)+CHOOSE(Settings!$D$19,'Technology Adjustments'!J185,0))/1000 -> 4.502754685 | AA25: =(CHOOSE(Settings!$D$3, 'Technology Adjustments'!K57,'Technology Adjustments'!K25,0)+CHOOSE(Settings!$D$7,'Technology Adjustments'!K89,0)+CHOOSE(Settings!$D$11,'Technology Adjustments'!K121,0)+CHOOSE(Settings!$D$15,'Technology Adjustments'!K153,0)+CHOOSE(Settings!$D$19,'Technology Adjustments'!K185,0))/1000 -> 5.556276691 | AB25: =(CHOOSE(Settings!$D$3, 'Technology Adjustments'!L57,'Technology Adjustments'!L25,0)+CHOOSE(Settings!$D$7,'Technology Adjustments'!L89,0)+CHOOSE(Settings!$D$11,'Technology Adjustments'!L121,0)+CHOOSE(Settings!$D$15,'Technology Adjustments'!L153,0)+CHOOSE(Settings!$D$19,'Technology Adjustments'!L185,0))/1000 -> 6.789837062 | AC25: =(CHOOSE(Settings!$D$3, 'Technology Adjustments'!M57,'Technology Adjustments'!M25,0)+CHOOSE(Settings!$D$7,'Technology Adjustments'!M89,0)+CHOOSE(Settings!$D$11,'Technology Adjustments'!M121,0)+CHOOSE(Settings!$D$15,'Technology Adjustments'!M153,0)+CHOOSE(Settings!$D$19,'Technology Adjustments'!M185,0))/1000 -> 8.235483345 | AD25: =(CHOOSE(Settings!$D$3, 'Technology Adjustments'!N57,'Technology Adjustments'!N25,0)+CHOOSE(Settings!$D$7,'Technology Adjustments'!N89,0)+CHOOSE(Settings!$D$11,'Technology Adjustments'!N121,0)+CHOOSE(Settings!$D$15,'Technology Adjustments'!N153,0)+CHOOSE(Settings!$D$19,'Technology Adjustments'!N185,0))/1000 -> 9.931616443
B26: FBTS 66kV | C26: 569.5742403 | D26: 1219.47196 | E26: 2028.480248 | F26: 3009.205557 | G26: 4190.517789 | H26: 5611.063454 | I26: 7314.507243 | J26: 9116.018667 | K26: 11209.3579 | L26: 13637.66011 | M26: 16458.31259 | N26: 19733.60254 | R26: FBTS 66kV | S26: =(CHOOSE(Settings!$D$3, 'Technology Adjustments'!C58,'Technology Adjustments'!C26,0)+CHOOSE(Settings!$D$7,'Technology Adjustments'!C90,0)+CHOOSE(Settings!$D$11,'Technology Adjustments'!C122,0)+CHOOSE(Settings!$D$15,'Technology Adjustments'!C154,0)+CHOOSE(Settings!$D$19,'Technology Adjustments'!C186,0))/1000 -> 0.759427315 | T26: =(CHOOSE(Settings!$D$3, 'Technology Adjustments'!D58,'Technology Adjustments'!D26,0)+CHOOSE(Settings!$D$7,'Technology Adjustments'!D90,0)+CHOOSE(Settings!$D$11,'Technology Adjustments'!D122,0)+CHOOSE(Settings!$D$15,'Technology Adjustments'!D154,0)+CHOOSE(Settings!$D$19,'Technology Adjustments'!D186,0))/1000 -> 1.663770973 | U26: =(CHOOSE(Settings!$D$3, 'Technology Adjustments'!E58,'Technology Adjustments'!E26,0)+CHOOSE(Settings!$D$7,'Technology Adjustments'!E90,0)+CHOOSE(Settings!$D$11,'Technology Adjustments'!E122,0)+CHOOSE(Settings!$D$15,'Technology Adjustments'!E154,0)+CHOOSE(Settings!$D$19,'Technology Adjustments'!E186,0))/1000 -> 2.835101616 | V26: =(CHOOSE(Settings!$D$3, 'Technology Adjustments'!F58,'Technology Adjustments'!F26,0)+CHOOSE(Settings!$D$7,'Technology Adjustments'!F90,0)+CHOOSE(Settings!$D$11,'Technology Adjustments'!F122,0)+CHOOSE(Settings!$D$15,'Technology Adjustments'!F154,0)+CHOOSE(Settings!$D$19,'Technology Adjustments'!F186,0))/1000 -> 4.313372645 | W26: =(CHOOSE(Settings!$D$3, 'Technology Adjustments'!G58,'Technology Adjustments'!G26,0)+CHOOSE(Settings!$D$7,'Technology Adjustments'!G90,0)+CHOOSE(Settings!$D$11,'Technology Adjustments'!G122,0)+CHOOSE(Settings!$D$15,'Technology Adjustments'!G154,0)+CHOOSE(Settings!$D$19,'Technology Adjustments'!G186,0))/1000 -> 6.166993647 | X26: =(CHOOSE(Settings!$D$3, 'Technology Adjustments'!H58,'Technology Adjustments'!H26,0)+CHOOSE(Settings!$D$7,'Technology Adjustments'!H90,0)+CHOOSE(Settings!$D$11,'Technology Adjustments'!H122,0)+CHOOSE(Settings!$D$15,'Technology Adjustments'!H154,0)+CHOOSE(Settings!$D$19,'Technology Adjustments'!H186,0))/1000 -> 8.487112758 | Y26: =(CHOOSE(Settings!$D$3, 'Technology Adjustments'!I58,'Technology Adjustments'!I26,0)+CHOOSE(Settings!$D$7,'Technology Adjustments'!I90,0)+CHOOSE(Settings!$D$11,'Technology Adjustments'!I122,0)+CHOOSE(Settings!$D$15,'Technology Adjustments'!I154,0)+CHOOSE(Settings!$D$19,'Technology Adjustments'!I186,0))/1000 -> 11.38308197 | Z26: =(CHOOSE(Settings!$D$3, 'Technology Adjustments'!J58,'Technology Adjustments'!J26,0)+CHOOSE(Settings!$D$7,'Technology Adjustments'!J90,0)+CHOOSE(Settings!$D$11,'Technology Adjustments'!J122,0)+CHOOSE(Settings!$D$15,'Technology Adjustments'!J154,0)+CHOOSE(Settings!$D$19,'Technology Adjustments'!J186,0))/1000 -> 14.61090319 | AA26: =(CHOOSE(Settings!$D$3, 'Technology Adjustments'!K58,'Technology Adjustments'!K26,0)+CHOOSE(Settings!$D$7,'Technology Adjustments'!K90,0)+CHOOSE(Settings!$D$11,'Technology Adjustments'!K122,0)+CHOOSE(Settings!$D$15,'Technology Adjustments'!K154,0)+CHOOSE(Settings!$D$19,'Technology Adjustments'!K186,0))/1000 -> 18.52131628 | AB26: =(CHOOSE(Settings!$D$3, 'Technology Adjustments'!L58,'Technology Adjustments'!L26,0)+CHOOSE(Settings!$D$7,'Technology Adjustments'!L90,0)+CHOOSE(Settings!$D$11,'Technology Adjustments'!L122,0)+CHOOSE(Settings!$D$15,'Technology Adjustments'!L154,0)+CHOOSE(Settings!$D$19,'Technology Adjustments'!L186,0))/1000 -> 23.25093146 | AC26: =(CHOOSE(Settings!$D$3, 'Technology Adjustments'!M58,'Technology Adjustments'!M26,0)+CHOOSE(Settings!$D$7,'Technology Adjustments'!M90,0)+CHOOSE(Settings!$D$11,'Technology Adjustments'!M122,0)+CHOOSE(Settings!$D$15,'Technology Adjustments'!M154,0)+CHOOSE(Settings!$D$19,'Technology Adjustments'!M186,0))/1000 -> 28.97889417 | AD26: =(CHOOSE(Settings!$D$3, 'Technology Adjustments'!N58,'Technology Adjustments'!N26,0)+CHOOSE(Settings!$D$7,'Technology Adjustments'!N90,0)+CHOOSE(Settings!$D$11,'Technology Adjustments'!N122,0)+CHOOSE(Settings!$D$15,'Technology Adjustments'!N154,0)+CHOOSE(Settings!$D$19,'Technology Adjustments'!N186,0))/1000 -> 35.91287877
B27: RTS 66kV Bus 1&4 | C27: 490.8001468 | D27: 1054.590479 | E27: 1761.786502 | F27: 2621.583534 | G27: 3663.388899 | H27: 4923.793685 | I27: 6444.401682 | J27: 8064.380577 | K27: 9952.139333 | L27: 12153.80998 | M27: 14723.88926 | N27: 17722.40916 | R27: RTS 66kV Bus 1&4 | S27: =(CHOOSE(Settings!$D$3, 'Technology Adjustments'!C59,'Technology Adjustments'!C27,0)+CHOOSE(Settings!$D$7,'Technology Adjustments'!C91,0)+CHOOSE(Settings!$D$11,'Technology Adjustments'!C123,0)+CHOOSE(Settings!$D$15,'Technology Adjustments'!C155,0)+CHOOSE(Settings!$D$19,'Technology Adjustments'!C187,0))/1000 -> 0.6543990406 | T27: =(CHOOSE(Settings!$D$3, 'Technology Adjustments'!D59,'Technology Adjustments'!D27,0)+CHOOSE(Settings!$D$7,'Technology Adjustments'!D91,0)+CHOOSE(Settings!$D$11,'Technology Adjustments'!D123,0)+CHOOSE(Settings!$D$15,'Technology Adjustments'!D155,0)+CHOOSE(Settings!$D$19,'Technology Adjustments'!D187,0))/1000 -> 1.438821626 | U27: =(CHOOSE(Settings!$D$3, 'Technology Adjustments'!E59,'Technology Adjustments'!E27,0)+CHOOSE(Settings!$D$7,'Technology Adjustments'!E91,0)+CHOOSE(Settings!$D$11,'Technology Adjustments'!E123,0)+CHOOSE(Settings!$D$15,'Technology Adjustments'!E155,0)+CHOOSE(Settings!$D$19,'Technology Adjustments'!E187,0))/1000 -> 2.462370554 | V27: =(CHOOSE(Settings!$D$3, 'Technology Adjustments'!F59,'Technology Adjustments'!F27,0)+CHOOSE(Settings!$D$7,'Technology Adjustments'!F91,0)+CHOOSE(Settings!$D$11,'Technology Adjustments'!F123,0)+CHOOSE(Settings!$D$15,'Technology Adjustments'!F155,0)+CHOOSE(Settings!$D$19,'Technology Adjustments'!F187,0))/1000 -> 3.75774374 | W27: =(CHOOSE(Settings!$D$3, 'Technology Adjustments'!G59,'Technology Adjustments'!G27,0)+CHOOSE(Settings!$D$7,'Technology Adjustments'!G91,0)+CHOOSE(Settings!$D$11,'Technology Adjustments'!G123,0)+CHOOSE(Settings!$D$15,'Technology Adjustments'!G155,0)+CHOOSE(Settings!$D$19,'Technology Adjustments'!G187,0))/1000 -> 5.391207404 | X27: =(CHOOSE(Settings!$D$3, 'Technology Adjustments'!H59,'Technology Adjustments'!H27,0)+CHOOSE(Settings!$D$7,'Technology Adjustments'!H91,0)+CHOOSE(Settings!$D$11,'Technology Adjustments'!H123,0)+CHOOSE(Settings!$D$15,'Technology Adjustments'!H155,0)+CHOOSE(Settings!$D$19,'Technology Adjustments'!H187,0))/1000 -> 7.447469268 | Y27: =(CHOOSE(Settings!$D$3, 'Technology Adjustments'!I59,'Technology Adjustments'!I27,0)+CHOOSE(Settings!$D$7,'Technology Adjustments'!I91,0)+CHOOSE(Settings!$D$11,'Technology Adjustments'!I123,0)+CHOOSE(Settings!$D$15,'Technology Adjustments'!I155,0)+CHOOSE(Settings!$D$19,'Technology Adjustments'!I187,0))/1000 -> 10.02869929 | Z27: =(CHOOSE(Settings!$D$3, 'Technology Adjustments'!J59,'Technology Adjustments'!J27,0)+CHOOSE(Settings!$D$7,'Technology Adjustments'!J91,0)+CHOOSE(Settings!$D$11,'Technology Adjustments'!J123,0)+CHOOSE(Settings!$D$15,'Technology Adjustments'!J155,0)+CHOOSE(Settings!$D$19,'Technology Adjustments'!J187,0))/1000 -> 12.92456118 | AA27: =(CHOOSE(Settings!$D$3, 'Technology Adjustments'!K59,'Technology Adjustments'!K27,0)+CHOOSE(Settings!$D$7,'Technology Adjustments'!K91,0)+CHOOSE(Settings!$D$11,'Technology Adjustments'!K123,0)+CHOOSE(Settings!$D$15,'Technology Adjustments'!K155,0)+CHOOSE(Settings!$D$19,'Technology Adjustments'!K187,0))/1000 -> 16.44171963 | AB27: =(CHOOSE(Settings!$D$3, 'Technology Adjustments'!L59,'Technology Adjustments'!L27,0)+CHOOSE(Settings!$D$7,'Technology Adjustments'!L91,0)+CHOOSE(Settings!$D$11,'Technology Adjustments'!L123,0)+CHOOSE(Settings!$D$15,'Technology Adjustments'!L155,0)+CHOOSE(Settings!$D$19,'Technology Adjustments'!L187,0))/1000 -> 20.71651472 | AC27: =(CHOOSE(Settings!$D$3, 'Technology Adjustments'!M59,'Technology Adjustments'!M27,0)+CHOOSE(Settings!$D$7,'Technology Adjustments'!M91,0)+CHOOSE(Settings!$D$11,'Technology Adjustments'!M123,0)+CHOOSE(Settings!$D$15,'Technology Adjustments'!M155,0)+CHOOSE(Settings!$D$19,'Technology Adjustments'!M187,0))/1000 -> 25.91543562 | AD27: =(CHOOSE(Settings!$D$3, 'Technology Adjustments'!N59,'Technology Adjustments'!N27,0)+CHOOSE(Settings!$D$7,'Technology Adjustments'!N91,0)+CHOOSE(Settings!$D$11,'Technology Adjustments'!N123,0)+CHOOSE(Settings!$D$15,'Technology Adjustments'!N155,0)+CHOOSE(Settings!$D$19,'Technology Adjustments'!N187,0))/1000 -> 32.23359324
B28: RTS 66kV Bus 2&3 | C28: 839.3826121 | D28: 1793.539777 | E28: 2900.960843 | F28: 4179.525282 | G28: 5658.771304 | H28: 7374.718787 | I28: 9366.891421 | J28: 11467.55997 | K28: 13847.23427 | L28: 16547.27559 | M28: 19617.76081 | N28: 23111.8263 | R28: RTS 66kV Bus 2&3 | S28: =(CHOOSE(Settings!$D$3, 'Technology Adjustments'!C60,'Technology Adjustments'!C28,0)+CHOOSE(Settings!$D$7,'Technology Adjustments'!C92,0)+CHOOSE(Settings!$D$11,'Technology Adjustments'!C124,0)+CHOOSE(Settings!$D$15,'Technology Adjustments'!C156,0)+CHOOSE(Settings!$D$19,'Technology Adjustments'!C188,0))/1000 -> 1.119166236 | T28: =(CHOOSE(Settings!$D$3, 'Technology Adjustments'!D60,'Technology Adjustments'!D28,0)+CHOOSE(Settings!$D$7,'Technology Adjustments'!D92,0)+CHOOSE(Settings!$D$11,'Technology Adjustments'!D124,0)+CHOOSE(Settings!$D$15,'Technology Adjustments'!D156,0)+CHOOSE(Settings!$D$19,'Technology Adjustments'!D188,0))/1000 -> 2.446988713 | U28: =(CHOOSE(Settings!$D$3, 'Technology Adjustments'!E60,'Technology Adjustments'!E28,0)+CHOOSE(Settings!$D$7,'Technology Adjustments'!E92,0)+CHOOSE(Settings!$D$11,'Technology Adjustments'!E124,0)+CHOOSE(Settings!$D$15,'Technology Adjustments'!E156,0)+CHOOSE(Settings!$D$19,'Technology Adjustments'!E188,0))/1000 -> 4.054510718 | V28: =(CHOOSE(Settings!$D$3, 'Technology Adjustments'!F60,'Technology Adjustments'!F28,0)+CHOOSE(Settings!$D$7,'Technology Adjustments'!F92,0)+CHOOSE(Settings!$D$11,'Technology Adjustments'!F124,0)+CHOOSE(Settings!$D$15,'Technology Adjustments'!F156,0)+CHOOSE(Settings!$D$19,'Technology Adjustments'!F188,0))/1000 -> 5.99086499 | W28: =(CHOOSE(Settings!$D$3, 'Technology Adjustments'!G60,'Technology Adjustments'!G28,0)+CHOOSE(Settings!$D$7,'Technology Adjustments'!G92,0)+CHOOSE(Settings!$D$11,'Technology Adjustments'!G124,0)+CHOOSE(Settings!$D$15,'Technology Adjustments'!G156,0)+CHOOSE(Settings!$D$19,'Technology Adjustments'!G188,0))/1000 -> 8.327848089 | X28: =(CHOOSE(Settings!$D$3, 'Technology Adjustments'!H60,'Technology Adjustments'!H28,0)+CHOOSE(Settings!$D$7,'Technology Adjustments'!H92,0)+CHOOSE(Settings!$D$11,'Technology Adjustments'!H124,0)+CHOOSE(Settings!$D$15,'Technology Adjustments'!H156,0)+CHOOSE(Settings!$D$19,'Technology Adjustments'!H188,0))/1000 -> 11.15516969 | Y28: =(CHOOSE(Settings!$D$3, 'Technology Adjustments'!I60,'Technology Adjustments'!I28,0)+CHOOSE(Settings!$D$7,'Technology Adjustments'!I92,0)+CHOOSE(Settings!$D$11,'Technology Adjustments'!I124,0)+CHOOSE(Settings!$D$15,'Technology Adjustments'!I156,0)+CHOOSE(Settings!$D$19,'Technology Adjustments'!I188,0))/1000 -> 14.57812554 | Z28: =(CHOOSE(Settings!$D$3, 'Technology Adjustments'!J60,'Technology Adjustments'!J28,0)+CHOOSE(Settings!$D$7,'Technology Adjustments'!J92,0)+CHOOSE(Settings!$D$11,'Technology Adjustments'!J124,0)+CHOOSE(Settings!$D$15,'Technology Adjustments'!J156,0)+CHOOSE(Settings!$D$19,'Technology Adjustments'!J188,0))/1000 -> 18.38216112 | AA28: =(CHOOSE(Settings!$D$3, 'Technology Adjustments'!K60,'Technology Adjustments'!K28,0)+CHOOSE(Settings!$D$7,'Technology Adjustments'!K92,0)+CHOOSE(Settings!$D$11,'Technology Adjustments'!K124,0)+CHOOSE(Settings!$D$15,'Technology Adjustments'!K156,0)+CHOOSE(Settings!$D$19,'Technology Adjustments'!K188,0))/1000 -> 22.88427515 | AB28: =(CHOOSE(Settings!$D$3, 'Technology Adjustments'!L60,'Technology Adjustments'!L28,0)+CHOOSE(Settings!$D$7,'Technology Adjustments'!L92,0)+CHOOSE(Settings!$D$11,'Technology Adjustments'!L124,0)+CHOOSE(Settings!$D$15,'Technology Adjustments'!L156,0)+CHOOSE(Settings!$D$19,'Technology Adjustments'!L188,0))/1000 -> 28.22021483 | AC28: =(CHOOSE(Settings!$D$3, 'Technology Adjustments'!M60,'Technology Adjustments'!M28,0)+CHOOSE(Settings!$D$7,'Technology Adjustments'!M92,0)+CHOOSE(Settings!$D$11,'Technology Adjustments'!M124,0)+CHOOSE(Settings!$D$15,'Technology Adjustments'!M156,0)+CHOOSE(Settings!$D$19,'Technology Adjustments'!M188,0))/1000 -> 34.55750249 | AD28: =(CHOOSE(Settings!$D$3, 'Technology Adjustments'!N60,'Technology Adjustments'!N28,0)+CHOOSE(Settings!$D$7,'Technology Adjustments'!N92,0)+CHOOSE(Settings!$D$11,'Technology Adjustments'!N124,0)+CHOOSE(Settings!$D$15,'Technology Adjustments'!N156,0)+CHOOSE(Settings!$D$19,'Technology Adjustments'!N188,0))/1000 -> 42.0886367
B29: RTS 22kV | C29: 239.2960099 | D29: 515.5267221 | E29: 867.0928501 | F29: 1299.435044 | G29: 1828.730058 | H29: 2475.272158 | I29: 3262.256984 | J29: 4105.746754 | K29: 5095.802272 | L29: 6258.175122 | M29: 7623.57069 | N29: 9225.767591 | R29: RTS 22kV | S29: =(CHOOSE(Settings!$D$3, 'Technology Adjustments'!C61,'Technology Adjustments'!C29,0)+CHOOSE(Settings!$D$7,'Technology Adjustments'!C93,0)+CHOOSE(Settings!$D$11,'Technology Adjustments'!C125,0)+CHOOSE(Settings!$D$15,'Technology Adjustments'!C157,0)+CHOOSE(Settings!$D$19,'Technology Adjustments'!C189,0))/1000 -> 0.3190618896 | T29: =(CHOOSE(Settings!$D$3, 'Technology Adjustments'!D61,'Technology Adjustments'!D29,0)+CHOOSE(Settings!$D$7,'Technology Adjustments'!D93,0)+CHOOSE(Settings!$D$11,'Technology Adjustments'!D125,0)+CHOOSE(Settings!$D$15,'Technology Adjustments'!D157,0)+CHOOSE(Settings!$D$19,'Technology Adjustments'!D189,0))/1000 -> 0.7033561687 | U29: =(CHOOSE(Settings!$D$3, 'Technology Adjustments'!E61,'Technology Adjustments'!E29,0)+CHOOSE(Settings!$D$7,'Technology Adjustments'!E93,0)+CHOOSE(Settings!$D$11,'Technology Adjustments'!E125,0)+CHOOSE(Settings!$D$15,'Technology Adjustments'!E157,0)+CHOOSE(Settings!$D$19,'Technology Adjustments'!E189,0))/1000 -> 1.211901637 | V29: =(CHOOSE(Settings!$D$3, 'Technology Adjustments'!F61,'Technology Adjustments'!F29,0)+CHOOSE(Settings!$D$7,'Technology Adjustments'!F93,0)+CHOOSE(Settings!$D$11,'Technology Adjustments'!F125,0)+CHOOSE(Settings!$D$15,'Technology Adjustments'!F157,0)+CHOOSE(Settings!$D$19,'Technology Adjustments'!F189,0))/1000 -> 1.862596792 | W29: =(CHOOSE(Settings!$D$3, 'Technology Adjustments'!G61,'Technology Adjustments'!G29,0)+CHOOSE(Settings!$D$7,'Technology Adjustments'!G93,0)+CHOOSE(Settings!$D$11,'Technology Adjustments'!G125,0)+CHOOSE(Settings!$D$15,'Technology Adjustments'!G157,0)+CHOOSE(Settings!$D$19,'Technology Adjustments'!G189,0))/1000 -> 2.691228351 | X29: =(CHOOSE(Settings!$D$3, 'Technology Adjustments'!H61,'Technology Adjustments'!H29,0)+CHOOSE(Settings!$D$7,'Technology Adjustments'!H93,0)+CHOOSE(Settings!$D$11,'Technology Adjustments'!H125,0)+CHOOSE(Settings!$D$15,'Technology Adjustments'!H157,0)+CHOOSE(Settings!$D$19,'Technology Adjustments'!H189,0))/1000 -> 3.743903739 | Y29: =(CHOOSE(Settings!$D$3, 'Technology Adjustments'!I61,'Technology Adjustments'!I29,0)+CHOOSE(Settings!$D$7,'Technology Adjustments'!I93,0)+CHOOSE(Settings!$D$11,'Technology Adjustments'!I125,0)+CHOOSE(Settings!$D$15,'Technology Adjustments'!I157,0)+CHOOSE(Settings!$D$19,'Technology Adjustments'!I189,0))/1000 -> 5.076494517 | Z29: =(CHOOSE(Settings!$D$3, 'Technology Adjustments'!J61,'Technology Adjustments'!J29,0)+CHOOSE(Settings!$D$7,'Technology Adjustments'!J93,0)+CHOOSE(Settings!$D$11,'Technology Adjustments'!J125,0)+CHOOSE(Settings!$D$15,'Technology Adjustments'!J157,0)+CHOOSE(Settings!$D$19,'Technology Adjustments'!J189,0))/1000 -> 6.579667322 | AA29: =(CHOOSE(Settings!$D$3, 'Technology Adjustments'!K61,'Technology Adjustments'!K29,0)+CHOOSE(Settings!$D$7,'Technology Adjustments'!K93,0)+CHOOSE(Settings!$D$11,'Technology Adjustments'!K125,0)+CHOOSE(Settings!$D$15,'Technology Adjustments'!K157,0)+CHOOSE(Settings!$D$19,'Technology Adjustments'!K189,0))/1000 -> 8.417405411 | AB29: =(CHOOSE(Settings!$D$3, 'Technology Adjustments'!L61,'Technology Adjustments'!L29,0)+CHOOSE(Settings!$D$7,'Technology Adjustments'!L93,0)+CHOOSE(Settings!$D$11,'Technology Adjustments'!L125,0)+CHOOSE(Settings!$D$15,'Technology Adjustments'!L157,0)+CHOOSE(Settings!$D$19,'Technology Adjustments'!L189,0))/1000 -> 10.66446346 | AC29: =(CHOOSE(Settings!$D$3, 'Technology Adjustments'!M61,'Technology Adjustments'!M29,0)+CHOOSE(Settings!$D$7,'Technology Adjustments'!M93,0)+CHOOSE(Settings!$D$11,'Technology Adjustments'!M125,0)+CHOOSE(Settings!$D$15,'Technology Adjustments'!M157,0)+CHOOSE(Settings!$D$19,'Technology Adjustments'!M189,0))/1000 -> 13.41250141 | AD29: =(CHOOSE(Settings!$D$3, 'Technology Adjustments'!N61,'Technology Adjustments'!N29,0)+CHOOSE(Settings!$D$7,'Technology Adjustments'!N93,0)+CHOOSE(Settings!$D$11,'Technology Adjustments'!N125,0)+CHOOSE(Settings!$D$15,'Technology Adjustments'!N157,0)+CHOOSE(Settings!$D$19,'Technology Adjustments'!N189,0))/1000 -> 16.76854624
B30: SVTS 66kV | C30: 282.0210094 | D30: 600.3062332 | E30: 948.1941669 | F30: 1332.598055 | G30: 1759.240803 | H30: 2234.683415 | I30: 2765.622617 | J30: 3321.835795 | K30: 3933.678109 | L30: 4607.282783 | M30: 5350.800924 | N30: 6171.967356 | R30: SVTS 66kV | S30: =(CHOOSE(Settings!$D$3, 'Technology Adjustments'!C62,'Technology Adjustments'!C30,0)+CHOOSE(Settings!$D$7,'Technology Adjustments'!C94,0)+CHOOSE(Settings!$D$11,'Technology Adjustments'!C126,0)+CHOOSE(Settings!$D$15,'Technology Adjustments'!C158,0)+CHOOSE(Settings!$D$19,'Technology Adjustments'!C190,0))/1000 -> 0.3760224212 | T30: =(CHOOSE(Settings!$D$3, 'Technology Adjustments'!D62,'Technology Adjustments'!D30,0)+CHOOSE(Settings!$D$7,'Technology Adjustments'!D94,0)+CHOOSE(Settings!$D$11,'Technology Adjustments'!D126,0)+CHOOSE(Settings!$D$15,'Technology Adjustments'!D158,0)+CHOOSE(Settings!$D$19,'Technology Adjustments'!D190,0))/1000 -> 0.8190158811 | U30: =(CHOOSE(Settings!$D$3, 'Technology Adjustments'!E62,'Technology Adjustments'!E30,0)+CHOOSE(Settings!$D$7,'Technology Adjustments'!E94,0)+CHOOSE(Settings!$D$11,'Technology Adjustments'!E126,0)+CHOOSE(Settings!$D$15,'Technology Adjustments'!E158,0)+CHOOSE(Settings!$D$19,'Technology Adjustments'!E190,0))/1000 -> 1.325230138 | V30: =(CHOOSE(Settings!$D$3, 'Technology Adjustments'!F62,'Technology Adjustments'!F30,0)+CHOOSE(Settings!$D$7,'Technology Adjustments'!F94,0)+CHOOSE(Settings!$D$11,'Technology Adjustments'!F126,0)+CHOOSE(Settings!$D$15,'Technology Adjustments'!F158,0)+CHOOSE(Settings!$D$19,'Technology Adjustments'!F190,0))/1000 -> 1.910122609 | W30: =(CHOOSE(Settings!$D$3, 'Technology Adjustments'!G62,'Technology Adjustments'!G30,0)+CHOOSE(Settings!$D$7,'Technology Adjustments'!G94,0)+CHOOSE(Settings!$D$11,'Technology Adjustments'!G126,0)+CHOOSE(Settings!$D$15,'Technology Adjustments'!G158,0)+CHOOSE(Settings!$D$19,'Technology Adjustments'!G190,0))/1000 -> 2.589068364 | X30: =(CHOOSE(Settings!$D$3, 'Technology Adjustments'!H62,'Technology Adjustments'!H30,0)+CHOOSE(Settings!$D$7,'Technology Adjustments'!H94,0)+CHOOSE(Settings!$D$11,'Technology Adjustments'!H126,0)+CHOOSE(Settings!$D$15,'Technology Adjustments'!H158,0)+CHOOSE(Settings!$D$19,'Technology Adjustments'!H190,0))/1000 -> 3.380398426 | Y30: =(CHOOSE(Settings!$D$3, 'Technology Adjustments'!I62,'Technology Adjustments'!I30,0)+CHOOSE(Settings!$D$7,'Technology Adjustments'!I94,0)+CHOOSE(Settings!$D$11,'Technology Adjustments'!I126,0)+CHOOSE(Settings!$D$15,'Technology Adjustments'!I158,0)+CHOOSE(Settings!$D$19,'Technology Adjustments'!I190,0))/1000 -> 4.304681548 | Z30: =(CHOOSE(Settings!$D$3, 'Technology Adjustments'!J62,'Technology Adjustments'!J30,0)+CHOOSE(Settings!$D$7,'Technology Adjustments'!J94,0)+CHOOSE(Settings!$D$11,'Technology Adjustments'!J126,0)+CHOOSE(Settings!$D$15,'Technology Adjustments'!J158,0)+CHOOSE(Settings!$D$19,'Technology Adjustments'!J190,0))/1000 -> 5.325706264 | AA30: =(CHOOSE(Settings!$D$3, 'Technology Adjustments'!K62,'Technology Adjustments'!K30,0)+CHOOSE(Settings!$D$7,'Technology Adjustments'!K94,0)+CHOOSE(Settings!$D$11,'Technology Adjustments'!K126,0)+CHOOSE(Settings!$D$15,'Technology Adjustments'!K158,0)+CHOOSE(Settings!$D$19,'Technology Adjustments'!K190,0))/1000 -> 6.502738758 | AB30: =(CHOOSE(Settings!$D$3, 'Technology Adjustments'!L62,'Technology Adjustments'!L30,0)+CHOOSE(Settings!$D$7,'Technology Adjustments'!L94,0)+CHOOSE(Settings!$D$11,'Technology Adjustments'!L126,0)+CHOOSE(Settings!$D$15,'Technology Adjustments'!L158,0)+CHOOSE(Settings!$D$19,'Technology Adjustments'!L190,0))/1000 -> 7.860815227 | AC30: =(CHOOSE(Settings!$D$3, 'Technology Adjustments'!M62,'Technology Adjustments'!M30,0)+CHOOSE(Settings!$D$7,'Technology Adjustments'!M94,0)+CHOOSE(Settings!$D$11,'Technology Adjustments'!M126,0)+CHOOSE(Settings!$D$15,'Technology Adjustments'!M158,0)+CHOOSE(Settings!$D$19,'Technology Adjustments'!M190,0))/1000 -> 9.431849808 | AD30: =(CHOOSE(Settings!$D$3, 'Technology Adjustments'!N62,'Technology Adjustments'!N30,0)+CHOOSE(Settings!$D$7,'Technology Adjustments'!N94,0)+CHOOSE(Settings!$D$11,'Technology Adjustments'!N126,0)+CHOOSE(Settings!$D$15,'Technology Adjustments'!N158,0)+CHOOSE(Settings!$D$19,'Technology Adjustments'!N190,0))/1000 -> 11.25066638
B31: TSTS 66kV | C31: 564.0420189 | D31: 1200.612466 | E31: 1896.388334 | F31: 2665.19611 | G31: 3518.481605 | H31: 4469.366829 | I31: 5531.245234 | J31: 6643.67159 | K31: 7867.356218 | L31: 9214.565565 | M31: 10701.60185 | N31: 12343.93471 | R31: TSTS 66kV | S31: =(CHOOSE(Settings!$D$3, 'Technology Adjustments'!C63,'Technology Adjustments'!C31,0)+CHOOSE(Settings!$D$7,'Technology Adjustments'!C95,0)+CHOOSE(Settings!$D$11,'Technology Adjustments'!C127,0)+CHOOSE(Settings!$D$15,'Technology Adjustments'!C159,0)+CHOOSE(Settings!$D$19,'Technology Adjustments'!C191,0))/1000 -> 0.7520448424 | T31: =(CHOOSE(Settings!$D$3, 'Technology Adjustments'!D63,'Technology Adjustments'!D31,0)+CHOOSE(Settings!$D$7,'Technology Adjustments'!D95,0)+CHOOSE(Settings!$D$11,'Technology Adjustments'!D127,0)+CHOOSE(Settings!$D$15,'Technology Adjustments'!D159,0)+CHOOSE(Settings!$D$19,'Technology Adjustments'!D191,0))/1000 -> 1.638031762 | U31: =(CHOOSE(Settings!$D$3, 'Technology Adjustments'!E63,'Technology Adjustments'!E31,0)+CHOOSE(Settings!$D$7,'Technology Adjustments'!E95,0)+CHOOSE(Settings!$D$11,'Technology Adjustments'!E127,0)+CHOOSE(Settings!$D$15,'Technology Adjustments'!E159,0)+CHOOSE(Settings!$D$19,'Technology Adjustments'!E191,0))/1000 -> 2.650460276 | V31: =(CHOOSE(Settings!$D$3, 'Technology Adjustments'!F63,'Technology Adjustments'!F31,0)+CHOOSE(Settings!$D$7,'Technology Adjustments'!F95,0)+CHOOSE(Settings!$D$11,'Technology Adjustments'!F127,0)+CHOOSE(Settings!$D$15,'Technology Adjustments'!F159,0)+CHOOSE(Settings!$D$19,'Technology Adjustments'!F191,0))/1000 -> 3.820245217 | W31: =(CHOOSE(Settings!$D$3, 'Technology Adjustments'!G63,'Technology Adjustments'!G31,0)+CHOOSE(Settings!$D$7,'Technology Adjustments'!G95,0)+CHOOSE(Settings!$D$11,'Technology Adjustments'!G127,0)+CHOOSE(Settings!$D$15,'Technology Adjustments'!G159,0)+CHOOSE(Settings!$D$19,'Technology Adjustments'!G191,0))/1000 -> 5.178136728 | X31: =(CHOOSE(Settings!$D$3, 'Technology Adjustments'!H63,'Technology Adjustments'!H31,0)+CHOOSE(Settings!$D$7,'Technology Adjustments'!H95,0)+CHOOSE(Settings!$D$11,'Technology Adjustments'!H127,0)+CHOOSE(Settings!$D$15,'Technology Adjustments'!H159,0)+CHOOSE(Settings!$D$19,'Technology Adjustments'!H191,0))/1000 -> 6.760796853 | Y31: =(CHOOSE(Settings!$D$3, 'Technology Adjustments'!I63,'Technology Adjustments'!I31,0)+CHOOSE(Settings!$D$7,'Technology Adjustments'!I95,0)+CHOOSE(Settings!$D$11,'Technology Adjustments'!I127,0)+CHOOSE(Settings!$D$15,'Technology Adjustments'!I159,0)+CHOOSE(Settings!$D$19,'Technology Adjustments'!I191,0))/1000 -> 8.609363097 | Z31: =(CHOOSE(Settings!$D$3, 'Technology Adjustments'!J63,'Technology Adjustments'!J31,0)+CHOOSE(Settings!$D$7,'Technology Adjustments'!J95,0)+CHOOSE(Settings!$D$11,'Technology Adjustments'!J127,0)+CHOOSE(Settings!$D$15,'Technology Adjustments'!J159,0)+CHOOSE(Settings!$D$19,'Technology Adjustments'!J191,0))/1000 -> 10.65141253 | AA31: =(CHOOSE(Settings!$D$3, 'Technology Adjustments'!K63,'Technology Adjustments'!K31,0)+CHOOSE(Settings!$D$7,'Technology Adjustments'!K95,0)+CHOOSE(Settings!$D$11,'Technology Adjustments'!K127,0)+CHOOSE(Settings!$D$15,'Technology Adjustments'!K159,0)+CHOOSE(Settings!$D$19,'Technology Adjustments'!K191,0))/1000 -> 13.00547752 | AB31: =(CHOOSE(Settings!$D$3, 'Technology Adjustments'!L63,'Technology Adjustments'!L31,0)+CHOOSE(Settings!$D$7,'Technology Adjustments'!L95,0)+CHOOSE(Settings!$D$11,'Technology Adjustments'!L127,0)+CHOOSE(Settings!$D$15,'Technology Adjustments'!L159,0)+CHOOSE(Settings!$D$19,'Technology Adjustments'!L191,0))/1000 -> 15.72163045 | AC31: =(CHOOSE(Settings!$D$3, 'Technology Adjustments'!M63,'Technology Adjustments'!M31,0)+CHOOSE(Settings!$D$7,'Technology Adjustments'!M95,0)+CHOOSE(Settings!$D$11,'Technology Adjustments'!M127,0)+CHOOSE(Settings!$D$15,'Technology Adjustments'!M159,0)+CHOOSE(Settings!$D$19,'Technology Adjustments'!M191,0))/1000 -> 18.86369962 | AD31: =(CHOOSE(Settings!$D$3, 'Technology Adjustments'!N63,'Technology Adjustments'!N31,0)+CHOOSE(Settings!$D$7,'Technology Adjustments'!N95,0)+CHOOSE(Settings!$D$11,'Technology Adjustments'!N127,0)+CHOOSE(Settings!$D$15,'Technology Adjustments'!N159,0)+CHOOSE(Settings!$D$19,'Technology Adjustments'!N191,0))/1000 -> 22.50133276
B32: Powercor | C32: =SUM(C6:C22) -> 11725.68423 | D32: =SUM(D6:D22) -> 25230.496 | E32: 39062.32016 | F32: 53701.74446 | G32: 69136.90278 | H32: 85318.72975 | I32: 102178.4315 | J32: 120092.6052 | K32: 138665.3972 | L32: 157764.8886 | M32: 177173.7467 | N32: 196627.8211 | R32: Powercor | S32: =(CHOOSE(Settings!$D$3, 'Technology Adjustments'!C64,'Technology Adjustments'!C32,0)+CHOOSE(Settings!$D$7,'Technology Adjustments'!C96,0)+CHOOSE(Settings!$D$11,'Technology Adjustments'!C128,0)+CHOOSE(Settings!$D$15,'Technology Adjustments'!C160,0)+CHOOSE(Settings!$D$19,'Technology Adjustments'!C192,0))/1000 -> 15.63426997 | T32: =(CHOOSE(Settings!$D$3, 'Technology Adjustments'!D64,'Technology Adjustments'!D32,0)+CHOOSE(Settings!$D$7,'Technology Adjustments'!D96,0)+CHOOSE(Settings!$D$11,'Technology Adjustments'!D128,0)+CHOOSE(Settings!$D$15,'Technology Adjustments'!D160,0)+CHOOSE(Settings!$D$19,'Technology Adjustments'!D192,0))/1000 -> 34.42301729 | U32: =(CHOOSE(Settings!$D$3, 'Technology Adjustments'!E64,'Technology Adjustments'!E32,0)+CHOOSE(Settings!$D$7,'Technology Adjustments'!E96,0)+CHOOSE(Settings!$D$11,'Technology Adjustments'!E128,0)+CHOOSE(Settings!$D$15,'Technology Adjustments'!E160,0)+CHOOSE(Settings!$D$19,'Technology Adjustments'!E192,0))/1000 -> 54.59534158 | V32: =(CHOOSE(Settings!$D$3, 'Technology Adjustments'!F64,'Technology Adjustments'!F32,0)+CHOOSE(Settings!$D$7,'Technology Adjustments'!F96,0)+CHOOSE(Settings!$D$11,'Technology Adjustments'!F128,0)+CHOOSE(Settings!$D$15,'Technology Adjustments'!F160,0)+CHOOSE(Settings!$D$19,'Technology Adjustments'!F192,0))/1000 -> 76.97379832 | W32: =(CHOOSE(Settings!$D$3, 'Technology Adjustments'!G64,'Technology Adjustments'!G32,0)+CHOOSE(Settings!$D$7,'Technology Adjustments'!G96,0)+CHOOSE(Settings!$D$11,'Technology Adjustments'!G128,0)+CHOOSE(Settings!$D$15,'Technology Adjustments'!G160,0)+CHOOSE(Settings!$D$19,'Technology Adjustments'!G192,0))/1000 -> 101.7410075 | X32: =(CHOOSE(Settings!$D$3, 'Technology Adjustments'!H64,'Technology Adjustments'!H32,0)+CHOOSE(Settings!$D$7,'Technology Adjustments'!H96,0)+CHOOSE(Settings!$D$11,'Technology Adjustments'!H128,0)+CHOOSE(Settings!$D$15,'Technology Adjustments'!H160,0)+CHOOSE(Settings!$D$19,'Technology Adjustments'!H192,0))/1000 -> 129.040186 | Y32: =(CHOOSE(Settings!$D$3, 'Technology Adjustments'!I64,'Technology Adjustments'!I32,0)+CHOOSE(Settings!$D$7,'Technology Adjustments'!I96,0)+CHOOSE(Settings!$D$11,'Technology Adjustments'!I128,0)+CHOOSE(Settings!$D$15,'Technology Adjustments'!I160,0)+CHOOSE(Settings!$D$19,'Technology Adjustments'!I192,0))/1000 -> 158.9961781 | Z32: =(CHOOSE(Settings!$D$3, 'Technology Adjustments'!J64,'Technology Adjustments'!J32,0)+CHOOSE(Settings!$D$7,'Technology Adjustments'!J96,0)+CHOOSE(Settings!$D$11,'Technology Adjustments'!J128,0)+CHOOSE(Settings!$D$15,'Technology Adjustments'!J160,0)+CHOOSE(Settings!$D$19,'Technology Adjustments'!J192,0))/1000 -> 192.4555174 | AA32: =(CHOOSE(Settings!$D$3, 'Technology Adjustments'!K64,'Technology Adjustments'!K32,0)+CHOOSE(Settings!$D$7,'Technology Adjustments'!K96,0)+CHOOSE(Settings!$D$11,'Technology Adjustments'!K128,0)+CHOOSE(Settings!$D$15,'Technology Adjustments'!K160,0)+CHOOSE(Settings!$D$19,'Technology Adjustments'!K192,0))/1000 -> 229.0855331 | AB32: =(CHOOSE(Settings!$D$3, 'Technology Adjustments'!L64,'Technology Adjustments'!L32,0)+CHOOSE(Settings!$D$7,'Technology Adjustments'!L96,0)+CHOOSE(Settings!$D$11,'Technology Adjustments'!L128,0)+CHOOSE(Settings!$D$15,'Technology Adjustments'!L160,0)+CHOOSE(Settings!$D$19,'Technology Adjustments'!L192,0))/1000 -> 268.9507392 | AC32: =(CHOOSE(Settings!$D$3, 'Technology Adjustments'!M64,'Technology Adjustments'!M32,0)+CHOOSE(Settings!$D$7,'Technology Adjustments'!M96,0)+CHOOSE(Settings!$D$11,'Technology Adjustments'!M128,0)+CHOOSE(Settings!$D$15,'Technology Adjustments'!M160,0)+CHOOSE(Settings!$D$19,'Technology Adjustments'!M192,0))/1000 -> 311.9600308 | AD32: =(CHOOSE(Settings!$D$3, 'Technology Adjustments'!N64,'Technology Adjustments'!N32,0)+CHOOSE(Settings!$D$7,'Technology Adjustments'!N96,0)+CHOOSE(Settings!$D$11,'Technology Adjustments'!N128,0)+CHOOSE(Settings!$D$15,'Technology Adjustments'!N160,0)+CHOOSE(Settings!$D$19,'Technology Adjustments'!N192,0))/1000 -> 357.922864
B33: Citipower | C33: =SUM(C23:C31) -> 3940.472106 | D33: =SUM(D23:D31) -> 8451.694647 | E33: 13894.66922 | F33: 20372.17012 | G33: 28078.28046 | H33: 37256.75214 | I33: 48183.91809 | J33: 59826.47798 | K33: 73295.97054 | L33: 88878.83184 | M33: 106935.5373 | N33: 127856.9927 | R33: Citipower | S33: =(CHOOSE(Settings!$D$3, 'Technology Adjustments'!C65,'Technology Adjustments'!C33,0)+CHOOSE(Settings!$D$7,'Technology Adjustments'!C97,0)+CHOOSE(Settings!$D$11,'Technology Adjustments'!C129,0)+CHOOSE(Settings!$D$15,'Technology Adjustments'!C161,0)+CHOOSE(Settings!$D$19,'Technology Adjustments'!C193,0))/1000 -> 5.253938436 | T33: =(CHOOSE(Settings!$D$3, 'Technology Adjustments'!D65,'Technology Adjustments'!D33,0)+CHOOSE(Settings!$D$7,'Technology Adjustments'!D97,0)+CHOOSE(Settings!$D$11,'Technology Adjustments'!D129,0)+CHOOSE(Settings!$D$15,'Technology Adjustments'!D161,0)+CHOOSE(Settings!$D$19,'Technology Adjustments'!D193,0))/1000 -> 11.53097924 | U33: =(CHOOSE(Settings!$D$3, 'Technology Adjustments'!E65,'Technology Adjustments'!E33,0)+CHOOSE(Settings!$D$7,'Technology Adjustments'!E97,0)+CHOOSE(Settings!$D$11,'Technology Adjustments'!E129,0)+CHOOSE(Settings!$D$15,'Technology Adjustments'!E161,0)+CHOOSE(Settings!$D$19,'Technology Adjustments'!E193,0))/1000 -> 19.41989896 | V33: =(CHOOSE(Settings!$D$3, 'Technology Adjustments'!F65,'Technology Adjustments'!F33,0)+CHOOSE(Settings!$D$7,'Technology Adjustments'!F97,0)+CHOOSE(Settings!$D$11,'Technology Adjustments'!F129,0)+CHOOSE(Settings!$D$15,'Technology Adjustments'!F161,0)+CHOOSE(Settings!$D$19,'Technology Adjustments'!F193,0))/1000 -> 29.20121893 | W33: =(CHOOSE(Settings!$D$3, 'Technology Adjustments'!G65,'Technology Adjustments'!G33,0)+CHOOSE(Settings!$D$7,'Technology Adjustments'!G97,0)+CHOOSE(Settings!$D$11,'Technology Adjustments'!G129,0)+CHOOSE(Settings!$D$15,'Technology Adjustments'!G161,0)+CHOOSE(Settings!$D$19,'Technology Adjustments'!G193,0))/1000 -> 41.32151293 | X33: =(CHOOSE(Settings!$D$3, 'Technology Adjustments'!H65,'Technology Adjustments'!H33,0)+CHOOSE(Settings!$D$7,'Technology Adjustments'!H97,0)+CHOOSE(Settings!$D$11,'Technology Adjustments'!H129,0)+CHOOSE(Settings!$D$15,'Technology Adjustments'!H161,0)+CHOOSE(Settings!$D$19,'Technology Adjustments'!H193,0))/1000 -> 56.35335746 | Y33: =(CHOOSE(Settings!$D$3, 'Technology Adjustments'!I65,'Technology Adjustments'!I33,0)+CHOOSE(Settings!$D$7,'Technology Adjustments'!I97,0)+CHOOSE(Settings!$D$11,'Technology Adjustments'!I129,0)+CHOOSE(Settings!$D$15,'Technology Adjustments'!I161,0)+CHOOSE(Settings!$D$19,'Technology Adjustments'!I193,0))/1000 -> 74.98491627 | Z33: =(CHOOSE(Settings!$D$3, 'Technology Adjustments'!J65,'Technology Adjustments'!J33,0)+CHOOSE(Settings!$D$7,'Technology Adjustments'!J97,0)+CHOOSE(Settings!$D$11,'Technology Adjustments'!J129,0)+CHOOSE(Settings!$D$15,'Technology Adjustments'!J161,0)+CHOOSE(Settings!$D$19,'Technology Adjustments'!J193,0))/1000 -> 95.88532269 | AA33: =(CHOOSE(Settings!$D$3, 'Technology Adjustments'!K65,'Technology Adjustments'!K33,0)+CHOOSE(Settings!$D$7,'Technology Adjustments'!K97,0)+CHOOSE(Settings!$D$11,'Technology Adjustments'!K129,0)+CHOOSE(Settings!$D$15,'Technology Adjustments'!K161,0)+CHOOSE(Settings!$D$19,'Technology Adjustments'!K193,0))/1000 -> 121.0958816 | AB33: =(CHOOSE(Settings!$D$3, 'Technology Adjustments'!L65,'Technology Adjustments'!L33,0)+CHOOSE(Settings!$D$7,'Technology Adjustments'!L97,0)+CHOOSE(Settings!$D$11,'Technology Adjustments'!L129,0)+CHOOSE(Settings!$D$15,'Technology Adjustments'!L161,0)+CHOOSE(Settings!$D$19,'Technology Adjustments'!L193,0))/1000 -> 151.5013189 | AC33: =(CHOOSE(Settings!$D$3, 'Technology Adjustments'!M65,'Technology Adjustments'!M33,0)+CHOOSE(Settings!$D$7,'Technology Adjustments'!M97,0)+CHOOSE(Settings!$D$11,'Technology Adjustments'!M129,0)+CHOOSE(Settings!$D$15,'Technology Adjustments'!M161,0)+CHOOSE(Settings!$D$19,'Technology Adjustments'!M193,0))/1000 -> 188.2191836 | AD33: =(CHOOSE(Settings!$D$3, 'Technology Adjustments'!N65,'Technology Adjustments'!N33,0)+CHOOSE(Settings!$D$7,'Technology Adjustments'!N97,0)+CHOOSE(Settings!$D$11,'Technology Adjustments'!N129,0)+CHOOSE(Settings!$D$15,'Technology Adjustments'!N161,0)+CHOOSE(Settings!$D$19,'Technology Adjustments'!N193,0))/1000 -> 232.540093
G35: HIGH SOLAR ONLY | S35: WETS non-ind. share | U35: 496445152.4
C36: Cumulative Demand Impacts (KW) | S36: RCTS66 non-ind. share | U36: 1499693495
B37: Terminal Station | C37: 2014 | D37: 2015 | E37: 2016 | F37: 2017 | G37: 2018 | H37: 2019 | I37: 2020 | J37: 2021 | K37: 2022 | L37: 2023 | M37: 2024 | N37: 2025
B38: RCTS 22kV | C38: 88.82773272 | D38: 194.3938483 | E38: 307.8702962 | F38: 433.4392727 | G38: 572.6691204 | H38: 726.8206085 | I38: 897.2337779 | J38: 1086.649371 | K38: 1295.201196 | L38: 1524.695401 | M38: 1776.061168 | N38: 2050.152397 | S38: WETS allocation | U38: =U35/(SUM($U$35:$U$36)) -> 0.2487027406
B39: RCTS 66kV | C39: 314.9346887 | D39: 689.2145529 | E39: 1091.540141 | F39: 1536.739239 | G39: 2030.372336 | H39: 2576.90943 | I39: 3181.101576 | J39: 3852.665953 | K39: 4592.076967 | L39: 5405.738238 | M39: 6296.944143 | N39: 7268.722135 | S39: RCTS66 allocation | U39: =U36/(SUM($U$35:$U$36)) -> 0.7512972594
B40: WETS 66kV | C40: 663.7483149 | D40: 1448.243009 | E40: 2292.098666 | F40: 3226.734045 | G40: 4264.636136 | H40: 5416.73419 | I40: 6695.044923 | J40: 8117.918243 | K40: 9691.053473 | L40: 11431.82028 | M40: 13351.21646 | N40: 15461.38956
B41: KGTS 22kV | C41: 26.10723567 | D41: 56.52523653 | E41: 89.18036884 | F41: 125.2070358 | G41: 165.1397155 | H41: 209.4530016 | I41: 258.6832304 | J41: 312.0458194 | K41: 370.5657396 | L41: 434.8853494 | M41: 505.2222058 | N41: 581.891715
B42: KGTS 66kV | C42: 388.514122 | D42: 844.197512 | E42: 1338.81755 | F42: 1891.981624 | G42: 2511.515373 | H42: 3205.964501 | I42: 3985.045462 | J42: 4848.15581 | K42: 5810.662889 | L42: 6885.168212 | M42: 8081.427432 | N42: 9411.250713
B43: HOTS 66kV | C43: 605.5392119 | D43: 1311.230278 | E43: 2042.260752 | F43: 2831.360823 | G43: 3683.023588 | H43: 4600.876598 | I43: 5588.071806 | J43: 6670.182839 | K43: 7822.357884 | L43: 9053.822936 | M43: 10357.1252 | N43: 11724.22548
B44: BETS 22kV | C44: 125.6170821 | D44: 275.2718939 | E44: 433.9487103 | F44: 609.5608611 | G44: 802.7114125 | H44: 1014.35544 | I44: 1245.245545 | J44: 1502.502158 | K44: 1782.733641 | L44: 2086.096929 | M44: 2411.523745 | N44: 2757.132114
B45: BETS 66kV | C45: 1551.951445 | D45: 3393.357883 | E45: 5338.595774 | F45: 7481.416327 | G45: 9830.873822 | H45: 12398.50226 | I45: 15193.61454 | J45: 18299.11455 | K45: 21676.67513 | L45: 25326.70366 | M45: 29235.55758 | N45: 33380.29118
B46: SHTS/GNTS | C46: 1615.52076 | D46: 3531.828186 | E46: 5603.525615 | F46: 7926.532371 | G46: 10520.1372 | H46: 13410.54013 | I46: 16625.10686 | J46: 20186.5264 | K46: 24108.98146 | L46: 28429.22546 | M46: 33157.21527 | N46: 38302.95131
B47: HYTS/TGTS/APD | C47: 4075.047792 | D47: 8943.74959 | E47: 14144.42127 | F47: 19938.46946 | G47: 26347.56503 | H47: 33409.40581 | I47: 41155.94428 | J47: 49771.36646 | K47: 59201.26309 | L47: 69442.90495 | M47: 80466.24033 | N47: 92212.78911
B48: BATS/ELTS | C48: 1671.241654 | D48: 3672.241582 | E48: 5794.815657 | F48: 8139.015151 | G48: 10713.59547 | H48: 13527.9654 | I48: 16587.96141 | J48: 19998.66654 | K48: 23689.78525 | L48: 27665.59268 | M48: 31902.45439 | N48: 36364.97472
B49: MLTS/GTS/PTH | C49: 50.95222906 | D49: 110.8136474 | E49: 173.8602933 | F49: 242.599555 | G49: 317.7127865 | H49: 399.7191291 | I49: 489.1509125 | J49: 587.4807634 | K49: 694.9152078 | L49: 811.6287295 | M49: 937.8315823 | N49: 1073.56213
B50: ATS West | C50: 1532.052273 | D50: 3480.288166 | E50: 5672.57 | F50: 8141.79895 | G50: 10933.95931 | H50: 14061.42403 | I50: 17532.51135 | J50: 21492.62338 | K50: 25876.02092 | L50: 30680.52169 | M50: 35886.57562 | N50: 41452.58973
B51: ATS-BLTS | C51: 294.4758347 | D51: 643.9828082 | E51: 1017.449113 | F51: 1431.618299 | G51: 1889.985597 | H51: 2396.384217 | I51: 2954.741773 | J51: 3580.127038 | K51: 4271.687296 | L51: 5032.564389 | M51: 5865.81558 | N51: 6773.645039
B52: BLTS 22kV | C52: 82.86087705 | D52: 180.5446803 | E52: 285.224204 | F52: 401.5036666 | G52: 530.6411016 | H52: 674.0543402 | I52: 833.3029232 | J52: 1011.69042 | K52: 1210.749076 | L52: 1431.876921 | M52: 1676.967113 | N52: 1947.907526
B53: KTS East | C53: 788.3911265 | D53: 1730.748571 | E53: 2740.394924 | F53: 3830.485522 | G53: 5026.408065 | H53: 6336.945936 | I53: 7771.873797 | J53: 9382.001704 | K53: 11144.56067 | L53: 13080.27426 | M53: 15197.67688 | N53: 17505.43802
B54: KTS West | C54: 1758.487586 | D54: 3916.38585 | E54: 6228.768248 | F54: 8785.336109 | G54: 11600.0614 | H54: 14674.13094 | I54: 18001.54397 | J54: 21755.79996 | K54: 25846.24325 | L54: 30227.21908 | M54: 34854.17605 | N54: 39653.95112
B55: WMTS 66kV | C55: 660.4529936 | D55: 1457.820424 | E55: 2481.860956 | F55: 3777.015586 | G55: 5411.4121 | H55: 7472.473966 | I55: 10067.73281 | J55: 13008.28575 | K55: 16602.75703 | L55: 20987.37788 | M55: 26336.33327 | N55: 32851.90921
B56: WMTS 22kV | C56: 320.0490559 | D56: 721.3080518 | E56: 1347.299492 | F56: 2234.521688 | G56: 3457.210466 | H56: 5115.741221 | I56: 7334.28789 | J56: 9899.870648 | K56: 13163.91517 | L56: 17289.53381 | M56: 22487.4839 | N56: 29000.91326
B57: BTS 22kV | C57: 293.3146419 | D57: 641.8656369 | E57: 1051.163575 | F57: 1534.735661 | G57: 2108.407778 | H57: 2790.291544 | I57: 3602.44961 | J57: 4502.754685 | K57: 5556.276691 | L57: 6789.837062 | M57: 8235.483345 | N57: 9931.616443
B58: FBTS 66kV | C58: 759.427315 | D58: 1663.770973 | E58: 2835.101616 | F58: 4313.372645 | G58: 6166.993647 | H58: 8487.112758 | I58: 11383.08197 | J58: 14610.90319 | K58: 18521.31628 | L58: 23250.93146 | M58: 28978.89417 | N58: 35912.87877
B59: RTS 66kV Bus 1&4 | C59: 654.3990406 | D59: 1438.821626 | E59: 2462.370554 | F59: 3757.74374 | G59: 5391.207404 | H59: 7447.469268 | I59: 10028.69929 | J59: 12924.56118 | K59: 16441.71963 | L59: 20716.51472 | M59: 25915.43562 | N59: 32233.59324
B60: RTS 66kV Bus 2&3 | C60: 1119.166236 | D60: 2446.988713 | E60: 4054.510718 | F60: 5990.86499 | G60: 8327.848089 | H60: 11155.16969 | I60: 14578.12554 | J60: 18382.16112 | K60: 22884.27515 | L60: 28220.21483 | M60: 34557.50249 | N60: 42088.6367
B61: RTS 22kV | C61: 319.0618896 | D61: 703.3561687 | E61: 1211.901637 | F61: 1862.596792 | G61: 2691.228351 | H61: 3743.903739 | I61: 5076.494517 | J61: 6579.667322 | K61: 8417.405411 | L61: 10664.46346 | M61: 13412.50141 | N61: 16768.54624
B62: SVTS 66kV | C62: 376.0224212 | D62: 819.0158811 | E62: 1325.230138 | F62: 1910.122609 | G62: 2589.068364 | H62: 3380.398426 | I62: 4304.681548 | J62: 5325.706264 | K62: 6502.738758 | L62: 7860.815227 | M62: 9431.849808 | N62: 11250.66638
B63: TSTS 66kV | C63: 752.0448424 | D63: 1638.031762 | E63: 2650.460276 | F63: 3820.245217 | G63: 5178.136728 | H63: 6760.796853 | I63: 8609.363097 | J63: 10651.41253 | K63: 13005.47752 | L63: 15721.63045 | M63: 18863.69962 | N63: 22501.33276
B64: Powercor | C64: =SUM(C38:C54) -> 15634.26997 | D64: =SUM(D38:D54) -> 34423.01729 | E64: 54595.34158 | F64: 76973.79832 | G64: 101741.0075 | H64: 129040.186 | I64: 158996.1781 | J64: 192455.5174 | K64: 229085.5331 | L64: 268950.7392 | M64: 311960.0308 | N64: 357922.864
B65: Citipower | C65: =SUM(C55:C63) -> 5253.938436 | D65: =SUM(D55:D63) -> 11530.97924 | E65: 19419.89896 | F65: 29201.21893 | G65: 41321.51293 | H65: 56353.35746 | I65: 74984.91627 | J65: 95885.32269 | K65: 121095.8816 | L65: 151501.3189 | M65: 188219.1836 | N65: 232540.093
G67: ENERGY EFFICIENCY ONLY
C68: Cumulative Demand Impacts (KW)
B69: Terminal Station | C69: 2014 | D69: 2015 | E69: 2016 | F69: 2017 | G69: 2018 | H69: 2019 | I69: 2020 | J69: 2021 | K69: 2022 | L69: 2023 | M69: 2024 | N69: 2025
B70: RCTS 22kV | C70: 74.18860462 | D70: 115.9843379 | E70: 166.4836949 | F70: 200.8222965 | G70: 242.0252959 | H70: 281.4640931 | I70: 319.6660752 | J70: 335.5235455 | K70: 341.8344671 | L70: 354.2714858 | M70: 363.7314116 | N70: 372.9671081
B71: RCTS 66kV | C71: 263.0323255 | D71: 411.2171979 | E71: 590.260373 | F71: 712.0063241 | G71: 858.0896855 | H71: 997.9181484 | I71: 1133.361539 | J71: 1189.583479 | K71: 1211.958565 | L71: 1256.05345 | M71: 1289.593187 | N71: 1322.337929
B72: WETS 66kV | C72: 638.9818331 | D72: 999.2415014 | E72: 1434.657301 | F72: 1731.743215 | G72: 2088.403721 | H72: 2430.316637 | I72: 2762.032919 | J72: 2901.093944 | K72: 2956.965261 | L72: 3066.082248 | M72: 3149.628775 | N72: 3231.550239
B73: KGTS 22kV | C73: 20.35534521 | D73: 31.40622022 | E73: 44.48067295 | F73: 53.00049407 | G73: 63.08771254 | H73: 72.44494477 | I73: 81.21690977 | J73: 84.10841652 | K73: 84.40683688 | L73: 86.13272307 | M73: 86.98607349 | N73: 87.63936977
B74: KGTS 66kV | C74: 446.6651241 | D74: 697.1650811 | E74: 999.0044926 | F74: 1204.447376 | G74: 1450.741521 | H74: 1686.169112 | I74: 1913.905956 | J74: 2007.682223 | K74: 2042.978247 | L74: 2114.894405 | M74: 2168.765512 | N74: 2221.185894
B75: HOTS 66kV | C75: 474.8590876 | D75: 739.8478358 | E75: 1058.232684 | F75: 1274.281922 | G75: 1533.030005 | H75: 1779.849902 | I75: 2018.238083 | J75: 2115.333491 | K75: 2149.256625 | L75: 2222.146202 | M75: 2276.384995 | N75: 2329.71718
B76: BETS 22kV | C76: 98.23332232 | D76: 153.819839 | E76: 221.1242799 | F76: 267.5457531 | G76: 323.3860473 | H76: 377.1877907 | I76: 429.6485704 | J76: 452.325788 | K76: 462.076129 | L76: 480.2492902 | M76: 494.5480867 | N76: 508.753373
B77: BETS 66kV | C77: 1199.998473 | D77: 1876.586122 | E77: 2694.1794 | F77: 3255.704709 | G77: 3930.362945 | H77: 4578.652471 | I77: 5209.133262 | J77: 5477.418418 | K77: 5587.941118 | L77: 5799.962393 | M77: 5964.485654 | N77: 6127.25981
B78: SHTS/GNTS | C78: 1739.571588 | D78: 2719.926779 | E78: 3904.260736 | F78: 4717.392523 | G78: 5694.194764 | H78: 6632.493017 | I78: 7544.688808 | J78: 7932.04321 | K78: 8088.839989 | L78: 8392.608352 | M78: 8627.347927 | N78: 8859.369203
B79: HYTS/TGTS/APD | C79: 3683.21011 | D79: 5770.647358 | E79: 8300.394837 | F79: 10049.42591 | G79: 12154.99127 | H79: 14187.21765 | I79: 16172.62609 | J79: 17040.21203 | K79: 17424.04535 | L79: 18128.39764 | M79: 18690.38229 | N79: 19253.53057
B80: BATS/ELTS | C80: 1269.816661 | D80: 1990.696388 | E80: 2864.981693 | F80: 3469.562512 | G80: 4197.415118 | H80: 4900.022501 | I80: 5586.394521 | J80: 5886.401283 | K80: 6017.478364 | L80: 6258.661681 | M80: 6449.846421 | N80: 6640.409572
B81: MLTS/GTS/PTH | C81: 33.41191194 | D81: 51.99097408 | E81: 74.2847416 | F81: 89.16814252 | G81: 106.9480221 | H81: 123.7823326 | I81: 139.9134087 | J81: 146.1487856 | K81: 148.2874365 | L81: 153.0360126 | M81: 156.448278 | N81: 159.7063172
B82: ATS West | C82: 1785.913522 | D82: 2830.853545 | E82: 4118.559446 | F82: 5031.006938 | G82: 6138.444049 | H82: 7226.749772 | I82: 8308.761868 | J82: 8829.66588 | K82: 9106.996736 | L82: 9557.997215 | M82: 9942.810827 | N82: 10337.48349
B83: ATS-BLTS | C83: 521.5778391 | D83: 821.6953848 | E83: 1188.428247 | F83: 1446.077739 | G83: 1757.900086 | H83: 2062.466513 | I83: 2363.736769 | J83: 2504.621707 | K83: 2576.165983 | L83: 2697.002796 | M83: 2799.377224 | N83: 2904.992958
B84: BLTS 22kV | C84: 176.9782116 | D84: 278.8606071 | E84: 403.3948264 | F84: 490.9309341 | G84: 596.8990374 | H84: 700.4568498 | I84: 802.9577914 | J84: 851.0385946 | K84: 875.6324651 | L84: 917.0347687 | M84: 952.2374682 | N84: 988.6318462
B85: KTS East | C85: 816.8424607 | D85: 1284.511516 | E85: 1854.468861 | F85: 2247.406331 | G85: 2721.188462 | H85: 3179.787065 | I85: 3629.227178 | J85: 3829.026942 | K85: 3920.575705 | L85: 4084.833664 | M85: 4218.01045 | N85: 4352.3752
B86: KTS West | C86: 1059.377518 | D86: 1671.617461 | E86: 2421.321233 | F86: 2947.647423 | G86: 3584.414157 | H86: 4205.755677 | I86: 4819.138071 | J86: 5103.608043 | K86: 5247.950223 | L86: 5490.233912 | M86: 5691.78959 | N86: 5895.880029
B87: WMTS 66kV | C87: 4910.718307 | D87: 7864.066764 | E87: 11556.48035 | F87: 14306.62006 | G87: 17689.57508 | H87: 21114.94555 | I87: 24629.57036 | J87: 26581.09452 | K87: 27839.58442 | L87: 29708.88161 | M87: 31478.85805 | N87: 33409.46098
B88: WMTS 22kV | C88: 7148.528241 | D88: 11479.00246 | E88: 16912.78795 | F88: 21001.71296 | G88: 26045.58136 | H88: 31183.27358 | I88: 36486.85357 | J88: 39505.84462 | K88: 41506.28221 | L88: 44440.40874 | M88: 47256.11173 | N88: 50349.1752
B89: BTS 22kV | C89: 411.0715005 | D89: 645.935455 | E89: 931.8186099 | F89: 1127.937026 | G89: 1363.589265 | H89: 1590.007985 | I89: 1809.585441 | J89: 1901.990037 | K89: 1939.905699 | L89: 2011.306505 | M89: 2064.016841 | N89: 2112.91786
B90: FBTS 66kV | C90: 1996.301714 | D90: 3142.261963 | E90: 4540.696743 | F90: 5517.321339 | G90: 6695.524964 | H90: 7838.634073 | I90: 8959.127622 | J90: 9459.976582 | K90: 9695.560918 | L90: 10105.08 | M90: 10430.27898 | N90: 10747.69913
B91: RTS 66kV Bus 1&4 | C91: 2716.480211 | D91: 4322.921745 | E91: 6314.095877 | F91: 7759.12445 | G91: 9523.35566 | H91: 11280.93629 | I91: 13053.52196 | J91: 13967.06019 | K91: 14502.60553 | L91: 15332.72496 | M91: 16080.17956 | N91: 16871.75473
B92: RTS 66kV Bus 2&3 | C92: 1867.476897 | D92: 2936.744089 | E92: 4239.711761 | F92: 5137.471058 | G92: 6217.330907 | H92: 7257.392734 | I92: 8268.548398 | J92: 8700.42625 | K92: 8883.177073 | L92: 9220.062364 | M92: 9472.345016 | N92: 9708.397219
B93: RTS 22kV | C93: 1956.572907 | D93: 3125.579041 | E93: 4582.238303 | F93: 5655.914948 | G93: 6972.804876 | H93: 8297.840536 | I93: 9648.455052 | J93: 10377.84103 | K93: 10832.1282 | L93: 11517.27938 | M93: 12154.76005 | N93: 12843.23545
B94: SVTS 66kV | C94: 410.1444215 | D94: 641.7878024 | E94: 922.0237646 | F94: 1110.666075 | G94: 1336.448177 | H94: 1551.178977 | I94: 1757.375659 | J94: 1838.777114 | K94: 1867.460651 | L94: 1927.79207 | M94: 1969.482566 | N94: 2006.798336
B95: TSTS 66kV | C95: 820.288843 | D95: 1283.575605 | E95: 1844.047529 | F95: 2221.332151 | G95: 2672.896353 | H95: 3102.357954 | I95: 3514.751317 | J95: 3677.554229 | K95: 3734.921303 | L95: 3855.58414 | M95: 3938.965132 | N95: 4013.596672
B96: Powercor | C96: =SUM(C70:C86) -> 14303.01394 | D96: =SUM(D70:D86) -> 22446.06815 | E96: 32338.51752 | F96: 39188.17054 | G96: 47441.5219 | H96: 55422.73447 | I96: 63234.64782 | J96: 66685.83578 | K96: 68243.3895 | L96: 71059.59824 | M96: 73322.37417 | N96: 75593.79009
B97: Citipower | C97: =SUM(C87:C95) -> 22237.58304 | D97: =SUM(D87:D95) -> 35441.87492 | E97: 51843.90088 | F97: 63838.10007 | G97: 78517.10664 | H97: 93216.56767 | I97: 108127.7894 | J97: 116010.5646 | K97: 120801.626 | L97: 128119.1198 | M97: 134844.9979 | N97: 142063.0356
G99: BATTERY STORAGE (DEMAND ONLY)
C100: Cumulative Demand Impacts (KW)
B101: Terminal Station | C101: 2014 | D101: 2015 | E101: 2016 | F101: 2017 | G101: 2018 | H101: 2019 | I101: 2020 | J101: 2021 | K101: 2022 | L101: 2023 | M101: 2024 | N101: 2025
B102: RCTS 22kV | C102: 4.745733843 | D102: 9.955488856 | E102: 12.53098006 | F102: 15.30809707 | G102: 18.32184005 | H102: 21.58828353 | I102: 25.12536303 | J102: 31.58411153 | K102: 38.56782251 | L102: 46.14372283 | M102: 54.35044987 | N102: 63.23311398
B103: RCTS 66kV | C103: 16.82578362 | D103: 35.29673322 | E103: 44.42802021 | F103: 54.27416234 | G103: 64.95925109 | H103: 76.54027798 | I103: 89.08083258 | J103: 111.9800318 | K103: 136.7404616 | L103: 163.6004719 | M103: 192.6970495 | N103: 224.1901314
B104: WETS 66kV | C104: 57.06837891 | D104: 119.4887043 | E104: 150.1206611 | F104: 183.143337 | G104: 218.911595 | H104: 257.6116946 | I104: 299.4512796 | J104: 375.9819215 | K104: 458.7056113 | L104: 548.3238798 | M104: 645.2928649 | N104: 750.1389846
B105: KGTS 22kV | C105: 2.955748652 | D105: 6.199010827 | E105: 7.800797781 | F105: 9.542120151 | G105: 11.4348109 | H105: 13.4893999 | I105: 15.71759693 | J105: 19.78011484 | K105: 24.20037576 | L105: 29.00676097 | M105: 34.22617009 | N105: 39.88931043
B106: KGTS 66kV | C106: 65.48068561 | D106: 137.0145403 | E106: 172.0316704 | F106: 209.9832911 | G106: 251.1119226 | H106: 295.6401026 | I106: 343.8090379 | J106: 431.8629472 | K106: 527.4748187 | L106: 631.1762084 | M106: 743.5425741 | N106: 865.1920631
B107: HOTS 66kV | C107: 185.3860718 | D107: 386.421099 | E107: 483.3509436 | F107: 587.1482522 | G107: 698.8980094 | H107: 819.1233645 | I107: 948.414268 | J107: 1186.24552 | K107: 1442.041818 | L107: 1717.732707 | M107: 2014.613739 | N107: 2334.176146
B108: BETS 22kV | C108: 23.27367934 | D108: 48.91564922 | E108: 61.68372745 | F108: 75.65308044 | G108: 90.88671837 | H108: 107.476823 | I108: 125.520577 | J108: 158.3145082 | K108: 194.1414348 | L108: 233.2049891 | M108: 275.7412902 | N108: 321.9988435
B109: BETS 66kV | C109: 280.0172907 | D109: 588.1621452 | E109: 741.2373035 | F109: 908.8009323 | G109: 1091.446645 | H109: 1290.276074 | I109: 1506.448232 | J109: 1899.489184 | K109: 2329.51791 | L109: 2798.362767 | M109: 3308.919294 | N109: 3864.167548
B110: SHTS/GNTS | C110: 374.5666476 | D110: 785.7805543 | E110: 989.0918956 | F110: 1210.952041 | G110: 1452.333166 | H110: 1714.651299 | I110: 1999.396924 | J110: 2517.991216 | K110: 3082.523475 | L110: 3696.757048 | M110: 4364.208555 | N110: 5088.670822
B111: HYTS/TGTS/APD | C111: 717.5807552 | D111: 1505.427453 | E111: 1895.01081 | F111: 2319.78469 | G111: 2781.876121 | H111: 3283.974788 | I111: 3828.931912 | J111: 4821.581776 | K111: 5903.035811 | L111: 7079.725185 | M111: 8358.478744 | N111: 9746.575406
B112: BATS/ELTS | C112: 411.7543024 | D112: 868.232888 | E112: 1098.320101 | F112: 1349.92714 | G112: 1625.096209 | H112: 1925.527256 | I112: 2253.040519 | J112: 2846.813327 | K112: 3496.68585 | L112: 4206.785635 | M112: 4981.489841 | N112: 5825.441925
B113: MLTS/GTS/PTH | C113: 0 | D113: 0 | E113: 0 | F113: 0 | G113: 0 | H113: 0 | I113: 0 | J113: 0 | K113: 0 | L113: 0 | M113: 0 | N113: 0
B114: ATS West | C114: 0 | D114: 0 | E114: 0 | F114: 0 | G114: 0 | H114: 0 | I114: 0 | J114: 0 | K114: 0 | L114: 0 | M114: 0 | N114: 0
B115: ATS-BLTS | C115: 18.98587028 | D115: 40.33389181 | E115: 51.38863539 | F115: 63.55836232 | G115: 76.97133484 | H115: 91.71832835 | I115: 107.8967877 | J115: 137.0302354 | K115: 169.1466391 | L115: 204.4544898 | M115: 243.1910436 | N115: 285.6052456
B116: BLTS 22kV | C116: 0 | D116: 0 | E116: 0 | F116: 0 | G116: 0 | H116: 0 | I116: 0 | J116: 0 | K116: 0 | L116: 0 | M116: 0 | N116: 0
B117: KTS East | C117: 0.005605972209 | D117: 0.01178773116 | E117: 0.01487111605 | F117: 0.01807668176 | G117: 0.02153558551 | H117: 0.02526108917 | I117: 0.02927191993 | J117: 0.036641099 | K117: 0.04451345391 | L117: 0.05299609847 | M117: 0.06212335925 | N117: 0.07194066393
B118: KTS West | C118: 126.8448901 | D118: 267.9266754 | E118: 339.4888873 | F118: 417.9359349 | G118: 503.9026155 | H118: 597.9353456 | I118: 700.6175523 | J118: 886.4429374 | K118: 1090.147291 | L118: 1313.084186 | M118: 1556.654451 | N118: 1822.346546
B119: WMTS 66kV | C119: 0.09083458915 | D119: 0.198640671 | E119: 0.2603211157 | F119: 0.3322804956 | G119: 0.4143965867 | H119: 0.5078281766 | I119: 0.6133806214 | J119: 0.7985336815 | K119: 1.008531656 | L119: 1.245270356 | M119: 1.510958865 | N119: 1.80689389
B120: WMTS 22kV | C120: 0.1290190391 | D120: 0.284194466 | E120: 0.3749391503 | F120: 0.4818927731 | G120: 0.6046905977 | H120: 0.7451902243 | I120: 0.9046523487 | J120: 1.183144416 | K120: 1.500591112 | L120: 1.859883832 | M120: 2.264521976 | N120: 2.716460634
B121: BTS 22kV | C121: 0.0134231657 | D121: 0.02812399143 | E121: 0.03535762549 | F121: 0.0431448318 | G121: 0.05158222809 | H121: 0.06071404199 | I121: 0.07058921217 | J121: 0.08864703197 | K121: 0.1081769891 | L121: 0.1293400572 | M121: 0.1522456793 | N121: 0.1770175093
B122: FBTS 66kV | C122: 0.08385488445 | D122: 0.1795356575 | E122: 0.2305618576 | F122: 0.2881674491 | G122: 0.3524756355 | H122: 0.4241405135 | I122: 0.5036780299 | J122: 0.6454616214 | K122: 0.8031973092 | L122: 0.9783555946 | M122: 1.172196368 | N122: 1.385764913
B123: RTS 66kV Bus 1&4 | C123: 0.1338611728 | D123: 0.2872165471 | E123: 0.3696772686 | F123: 0.4629660566 | G123: 0.5673414559 | H123: 0.6839542743 | I123: 0.8136493416 | J123: 1.044445555 | K123: 1.301572444 | L123: 1.587507839 | M123: 1.904471614 | N123: 2.254076468
B124: RTS 66kV Bus 2&3 | C124: 0.1341884244 | D124: 0.2855272027 | E124: 0.3645403688 | F124: 0.452423595 | G124: 0.5497253967 | H124: 0.6573468175 | I124: 0.7759906087 | J124: 0.9888752852 | K124: 1.223720123 | L124: 1.482818748 | M124: 1.767951304 | N124: 2.080606914
B125: RTS 22kV | C125: 0.0658881466 | D125: 0.1421721587 | E125: 0.1839912663 | F125: 0.2317510193 | G125: 0.2855237094 | H125: 0.3459617026 | I125: 0.4135276694 | J125: 0.533195352 | K125: 0.6672706337 | L125: 0.8170369963 | M125: 0.9837447609 | N125: 1.168221952
B126: SVTS 66kV | C126: 0.0261100792 | D126: 0.05510485006 | E126: 0.06979380142 | F126: 0.08576501178 | G126: 0.1032354864 | H126: 0.1223268357 | I126: 0.1431490022 | J126: 0.1809019005 | K126: 0.2220715555 | L126: 0.2670517025 | M126: 0.3161022069 | N126: 0.3694902577
B127: TSTS 66kV | C127: 0.05222015841 | D127: 0.1102097001 | E127: 0.1395876028 | F127: 0.1715300236 | G127: 0.2064709728 | H127: 0.2446536714 | I127: 0.2862980043 | J127: 0.361803801 | K127: 0.4441431109 | L127: 0.5341034051 | M127: 0.6322044138 | N127: 0.7389805154
B128: Powercor | C128: =SUM(C102:C118) -> 2285.491444 | D128: =SUM(D102:D118) -> 4799.166622 | E128: 6046.499305 | F128: 7406.029517 | G128: 8886.171775 | H128: 10495.5783 | I128: 12243.48015 | J128: 15425.13447 | K128: 18892.97383 | L128: 22668.41105 | M128: 26773.46819 | N128: 31231.69803
B129: Citipower | C129: =SUM(C119:C127) -> 0.7293996598 | D129: =SUM(D119:D127) -> 1.570725245 | E129: 2.028770057 | F129: 2.549921256 | G129: 3.135442069 | H129: 3.792116258 | I129: 4.524914838 | J129: 5.825008644 | K129: 7.279274933 | L129: 8.901368531 | M129: 10.70439719 | N129: 12.69751305
G131: EV (DEMAND ONLY)
C132: Cumulative Demand Impacts (KW)
B133: Terminal Station | C133: 2014 | D133: 2015 | E133: 2016 | F133: 2017 | G133: 2018 | H133: 2019 | I133: 2020 | J133: 2021 | K133: 2022 | L133: 2023 | M133: 2024 | N133: 2025
B134: RCTS 22kV | C134: 0.3610665813 | D134: 0.8539114099 | E134: 1.542589168 | F134: 2.489465464 | G134: 3.803151141 | H134: 5.627350215 | I134: 8.155287831 | J134: 11.15548581 | K134: 14.70589899 | L134: 18.93179464 | M134: 23.95698031 | N134: 29.93354166
B135: RCTS 66kV | C135: 1.280145152 | D135: 3.02750409 | E135: 5.469179778 | F135: 8.826286647 | G135: 13.4838995 | H135: 19.9515144 | I135: 28.91420231 | J135: 39.55126787 | K135: 52.13909642 | L135: 67.12181738 | M135: 84.93838473 | N135: 106.1280114
B136: WETS 66kV | C136: 2.438565478 | D136: 5.758653279 | E136: 10.38800634 | F136: 16.74421779 | G136: 25.55017488 | H136: 37.76251257 | I136: 54.66602265 | J136: 74.69676298 | K136: 98.37817025 | L136: 126.5320116 | M136: 159.9749155 | N136: 199.7093018
B137: KGTS 22kV | C137: 0 | D137: 0 | E137: 0 | F137: 0 | G137: 0 | H137: 0 | I137: 0 | J137: 0 | K137: 0 | L137: 0 | M137: 0 | N137: 0
B138: KGTS 66kV | C138: 0.8680772992 | D138: 2.043846504 | E138: 3.676066135 | F138: 5.912303285 | G138: 9.002185392 | H138: 13.27706664 | I138: 19.18094853 | J138: 26.15705155 | K138: 34.39637319 | L138: 44.17197226 | M138: 55.7629537 | N138: 69.51100314
B139: HOTS 66kV | C139: 1.626880816 | D139: 3.828947278 | E139: 6.884151083 | F139: 11.0658583 | G139: 16.84012025 | H139: 24.82411519 | I139: 35.84442365 | J139: 48.85684243 | K139: 64.19313032 | L139: 82.37168078 | M139: 103.9054314 | N139: 129.4237162
B140: BETS 22kV | C140: 0.2954613458 | D140: 0.7015943281 | E140: 1.272445973 | F140: 2.066728909 | G140: 3.176756955 | H140: 4.728367244 | I140: 6.891610907 | J140: 9.478874522 | K140: 12.57687557 | L140: 16.29171078 | M140: 20.74050444 | N140: 26.06622249
B141: BETS 66kV | C141: 2.800042393 | D141: 6.645150132 | E141: 12.04536378 | F141: 19.5523965 | G141: 30.03644275 | H141: 44.6821685 | I141: 65.0897044 | J141: 89.48003768 | K141: 118.6651627 | L141: 153.640897 | M141: 195.5044898 | N141: 245.5952804
B142: SHTS/GNTS | C142: 3.931533765 | D142: 9.310302954 | E142: 16.84087373 | F142: 27.24711131 | G142: 41.726352 | H142: 61.88549825 | I142: 89.88950142 | J142: 123.2285347 | K142: 162.8155105 | L142: 210.061478 | M142: 266.3861748 | N142: 333.5323954
B143: HYTS/TGTS/APD | C143: 12.78675275 | D143: 30.39128143 | E143: 55.1688385 | F143: 89.72182669 | G143: 138.0799382 | H143: 205.762904 | I143: 300.2370395 | J143: 413.3973128 | K143: 549.3035623 | L143: 712.5250538 | M143: 908.2899443 | N143: 1142.966533
B144: BATS/ELTS | C144: 2.870529169 | D144: 6.827814414 | E144: 12.4035857 | F144: 20.15181225 | G144: 30.98430203 | H144: 46.1307404 | I144: 67.25373186 | J144: 92.52605693 | K144: 122.7575012 | L144: 159.0080078 | M144: 202.4179389 | N144: 254.3817769
B145: MLTS/GTS/PTH | C145: 0.0002568003854 | D145: 0.000603271348 | E145: 0.001082643526 | F145: 0.001737054475 | G145: 0.002638673236 | H145: 0.003882785049 | I145: 0.005596765644 | J145: 0.007615579534 | K145: 0.009994940044 | L145: 0.01281088311 | M145: 0.01614203654 | N145: 0.02008450501
B146: ATS West | C146: 12.25295258 | D146: 30.05425188 | E146: 56.19923869 | F146: 93.17481473 | G146: 146.0267364 | H146: 221.3565072 | I146: 328.227277 | J146: 458.8416514 | K146: 617.795178 | L146: 811.5029028 | M146: 1046.865555 | N146: 1332.34728
B147: ATS-BLTS | C147: 2.475195217 | D147: 5.824451942 | E147: 10.47005307 | F147: 16.85201814 | G147: 25.67757419 | H147: 37.89757731 | I147: 54.78668328 | J147: 74.76219474 | K147: 98.41408804 | L147: 126.5094768 | M147: 159.8619895 | N147: 199.4652902
B148: BLTS 22kV | C148: 0.9000521551 | D148: 2.117937362 | E148: 3.80720934 | F148: 6.127871285 | G148: 9.337090229 | H148: 13.78062329 | I148: 19.92196978 | J148: 27.18561533 | K148: 35.78609053 | L148: 46.00233808 | M148: 58.13021434 | N148: 72.53104118
B149: KTS East | C149: 8.279731006 | D149: 19.63332394 | E149: 35.55953335 | F149: 57.14108739 | G149: 86.94166807 | H149: 128.1374814 | I149: 184.9888314 | J149: 252.0998357 | K149: 330.8522083 | L149: 424.0875239 | M149: 534.3853392 | N149: 664.9315862
B150: KTS West | C150: 8.684449979 | D150: 20.92935541 | E150: 38.50084685 | F150: 63.07439397 | G150: 97.75580272 | H150: 146.6505783 | I150: 215.3491603 | J150: 298.3154746 | K150: 398.7287102 | L150: 520.1171551 | M150: 666.5792946 | N150: 843.1094857
B151: WMTS 66kV | C151: 9.306301824 | D151: 22.30334077 | E151: 40.89625793 | F151: 67.16530456 | G151: 104.3459461 | H151: 156.946958 | I151: 231.0882916 | J151: 320.9846657 | K151: 429.9696339 | L151: 562.0725934 | M151: 721.9151488 | N151: 914.9158236
B152: WMTS 22kV | C152: 7.142792656 | D152: 17.40124072 | E152: 32.47601486 | F152: 54.34917747 | G152: 85.92005313 | H152: 131.3758785 | I152: 196.4438879 | J152: 276.8357222 | K152: 375.9999097 | L152: 497.9117647 | M152: 647.3516766 | N152: 829.7798544
B153: BTS 22kV | C153: 3.135284035 | D153: 7.408003961 | E153: 13.37068599 | F153: 21.57396497 | G153: 32.95215556 | H153: 48.74884806 | I153: 70.63537612 | J153: 96.6043078 | K153: 127.4181009 | L153: 164.1117283 | M153: 207.7705502 | N153: 259.7222022
B154: FBTS 66kV | C154: 8.333683403 | D154: 19.70962253 | E154: 35.64647583 | F154: 57.76383917 | G154: 88.56324639 | H154: 131.5288279 | I154: 191.2980978 | J154: 262.5844716 | K154: 347.5544467 | L154: 449.0654601 | M154: 570.382392 | N154: 715.1948108
B155: RTS 66kV Bus 1&4 | C155: 7.861867733 | D155: 18.70898347 | E155: 34.05977876 | F155: 55.47313174 | G155: 85.47647244 | H155: 127.5651447 | I155: 186.4184367 | J155: 257.0739111 | K155: 341.6583823 | L155: 443.2276534 | M155: 565.1674242 | N155: 711.3183626
B156: RTS 66kV Bus 2&3 | C156: 12.17827656 | D156: 28.7489533 | E156: 51.89122102 | F156: 83.73639113 | G156: 127.8675761 | H156: 189.1598082 | I156: 274.0759997 | J156: 374.8286548 | K156: 494.1340857 | L156: 635.9869405 | M156: 804.7689968 | N156: 1005.418817
B157: RTS 22kV | C157: 4.238405499 | D157: 10.12998376 | E157: 18.5290589 | F157: 30.33228163 | G157: 46.96848995 | H157: 70.42993859 | I157: 103.3967017 | J157: 143.2163824 | K157: 191.1876659 | L157: 249.0909038 | M157: 318.9306587 | N157: 402.984512
B158: SVTS 66kV | C158: 4.03834356 | D158: 9.497524845 | E158: 17.07646371 | F158: 27.43642602 | G158: 41.71854743 | H158: 61.46035948 | I158: 88.69040073 | J158: 120.8147888 | K158: 158.6672784 | L158: 203.4610423 | M158: 256.5270879 | N158: 319.35791
B159: TSTS 66kV | C159: 8.07668712 | D159: 18.99504969 | E159: 34.15292742 | F159: 54.87285204 | G159: 83.43709487 | H159: 122.920719 | I159: 177.3808015 | J159: 241.6295775 | K159: 317.3345568 | L159: 406.9220845 | M159: 513.0541757 | N159: 638.71582
B160: Powercor | C160: =SUM(C134:C150) -> 61.85169248 | D160: =SUM(D134:D150) -> 147.9489296 | E160: 270.2290641 | F160: 440.1499297 | G160: 678.4248334 | H160: 1012.458888 | I160: 1479.401992 | J160: 2039.740615 | K160: 2711.517552 | L160: 3518.888632 | M160: 4487.716253 | N160: 5649.65255
B161: Citipower | C161: =SUM(C151:C159) -> 64.31164239 | D161: =SUM(D151:D159) -> 152.902703 | E161: 278.0988844 | F161: 452.7033687 | G161: 697.2495819 | H161: 1040.136482 | I161: 1519.427994 | J161: 2094.572482 | K161: 2783.92406 | L161: 3611.850171 | M161: 4605.868111 | N161: 5797.408112
G163: MICROGENERATION
C164: Cumulative Demand Impacts (KW)
B165: Terminal Station | C165: 2014 | D165: 2015 | E165: 2016 | F165: 2017 | G165: 2018 | H165: 2019 | I165: 2020 | J165: 2021 | K165: 2022 | L165: 2023 | M165: 2024 | N165: 2025
B166: RCTS 22kV | C166: 0.3544397003 | D166: 0.7088794696 | E166: 1.06331838 | F166: 1.417757862 | G166: 1.772197579 | H166: 2.126637116 | I166: 2.481076682 | J166: 2.835516202 | K166: 3.189955979 | L166: 3.544395697 | M166: 3.898835461 | N166: 4.25327517
B167: RCTS 66kV | C167: 1.256649847 | D167: 2.513299938 | E167: 3.769946983 | F167: 5.026596056 | G167: 6.283245962 | H167: 7.539895229 | I167: 8.796544601 | J167: 10.05319381 | K167: 11.30984393 | L167: 12.56649383 | M167: 13.82314391 | N167: 15.07979379
B168: WETS 66kV | C168: 3.729307333 | D168: 7.458615368 | E168: 11.18791465 | F168: 14.91721976 | G168: 18.64652726 | H168: 22.37583293 | I168: 26.1051389 | J168: 29.83444439 | K168: 33.5637525 | L168: 37.29306001 | M168: 41.022368 | N168: 44.75167543
B169: KGTS 22kV | C169: 0.02143564064 | D169: 0.04287128557 | E169: 0.06430687695 | F169: 0.08574250398 | G169: 0.1071781457 | H169: 0.1286137761 | I169: 0.1500494084 | J169: 0.1714850378 | K169: 0.1929206832 | L169: 0.2143563249 | M169: 0.2357919695 | N169: 0.2572276107
B170: KGTS 66kV | C170: 2.646436605 | D170: 5.29287367 | E170: 7.939305012 | F170: 10.58574016 | G170: 13.23217688 | H170: 15.8786124 | I170: 18.52504811 | J170: 21.17148352 | K170: 23.81792063 | L170: 26.46435735 | M170: 29.11079438 | N170: 31.75723105
B171: HOTS 66kV | C171: 2.322710648 | D171: 4.645421587 | E171: 6.96812889 | F171: 9.290838613 | G171: 11.61354933 | H171: 13.93625929 | I171: 16.25896937 | J171: 18.58167925 | K171: 20.90439022 | L171: 23.22710095 | M171: 25.54981187 | N171: 27.87252256
B172: BETS 22kV | C172: 0.5246497085 | D172: 1.049299502 | E172: 1.573948239 | F172: 2.098597679 | G172: 2.623247409 | H172: 3.147896917 | I172: 3.67254646 | J172: 4.197195947 | K172: 4.72184575 | L172: 5.24649548 | M172: 5.771145267 | N172: 6.295794988
B173: BETS 66kV | C173: 6.198423846 | D173: 12.39684869 | E173: 18.5952611 | F173: 24.79368179 | G173: 30.99210588 | H173: 37.19052736 | I173: 43.38894927 | J173: 49.58737051 | K173: 55.78579546 | L173: 61.98421956 | M173: 68.18264433 | N173: 74.38106832
B174: SHTS/GNTS | C174: 9.794020157 | D174: 19.58804162 | E174: 29.38204678 | F174: 39.17606279 | G174: 48.97008327 | H174: 58.76410033 | I174: 68.55811794 | J174: 78.35213468 | K174: 88.14615628 | L174: 97.94017678 | M174: 107.7341982 | N174: 117.5282185
B175: HYTS/TGTS/APD | C175: 30.5494345 | D175: 61.09887141 | E175: 91.6482783 | F175: 122.1977052 | G175: 152.7471403 | H175: 183.2965691 | I175: 213.8459989 | J175: 244.3954271 | K175: 274.9448642 | L175: 305.4942994 | M175: 336.0437361 | N175: 366.593171
B176: BATS/ELTS | C176: 6.786611816 | D176: 13.57322466 | E176: 20.35982468 | F176: 27.14643323 | G176: 33.9330453 | H176: 40.71965468 | I176: 47.50626449 | J176: 54.29287362 | K176: 61.07948657 | L176: 67.86609865 | M176: 74.65271143 | N176: 81.4393234
B177: MLTS/GTS/PTH | C177: 0.08719684265 | D177: 0.1743937031 | E177: 0.2615903421 | F177: 0.3487871285 | G177: 0.4359839755 | H177: 0.523180776 | I177: 0.6103775841 | J177: 0.6975743803 | K177: 0.7847712426 | L177: 0.8719680897 | M177: 0.9591649487 | N177: 1.046361794
B178: ATS West | C178: 17.6141543 | D178: 35.22831048 | E178: 52.84244321 | F178: 70.45659155 | G178: 88.07074631 | H178: 105.6848962 | I178: 123.2990468 | J178: 140.9131962 | K178: 158.5273525 | L178: 176.1415073 | M178: 193.7556634 | N178: 211.369818
B179: ATS-BLTS | C179: 4.637955775 | D179: 9.27591199 | E179: 13.91386274 | F179: 18.55181713 | G179: 23.18977301 | H179: 27.82772775 | I179: 32.46568267 | J179: 37.10363731 | K179: 41.74159356 | L179: 46.37954946 | M179: 51.01750565 | N179: 55.6554615
B180: BLTS 22kV | C180: 1.637191257 | D180: 3.274382664 | E180: 4.911572204 | F180: 6.548762985 | G180: 8.185954279 | H180: 9.823145181 | I180: 11.46033615 | J180: 13.09752701 | K180: 14.73471843 | L180: 16.37190973 | M180: 18.00910113 | N180: 19.64629242
B181: KTS East | C181: 7.216714863 | D181: 14.43343077 | E181: 21.65013369 | F181: 28.86684525 | G181: 36.08356037 | H181: 43.30027276 | I181: 50.5169856 | J181: 57.73369774 | K181: 64.95041375 | L181: 72.16712888 | M181: 79.38384471 | N181: 86.60055972
B182: KTS West | C182: 6.142336781 | D182: 12.2846746 | E182: 18.42699949 | F182: 24.56933299 | G182: 30.71167002 | H182: 36.85400434 | I182: 42.9963391 | J182: 49.13867318 | K182: 55.2810111 | L182: 61.42334814 | M182: 67.56568589 | N182: 73.70802281
B183: WMTS 66kV | C183: 1.862133377 | D183: 3.724259647 | E183: 5.586474391 | F183: 7.448630252 | G183: 9.310761892 | H183: 11.17291208 | I183: 13.03505927 | J183: 14.89721118 | K183: 16.75933673 | L183: 18.62146826 | M183: 20.48359502 | N183: 22.34572733
B184: WMTS 22kV | C184: 0 | D184: 0 | E184: 0 | F184: 0 | G184: 0 | H184: 0 | I184: 0 | J184: 0 | K184: 0 | L184: 0 | M184: 0 | N184: 0
B185: BTS 22kV | C185: 1.29796266 | D185: 2.595920367 | E185: 3.893939731 | F185: 5.19191806 | G185: 6.489879509 | H185: 7.787853888 | I185: 9.08582617 | J185: 10.38380175 | K185: 11.68175895 | L185: 12.97972033 | M185: 14.27767838 | N185: 15.57564029
B186: FBTS 66kV | C186: 0 | D186: 0 | E186: 0 | F186: 0 | G186: 0 | H186: 0 | I186: 0 | J186: 0 | K186: 0 | L186: 0 | M186: 0 | N186: 0
B187: RTS 66kV Bus 1&4 | C187: 0 | D187: 0 | E187: 0 | F187: 0 | G187: 0 | H187: 0 | I187: 0 | J187: 0 | K187: 0 | L187: 0 | M187: 0 | N187: 0
B188: RTS 66kV Bus 2&3 | C188: 0 | D188: 0 | E188: 0 | F188: 0 | G188: 0 | H188: 0 | I188: 0 | J188: 0 | K188: 0 | L188: 0 | M188: 0 | N188: 0
B189: RTS 22kV | C189: 0 | D189: 0 | E189: 0 | F189: 0 | G189: 0 | H189: 0 | I189: 0 | J189: 0 | K189: 0 | L189: 0 | M189: 0 | N189: 0
B190: SVTS 66kV | C190: 0 | D190: 0 | E190: 0 | F190: 0 | G190: 0 | H190: 0 | I190: 0 | J190: 0 | K190: 0 | L190: 0 | M190: 0 | N190: 0
B191: TSTS 66kV | C191: 0 | D191: 0 | E191: 0 | F191: 0 | G191: 0 | H191: 0 | I191: 0 | J191: 0 | K191: 0 | L191: 0 | M191: 0 | N191: 0
B192: Powercor | C192: =SUM(C166:C182) -> 101.5196696 | D192: =SUM(D166:D182) -> 203.0393514 | E192: 304.5588816 | F192: 406.0785126 | G192: 507.5981852 | H192: 609.117826 | I192: 710.637472 | J192: 812.1571098 | K192: 913.6767929 | L192: 1015.196466 | M192: 1116.716147 | N192: 1218.235818
B193: Citipower | C193: =SUM(C183:C191) -> 3.160096036 | D193: =SUM(D183:D191) -> 6.320180013 | E193: 9.480414122 | F193: 12.64054831 | G193: 15.8006414 | H193: 18.96076597 | I193: 22.12088544 | J193: 25.28101293 | K193: 28.44109568 | L193: 31.60118859 | M193: 34.7612734 | N193: 37.92136762

Sheet Block loads
A1: Summer (MW) | N1: Winter adjustments (MW) | AA1: Annual adjustments
B2: 2015 | C2: 2016 | D2: 2017 | E2: 2018 | F2: 2019 | G2: 2020 | H2: 2021 | I2: 2022 | J2: 2023 | K2: 2024 | L2: 2025 | O2: 2015 | P2: 2016 | Q2: 2017 | R2: 2018 | S2: 2019 | T2: 2020 | U2: 2021 | V2: 2022 | W2: 2023 | X2: 2024 | Y2: 2025 | AB2: 2015 | AC2: 2016 | AD2: 2017 | AE2: 2018 | AF2: 2019 | AG2: 2020 | AH2: 2021 | AI2: 2022 | AJ2: 2023 | AK2: 2024 | AL2: 2025
A3: RCTS 22kV | B3: 0 | C3: 0 | D3: 0 | E3: 0 | F3: 0 | G3: 0 | H3: 0 | I3: 0 | J3: 0 | K3: 0 | L3: 0 | N3: RCTS 22kV | O3: 0 | P3: 0 | Q3: 0 | R3: 0 | S3: 0 | T3: 0 | U3: 0 | V3: 0 | W3: 0 | X3: 0 | Y3: 0 | AA3: RCTS 22kV | AB3: 0 | AC3: 0 | AD3: 0 | AE3: 0 | AF3: 0 | AG3: 0 | AH3: 0 | AI3: 0 | AJ3: 0 | AK3: 0 | AL3: 0
A4: RCTS 66kV | B4: 0 | C4: 0 | D4: 0 | E4: 0 | F4: 0 | G4: 0 | H4: 0 | I4: 0 | J4: 0 | K4: 0 | L4: 0 | N4: RCTS 66kV | O4: 0 | P4: 0 | Q4: 0 | R4: 0 | S4: 0 | T4: 0 | U4: 0 | V4: 0 | W4: 0 | X4: 0 | Y4: 0 | AA4: RCTS 66kV | AB4: 0 | AC4: 0 | AD4: 0 | AE4: 0 | AF4: 0 | AG4: 0 | AH4: 0 | AI4: 0 | AJ4: 0 | AK4: 0 | AL4: 0
A5: WETS 66kV | B5: 0 | C5: -4 | D5: -4 | E5: -4 | F5: -4 | G5: -4 | H5: -4 | I5: -4 | J5: -4 | K5: -4 | L5: -4 | N5: WETS 66kV | O5: 0 | P5: -4 | Q5: -4 | R5: -4 | S5: -4 | T5: -4 | U5: -4 | V5: -4 | W5: -4 | X5: -4 | Y5: -4 | AA5: WETS 66kV | AB5: 0 | AC5: -4 | AD5: -4 | AE5: -4 | AF5: -4 | AG5: -4 | AH5: -4 | AI5: -4 | AJ5: -4 | AK5: -4 | AL5: -4
A6: KGTS 22kV | B6: 0 | C6: 0 | D6: 0 | E6: 0 | F6: 0 | G6: 0 | H6: 0 | I6: 0 | J6: 0 | K6: 0 | L6: 0 | N6: KGTS 22kV | O6: 0 | P6: 0 | Q6: 0 | R6: 0 | S6: 0 | T6: 0 | U6: 0 | V6: 0 | W6: 0 | X6: 0 | Y6: 0 | AA6: KGTS 22kV | AB6: 0 | AC6: 0 | AD6: 0 | AE6: 0 | AF6: 0 | AG6: 0 | AH6: 0 | AI6: 0 | AJ6: 0 | AK6: 0 | AL6: 0
A7: KGTS 66kV | B7: 0 | C7: 0 | D7: 0 | E7: 0 | F7: 0 | G7: 0 | H7: 0 | I7: 0 | J7: 0 | K7: 0 | L7: 0 | N7: KGTS 66kV | O7: 0 | P7: 0 | Q7: 0 | R7: 0 | S7: 0 | T7: 0 | U7: 0 | V7: 0 | W7: 0 | X7: 0 | Y7: 0 | AA7: KGTS 66kV | AB7: 0 | AC7: 0 | AD7: 0 | AE7: 0 | AF7: 0 | AG7: 0 | AH7: 0 | AI7: 0 | AJ7: 0 | AK7: 0 | AL7: 0
A8: HOTS 66kV | B8: 0 | C8: 0 | D8: 0 | E8: 0 | F8: 0 | G8: 0 | H8: 0 | I8: 0 | J8: 0 | K8: 0 | L8: 0 | N8: HOTS 66kV | O8: 0 | P8: 0 | Q8: 0 | R8: 0 | S8: 0 | T8: 0 | U8: 0 | V8: 0 | W8: 0 | X8: 0 | Y8: 0 | AA8: HOTS 66kV | AB8: 0 | AC8: 0 | AD8: 0 | AE8: 0 | AF8: 0 | AG8: 0 | AH8: 0 | AI8: 0 | AJ8: 0 | AK8: 0 | AL8: 0
A9: BETS 22kV | B9: 9 | C9: 9 | D9: 9 | E9: 9 | F9: 9 | G9: 9 | H9: 9 | I9: 9 | J9: 9 | K9: 9 | L9: 9 | N9: BETS 22kV | O9: 6.4 | P9: 6.4 | Q9: 6.4 | R9: 6.4 | S9: 6.4 | T9: 6.4 | U9: 6.4 | V9: 6.4 | W9: 6.4 | X9: 6.4 | Y9: 6.4 | AA9: BETS 22kV | AB9: 9 | AC9: 9 | AD9: 9 | AE9: 9 | AF9: 9 | AG9: 9 | AH9: 9 | AI9: 9 | AJ9: 9 | AK9: 9 | AL9: 9
A10: BETS 66kV | B10: -9 | C10: -9 | D10: -3.6 | E10: -3.6 | F10: -3.6 | G10: -3.6 | H10: -3.6 | I10: -3.6 | J10: -3.6 | K10: -3.6 | L10: -3.6 | N10: BETS 66kV | O10: -6.4 | P10: -6.4 | Q10: -1 | R10: -1 | S10: -1 | T10: -1 | U10: -1 | V10: -1 | W10: -1 | X10: -1 | Y10: -1 | AA10: BETS 66kV | AB10: -9 | AC10: -9 | AD10: -3.6 | AE10: -3.6 | AF10: -3.6 | AG10: -3.6 | AH10: -3.6 | AI10: -3.6 | AJ10: -3.6 | AK10: -3.6 | AL10: -3.6
A11: SHTS/GNTS | B11: 0 | C11: 0 | D11: 0 | E11: 0 | F11: 20 | G11: 20 | H11: 20 | I11: 20 | J11: 20 | K11: 20 | L11: 20 | N11: SHTS/GNTS | O11: 0 | P11: 0 | Q11: 0 | R11: 0 | S11: 20 | T11: 20 | U11: 20 | V11: 20 | W11: 20 | X11: 20 | Y11: 20 | AA11: SHTS/GNTS | AB11: 0 | AC11: 0 | AD11: 0 | AE11: 0 | AF11: 20 | AG11: 20 | AH11: 20 | AI11: 20 | AJ11: 20 | AK11: 20 | AL11: 20
A12: HYTS/TGTS/APD | B12: 0 | C12: 8 | D12: 10 | E12: 22.4 | F12: 24.4 | G12: 26.8 | H12: 26.8 | I12: 26.8 | J12: 26.8 | K12: 26.8 | L12: 26.8 | N12: HYTS/TGTS/APD | O12: 0 | P12: 8 | Q12: 10 | R12: 22.4 | S12: 24.4 | T12: 26.8 | U12: 26.8 | V12: 26.8 | W12: 26.8 | X12: 26.8 | Y12: 26.8 | AA12: HYTS/TGTS/APD | AB12: 0 | AC12: 8 | AD12: 10 | AE12: 22.4 | AF12: 24.4 | AG12: 26.8 | AH12: 26.8 | AI12: 26.8 | AJ12: 26.8 | AK12: 26.8 | AL12: 26.8
A13: BATS/ELTS | B13: 0 | C13: 0 | D13: 0 | E13: 0 | F13: 0 | G13: 0 | H13: 0 | I13: 0 | J13: 0 | K13: 0 | L13: 0 | N13: BATS/ELTS | O13: 0 | P13: 0 | Q13: 0 | R13: 0 | S13: 0 | T13: 0 | U13: 0 | V13: 0 | W13: 0 | X13: 0 | Y13: 0 | AA13: BATS/ELTS | AB13: 0 | AC13: 0 | AD13: 0 | AE13: 0 | AF13: 0 | AG13: 0 | AH13: 0 | AI13: 0 | AJ13: 0 | AK13: 0 | AL13: 0
A14: MLTS/GTS/PTH | B14: 3 | C14: 6 | D14: -17.5 | E14: -17.5 | F14: -17.5 | G14: -17.5 | H14: -17.5 | I14: -17.5 | J14: -17.5 | K14: -17.5 | L14: -17.5 | N14: MLTS/GTS/PTH | O14: 3 | P14: -3 | Q14: -15 | R14: -15 | S14: -15 | T14: -15 | U14: -15 | V14: -15 | W14: -15 | X14: -15 | Y14: -15 | AA14: MLTS/GTS/PTH | AB14: 3 | AC14: 6 | AD14: -17.5 | AE14: -17.5 | AF14: -17.5 | AG14: -17.5 | AH14: -17.5 | AI14: -17.5 | AJ14: -17.5 | AK14: -17.5 | AL14: -17.5
A15: ATS West | B15: 2.5 | C15: 4.5 | D15: 9.9 | E15: 9.9 | F15: 9.9 | G15: 9.9 | H15: 9.9 | I15: 9.9 | J15: 9.9 | K15: 9.9 | L15: 9.9 | N15: ATS West | O15: 2.5 | P15: 4.5 | Q15: 9.9 | R15: 9.9 | S15: 9.9 | T15: 9.9 | U15: 9.9 | V15: 9.9 | W15: 9.9 | X15: 9.9 | Y15: 9.9 | AA15: ATS West | AB15: 2.5 | AC15: 4.5 | AD15: 9.9 | AE15: 9.9 | AF15: 9.9 | AG15: 9.9 | AH15: 9.9 | AI15: 9.9 | AJ15: 9.9 | AK15: 9.9 | AL15: 9.9
A16: ATS-BLTS | B16: 3.8 | C16: 6.8 | D16: 8.6 | E16: 8.6 | F16: 8.6 | G16: 8.6 | H16: 8.6 | I16: 8.6 | J16: 8.6 | K16: 8.6 | L16: 8.6 | N16: ATS-BLTS | O16: 3.8 | P16: 6.8 | Q16: 8.6 | R16: 8.6 | S16: 8.6 | T16: 8.6 | U16: 8.6 | V16: 8.6 | W16: 8.6 | X16: 8.6 | Y16: 8.6 | AA16: ATS-BLTS | AB16: 3.8 | AC16: 6.8 | AD16: 8.6 | AE16: 8.6 | AF16: 8.6 | AG16: 8.6 | AH16: 8.6 | AI16: 8.6 | AJ16: 8.6 | AK16: 8.6 | AL16: 8.6
A17: BLTS 22kV | N17: BLTS 22kV | O17: 0 | P17: 0 | Q17: 0 | R17: 0 | S17: 0 | T17: 0 | U17: 0 | V17: 0 | W17: 0 | X17: 0 | Y17: 0 | AA17: BLTS 22kV | AB17: 0 | AC17: 0 | AD17: 0 | AE17: 0 | AF17: 0 | AG17: 0 | AH17: 0 | AI17: 0 | AJ17: 0 | AK17: 0 | AL17: 0
A18: KTS East | B18: 0 | C18: 0 | D18: 0 | E18: 0 | F18: 0 | G18: 0 | H18: 0 | I18: 0 | J18: 0 | K18: 0 | L18: 0 | N18: KTS East | O18: 0 | P18: 0 | Q18: 0 | R18: 0 | S18: 0 | T18: 0 | U18: 0 | V18: 0 | W18: 0 | X18: 0 | Y18: 0 | AA18: KTS East | AB18: 0 | AC18: 0 | AD18: 0 | AE18: 0 | AF18: 0 | AG18: 0 | AH18: 0 | AI18: 0 | AJ18: 0 | AK18: 0 | AL18: 0
A19: KTS West | B19: 0 | C19: 0 | D19: 0 | E19: 0 | F19: 0 | G19: 0 | H19: 0 | I19: 0 | J19: 0 | K19: 0 | L19: 0 | N19: KTS West | O19: 0 | P19: 0 | Q19: 0 | R19: 0 | S19: 0 | T19: 0 | U19: 0 | V19: 0 | W19: 0 | X19: 0 | Y19: 0 | AA19: KTS West | AB19: 0 | AC19: 0 | AD19: 0 | AE19: 0 | AF19: 0 | AG19: 0 | AH19: 0 | AI19: 0 | AJ19: 0 | AK19: 0 | AL19: 0
A20: WMTS 66kV | B20: -0.6 | C20: 34.4 | D20: 34.4 | E20: 34.4 | F20: 34.4 | G20: 34.4 | H20: 34.4 | I20: 34.4 | J20: 34.4 | K20: 34.4 | L20: 34.4 | N20: WMTS 66kV | O20: -0.6 | P20: 34.4 | Q20: 34.4 | R20: 34.4 | S20: 34.4 | T20: 34.4 | U20: 34.4 | V20: 34.4 | W20: 34.4 | X20: 34.4 | Y20: 34.4 | AA20: WMTS 66kV | AB20: -0.6 | AC20: 34.4 | AD20: 34.4 | AE20: 34.4 | AF20: 34.4 | AG20: 34.4 | AH20: 34.4 | AI20: 34.4 | AJ20: 34.4 | AK20: 34.4 | AL20: 34.4
A21: WMTS 22kV | B21: -15.2 | C21: -15.2 | D21: -15.2 | E21: -15.2 | F21: -15.2 | G21: -15.2 | H21: -15.2 | I21: -15.2 | J21: -15.2 | K21: -15.2 | L21: -15.2 | N21: WMTS 22kV | O21: -15.2 | P21: -15.2 | Q21: -15.2 | R21: -15.2 | S21: -15.2 | T21: -15.2 | U21: -15.2 | V21: -15.2 | W21: -15.2 | X21: -15.2 | Y21: -15.2 | AA21: WMTS 22kV | AB21: -15.2 | AC21: -15.2 | AD21: -15.2 | AE21: -15.2 | AF21: -15.2 | AG21: -15.2 | AH21: -15.2 | AI21: -15.2 | AJ21: -15.2 | AK21: -15.2 | AL21: -15.2
A22: BTS 22kV | B22: 0 | C22: 0 | D22: 0 | E22: 0 | F22: 0 | G22: 0 | H22: 0 | I22: 0 | J22: 0 | K22: 0 | L22: 0 | N22: BTS 22kV | O22: 0 | P22: 0 | Q22: 0 | R22: 0 | S22: 0 | T22: 0 | U22: 0 | V22: 0 | W22: 0 | X22: 0 | Y22: 0 | AA22: BTS 22kV | AB22: 0 | AC22: 0 | AD22: 0 | AE22: 0 | AF22: 0 | AG22: 0 | AH22: 0 | AI22: 0 | AJ22: 0 | AK22: 0 | AL22: 0
A23: FBTS 66kV | B23: 16.6 | C23: 18.8 | D23: 27.8 | E23: 37.4 | F23: 37.4 | G23: 37.4 | H23: 44.9 | I23: 44.9 | J23: 44.9 | K23: 44.9 | L23: 44.9 | N23: FBTS 66kV | O23: 16.6 | P23: 18.8 | Q23: 27.8 | R23: 37.4 | S23: 37.4 | T23: 37.4 | U23: 44.9 | V23: 44.9 | W23: 44.9 | X23: 44.9 | Y23: 44.9 | AA23: FBTS 66kV | AB23: 16.6 | AC23: 18.8 | AD23: 27.8 | AE23: 37.4 | AF23: 37.4 | AG23: 37.4 | AH23: 44.9 | AI23: 44.9 | AJ23: 44.9 | AK23: 44.9 | AL23: 44.9
A24: RTS 66kV Bus 1&4 | B24: 12.3 | C24: 25.8 | D24: 25.8 | E24: 25.8 | F24: 25.8 | G24: 25.8 | H24: 25.8 | I24: 25.8 | J24: 25.8 | K24: 25.8 | L24: 25.8 | N24: RTS 66kV Bus 1&4 | O24: 12.3 | P24: 25.8 | Q24: 25.8 | R24: 25.8 | S24: 25.8 | T24: 25.8 | U24: 25.8 | V24: 25.8 | W24: 25.8 | X24: 25.8 | Y24: 25.8 | AA24: RTS 66kV Bus 1&4 | AB24: 12.3 | AC24: 25.8 | AD24: 25.8 | AE24: 25.8 | AF24: 25.8 | AG24: 25.8 | AH24: 25.8 | AI24: 25.8 | AJ24: 25.8 | AK24: 25.8 | AL24: 25.8
A25: RTS 66kV Bus 2&3 | B25: 0 | C25: 0 | D25: 0 | E25: 0 | F25: 0 | G25: 0 | H25: 0 | I25: 0 | J25: 0 | K25: 0 | L25: 0 | N25: RTS 66kV Bus 2&3 | O25: 0 | P25: 0 | Q25: 0 | R25: 0 | S25: 0 | T25: 0 | U25: 0 | V25: 0 | W25: 0 | X25: 0 | Y25: 0 | AA25: RTS 66kV Bus 2&3 | AB25: 0 | AC25: 0 | AD25: 0 | AE25: 0 | AF25: 0 | AG25: 0 | AH25: 0 | AI25: 0 | AJ25: 0 | AK25: 0 | AL25: 0
A26: RTS 22kV | B26: -12.3 | C26: -25.8 | D26: -25.8 | E26: -25.8 | F26: -25.8 | G26: -25.8 | H26: -25.8 | I26: -25.8 | J26: -25.8 | K26: -25.8 | L26: -25.8 | N26: RTS 22kV | O26: -12.3 | P26: -25.8 | Q26: -25.8 | R26: -25.8 | S26: -25.8 | T26: -25.8 | U26: -25.8 | V26: -25.8 | W26: -25.8 | X26: -25.8 | Y26: -25.8 | AA26: RTS 22kV | AB26: -12.3 | AC26: -25.8 | AD26: -25.8 | AE26: -25.8 | AF26: -25.8 | AG26: -25.8 | AH26: -25.8 | AI26: -25.8 | AJ26: -25.8 | AK26: -25.8 | AL26: -25.8
